Workbook

Sheet Présentation
A1: Tempérament : | B1: Asselin | G1: Date : | H1: =VLOOKUP(B1,'Ecart cents'!A4:AL352,38) -> 1984 | J1: accordé sur | K1: =VLOOKUP(Présentation!B1,'Ecart cents'!A4:AN341,2) -> Do-Do | M1: Seuil DMV | N1: 2
B2: =IF(AND(VLOOKUP(B1,'Ecart cents'!A4:AO340,39)="Non-octaviant",VLOOKUP(B1,'Ecart cents'!A4:AO340,41)="Irrégulier"),"Non-octaviant irrégulier",IF(AND(VLOOKUP(B1,'Ecart cents'!A4:AO340,39)="Non-octaviant",VLOOKUP(B1,'Ecart cents'!A4:AO340,41)="Régulier"),"Non-octaviant régulier","")) ->  | M2: Nomenclature française
A3: Note | B3: =IF(AND($M$2="Nomenclature française",$H$9="Do-Do"),'Calculs cachés'!L73,IF(AND($M$2="Nomenclature française",$H$9="Fa-Fa"),'Calculs cachés'!E73,IF(AND($M$2="Nomenclature internationale",$H$9="Do-Do"),'Calculs cachés'!L74,'Calculs cachés'!E74))) -> Fa2 | C3: =IF(AND($M$2="Nomenclature française",$H$9="Do-Do"),'Calculs cachés'!M73,IF(AND($M$2="Nomenclature française",$H$9="Fa-Fa"),'Calculs cachés'!F73,IF(AND($M$2="Nomenclature internationale",$H$9="Do-Do"),'Calculs cachés'!M74,'Calculs cachés'!F74))) -> Fa#2 | D3: =IF(AND($M$2="Nomenclature française",$H$9="Do-Do"),'Calculs cachés'!N73,IF(AND($M$2="Nomenclature française",$H$9="Fa-Fa"),'Calculs cachés'!G73,IF(AND($M$2="Nomenclature internationale",$H$9="Do-Do"),'Calculs cachés'!N74,'Calculs cachés'!G74))) -> Sol2 | E3: =IF(AND($M$2="Nomenclature française",$H$9="Do-Do"),'Calculs cachés'!O73,IF(AND($M$2="Nomenclature française",$H$9="Fa-Fa"),'Calculs cachés'!H73,IF(AND($M$2="Nomenclature internationale",$H$9="Do-Do"),'Calculs cachés'!O74,'Calculs cachés'!H74))) -> Sol#2 | F3: =IF(AND($M$2="Nomenclature française",$H$9="Do-Do"),'Calculs cachés'!P73,IF(AND($M$2="Nomenclature française",$H$9="Fa-Fa"),'Calculs cachés'!I73,IF(AND($M$2="Nomenclature internationale",$H$9="Do-Do"),'Calculs cachés'!P74,'Calculs cachés'!I74))) -> La2 | G3: =IF(AND($M$2="Nomenclature française",$H$9="Do-Do"),'Calculs cachés'!Q73,IF(AND($M$2="Nomenclature française",$H$9="Fa-Fa"),'Calculs cachés'!J73,IF(AND($M$2="Nomenclature internationale",$H$9="Do-Do"),'Calculs cachés'!Q74,'Calculs cachés'!J74))) -> Sib2 | H3: =IF(AND($M$2="Nomenclature française",$H$9="Do-Do"),'Calculs cachés'!R73,IF(AND($M$2="Nomenclature française",$H$9="Fa-Fa"),'Calculs cachés'!K73,IF(AND($M$2="Nomenclature internationale",$H$9="Do-Do"),'Calculs cachés'!R74,'Calculs cachés'!K74))) -> Si2 | I3: =IF(AND($M$2="Nomenclature française",$H$9="Do-Do"),'Calculs cachés'!S73,IF(AND($M$2="Nomenclature française",$H$9="Fa-Fa"),'Calculs cachés'!L73,IF(AND($M$2="Nomenclature internationale",$H$9="Do-Do"),'Calculs cachés'!S74,'Calculs cachés'!L74))) -> Do3 | J3: =IF(AND($M$2="Nomenclature française",$H$9="Do-Do"),'Calculs cachés'!T73,IF(AND($M$2="Nomenclature française",$H$9="Fa-Fa"),'Calculs cachés'!M73,IF(AND($M$2="Nomenclature internationale",$H$9="Do-Do"),'Calculs cachés'!T74,'Calculs cachés'!M74))) -> Do#3 | K3: =IF(AND($M$2="Nomenclature française",$H$9="Do-Do"),'Calculs cachés'!U73,IF(AND($M$2="Nomenclature française",$H$9="Fa-Fa"),'Calculs cachés'!N73,IF(AND($M$2="Nomenclature internationale",$H$9="Do-Do"),'Calculs cachés'!U74,'Calculs cachés'!N74))) -> Ré3 | L3: =IF(AND($M$2="Nomenclature française",$H$9="Do-Do"),'Calculs cachés'!V73,IF(AND($M$2="Nomenclature française",$H$9="Fa-Fa"),'Calculs cachés'!O73,IF(AND($M$2="Nomenclature internationale",$H$9="Do-Do"),'Calculs cachés'!V74,'Calculs cachés'!O74))) -> Mib3 | M3: =IF(AND($M$2="Nomenclature française",$H$9="Do-Do"),'Calculs cachés'!W73,IF(AND($M$2="Nomenclature française",$H$9="Fa-Fa"),'Calculs cachés'!P73,IF(AND($M$2="Nomenclature internationale",$H$9="Do-Do"),'Calculs cachés'!W74,'Calculs cachés'!P74))) -> Mi3 | N3: =IF(AND($M$2="Nomenclature française",$H$9="Do-Do"),'Calculs cachés'!X73,IF(AND($M$2="Nomenclature française",$H$9="Fa-Fa"),'Calculs cachés'!Q73,IF(AND($M$2="Nomenclature internationale",$H$9="Do-Do"),'Calculs cachés'!X74,'Calculs cachés'!Q74))) -> Fa3
A4: =IF(M2="Nomenclature française",IF(H9="Do-Do","Fréquences avec le La3 à 440 (Hz)","Fréquences avec le La2 à 220 (Hz)"),IF(H9="Do-Do","Fréquences avec le A4 à 440 (Hz)","Fréquences avec le A3 à 220 (Hz)")) -> Fréquences avec le La2 à 220 (Hz) | B4: =IF(OR(AND($B$2="Non-octaviant irrégulier",$H$9="Fa-Fa",$K$1="Do-Do"),AND($B$2="Non-octaviant irrégulier",$H$9="Do-Do",$K$1="Fa-Fa")),"",TRANSPOSE('Valeurs Hertz'!B1)) -> 175.0180264 | C4: =IF(OR(AND($B$2="Non-octaviant irrégulier",$H$9="Fa-Fa",$K$1="Do-Do"),AND($B$2="Non-octaviant irrégulier",$H$9="Do-Do",$K$1="Fa-Fa")),"",TRANSPOSE('Valeurs Hertz'!C1)) -> 184.6769132 | D4: =IF(OR(AND($B$2="Non-octaviant irrégulier",$H$9="Fa-Fa",$K$1="Do-Do"),AND($B$2="Non-octaviant irrégulier",$H$9="Do-Do",$K$1="Fa-Fa")),"",TRANSPOSE('Valeurs Hertz'!D1)) -> 196.2242743 | E4: =IF(OR(AND($B$2="Non-octaviant irrégulier",$H$9="Fa-Fa",$K$1="Do-Do"),AND($B$2="Non-octaviant irrégulier",$H$9="Do-Do",$K$1="Fa-Fa")),"",TRANSPOSE('Valeurs Hertz'!E1)) -> 207.7723281 | F4: =IF(OR(AND($B$2="Non-octaviant irrégulier",$H$9="Fa-Fa",$K$1="Do-Do"),AND($B$2="Non-octaviant irrégulier",$H$9="Do-Do",$K$1="Fa-Fa")),"",TRANSPOSE('Valeurs Hertz'!F1)) -> 220 | G4: =IF(AND($B$2="Non-octaviant irrégulier",$H$9="Fa-Fa",$K$1="Do-Do"),"",TRANSPOSE('Valeurs Hertz'!G1)) -> 233.7560207 | H4: =IF(AND($B$2="Non-octaviant irrégulier",$H$9="Fa-Fa",$K$1="Do-Do"),"",TRANSPOSE('Valeurs Hertz'!H1)) -> 246.6565372 | I4: =TRANSPOSE('Valeurs Hertz'!I1) -> 262.0793209 | J4: =TRANSPOSE('Valeurs Hertz'!J1) -> 277.0225702 | K4: =TRANSPOSE('Valeurs Hertz'!K1) -> 293.8344443 | L4: =TRANSPOSE('Valeurs Hertz'!L1) -> 311.6665931 | M4: =TRANSPOSE('Valeurs Hertz'!M1) -> 329.4372115 | N4: =TRANSPOSE('Valeurs Hertz'!N1) -> 350.0360529
A5: =IF(M2="Nomenclature française",IF(H9="Do-Do","Valeurs en cents avec le Do3 = 0","Valeurs en cents avec le Fa2 = 0"),IF(H9="Do-Do","Valeurs en cents avec le C4 = 0","Valeurs en cents avec le F3 = 0")) -> Valeurs en cents avec le Fa2 = 0 | B5: =IF(OR(AND($B$2="Non-octaviant irrégulier",$H$9="Fa-Fa",$K$1="Do-Do"),AND($B$2="Non-octaviant irrégulier",$H$9="Do-Do",$K$1="Fa-Fa")),"",B6+VLOOKUP($B$1,'Ecart cents'!$A$4:$P$341,'Calculs cachés'!C18)) -> 0 | C5: =IF(OR(AND($B$2="Non-octaviant irrégulier",$H$9="Fa-Fa",$K$1="Do-Do"),AND($B$2="Non-octaviant irrégulier",$H$9="Do-Do",$K$1="Fa-Fa")),"",C6+VLOOKUP($B$1,'Ecart cents'!$A$4:$P$341,'Calculs cachés'!D18)) -> 96 | D5: =IF(OR(AND($B$2="Non-octaviant irrégulier",$H$9="Fa-Fa",$K$1="Do-Do"),AND($B$2="Non-octaviant irrégulier",$H$9="Do-Do",$K$1="Fa-Fa")),"",D6+VLOOKUP($B$1,'Ecart cents'!$A$4:$P$341,'Calculs cachés'!E18)) -> 198 | E5: =IF(OR(AND($B$2="Non-octaviant irrégulier",$H$9="Fa-Fa",$K$1="Do-Do"),AND($B$2="Non-octaviant irrégulier",$H$9="Do-Do",$K$1="Fa-Fa")),"",E6+VLOOKUP($B$1,'Ecart cents'!$A$4:$P$341,'Calculs cachés'!F18)) -> 300 | F5: =IF(OR(AND($B$2="Non-octaviant irrégulier",$H$9="Fa-Fa",$K$1="Do-Do"),AND($B$2="Non-octaviant irrégulier",$H$9="Do-Do",$K$1="Fa-Fa")),"",F6+VLOOKUP($B$1,'Ecart cents'!$A$4:$P$341,'Calculs cachés'!G18)) -> 396 | G5: =IF(OR(AND($B$2="Non-octaviant irrégulier",$H$9="Fa-Fa",$K$1="Do-Do"),AND($B$2="Non-octaviant irrégulier",$H$9="Do-Do",$K$1="Fa-Fa")),"",G6+VLOOKUP($B$1,'Ecart cents'!$A$4:$P$341,'Calculs cachés'!H18)) -> 501 | H5: =IF(OR(AND($B$2="Non-octaviant irrégulier",$H$9="Fa-Fa",$K$1="Do-Do"),AND($B$2="Non-octaviant irrégulier",$H$9="Do-Do",$K$1="Fa-Fa")),"",H6+VLOOKUP($B$1,'Ecart cents'!$A$4:$P$341,'Calculs cachés'!I18)) -> 594 | I5: =IF(OR(AND($B$2="Non-octaviant irrégulier",$H$9="Fa-Fa",$K$1="Do-Do"),AND($B$2="Non-octaviant irrégulier",$H$9="Do-Do",$K$1="Fa-Fa")),"",I6+VLOOKUP($B$1,'Ecart cents'!$A$4:$P$341,'Calculs cachés'!J18)) -> 699 | J5: =IF(OR(AND($B$2="Non-octaviant irrégulier",$H$9="Fa-Fa",$K$1="Do-Do"),AND($B$2="Non-octaviant irrégulier",$H$9="Do-Do",$K$1="Fa-Fa")),"",J6+VLOOKUP($B$1,'Ecart cents'!$A$4:$P$341,'Calculs cachés'!K18)) -> 798 | K5: =IF(OR(AND($B$2="Non-octaviant irrégulier",$H$9="Fa-Fa",$K$1="Do-Do"),AND($B$2="Non-octaviant irrégulier",$H$9="Do-Do",$K$1="Fa-Fa")),"",K6+VLOOKUP($B$1,'Ecart cents'!$A$4:$P$341,'Calculs cachés'!L18)) -> 897 | L5: =IF(OR(AND($B$2="Non-octaviant irrégulier",$H$9="Fa-Fa",$K$1="Do-Do"),AND($B$2="Non-octaviant irrégulier",$H$9="Do-Do",$K$1="Fa-Fa")),"",L6+VLOOKUP($B$1,'Ecart cents'!$A$4:$P$341,'Calculs cachés'!M18)) -> 1002 | M5: =IF(OR(AND($B$2="Non-octaviant irrégulier",$H$9="Fa-Fa",$K$1="Do-Do"),AND($B$2="Non-octaviant irrégulier",$H$9="Do-Do",$K$1="Fa-Fa")),"",M6+VLOOKUP($B$1,'Ecart cents'!$A$4:$P$341,'Calculs cachés'!N18)) -> 1095 | N5: =IF(OR(AND($B$2="Non-octaviant irrégulier",$H$9="Fa-Fa",$K$1="Do-Do"),AND($B$2="Non-octaviant irrégulier",$H$9="Do-Do",$K$1="Fa-Fa")),"",N6+VLOOKUP($B$1,'Ecart cents'!$A$4:$P$341,'Calculs cachés'!O18)) -> 1200
A6: TE en cents | B6: 0 | C6: 100 | D6: 200 | E6: 300 | F6: 400 | G6: 500 | H6: 600 | I6: 700 | J6: 800 | K6: 900 | L6: 1000 | M6: 1100 | N6: 1200
A7: Ecarts en cents au TE | B7: =IF(OR(AND($B$2="Non-octaviant irrégulier",$H$9="Fa-Fa",$K$1="Do-Do"),AND($B$2="Non-octaviant irrégulier",$H$9="Do-Do",$K$1="Fa-Fa")),"",B5-B6) -> 0 | C7: =IF(OR(AND($B$2="Non-octaviant irrégulier",$H$9="Fa-Fa",$K$1="Do-Do"),AND($B$2="Non-octaviant irrégulier",$H$9="Do-Do",$K$1="Fa-Fa")),"",C5-C6) -> -4 | D7: -2 | E7: 0 | F7: -4 | G7: 1 | H7: -6 | I7: -1 | J7: -2 | K7: -3 | L7: 2 | M7: -5 | N7: 0
J8: =IF(M2="Nomenclature française","Pour l'accord sur Fa2-Fa3","Pour l'accord sur F3-F4") -> Pour l'accord sur Fa2-Fa3 | O8: =IF(M2="Nomenclature française","Pour l'accord sur Fa2-Fa3","Pour l'accord sur F3-F4") -> Pour l'accord sur Fa2-Fa3
A9: Battements harmoniques | G9: sur | H9: Fa-Fa | J9: =IF(M2="Nomenclature française","Partition fa2 fa3","Partition F3 F4") -> Partition fa2 fa3 | K9: Battements | L9: Tierces majeures | M9: Battements | O9: =IF(R2="Nomenclature française","Partition fa2 fa3","Partition F3 F4") -> Partition F3 F4 | P9: Metro | Q9: Tierces majeures | R9: Metro
A10: Tierces mineures | B10: Battements | C10: Tierces majeures | D10: Battements | E10: Quartes | F10: Battements | G10: Quintes | H10: Battements | J10: =IF($M$2="Nomenclature française",'Calculs cachés'!D94,'Calculs cachés'!F94) -> la3 la2 | K10: =IF(B2="Non-octaviant irrégulier","",IF(H9="Do-Do",1*Battements!B10-2*Battements!D10,1*Battements!B17-2*Battements!B5)) -> 0 | L10: =IF($M$2="Nomenclature française",'Calculs cachés'!E94,'Calculs cachés'!G94) -> fa2 la2 | M10: =IF(AND($B$2="Non-octaviant irrégulier",$K$1="Fa-Fa",$H$9="Do-Do"),"",IF(AND($B$2="Non-octaviant irrégulier",$K$1="Do-Do"),"",IF($H$9="Do-Do",4*Battements!D10-5*Battements!D6,4*Battements!B5-5*Battements!B1))) -> 4.90986787 | O10: =J10 -> la3 la2 | P10: =IF(B2="Non-octaviant irrégulier","",INT(ABS(K10*60)/2)*2) -> 0 | Q10: =L10 -> fa2 la2 | R10: =IF(OR(AND($B$2="Non-octaviant irrégulier",$K$1="Fa-Fa",$H$9="Do-Do"),AND($B$2="Non-octaviant irrégulier",$K$1="Do-Do",$H$9="Fa-Fa"),AND($B$2="Non-octaviant irrégulier",$K$1="Do-Do",$H$9="Do-Do")),"",INT(ABS(M10*60)/2)*2) -> 294
A11: =IF(AND($M$2="Nomenclature française",$H$9="Do-Do"),'Calculs cachés'!D34,IF(AND($M$2="Nomenclature française",$H$9="Fa-Fa"),'Calculs cachés'!H34,IF(AND($M$2="Nomenclature internationale",$H$9="Do-Do"),'Calculs cachés'!D78,'Calculs cachés'!H78))) -> fa2 sol#2 | B11: =IF(OR(AND($B$2="Non-octaviant irrégulier",$K$1="Fa-Fa",$H$9="Do-Do"),AND($B$2="Non-octaviant irrégulier",$K$1="Do-Do",$H$9="Fa-Fa")),"",5*Battements!B4-6*Battements!B1) -> -11.24651787 | C11: =IF(AND($M$2="Nomenclature française",$H$9="Do-Do"),'Calculs cachés'!E34,IF(AND($M$2="Nomenclature française",$H$9="Fa-Fa"),'Calculs cachés'!I34,IF(AND($M$2="Nomenclature internationale",$H$9="Do-Do"),'Calculs cachés'!E78,'Calculs cachés'!I78))) -> fa2 la2 | D11: =IF(OR(AND($B$2="Non-octaviant irrégulier",$K$1="Fa-Fa",$H$9="Do-Do"),AND($B$2="Non-octaviant irrégulier",$K$1="Do-Do",$H$9="Fa-Fa")),"",4*Battements!B5-5*Battements!B1) -> 4.90986787 | E11: =IF(AND($M$2="Nomenclature française",$H$9="Do-Do"),'Calculs cachés'!F34,IF(AND($M$2="Nomenclature française",$H$9="Fa-Fa"),'Calculs cachés'!J34,IF(AND($M$2="Nomenclature internationale",$H$9="Do-Do"),'Calculs cachés'!F78,'Calculs cachés'!J78))) -> fa2 la#2 | F11: =IF(OR(AND($B$2="Non-octaviant irrégulier",$K$1="Fa-Fa",$H$9="Do-Do"),AND($B$2="Non-octaviant irrégulier",$K$1="Do-Do",$H$9="Fa-Fa")),"",3*Battements!B6-4*Battements!B1) -> 1.195956262 | G11: =IF(AND($M$2="Nomenclature française",$H$9="Do-Do"),'Calculs cachés'!G34,IF(AND($M$2="Nomenclature française",$H$9="Fa-Fa"),'Calculs cachés'!K34,IF(AND($M$2="Nomenclature internationale",$H$9="Do-Do"),'Calculs cachés'!G78,'Calculs cachés'!K78))) -> fa2 do3 | H11: =IF(OR(AND($B$2="Non-octaviant irrégulier",$K$1="Fa-Fa",$H$9="Do-Do"),AND($B$2="Non-octaviant irrégulier",$K$1="Do-Do",$H$9="Fa-Fa")),"",2*Battements!B8-3*Battements!B1) -> -0.8954374909 | J11: =IF($M$2="Nomenclature française",'Calculs cachés'!D95,'Calculs cachés'!F95) -> la2 ré3 | K11: =IF(AND($B$2="Non-octaviant irrégulier",K1="Fa-Fa",H9="Do-Do"),"",IF(AND($B$2="Non-octaviant irrégulier",$K$1="Do-Do"),"",IF($H$9="Fa-Fa",3*Battements!B10-4*Battements!B5,3*Battements!B3-4*Battements!D10))) -> 1.503333016 | L11: =IF($M$2="Nomenclature française",'Calculs cachés'!E95,'Calculs cachés'!G95) -> fa#2 la#2 | M11: =IF(AND($B$2="Non-octaviant irrégulier",$K$1="Fa-Fa",$H$9="Do-Do"),"",IF(AND($B$2="Non-octaviant irrégulier",$K$1="Do-Do"),"",IF($H$9="Do-Do",4*Battements!D11-5*Battements!D7,4*Battements!B6-5*Battements!B2))) -> 11.63951655 | O11: =J11 -> la2 ré3 | P11: =IF(OR(AND($B$2="Non-octaviant irrégulier",$K$1="Fa-Fa",$H$9="Do-Do"),AND($B$2="Non-octaviant irrégulier",$K$1="Do-Do",$H$9="Fa-Fa"),AND($B$2="Non-octaviant irrégulier",$K$1="Do-Do",$H$9="Do-Do")),"",INT(ABS(K11*60)/2)*2) -> 90 | Q11: fa#2 la#2 | R11: =IF(OR(AND($B$2="Non-octaviant irrégulier",$K$1="Fa-Fa",$H$9="Do-Do"),AND($B$2="Non-octaviant irrégulier",$K$1="Do-Do",$H$9="Fa-Fa"),AND($B$2="Non-octaviant irrégulier",$K$1="Do-Do",$H$9="Do-Do")),"",INT(ABS(M11*60)/2)*2) -> 698
A12: =IF(AND($M$2="Nomenclature française",$H$9="Do-Do"),'Calculs cachés'!D35,IF(AND($M$2="Nomenclature française",$H$9="Fa-Fa"),'Calculs cachés'!H35,IF(AND($M$2="Nomenclature internationale",$H$9="Do-Do"),'Calculs cachés'!D79,'Calculs cachés'!H79))) -> fa#2 la2 | B12: =IF(OR(AND($B$2="Non-octaviant irrégulier",$K$1="Fa-Fa",$H$9="Do-Do"),AND($B$2="Non-octaviant irrégulier",$K$1="Do-Do",$H$9="Fa-Fa")),"",5*Battements!B5-6*Battements!B2) -> -8.061479287 | C12: =IF(AND($M$2="Nomenclature française",$H$9="Do-Do"),'Calculs cachés'!E35,IF(AND($M$2="Nomenclature française",$H$9="Fa-Fa"),'Calculs cachés'!I35,IF(AND($M$2="Nomenclature internationale",$H$9="Do-Do"),'Calculs cachés'!E79,'Calculs cachés'!I79))) -> fa#2 la#2 | D12: =IF(OR(AND($B$2="Non-octaviant irrégulier",$K$1="Fa-Fa",$H$9="Do-Do"),AND($B$2="Non-octaviant irrégulier",$K$1="Do-Do",$H$9="Fa-Fa")),"",4*Battements!B6-5*Battements!B2) -> 11.63951655 | E12: =IF(AND($M$2="Nomenclature française",$H$9="Do-Do"),'Calculs cachés'!F35,IF(AND($M$2="Nomenclature française",$H$9="Fa-Fa"),'Calculs cachés'!J35,IF(AND($M$2="Nomenclature internationale",$H$9="Do-Do"),'Calculs cachés'!F79,'Calculs cachés'!J79))) -> fa#2 si2 | F12: =IF(OR(AND($B$2="Non-octaviant irrégulier",$K$1="Fa-Fa",$H$9="Do-Do"),AND($B$2="Non-octaviant irrégulier",$K$1="Do-Do",$H$9="Fa-Fa")),"",3*Battements!B7-4*Battements!B2) -> 1.261958641 | G12: =IF(AND($M$2="Nomenclature française",$H$9="Do-Do"),'Calculs cachés'!G35,IF(AND($M$2="Nomenclature française",$H$9="Fa-Fa"),'Calculs cachés'!K35,IF(AND($M$2="Nomenclature internationale",$H$9="Do-Do"),'Calculs cachés'!G79,'Calculs cachés'!K79))) -> fa#2 do#3 | H12: =IF((OR(AND($B$2="Non-octaviant irrégulier",$K$1="Fa-Fa",$H$9="Do-Do"),AND($B$2="Non-octaviant irrégulier",$K$1="Do-Do",$H$9="Fa-Fa"))),"",2*Battements!B9-3*Battements!B2) -> 0.01440084191 | J12: =IF($M$2="Nomenclature française",'Calculs cachés'!D96,'Calculs cachés'!F96) -> ré3 sol2 | K12: =IF(AND($B$2="Non-octaviant irrégulier",K1="Fa-Fa",H9="Do-Do"),"",IF(AND($B$2="Non-octaviant irrégulier",$K$1="Do-Do"),"",IF($H$9="Fa-Fa",2*Battements!B10-3*Battements!B3,2*Battements!B3-3*Battements!D8))) -> -1.00393414 | L12: =IF($M$2="Nomenclature française",'Calculs cachés'!E96,'Calculs cachés'!G96) -> sol2 si2 | M12: =IF(AND($B$2="Non-octaviant irrégulier",$K$1="Fa-Fa",$H$9="Do-Do"),"",IF(AND($B$2="Non-octaviant irrégulier",$K$1="Do-Do"),"",IF($H$9="Do-Do",4*Battements!D12-5*Battements!D8,4*Battements!B7-5*Battements!B3))) -> 5.504777303 | O12: ré3 sol2 | P12: =IF(OR(AND($B$2="Non-octaviant irrégulier",$K$1="Fa-Fa",$H$9="Do-Do"),AND($B$2="Non-octaviant irrégulier",$K$1="Do-Do",$H$9="Fa-Fa"),AND($B$2="Non-octaviant irrégulier",$K$1="Do-Do",$H$9="Do-Do")),"",INT(ABS(K12*60)/2)*2) -> 60 | Q12: sol2 si2 | R12: 330
A13: =IF(AND($M$2="Nomenclature française",$H$9="Do-Do"),'Calculs cachés'!D36,IF(AND($M$2="Nomenclature française",$H$9="Fa-Fa"),'Calculs cachés'!H36,IF(AND($M$2="Nomenclature internationale",$H$9="Do-Do"),'Calculs cachés'!D80,'Calculs cachés'!H80))) -> sol2 la#2 | B13: =IF(OR(AND($B$2="Non-octaviant irrégulier",$K$1="Fa-Fa",$H$9="Do-Do"),AND($B$2="Non-octaviant irrégulier",$K$1="Do-Do",$H$9="Fa-Fa")),"",5*Battements!B6-6*Battements!B3) -> -8.565542358 | C13: =IF(AND($M$2="Nomenclature française",$H$9="Do-Do"),'Calculs cachés'!E36,IF(AND($M$2="Nomenclature française",$H$9="Fa-Fa"),'Calculs cachés'!I36,IF(AND($M$2="Nomenclature internationale",$H$9="Do-Do"),'Calculs cachés'!E80,'Calculs cachés'!I80))) -> sol2 si2 | D13: =IF(OR(AND($B$2="Non-octaviant irrégulier",$K$1="Fa-Fa",$H$9="Do-Do"),AND($B$2="Non-octaviant irrégulier",$K$1="Do-Do",$H$9="Fa-Fa")),"",4*Battements!B7-5*Battements!B3) -> 5.504777303 | E13: =IF(AND($M$2="Nomenclature française",$H$9="Do-Do"),'Calculs cachés'!F36,IF(AND($M$2="Nomenclature française",$H$9="Fa-Fa"),'Calculs cachés'!J36,IF(AND($M$2="Nomenclature internationale",$H$9="Do-Do"),'Calculs cachés'!F80,'Calculs cachés'!J80))) -> sol2 do3 | F13: =IF(OR(AND($B$2="Non-octaviant irrégulier",$K$1="Fa-Fa",$H$9="Do-Do"),AND($B$2="Non-octaviant irrégulier",$K$1="Do-Do",$H$9="Fa-Fa")),"",3*Battements!B8-4*Battements!B3) -> 1.340865591 | G13: =IF(AND($M$2="Nomenclature française",$H$9="Do-Do"),'Calculs cachés'!G36,IF(AND($M$2="Nomenclature française",$H$9="Fa-Fa"),'Calculs cachés'!K36,IF(AND($M$2="Nomenclature internationale",$H$9="Do-Do"),'Calculs cachés'!G80,'Calculs cachés'!K80))) -> sol2 ré3 | H13: =IF((OR(AND($B$2="Non-octaviant irrégulier",$K$1="Fa-Fa",$H$9="Do-Do"),AND($B$2="Non-octaviant irrégulier",$K$1="Do-Do",$H$9="Fa-Fa"))),"",2*Battements!B10-3*Battements!B3) -> -1.00393414 | J13: =IF($M$2="Nomenclature française",'Calculs cachés'!D97,'Calculs cachés'!F97) -> sol2 do3 | K13: =IF(AND($B$2="Non-octaviant irrégulier",K1="Fa-Fa",H9="Do-Do"),"",IF(AND($B$2="Non-octaviant irrégulier",$K$1="Do-Do"),"",IF($H$9="Fa-Fa",3*Battements!B8-4*Battements!B3,3*Battements!B1-4*Battements!D8))) -> 1.340865591 | L13: =IF($M$2="Nomenclature française",'Calculs cachés'!E97,'Calculs cachés'!G97) -> sol#2 do3 | M13: =IF(AND($B$2="Non-octaviant irrégulier",$K$1="Fa-Fa",$H$9="Do-Do"),"",IF(AND($B$2="Non-octaviant irrégulier",$K$1="Do-Do"),"",IF($H$9="Do-Do",4*Battements!B1-5*Battements!D9,4*Battements!B8-5*Battements!B4))) -> 9.455642884 | O13: sol2 do3 | P13: 80 | Q13: sol#2 do3 | R13: 566
A14: =IF(AND($M$2="Nomenclature française",$H$9="Do-Do"),'Calculs cachés'!D37,IF(AND($M$2="Nomenclature française",$H$9="Fa-Fa"),'Calculs cachés'!H37,IF(AND($M$2="Nomenclature internationale",$H$9="Do-Do"),'Calculs cachés'!D81,'Calculs cachés'!H81))) -> sol#2 si2 | B14: =IF(OR(AND($B$2="Non-octaviant irrégulier",$K$1="Fa-Fa",$H$9="Do-Do"),AND($B$2="Non-octaviant irrégulier",$K$1="Do-Do",$H$9="Fa-Fa")),"",5*Battements!B7-6*Battements!B4) -> -13.351283 | C14: =IF(AND($M$2="Nomenclature française",$H$9="Do-Do"),'Calculs cachés'!E37,IF(AND($M$2="Nomenclature française",$H$9="Fa-Fa"),'Calculs cachés'!I37,IF(AND($M$2="Nomenclature internationale",$H$9="Do-Do"),'Calculs cachés'!E81,'Calculs cachés'!I81))) -> sol#2 do3 | D14: =IF(OR(AND($B$2="Non-octaviant irrégulier",$K$1="Fa-Fa",$H$9="Do-Do"),AND($B$2="Non-octaviant irrégulier",$K$1="Do-Do",$H$9="Fa-Fa")),"",4*Battements!B8-5*Battements!B4) -> 9.455642884 | E14: =IF(AND($M$2="Nomenclature française",$H$9="Do-Do"),'Calculs cachés'!F37,IF(AND($M$2="Nomenclature française",$H$9="Fa-Fa"),'Calculs cachés'!J37,IF(AND($M$2="Nomenclature internationale",$H$9="Do-Do"),'Calculs cachés'!F81,'Calculs cachés'!J81))) -> sol#2 do#3 | F14: =IF((OR(AND($B$2="Non-octaviant irrégulier",$K$1="Fa-Fa",$H$9="Do-Do"),AND($B$2="Non-octaviant irrégulier",$K$1="Do-Do",$H$9="Fa-Fa"))),"",3*Battements!B9-4*Battements!B4) -> -0.02160182434 | G14: =IF(AND($M$2="Nomenclature française",$H$9="Do-Do"),'Calculs cachés'!G37,IF(AND($M$2="Nomenclature française",$H$9="Fa-Fa"),'Calculs cachés'!K37,IF(AND($M$2="Nomenclature internationale",$H$9="Do-Do"),'Calculs cachés'!G81,'Calculs cachés'!K81))) -> sol#2 ré#3 | H14: =IF((OR(AND($B$2="Non-octaviant irrégulier",$K$1="Fa-Fa",$H$9="Do-Do"),AND($B$2="Non-octaviant irrégulier",$K$1="Do-Do",$H$9="Fa-Fa"))),"",2*Battements!B11-3*Battements!B4) -> 0.01620178937 | J14: =IF($M$2="Nomenclature française",'Calculs cachés'!D98,'Calculs cachés'!F98) -> do3 fa2 | K14: =IF(AND($B$2="Non-octaviant irrégulier",K1="Fa-Fa",H9="Do-Do"),"",IF(AND($B$2="Non-octaviant irrégulier",$K$1="Do-Do"),"",IF($H$9="Fa-Fa",2*Battements!B8-3*Battements!B1,2*Battements!B1-3*Battements!D6))) -> -0.8954374909 | L14: =IF($M$2="Nomenclature française",'Calculs cachés'!E98,'Calculs cachés'!G98) -> la2 do#3 | M14: =IF(AND($B$2="Non-octaviant irrégulier",$K$1="Fa-Fa",$H$9="Do-Do"),"",IF(AND($B$2="Non-octaviant irrégulier",$K$1="Do-Do"),"",IF($H$9="Do-Do",4*Battements!B2-5*Battements!D10,4*Battements!B9-5*Battements!B5))) -> 8.090280971 | O14: do3 fa2 | P14: 52 | Q14: la2 do#3 | R14: 484
A15: =IF(AND($M$2="Nomenclature française",$H$9="Do-Do"),'Calculs cachés'!D38,IF(AND($M$2="Nomenclature française",$H$9="Fa-Fa"),'Calculs cachés'!H38,IF(AND($M$2="Nomenclature internationale",$H$9="Do-Do"),'Calculs cachés'!D82,'Calculs cachés'!H82))) -> la2 do3 | B15: =IF(OR(AND($B$2="Non-octaviant irrégulier",$K$1="Fa-Fa",$H$9="Do-Do"),AND($B$2="Non-octaviant irrégulier",$K$1="Do-Do",$H$9="Fa-Fa")),"",5*Battements!B8-6*Battements!B5) -> -9.603395532 | C15: =IF(AND($M$2="Nomenclature française",$H$9="Do-Do"),'Calculs cachés'!E38,IF(AND($M$2="Nomenclature française",$H$9="Fa-Fa"),'Calculs cachés'!I38,IF(AND($M$2="Nomenclature internationale",$H$9="Do-Do"),'Calculs cachés'!E82,'Calculs cachés'!I82))) -> la2 do#3 | D15: =IF((OR(AND($B$2="Non-octaviant irrégulier",$K$1="Fa-Fa",$H$9="Do-Do"),AND($B$2="Non-octaviant irrégulier",$K$1="Do-Do",$H$9="Fa-Fa"))),"",4*Battements!B9-5*Battements!B5) -> 8.090280971 | E15: =IF(AND($M$2="Nomenclature française",$H$9="Do-Do"),'Calculs cachés'!F38,IF(AND($M$2="Nomenclature française",$H$9="Fa-Fa"),'Calculs cachés'!J38,IF(AND($M$2="Nomenclature internationale",$H$9="Do-Do"),'Calculs cachés'!F82,'Calculs cachés'!J82))) -> la2 ré3 | F15: =IF((OR(AND($B$2="Non-octaviant irrégulier",$K$1="Fa-Fa",$H$9="Do-Do"),AND($B$2="Non-octaviant irrégulier",$K$1="Do-Do",$H$9="Fa-Fa"))),"",3*Battements!B10-4*Battements!B5) -> 1.503333016 | G15: =IF(AND($M$2="Nomenclature française",$H$9="Do-Do"),'Calculs cachés'!G38,IF(AND($M$2="Nomenclature française",$H$9="Fa-Fa"),'Calculs cachés'!K38,IF(AND($M$2="Nomenclature internationale",$H$9="Do-Do"),'Calculs cachés'!G82,'Calculs cachés'!K82))) -> la2 mi3 | H15: =IF((OR(AND($B$2="Non-octaviant irrégulier",$K$1="Fa-Fa",$H$9="Do-Do"),AND($B$2="Non-octaviant irrégulier",$K$1="Do-Do",$H$9="Fa-Fa"))),"",2*Battements!B12-3*Battements!B5) -> -1.125576902 | J15: =IF($M$2="Nomenclature française",'Calculs cachés'!D99,'Calculs cachés'!F99) -> do3 fa3 | K15: =IF(OR(AND($B$2="Non-octaviant irrégulier",K1="Fa-Fa",H9="Do-Do"),AND($B$2="Non-octaviant irrégulier",K1="Do-Do",H9="Fa-Fa")),"",IF(AND($B$2="Non-octaviant irrégulier",$K$1="Do-Do"),3*Battements!B6-4*Battements!B1,IF($H$9="Fa-Fa",3*Battements!B13-4*Battements!B8,3*Battements!B6-4*Battements!B1))) -> 1.790874982 | L15: =IF($M$2="Nomenclature française",'Calculs cachés'!E99,'Calculs cachés'!G99) -> la#2 ré3 | M15: =IF(AND($B$2="Non-octaviant irrégulier",$K$1="Fa-Fa",$H$9="Do-Do"),"",IF(AND($B$2="Non-octaviant irrégulier",$K$1="Do-Do"),"",IF($H$9="Do-Do",4*Battements!B3-5*Battements!D11,4*Battements!B10-5*Battements!B6))) -> 6.557674078 | O15: do3 fa3 | P15: =IF(OR(AND($B$2="Non-octaviant irrégulier",K1="Fa-Fa",H9="Do-Do"),AND($B$2="Non-octaviant irrégulier",K1="Do-Do",H9="Fa-Fa")),"",INT(ABS(K15*60)/2)*2) -> 106 | Q15: la#2 ré3 | R15: 392
A16: =IF(AND($M$2="Nomenclature française",$H$9="Do-Do"),'Calculs cachés'!D39,IF(AND($M$2="Nomenclature française",$H$9="Fa-Fa"),'Calculs cachés'!H39,IF(AND($M$2="Nomenclature internationale",$H$9="Do-Do"),'Calculs cachés'!D83,'Calculs cachés'!H83))) -> la#2 do#3 | B16: =IF((OR(AND($B$2="Non-octaviant irrégulier",$K$1="Fa-Fa",$H$9="Do-Do"),AND($B$2="Non-octaviant irrégulier",$K$1="Do-Do",$H$9="Fa-Fa"))),"",5*Battements!B9-6*Battements!B6) -> -17.42327272 | C16: =IF(AND($M$2="Nomenclature française",$H$9="Do-Do"),'Calculs cachés'!E39,IF(AND($M$2="Nomenclature française",$H$9="Fa-Fa"),'Calculs cachés'!I39,IF(AND($M$2="Nomenclature internationale",$H$9="Do-Do"),'Calculs cachés'!E83,'Calculs cachés'!I83))) -> la#2 ré3 | D16: =IF((OR(AND($B$2="Non-octaviant irrégulier",$K$1="Fa-Fa",$H$9="Do-Do"),AND($B$2="Non-octaviant irrégulier",$K$1="Do-Do",$H$9="Fa-Fa"))),"",4*Battements!B10-5*Battements!B6) -> 6.557674078 | E16: =IF(AND($M$2="Nomenclature française",$H$9="Do-Do"),'Calculs cachés'!F39,IF(AND($M$2="Nomenclature française",$H$9="Fa-Fa"),'Calculs cachés'!J39,IF(AND($M$2="Nomenclature internationale",$H$9="Do-Do"),'Calculs cachés'!F83,'Calculs cachés'!J83))) -> la#2 ré#3 | F16: =IF((OR(AND($B$2="Non-octaviant irrégulier",$K$1="Fa-Fa",$H$9="Do-Do"),AND($B$2="Non-octaviant irrégulier",$K$1="Do-Do",$H$9="Fa-Fa"))),"",3*Battements!B11-4*Battements!B6) -> -0.02430331576 | G16: =IF(AND($M$2="Nomenclature française",$H$9="Do-Do"),'Calculs cachés'!G39,IF(AND($M$2="Nomenclature française",$H$9="Fa-Fa"),'Calculs cachés'!K39,IF(AND($M$2="Nomenclature internationale",$H$9="Do-Do"),'Calculs cachés'!G83,'Calculs cachés'!K83))) -> la#2 fa3 | H16: =IF((OR(AND($B$2="Non-octaviant irrégulier",$K$1="Fa-Fa",$H$9="Do-Do"),AND($B$2="Non-octaviant irrégulier",$K$1="Do-Do",$H$9="Fa-Fa"))),"",2*Battements!B13-3*Battements!B6) -> -1.195956262 | J16: =IF($M$2="Nomenclature française",'Calculs cachés'!D100,'Calculs cachés'!F100) -> fa2 fa3 | K16: =IF(AND($B$2="Non-octaviant irrégulier",K1="Fa-Fa",H9="Do-Do"),"",IF(AND($B$2="Non-octaviant irrégulier",$K$1="Do-Do"),"",IF($H$9="Fa-Fa",1*Battements!B13-2*Battements!B1,1*Battements!B6-2*Battements!D6))) -> 0 | L16: =IF($M$2="Nomenclature française",'Calculs cachés'!E100,'Calculs cachés'!G100) -> si2 ré#3 | M16: =IF(AND($B$2="Non-octaviant irrégulier",$K$1="Fa-Fa",$H$9="Do-Do"),"",IF(AND($B$2="Non-octaviant irrégulier",$K$1="Do-Do"),"",IF($H$9="Do-Do",4*Battements!B4-5*Battements!D12,4*Battements!B11-5*Battements!B7))) -> 13.38368658 | O16: fa2 fa3 | P16: =IF(OR(AND($B$2="Non-octaviant irrégulier",$K$1="Fa-Fa",$H$9="Do-Do"),AND($B$2="Non-octaviant irrégulier",$K$1="Do-Do",$H$9="Fa-Fa"),AND($B$2="Non-octaviant irrégulier",$K$1="Do-Do",$H$9="Do-Do")),"",INT(ABS(K16*60)/2)*2) -> 0 | Q16: si2 ré#3 | R16: 802
A17: =IF(AND($M$2="Nomenclature française",$H$9="Do-Do"),'Calculs cachés'!D40,IF(AND($M$2="Nomenclature française",$H$9="Fa-Fa"),'Calculs cachés'!H40,IF(AND($M$2="Nomenclature internationale",$H$9="Do-Do"),'Calculs cachés'!D84,'Calculs cachés'!H84))) -> si2 ré3 | B17: =IF((OR(AND($B$2="Non-octaviant irrégulier",$K$1="Fa-Fa",$H$9="Do-Do"),AND($B$2="Non-octaviant irrégulier",$K$1="Do-Do",$H$9="Fa-Fa"))),"",5*Battements!B10-6*Battements!B7) -> -10.7670013 | C17: =IF(AND($M$2="Nomenclature française",$H$9="Do-Do"),'Calculs cachés'!E40,IF(AND($M$2="Nomenclature française",$H$9="Fa-Fa"),'Calculs cachés'!I40,IF(AND($M$2="Nomenclature internationale",$H$9="Do-Do"),'Calculs cachés'!E84,'Calculs cachés'!I84))) -> si2 ré#3 | D17: =IF((OR(AND($B$2="Non-octaviant irrégulier",$K$1="Fa-Fa",$H$9="Do-Do"),AND($B$2="Non-octaviant irrégulier",$K$1="Do-Do",$H$9="Fa-Fa"))),"",4*Battements!B11-5*Battements!B7) -> 13.38368658 | E17: =IF(AND($M$2="Nomenclature française",$H$9="Do-Do"),'Calculs cachés'!F40,IF(AND($M$2="Nomenclature française",$H$9="Fa-Fa"),'Calculs cachés'!J40,IF(AND($M$2="Nomenclature internationale",$H$9="Do-Do"),'Calculs cachés'!F84,'Calculs cachés'!J84))) -> si2 mi3 | F17: =IF((OR(AND($B$2="Non-octaviant irrégulier",$K$1="Fa-Fa",$H$9="Do-Do"),AND($B$2="Non-octaviant irrégulier",$K$1="Do-Do",$H$9="Fa-Fa"))),"",3*Battements!B12-4*Battements!B7) -> 1.685485982 | G17: =IF(AND($M$2="Nomenclature française",$H$9="Do-Do"),'Calculs cachés'!G40,IF(AND($M$2="Nomenclature française",$H$9="Fa-Fa"),'Calculs cachés'!K40,IF(AND($M$2="Nomenclature internationale",$H$9="Do-Do"),'Calculs cachés'!G84,'Calculs cachés'!K84))) -> si2 fa#3 | H17: =IF($B$2="Non-octaviant irrégulier","",2*Battements!B14-3*Battements!B7) -> -1.261958641 | J17: =IF($M$2="Nomenclature française",'Calculs cachés'!D101,'Calculs cachés'!F101) -> fa3 la#2 | K17: =IF(AND($B$2="Non-octaviant irrégulier",K1="Fa-Fa",H9="Do-Do"),"",IF(AND($B$2="Non-octaviant irrégulier",$K$1="Do-Do"),"",IF($H$9="Fa-Fa",2*Battements!B13-3*Battements!B6,2*Battements!B6-3*Battements!D11))) -> -1.195956262 | L17: =IF($M$2="Nomenclature française",'Calculs cachés'!E101,'Calculs cachés'!G101) -> do3 mi3 | M17: =IF(AND($B$2="Non-octaviant irrégulier",$K$1="Fa-Fa",$H$9="Do-Do"),"",IF(AND($B$2="Non-octaviant irrégulier",$K$1="Do-Do"),"",IF($H$9="Do-Do",4*Battements!B5-5*Battements!B1,4*Battements!B12-5*Battements!B8))) -> 7.352241727 | O17: fa3 la#2 | P17: =IF(OR(AND($B$2="Non-octaviant irrégulier",$K$1="Fa-Fa",$H$9="Do-Do"),AND($B$2="Non-octaviant irrégulier",$K$1="Do-Do",$H$9="Fa-Fa"),AND($B$2="Non-octaviant irrégulier",$K$1="Do-Do",$H$9="Do-Do")),"",INT(ABS(K17*60)/2)*2) -> 70 | Q17: do3 mi3 | R17: 440
A18: =IF(AND($M$2="Nomenclature française",$H$9="Do-Do"),'Calculs cachés'!D41,IF(AND($M$2="Nomenclature française",$H$9="Fa-Fa"),'Calculs cachés'!H41,IF(AND($M$2="Nomenclature internationale",$H$9="Do-Do"),'Calculs cachés'!D85,'Calculs cachés'!H85))) -> do3 ré#3 | B18: =IF((OR(AND($B$2="Non-octaviant irrégulier",$K$1="Fa-Fa",$H$9="Do-Do"),AND($B$2="Non-octaviant irrégulier",$K$1="Do-Do",$H$9="Fa-Fa"))),"",5*Battements!B11-6*Battements!B8) -> -14.14295985 | C18: =IF(AND($M$2="Nomenclature française",$H$9="Do-Do"),'Calculs cachés'!E41,IF(AND($M$2="Nomenclature française",$H$9="Fa-Fa"),'Calculs cachés'!I41,IF(AND($M$2="Nomenclature internationale",$H$9="Do-Do"),'Calculs cachés'!E85,'Calculs cachés'!I85))) -> do3 mi3 | D18: =IF((OR(AND($B$2="Non-octaviant irrégulier",$K$1="Fa-Fa",$H$9="Do-Do"),AND($B$2="Non-octaviant irrégulier",$K$1="Do-Do",$H$9="Fa-Fa"))),"",4*Battements!B12-5*Battements!B8) -> 7.352241727 | E18: =IF(AND($M$2="Nomenclature française",$H$9="Do-Do"),'Calculs cachés'!F41,IF(AND($M$2="Nomenclature française",$H$9="Fa-Fa"),'Calculs cachés'!J41,IF(AND($M$2="Nomenclature internationale",$H$9="Do-Do"),'Calculs cachés'!F85,'Calculs cachés'!J85))) -> do3 fa3 | F18: =IF((OR(AND($B$2="Non-octaviant irrégulier",$K$1="Fa-Fa",$H$9="Do-Do"),AND($B$2="Non-octaviant irrégulier",$K$1="Do-Do",$H$9="Fa-Fa"))),"",3*Battements!B13-4*Battements!B8) -> 1.790874982 | G18: =IF(AND($M$2="Nomenclature française",$H$9="Do-Do"),'Calculs cachés'!G41,IF(AND($M$2="Nomenclature française",$H$9="Fa-Fa"),'Calculs cachés'!K41,IF(AND($M$2="Nomenclature internationale",$H$9="Do-Do"),'Calculs cachés'!G85,'Calculs cachés'!K85))) -> do3 sol3 | H18: =IF($B$2="Non-octaviant irrégulier","",2*Battements!B15-3*Battements!B8) -> -1.340865591 | J18: =IF($M$2="Nomenclature française",'Calculs cachés'!D102,'Calculs cachés'!F102) -> la#2 ré#3 | K18: =IF(AND($B$2="Non-octaviant irrégulier",K1="Fa-Fa",H9="Do-Do"),"",IF(AND($B$2="Non-octaviant irrégulier",$K$1="Do-Do"),"",IF($H$9="Fa-Fa",3*Battements!B11-4*Battements!B6,3*Battements!B4-4*Battements!D11))) -> -0.02430331576 | L18: =IF($M$2="Nomenclature française",'Calculs cachés'!E102,'Calculs cachés'!G102) -> do#3 fa3 | M18: =IF(AND($B$2="Non-octaviant irrégulier",$K$1="Fa-Fa",$H$9="Do-Do"),"",IF(AND($B$2="Non-octaviant irrégulier",$K$1="Do-Do"),"",IF($H$9="Do-Do",4*Battements!B6-5*Battements!B2,4*Battements!B13-5*Battements!B9))) -> 15.0313602 | O18: la#2 ré#3 | P18: 0 | Q18: do#3 fa3 | R18: 900
A19: =IF(AND($M$2="Nomenclature française",$H$9="Do-Do"),'Calculs cachés'!D42,IF(AND($M$2="Nomenclature française",$H$9="Fa-Fa"),'Calculs cachés'!H42,IF(AND($M$2="Nomenclature internationale",$H$9="Do-Do"),'Calculs cachés'!D86,'Calculs cachés'!H86))) -> do#3 mi3 | B19: =IF((OR(AND($B$2="Non-octaviant irrégulier",$K$1="Fa-Fa",$H$9="Do-Do"),AND($B$2="Non-octaviant irrégulier",$K$1="Do-Do",$H$9="Fa-Fa"))),"",5*Battements!B12-6*Battements!B9) -> -14.94936371 | C19: =IF(AND($M$2="Nomenclature française",$H$9="Do-Do"),'Calculs cachés'!E42,IF(AND($M$2="Nomenclature française",$H$9="Fa-Fa"),'Calculs cachés'!I42,IF(AND($M$2="Nomenclature internationale",$H$9="Do-Do"),'Calculs cachés'!E86,'Calculs cachés'!I86))) -> do#3 fa3 | D19: =IF((OR(AND($B$2="Non-octaviant irrégulier",$K$1="Fa-Fa",$H$9="Do-Do"),AND($B$2="Non-octaviant irrégulier",$K$1="Do-Do",$H$9="Fa-Fa"))),"",4*Battements!B13-5*Battements!B9) -> 15.0313602 | E19: =IF(AND($M$2="Nomenclature française",$H$9="Do-Do"),'Calculs cachés'!F42,IF(AND($M$2="Nomenclature française",$H$9="Fa-Fa"),'Calculs cachés'!J42,IF(AND($M$2="Nomenclature internationale",$H$9="Do-Do"),'Calculs cachés'!F86,'Calculs cachés'!J86))) -> do#3 fa#3 | F19: =IF($B$2="Non-octaviant irrégulier","",3*Battements!B14-4*Battements!B9) -> -0.02880168381 | G19: =IF(AND($M$2="Nomenclature française",$H$9="Do-Do"),'Calculs cachés'!G42,IF(AND($M$2="Nomenclature française",$H$9="Fa-Fa"),'Calculs cachés'!K42,IF(AND($M$2="Nomenclature internationale",$H$9="Do-Do"),'Calculs cachés'!G86,'Calculs cachés'!K86))) -> do#3 sol#3 | H19: =IF($B$2="Non-octaviant irrégulier","",2*Battements!B16-3*Battements!B9) -> 0.02160182434 | J19: =IF($M$2="Nomenclature française",'Calculs cachés'!D103,'Calculs cachés'!F103) -> ré#3 sol#2 | K19: =IF(AND($B$2="Non-octaviant irrégulier",K1="Fa-Fa",H9="Do-Do"),"",IF(AND($B$2="Non-octaviant irrégulier",$K$1="Do-Do"),"",IF($H$9="Fa-Fa",2*Battements!B11-3*Battements!B4,2*Battements!B4-3*Battements!D9))) -> 0.01620178937 | L19: =IF($M$2="Nomenclature française",'Calculs cachés'!E103,'Calculs cachés'!G103) -> fa3 la3 | M19: =IF(OR(AND($B$2="Non-octaviant irrégulier",K1="Fa-Fa",H9="Do-Do"),AND($B$2="Non-octaviant irrégulier",K1="Do-Do",H9="Fa-Fa"),AND($B$2="Non-octaviant irrégulier",K1="Fa-Fa",H9="Fa-Fa")),"",IF(H9="Do-Do",4*Battements!B10-5*Battements!B6,4*Battements!B17-5*Battements!B13)) -> 9.819735739 | O19: ré#3 sol#2 | P19: 0 | Q19: fa3 la3 | R19: =IF(OR(AND(B2="Non-octaviant irrégulier",K1="Fa-Fa"),AND(B2="Non-octaviant irrégulier",H9="Fa-Fa")),"",INT(ABS(M19*60)/2)*2) -> 588
A20: =IF(AND($M$2="Nomenclature française",$H$9="Do-Do"),'Calculs cachés'!D43,IF(AND($M$2="Nomenclature française",$H$9="Fa-Fa"),'Calculs cachés'!H43,IF(AND($M$2="Nomenclature internationale",$H$9="Do-Do"),'Calculs cachés'!D87,'Calculs cachés'!H87))) -> ré3 fa3 | B20: =IF((OR(AND($B$2="Non-octaviant irrégulier",$K$1="Fa-Fa",$H$9="Do-Do"),AND($B$2="Non-octaviant irrégulier",$K$1="Do-Do",$H$9="Fa-Fa"))),"",5*Battements!B13-6*Battements!B10) -> -12.82640177 | C20: =IF(AND($M$2="Nomenclature française",$H$9="Do-Do"),'Calculs cachés'!E43,IF(AND($M$2="Nomenclature française",$H$9="Fa-Fa"),'Calculs cachés'!I43,IF(AND($M$2="Nomenclature internationale",$H$9="Do-Do"),'Calculs cachés'!E87,'Calculs cachés'!I87))) -> ré3 fa#3 | D20: =IF($B$2="Non-octaviant irrégulier","",4*Battements!B14-5*Battements!B10) -> 8.243084022 | E20: =IF(AND($M$2="Nomenclature française",$H$9="Do-Do"),'Calculs cachés'!F43,IF(AND($M$2="Nomenclature française",$H$9="Fa-Fa"),'Calculs cachés'!J43,IF(AND($M$2="Nomenclature internationale",$H$9="Do-Do"),'Calculs cachés'!F87,'Calculs cachés'!J87))) -> ré3 sol3 | F20: =IF($B$2="Non-octaviant irrégulier","",3*Battements!B15-4*Battements!B10) -> 2.00786828 | G20: =IF(AND($M$2="Nomenclature française",$H$9="Do-Do"),'Calculs cachés'!G43,IF(AND($M$2="Nomenclature française",$H$9="Fa-Fa"),'Calculs cachés'!K43,IF(AND($M$2="Nomenclature internationale",$H$9="Do-Do"),'Calculs cachés'!G87,'Calculs cachés'!K87))) -> ré3 la3 | H20: =IF($B$2="Non-octaviant irrégulier","",2*Battements!B17-3*Battements!B10) -> -1.503333016 | J20: =IF($M$2="Nomenclature française",'Calculs cachés'!D104,'Calculs cachés'!F104) -> sol#2 do#3 | K20: =IF(AND($B$2="Non-octaviant irrégulier",K1="Fa-Fa",H9="Do-Do"),"",IF(AND($B$2="Non-octaviant irrégulier",$K$1="Do-Do"),"",IF($H$9="Fa-Fa",3*Battements!B9-4*Battements!B4,3*Battements!B2-4*Battements!D9))) -> -0.02160182434 | O20: sol#2 do#3 | P20: 0
A21: =IF(AND($M$2="Nomenclature française",$H$9="Do-Do"),'Calculs cachés'!D44,IF(AND($M$2="Nomenclature française",$H$9="Fa-Fa"),'Calculs cachés'!H44,IF(AND($M$2="Nomenclature internationale",$H$9="Do-Do"),'Calculs cachés'!D88,'Calculs cachés'!H88))) -> ré#3 fa#3 | B21: =IF($B$2="Non-octaviant irrégulier","",5*Battements!B14-6*Battements!B11) -> -23.23042647 | C21: =IF(AND($M$2="Nomenclature française",$H$9="Do-Do"),'Calculs cachés'!E44,IF(AND($M$2="Nomenclature française",$H$9="Fa-Fa"),'Calculs cachés'!I44,IF(AND($M$2="Nomenclature internationale",$H$9="Do-Do"),'Calculs cachés'!E88,'Calculs cachés'!I88))) -> ré#3 sol3 | D21: =IF($B$2="Non-octaviant irrégulier","",4*Battements!B15-5*Battements!B11) -> 11.46122867 | E21: =IF(AND($M$2="Nomenclature française",$H$9="Do-Do"),'Calculs cachés'!F44,IF(AND($M$2="Nomenclature française",$H$9="Fa-Fa"),'Calculs cachés'!J44,IF(AND($M$2="Nomenclature internationale",$H$9="Do-Do"),'Calculs cachés'!F88,'Calculs cachés'!J88))) -> ré#3 sol#3 | F21: =IF($B$2="Non-octaviant irrégulier","",3*Battements!B16-4*Battements!B11) -> -0.03240357875 | G21: =IF(AND($M$2="Nomenclature française",$H$9="Do-Do"),'Calculs cachés'!G44,IF(AND($M$2="Nomenclature française",$H$9="Fa-Fa"),'Calculs cachés'!K44,IF(AND($M$2="Nomenclature internationale",$H$9="Do-Do"),'Calculs cachés'!G88,'Calculs cachés'!K88))) -> ré#3 la#3 | H21: =IF($B$2="Non-octaviant irrégulier","",2*Battements!B18-3*Battements!B11) -> 0.02430331576 | J21: =IF($M$2="Nomenclature française",'Calculs cachés'!D105,'Calculs cachés'!F105) -> do#3 fa#2 | K21: =IF(AND($B$2="Non-octaviant irrégulier",K1="Fa-Fa",H9="Do-Do"),"",IF(AND($B$2="Non-octaviant irrégulier",$K$1="Do-Do"),"",IF($H$9="Fa-Fa",2*Battements!B9-3*Battements!B2,2*Battements!B2-3*Battements!D7))) -> 0.01440084191 | O21: do#3 fa#2 | P21: 0
A22: =IF(AND($M$2="Nomenclature française",$H$9="Do-Do"),'Calculs cachés'!D45,IF(AND($M$2="Nomenclature française",$H$9="Fa-Fa"),'Calculs cachés'!H45,IF(AND($M$2="Nomenclature internationale",$H$9="Do-Do"),'Calculs cachés'!D89,'Calculs cachés'!H89))) -> mi3 sol3 | B22: =IF($B$2="Non-octaviant irrégulier","",5*Battements!B15-6*Battements!B12) -> -14.38052657 | C22: =IF(AND($M$2="Nomenclature française",$H$9="Do-Do"),'Calculs cachés'!E45,IF(AND($M$2="Nomenclature française",$H$9="Fa-Fa"),'Calculs cachés'!I45,IF(AND($M$2="Nomenclature internationale",$H$9="Do-Do"),'Calculs cachés'!E89,'Calculs cachés'!I89))) -> mi3 sol#3 | D22: =IF($B$2="Non-octaviant irrégulier","",4*Battements!B16-5*Battements!B12) -> 14.99256736 | E22: =IF(AND($M$2="Nomenclature française",$H$9="Do-Do"),'Calculs cachés'!F45,IF(AND($M$2="Nomenclature française",$H$9="Fa-Fa"),'Calculs cachés'!J45,IF(AND($M$2="Nomenclature internationale",$H$9="Do-Do"),'Calculs cachés'!F89,'Calculs cachés'!J89))) -> mi3 la3 | F22: =IF($B$2="Non-octaviant irrégulier","",3*Battements!B17-4*Battements!B12) -> 2.251153804 | G22: =IF(AND($M$2="Nomenclature française",$H$9="Do-Do"),'Calculs cachés'!G45,IF(AND($M$2="Nomenclature française",$H$9="Fa-Fa"),'Calculs cachés'!K45,IF(AND($M$2="Nomenclature internationale",$H$9="Do-Do"),'Calculs cachés'!G89,'Calculs cachés'!K89))) -> mi3 si3 | H22: =IF($B$2="Non-octaviant irrégulier","",2*Battements!B19-3*Battements!B12) -> -1.685485982 | J22: =IF($M$2="Nomenclature française",'Calculs cachés'!D106,'Calculs cachés'!F106) -> fa#2 si2 | K22: =IF(AND($B$2="Non-octaviant irrégulier",K1="Fa-Fa",H9="Do-Do"),"",IF(AND($B$2="Non-octaviant irrégulier",$K$1="Do-Do"),"",IF($H$9="Fa-Fa",3*Battements!B7-4*Battements!B2,3*Battements!D12-4*Battements!D7))) -> 1.261958641 | O22: fa#2 si2 | P22: 74
A23: =IF(AND($M$2="Nomenclature française",$H$9="Do-Do"),'Calculs cachés'!D46,IF(AND($M$2="Nomenclature française",$H$9="Fa-Fa"),'Calculs cachés'!H46,IF(AND($M$2="Nomenclature internationale",$H$9="Do-Do"),'Calculs cachés'!D90,'Calculs cachés'!H90))) -> fa3 sol#3 | B23: =IF($B$2="Non-octaviant irrégulier","",5*Battements!B16-6*Battements!B13) -> -22.49303573 | C23: =IF(AND($M$2="Nomenclature française",$H$9="Do-Do"),'Calculs cachés'!E46,IF(AND($M$2="Nomenclature française",$H$9="Fa-Fa"),'Calculs cachés'!I46,IF(AND($M$2="Nomenclature internationale",$H$9="Do-Do"),'Calculs cachés'!E90,'Calculs cachés'!I90))) -> fa3 la3 | D23: =IF($B$2="Non-octaviant irrégulier","",4*Battements!B17-5*Battements!B13) -> 9.819735739 | E23: =IF(AND($M$2="Nomenclature française",$H$9="Do-Do"),'Calculs cachés'!F46,IF(AND($M$2="Nomenclature française",$H$9="Fa-Fa"),'Calculs cachés'!J46,IF(AND($M$2="Nomenclature internationale",$H$9="Do-Do"),'Calculs cachés'!F90,'Calculs cachés'!J90))) -> fa3 la#3 | F23: =IF($B$2="Non-octaviant irrégulier","",3*Battements!B18-4*Battements!B13) -> 2.391912523 | G23: =IF(AND($M$2="Nomenclature française",$H$9="Do-Do"),'Calculs cachés'!G46,IF(AND($M$2="Nomenclature française",$H$9="Fa-Fa"),'Calculs cachés'!K46,IF(AND($M$2="Nomenclature internationale",$H$9="Do-Do"),'Calculs cachés'!G90,'Calculs cachés'!K90))) -> fa3 do4 | H23: =IF($B$2="Non-octaviant irrégulier","",2*Battements!B20-3*Battements!B13) -> -1.790874982 | J23: =IF($M$2="Nomenclature française",'Calculs cachés'!D107,'Calculs cachés'!F107) -> si2 mi3 | K23: =IF(AND($B$2="Non-octaviant irrégulier",K1="Fa-Fa",H9="Do-Do"),"",IF(AND($B$2="Non-octaviant irrégulier",$K$1="Do-Do"),"",IF($H$9="Fa-Fa",3*Battements!B12-4*Battements!B7,3*Battements!B5-4*Battements!D12))) -> 1.685485982 | O23: si2 mi3 | P23: 100
J24: =IF($M$2="Nomenclature française",'Calculs cachés'!D108,'Calculs cachés'!F108) -> mi3 la2 | K24: =IF(AND($B$2="Non-octaviant irrégulier",K1="Fa-Fa",H9="Do-Do"),"",IF(AND($B$2="Non-octaviant irrégulier",$K$1="Do-Do"),"",IF($H$9="Fa-Fa",2*Battements!B12-3*Battements!B5,2*Battements!B5-3*Battements!D10))) -> -1.125576902 | O24: mi3 la2 | P24: 66
A25: =A10 -> Tierces mineures | B25: Metronomique | C25: =C10 -> Tierces majeures | D25: Metro | E25: =E10 -> Quartes | F25: Metro | G25: =G10 -> Quintes | H25: Metro | J25: =IF($M$2="Nomenclature française",'Calculs cachés'!D109,'Calculs cachés'!F109) -> mi3 la3 | K25: =IF(OR(AND($B$2="Non-octaviant irrégulier",K1="Fa-Fa",H9="Do-Do"),AND($B$2="Non-octaviant irrégulier",K1="Do-Do",H9="Fa-Fa"),AND($B$2="Non-octaviant irrégulier",K1="Fa-Fa",H9="Fa-Fa")),"",IF(H9="Do-Do",3*Battements!B10-4*Battements!B5,3*Battements!B17-4*Battements!B12)) -> 2.251153804 | O25: mi3 la3 | P25: =IF(OR(AND(B2="Non-octaviant irrégulier",K1="Fa-Fa"),AND(B2="Non-octaviant irrégulier",H9="Fa-Fa")),"",INT(ABS(K25*60)/2)*2) -> 134
A26: =A11 -> fa2 sol#2 | B26: =IF(OR(AND($B$2="Non-octaviant irrégulier",$K$1="Fa-Fa",$H$9="Do-Do"),AND($B$2="Non-octaviant irrégulier",$K$1="Do-Do",$H$9="Fa-Fa")),"",INT(ABS(B11*60)/2)*2) -> 674 | C26: =C11 -> fa2 la2 | D26: =IF(OR(AND($B$2="Non-octaviant irrégulier",$K$1="Fa-Fa",$H$9="Do-Do"),AND($B$2="Non-octaviant irrégulier",$K$1="Do-Do",$H$9="Fa-Fa")),"",INT(ABS(D11*60)/2)*2) -> 294 | E26: fa2 la#2 | F26: =IF(OR(AND($B$2="Non-octaviant irrégulier",$K$1="Fa-Fa",$H$9="Do-Do"),AND($B$2="Non-octaviant irrégulier",$K$1="Do-Do",$H$9="Fa-Fa")),"",INT(ABS(F11*60)/2)*2) -> 70 | G26: fa2 do3 | H26: =IF(OR(AND($B$2="Non-octaviant irrégulier",$K$1="Fa-Fa",$H$9="Do-Do"),AND($B$2="Non-octaviant irrégulier",$K$1="Do-Do",$H$9="Fa-Fa")),"",INT(ABS(H11*60)/2)*2) -> 52
A27: =A12 -> fa#2 la2 | B27: =IF(OR(AND($B$2="Non-octaviant irrégulier",$K$1="Fa-Fa",$H$9="Do-Do"),AND($B$2="Non-octaviant irrégulier",$K$1="Do-Do",$H$9="Fa-Fa")),"",INT(ABS(B12*60)/2)*2) -> 482 | C27: fa#2 la#2 | D27: =IF(OR(AND($B$2="Non-octaviant irrégulier",$K$1="Fa-Fa",$H$9="Do-Do"),AND($B$2="Non-octaviant irrégulier",$K$1="Do-Do",$H$9="Fa-Fa")),"",INT(ABS(D12*60)/2)*2) -> 698 | E27: fa#2 si2 | F27: =IF(OR(AND($B$2="Non-octaviant irrégulier",$K$1="Fa-Fa",$H$9="Do-Do"),AND($B$2="Non-octaviant irrégulier",$K$1="Do-Do",$H$9="Fa-Fa")),"",INT(ABS(F12*60)/2)*2) -> 74 | G27: fa#2 do#3 | H27: =IF((OR(AND($B$2="Non-octaviant irrégulier",$K$1="Fa-Fa",$H$9="Do-Do"),AND($B$2="Non-octaviant irrégulier",$K$1="Do-Do",$H$9="Fa-Fa"))),"",INT(ABS(H12*60)/2)*2) -> 0
A28: =A13 -> sol2 la#2 | B28: =IF(OR(AND($B$2="Non-octaviant irrégulier",$K$1="Fa-Fa",$H$9="Do-Do"),AND($B$2="Non-octaviant irrégulier",$K$1="Do-Do",$H$9="Fa-Fa")),"",INT(ABS(B13*60)/2)*2) -> 512 | C28: sol2 si2 | D28: =IF(OR(AND($B$2="Non-octaviant irrégulier",$K$1="Fa-Fa",$H$9="Do-Do"),AND($B$2="Non-octaviant irrégulier",$K$1="Do-Do",$H$9="Fa-Fa")),"",INT(ABS(D13*60)/2)*2) -> 330 | E28: sol2 do3 | F28: 80 | G28: sol2 ré3 | H28: =IF((OR(AND($B$2="Non-octaviant irrégulier",$K$1="Fa-Fa",$H$9="Do-Do"),AND($B$2="Non-octaviant irrégulier",$K$1="Do-Do",$H$9="Fa-Fa"))),"",INT(ABS(H13*60)/2)*2) -> 60
A29: =A14 -> sol#2 si2 | B29: =IF(OR(AND($B$2="Non-octaviant irrégulier",$K$1="Fa-Fa",$H$9="Do-Do"),AND($B$2="Non-octaviant irrégulier",$K$1="Do-Do",$H$9="Fa-Fa")),"",INT(ABS(B14*60)/2)*2) -> 800 | C29: sol#2 do3 | D29: 566 | E29: sol#2 do#3 | F29: =IF((OR(AND($B$2="Non-octaviant irrégulier",$K$1="Fa-Fa",$H$9="Do-Do"),AND($B$2="Non-octaviant irrégulier",$K$1="Do-Do",$H$9="Fa-Fa"))),"",INT(ABS(F14*60)/2)*2) -> 0 | G29: sol#2 ré#3 | H29: =IF((OR(AND($B$2="Non-octaviant irrégulier",$K$1="Fa-Fa",$H$9="Do-Do"),AND($B$2="Non-octaviant irrégulier",$K$1="Do-Do",$H$9="Fa-Fa"))),"",INT(ABS(H14*60)/2)*2) -> 0
A30: =A15 -> la2 do3 | B30: =IF(OR(AND($B$2="Non-octaviant irrégulier",$K$1="Fa-Fa",$H$9="Do-Do"),AND($B$2="Non-octaviant irrégulier",$K$1="Do-Do",$H$9="Fa-Fa")),"",INT(ABS(B15*60)/2)*2) -> 576 | C30: la2 do#3 | D30: 484 | E30: la2 ré3 | F30: =IF((OR(AND($B$2="Non-octaviant irrégulier",$K$1="Fa-Fa",$H$9="Do-Do"),AND($B$2="Non-octaviant irrégulier",$K$1="Do-Do",$H$9="Fa-Fa"))),"",INT(ABS(F15*60)/2)*2) -> 90 | G30: la2 mi3 | H30: =IF((OR(AND($B$2="Non-octaviant irrégulier",$K$1="Fa-Fa",$H$9="Do-Do"),AND($B$2="Non-octaviant irrégulier",$K$1="Do-Do",$H$9="Fa-Fa"))),"",INT(ABS(H15*60)/2)*2) -> 66
A31: =A16 -> la#2 do#3 | B31: =IF((OR(AND($B$2="Non-octaviant irrégulier",$K$1="Fa-Fa",$H$9="Do-Do"),AND($B$2="Non-octaviant irrégulier",$K$1="Do-Do",$H$9="Fa-Fa"))),"",INT(ABS(B16*60)/2)*2) -> 1044 | C31: la#2 ré3 | D31: 392 | E31: la#2 ré#3 | F31: =IF((OR(AND($B$2="Non-octaviant irrégulier",$K$1="Fa-Fa",$H$9="Do-Do"),AND($B$2="Non-octaviant irrégulier",$K$1="Do-Do",$H$9="Fa-Fa"))),"",INT(ABS(F16*60)/2)*2) -> 0 | G31: la#2 fa3 | H31: =IF((OR(AND($B$2="Non-octaviant irrégulier",$K$1="Fa-Fa",$H$9="Do-Do"),AND($B$2="Non-octaviant irrégulier",$K$1="Do-Do",$H$9="Fa-Fa"))),"",INT(ABS(H16*60)/2)*2) -> 70
A32: =A17 -> si2 ré3 | B32: =IF((OR(AND($B$2="Non-octaviant irrégulier",$K$1="Fa-Fa",$H$9="Do-Do"),AND($B$2="Non-octaviant irrégulier",$K$1="Do-Do",$H$9="Fa-Fa"))),"",INT(ABS(B17*60)/2)*2) -> 646 | C32: si2 ré#3 | D32: 802 | E32: si2 mi3 | F32: =IF((OR(AND($B$2="Non-octaviant irrégulier",$K$1="Fa-Fa",$H$9="Do-Do"),AND($B$2="Non-octaviant irrégulier",$K$1="Do-Do",$H$9="Fa-Fa"))),"",INT(ABS(F17*60)/2)*2) -> 100 | G32: si2 fa#3 | H32: =IF($B$2="Non-octaviant irrégulier","",INT(ABS(H17*60)/2)*2) -> 74
A33: =A18 -> do3 ré#3 | B33: =IF((OR(AND($B$2="Non-octaviant irrégulier",$K$1="Fa-Fa",$H$9="Do-Do"),AND($B$2="Non-octaviant irrégulier",$K$1="Do-Do",$H$9="Fa-Fa"))),"",INT(ABS(B18*60)/2)*2) -> 848 | C33: do3 mi3 | D33: 440 | E33: do3 fa3 | F33: =IF((OR(AND($B$2="Non-octaviant irrégulier",$K$1="Fa-Fa",$H$9="Do-Do"),AND($B$2="Non-octaviant irrégulier",$K$1="Do-Do",$H$9="Fa-Fa"))),"",INT(ABS(F18*60)/2)*2) -> 106 | G33: do3 sol3 | H33: 80
A34: =A19 -> do#3 mi3 | B34: =IF((OR(AND($B$2="Non-octaviant irrégulier",$K$1="Fa-Fa",$H$9="Do-Do"),AND($B$2="Non-octaviant irrégulier",$K$1="Do-Do",$H$9="Fa-Fa"))),"",INT(ABS(B19*60)/2)*2) -> 896 | C34: do#3 fa3 | D34: 900 | E34: do#3 fa#3 | F34: =IF($B$2="Non-octaviant irrégulier","",INT(ABS(F19*60)/2)*2) -> 0 | G34: do#3 sol#3 | H34: 0
A35: =A20 -> ré3 fa3 | B35: =IF((OR(AND($B$2="Non-octaviant irrégulier",$K$1="Fa-Fa",$H$9="Do-Do"),AND($B$2="Non-octaviant irrégulier",$K$1="Do-Do",$H$9="Fa-Fa"))),"",INT(ABS(B20*60)/2)*2) -> 768 | C35: ré3 fa#3 | D35: =IF($B$2="Non-octaviant irrégulier","",INT(ABS(D20*60)/2)*2) -> 494 | E35: ré3 sol3 | F35: =IF($B$2="Non-octaviant irrégulier","",INT(ABS(F20*60)/2)*2) -> 120 | G35: ré3 la3 | H35: 90
A36: =A21 -> ré#3 fa#3 | B36: =IF($B$2="Non-octaviant irrégulier","",INT(ABS(B21*60)/2)*2) -> 1392 | C36: ré#3 sol3 | D36: =IF($B$2="Non-octaviant irrégulier","",INT(ABS(D21*60)/2)*2) -> 686 | E36: ré#3 sol#3 | F36: =IF($B$2="Non-octaviant irrégulier","",INT(ABS(F21*60)/2)*2) -> 0 | G36: ré#3 la#3 | H36: 0
A37: =A22 -> mi3 sol3 | B37: =IF($B$2="Non-octaviant irrégulier","",INT(ABS(B22*60)/2)*2) -> 862 | C37: mi3 sol#3 | D37: =IF($B$2="Non-octaviant irrégulier","",INT(ABS(D22*60)/2)*2) -> 898 | E37: mi3 la3 | F37: =IF($B$2="Non-octaviant irrégulier","",INT(ABS(F22*60)/2)*2) -> 134 | G37: mi3 si3 | H37: 100
A38: =A23 -> fa3 sol#3 | B38: =IF($B$2="Non-octaviant irrégulier","",INT(ABS(B23*60)/2)*2) -> 1348 | C38: fa3 la3 | D38: =IF($B$2="Non-octaviant irrégulier","",INT(ABS(D23*60)/2)*2) -> 588 | E38: fa3 la#3 | F38: =IF($B$2="Non-octaviant irrégulier","",INT(ABS(F23*60)/2)*2) -> 142 | G38: fa3 do4 | H38: 106
A40: =A25 -> Tierces mineures | B40: Metronomique | C40: =C25 -> Tierces majeures | D40: Metro | E40: =E25 -> Quartes | F40: Metro | G40: =G25 -> Quintes | H40: Metro
A41: =A26 -> fa2 sol#2 | B41: =IF(OR(AND($B$2="Non-octaviant irrégulier",$K$1="Fa-Fa",$H$9="Do-Do"),AND($B$2="Non-octaviant irrégulier",$K$1="Do-Do",$H$9="Fa-Fa")),"",IF(B26>832,"8x "&ROUND(B26/8,0),IF(B26>416,"4x "&ROUND(B26/4,0),IF(B26>208,"2x "&ROUND(B26/2,0),B26)))) -> 4x 169 | C41: =C26 -> fa2 la2 | D41: =IF(OR(AND($B$2="Non-octaviant irrégulier",$K$1="Fa-Fa",$H$9="Do-Do"),AND($B$2="Non-octaviant irrégulier",$K$1="Do-Do",$H$9="Fa-Fa")),"",IF(D26>832,"8x "&ROUND(D26/8,0),IF(D26>416,"4x "&ROUND(D26/4,0),IF(D26>208,"2x "&ROUND(D26/2,0),D26)))) -> 2x 147 | E41: =E26 -> fa2 la#2 | F41: =IF(OR(AND($B$2="Non-octaviant irrégulier",$K$1="Fa-Fa",$H$9="Do-Do"),AND($B$2="Non-octaviant irrégulier",$K$1="Do-Do",$H$9="Fa-Fa")),"",IF(F26>832,"8x "&ROUND(F26/8,0),IF(F26>416,"4x "&ROUND(F26/4,0),IF(F26>208,"2x "&ROUND(F26/2,0),F26)))) -> 70 | G41: =G26 -> fa2 do3 | H41: =IF(OR(AND($B$2="Non-octaviant irrégulier",$K$1="Fa-Fa",$H$9="Do-Do"),AND($B$2="Non-octaviant irrégulier",$K$1="Do-Do",$H$9="Fa-Fa")),"",IF(H26>832,"8x "&ROUND(H26/8,0),IF(H26>416,"4x "&ROUND(H26/4,0),IF(H26>208,"2x "&ROUND(H26/2,0),H26)))) -> 52
A42: =A27 -> fa#2 la2 | B42: =IF(OR(AND($B$2="Non-octaviant irrégulier",$K$1="Fa-Fa",$H$9="Do-Do"),AND($B$2="Non-octaviant irrégulier",$K$1="Do-Do",$H$9="Fa-Fa")),"",IF(B27>832,"8x "&ROUND(B27/8,0),IF(B27>416,"4x "&ROUND(B27/4,0),IF(B27>208,"2x "&ROUND(B27/2,0),B27)))) -> 4x 121 | C42: =C27 -> fa#2 la#2 | D42: =IF(OR(AND($B$2="Non-octaviant irrégulier",$K$1="Fa-Fa",$H$9="Do-Do"),AND($B$2="Non-octaviant irrégulier",$K$1="Do-Do",$H$9="Fa-Fa")),"",IF(D27>832,"8x "&ROUND(D27/8,0),IF(D27>416,"4x "&ROUND(D27/4,0),IF(D27>208,"2x "&ROUND(D27/2,0),D27)))) -> 4x 175 | E42: =E27 -> fa#2 si2 | F42: =IF(OR(AND($B$2="Non-octaviant irrégulier",$K$1="Fa-Fa",$H$9="Do-Do"),AND($B$2="Non-octaviant irrégulier",$K$1="Do-Do",$H$9="Fa-Fa")),"",IF(F27>832,"8x "&ROUND(F27/8,0),IF(F27>416,"4x "&ROUND(F27/4,0),IF(F27>208,"2x "&ROUND(F27/2,0),F27)))) -> 74 | G42: =G27 -> fa#2 do#3 | H42: =IF((OR(AND($B$2="Non-octaviant irrégulier",$K$1="Fa-Fa",$H$9="Do-Do"),AND($B$2="Non-octaviant irrégulier",$K$1="Do-Do",$H$9="Fa-Fa"))),"",IF(H27>832,"8x "&ROUND(H27/8,0),IF(H27>416,"4x "&ROUND(H27/4,0),IF(H27>208,"2x "&ROUND(H27/2,0),H27)))) -> 0
A43: =A28 -> sol2 la#2 | B43: 4x 128 | C43: =C28 -> sol2 si2 | D43: 2x 165 | E43: =E28 -> sol2 do3 | F43: 80 | G43: =G28 -> sol2 ré3 | H43: =IF((OR(AND($B$2="Non-octaviant irrégulier",$K$1="Fa-Fa",$H$9="Do-Do"),AND($B$2="Non-octaviant irrégulier",$K$1="Do-Do",$H$9="Fa-Fa"))),"",IF(H28>832,"8x "&ROUND(H28/8,0),IF(H28>416,"4x "&ROUND(H28/4,0),IF(H28>208,"2x "&ROUND(H28/2,0),H28)))) -> 60
A44: =A29 -> sol#2 si2 | B44: 4x 200 | C44: =C29 -> sol#2 do3 | D44: 4x 142 | E44: =E29 -> sol#2 do#3 | F44: =IF((OR(AND($B$2="Non-octaviant irrégulier",$K$1="Fa-Fa",$H$9="Do-Do"),AND($B$2="Non-octaviant irrégulier",$K$1="Do-Do",$H$9="Fa-Fa"))),"",IF(F29>832,"8x "&ROUND(F29/8,0),IF(F29>416,"4x "&ROUND(F29/4,0),IF(F29>208,"2x "&ROUND(F29/2,0),F29)))) -> 0 | G44: =G29 -> sol#2 ré#3 | H44: =IF((OR(AND($B$2="Non-octaviant irrégulier",$K$1="Fa-Fa",$H$9="Do-Do"),AND($B$2="Non-octaviant irrégulier",$K$1="Do-Do",$H$9="Fa-Fa"))),"",IF(H29>832,"8x "&ROUND(H29/8,0),IF(H29>416,"4x "&ROUND(H29/4,0),IF(H29>208,"2x "&ROUND(H29/2,0),H29)))) -> 0
A45: =A30 -> la2 do3 | B45: 4x 144 | C45: =C30 -> la2 do#3 | D45: =IF((OR(AND($B$2="Non-octaviant irrégulier",$K$1="Fa-Fa",$H$9="Do-Do"),AND($B$2="Non-octaviant irrégulier",$K$1="Do-Do",$H$9="Fa-Fa"))),"",IF(D30>832,"8x "&ROUND(D30/8,0),IF(D30>416,"4x "&ROUND(D30/4,0),IF(D30>208,"2x "&ROUND(D30/2,0),D30)))) -> 4x 121 | E45: =E30 -> la2 ré3 | F45: =IF((OR(AND($B$2="Non-octaviant irrégulier",$K$1="Fa-Fa",$H$9="Do-Do"),AND($B$2="Non-octaviant irrégulier",$K$1="Do-Do",$H$9="Fa-Fa"))),"",IF(F30>832,"8x "&ROUND(F30/8,0),IF(F30>416,"4x "&ROUND(F30/4,0),IF(F30>208,"2x "&ROUND(F30/2,0),F30)))) -> 90 | G45: =G30 -> la2 mi3 | H45: =IF((OR(AND($B$2="Non-octaviant irrégulier",$K$1="Fa-Fa",$H$9="Do-Do"),AND($B$2="Non-octaviant irrégulier",$K$1="Do-Do",$H$9="Fa-Fa"))),"",IF(H30>832,"8x "&ROUND(H30/8,0),IF(H30>416,"4x "&ROUND(H30/4,0),IF(H30>208,"2x "&ROUND(H30/2,0),H30)))) -> 66
A46: =A31 -> la#2 do#3 | B46: =IF((OR(AND($B$2="Non-octaviant irrégulier",$K$1="Fa-Fa",$H$9="Do-Do"),AND($B$2="Non-octaviant irrégulier",$K$1="Do-Do",$H$9="Fa-Fa"))),"",IF(B31>832,"8x "&ROUND(B31/8,0),IF(B31>416,"4x "&ROUND(B31/4,0),IF(B31>208,"2x "&ROUND(B31/2,0),B31)))) -> 8x 131 | C46: =C31 -> la#2 ré3 | D46: =IF((OR(AND($B$2="Non-octaviant irrégulier",$K$1="Fa-Fa",$H$9="Do-Do"),AND($B$2="Non-octaviant irrégulier",$K$1="Do-Do",$H$9="Fa-Fa"))),"",IF(D31>832,"8x "&ROUND(D31/8,0),IF(D31>416,"4x "&ROUND(D31/4,0),IF(D31>208,"2x "&ROUND(D31/2,0),D31)))) -> 2x 196 | E46: =E31 -> la#2 ré#3 | F46: =IF((OR(AND($B$2="Non-octaviant irrégulier",$K$1="Fa-Fa",$H$9="Do-Do"),AND($B$2="Non-octaviant irrégulier",$K$1="Do-Do",$H$9="Fa-Fa"))),"",IF(F31>832,"8x "&ROUND(F31/8,0),IF(F31>416,"4x "&ROUND(F31/4,0),IF(F31>208,"2x "&ROUND(F31/2,0),F31)))) -> 0 | G46: =G31 -> la#2 fa3 | H46: =IF((OR(AND($B$2="Non-octaviant irrégulier",$K$1="Fa-Fa",$H$9="Do-Do"),AND($B$2="Non-octaviant irrégulier",$K$1="Do-Do",$H$9="Fa-Fa"))),"",IF(H31>832,"8x "&ROUND(H31/8,0),IF(H31>416,"4x "&ROUND(H31/4,0),IF(H31>208,"2x "&ROUND(H31/2,0),H31)))) -> 70
A47: =A32 -> si2 ré3 | B47: =IF((OR(AND($B$2="Non-octaviant irrégulier",$K$1="Fa-Fa",$H$9="Do-Do"),AND($B$2="Non-octaviant irrégulier",$K$1="Do-Do",$H$9="Fa-Fa"))),"",IF(B32>832,"8x "&ROUND(B32/8,0),IF(B32>416,"4x "&ROUND(B32/4,0),IF(B32>208,"2x "&ROUND(B32/2,0),B32)))) -> 4x 162 | C47: =C32 -> si2 ré#3 | D47: =IF((OR(AND($B$2="Non-octaviant irrégulier",$K$1="Fa-Fa",$H$9="Do-Do"),AND($B$2="Non-octaviant irrégulier",$K$1="Do-Do",$H$9="Fa-Fa"))),"",IF(D32>832,"8x "&ROUND(D32/8,0),IF(D32>416,"4x "&ROUND(D32/4,0),IF(D32>208,"2x "&ROUND(D32/2,0),D32)))) -> 4x 201 | E47: =E32 -> si2 mi3 | F47: =IF((OR(AND($B$2="Non-octaviant irrégulier",$K$1="Fa-Fa",$H$9="Do-Do"),AND($B$2="Non-octaviant irrégulier",$K$1="Do-Do",$H$9="Fa-Fa"))),"",IF(F32>832,"8x "&ROUND(F32/8,0),IF(F32>416,"4x "&ROUND(F32/4,0),IF(F32>208,"2x "&ROUND(F32/2,0),F32)))) -> 100 | G47: =G32 -> si2 fa#3 | H47: =IF($B$2="Non-octaviant irrégulier","",IF(H32>832,"8x "&ROUND(H32/8,0),IF(H32>416,"4x "&ROUND(H32/4,0),IF(H32>208,"2x "&ROUND(H32/2,0),H32)))) -> 74
A48: =A33 -> do3 ré#3 | B48: =IF((OR(AND($B$2="Non-octaviant irrégulier",$K$1="Fa-Fa",$H$9="Do-Do"),AND($B$2="Non-octaviant irrégulier",$K$1="Do-Do",$H$9="Fa-Fa"))),"",IF(B33>832,"8x "&ROUND(B33/8,0),IF(B33>416,"4x "&ROUND(B33/4,0),IF(B33>208,"2x "&ROUND(B33/2,0),B33)))) -> 8x 106 | C48: =C33 -> do3 mi3 | D48: =IF((OR(AND($B$2="Non-octaviant irrégulier",$K$1="Fa-Fa",$H$9="Do-Do"),AND($B$2="Non-octaviant irrégulier",$K$1="Do-Do",$H$9="Fa-Fa"))),"",IF(D33>832,"8x "&ROUND(D33/8,0),IF(D33>416,"4x "&ROUND(D33/4,0),IF(D33>208,"2x "&ROUND(D33/2,0),D33)))) -> 4x 110 | E48: =E33 -> do3 fa3 | F48: =IF((OR(AND($B$2="Non-octaviant irrégulier",$K$1="Fa-Fa",$H$9="Do-Do"),AND($B$2="Non-octaviant irrégulier",$K$1="Do-Do",$H$9="Fa-Fa"))),"",IF(F33>832,"8x "&ROUND(F33/8,0),IF(F33>416,"4x "&ROUND(F33/4,0),IF(F33>208,"2x "&ROUND(F33/2,0),F33)))) -> 106 | G48: =G33 -> do3 sol3 | H48: 80
A49: =A34 -> do#3 mi3 | B49: =IF((OR(AND($B$2="Non-octaviant irrégulier",$K$1="Fa-Fa",$H$9="Do-Do"),AND($B$2="Non-octaviant irrégulier",$K$1="Do-Do",$H$9="Fa-Fa"))),"",IF(B34>832,"8x "&ROUND(B34/8,0),IF(B34>416,"4x "&ROUND(B34/4,0),IF(B34>208,"2x "&ROUND(B34/2,0),B34)))) -> 8x 112 | C49: =C34 -> do#3 fa3 | D49: =IF((OR(AND($B$2="Non-octaviant irrégulier",$K$1="Fa-Fa",$H$9="Do-Do"),AND($B$2="Non-octaviant irrégulier",$K$1="Do-Do",$H$9="Fa-Fa"))),"",IF(D34>832,"8x "&ROUND(D34/8,0),IF(D34>416,"4x "&ROUND(D34/4,0),IF(D34>208,"2x "&ROUND(D34/2,0),D34)))) -> 8x 113 | E49: =E34 -> do#3 fa#3 | F49: =IF($B$2="Non-octaviant irrégulier","",IF(F34>832,"8x "&ROUND(F34/8,0),IF(F34>416,"4x "&ROUND(F34/4,0),IF(F34>208,"2x "&ROUND(F34/2,0),F34)))) -> 0 | G49: =G34 -> do#3 sol#3 | H49: 0
A50: =A35 -> ré3 fa3 | B50: =IF((OR(AND($B$2="Non-octaviant irrégulier",$K$1="Fa-Fa",$H$9="Do-Do"),AND($B$2="Non-octaviant irrégulier",$K$1="Do-Do",$H$9="Fa-Fa"))),"",IF(B35>832,"8x "&ROUND(B35/8,0),IF(B35>416,"4x "&ROUND(B35/4,0),IF(B35>208,"2x "&ROUND(B35/2,0),B35)))) -> 4x 192 | C50: =C35 -> ré3 fa#3 | D50: =IF($B$2="Non-octaviant irrégulier","",IF(D35>832,"8x "&ROUND(D35/8,0),IF(D35>416,"4x "&ROUND(D35/4,0),IF(D35>208,"2x "&ROUND(D35/2,0),D35)))) -> 4x 124 | E50: =E35 -> ré3 sol3 | F50: =IF($B$2="Non-octaviant irrégulier","",IF(F35>832,"8x "&ROUND(F35/8,0),IF(F35>416,"4x "&ROUND(F35/4,0),IF(F35>208,"2x "&ROUND(F35/2,0),F35)))) -> 120 | G50: =G35 -> ré3 la3 | H50: 90
A51: =A36 -> ré#3 fa#3 | B51: =IF($B$2="Non-octaviant irrégulier","",IF(B36>832,"8x "&ROUND(B36/8,0),IF(B36>416,"4x "&ROUND(B36/4,0),IF(B36>208,"2x "&ROUND(B36/2,0),B36)))) -> 8x 174 | C51: =C36 -> ré#3 sol3 | D51: =IF($B$2="Non-octaviant irrégulier","",IF(D36>832,"8x "&ROUND(D36/8,0),IF(D36>416,"4x "&ROUND(D36/4,0),IF(D36>208,"2x "&ROUND(D36/2,0),D36)))) -> 4x 172 | E51: =E36 -> ré#3 sol#3 | F51: =IF($B$2="Non-octaviant irrégulier","",IF(F36>832,"8x "&ROUND(F36/8,0),IF(F36>416,"4x "&ROUND(F36/4,0),IF(F36>208,"2x "&ROUND(F36/2,0),F36)))) -> 0 | G51: =G36 -> ré#3 la#3 | H51: 0
A52: =A37 -> mi3 sol3 | B52: =IF($B$2="Non-octaviant irrégulier","",IF(B37>832,"8x "&ROUND(B37/8,0),IF(B37>416,"4x "&ROUND(B37/4,0),IF(B37>208,"2x "&ROUND(B37/2,0),B37)))) -> 8x 108 | C52: =C37 -> mi3 sol#3 | D52: =IF($B$2="Non-octaviant irrégulier","",IF(D37>832,"8x "&ROUND(D37/8,0),IF(D37>416,"4x "&ROUND(D37/4,0),IF(D37>208,"2x "&ROUND(D37/2,0),D37)))) -> 8x 112 | E52: =E37 -> mi3 la3 | F52: =IF($B$2="Non-octaviant irrégulier","",IF(F37>832,"8x "&ROUND(F37/8,0),IF(F37>416,"4x "&ROUND(F37/4,0),IF(F37>208,"2x "&ROUND(F37/2,0),F37)))) -> 134 | G52: =G37 -> mi3 si3 | H52: 100
A53: =A38 -> fa3 sol#3 | B53: =IF($B$2="Non-octaviant irrégulier","",IF(B38>832,"8x "&ROUND(B38/8,0),IF(B38>416,"4x "&ROUND(B38/4,0),IF(B38>208,"2x "&ROUND(B38/2,0),B38)))) -> 8x 169 | C53: =C38 -> fa3 la3 | D53: =IF($B$2="Non-octaviant irrégulier","",IF(D38>832,"8x "&ROUND(D38/8,0),IF(D38>416,"4x "&ROUND(D38/4,0),IF(D38>208,"2x "&ROUND(D38/2,0),D38)))) -> 4x 147 | E53: =E38 -> fa3 la#3 | F53: =IF($B$2="Non-octaviant irrégulier","",IF(F38>832,"8x "&ROUND(F38/8,0),IF(F38>416,"4x "&ROUND(F38/4,0),IF(F38>208,"2x "&ROUND(F38/2,0),F38)))) -> 142 | G53: =G38 -> fa3 do4 | H53: 106

Sheet Comparateur
A1: Code | B1: DMV | C1: Tempéraments les plus proches | D1: Date | F1: =TRANSPOSE(Présentation!B1) -> Asselin | G1: =TRANSPOSE(Présentation!H1) -> 1984 | I1: Sans les ND et les TR | L1: Tempéraments identiques ? | O1: Date
A2: =$N$32+'Calculs cachés'!A29 -> 0 | B2: =IF($I$1="Tous les tempéraments",IF(VLOOKUP('Calculs cachés'!A29+$V$2,'Intercorr. circ.'!$A$4:$S$6968,19)>Présentation!$N$1,"",VLOOKUP('Calculs cachés'!A29+$V$2,'Intercorr. circ.'!$A$4:$S$6968,19)),IF($I$1="Sans les ND",IF(VLOOKUP('Calculs cachés'!A29+$V$2,'IC sans ND'!$A$4:$S$3886,19)>Présentation!$N$1,"",VLOOKUP('Calculs cachés'!A29+$V$2,'IC sans ND'!$A$4:$S$3886,19)),IF($I$1="Sans les ND et les TR",IF(VLOOKUP('Calculs cachés'!A29+$V$2,'IC sans ND et TR'!$A$4:$S$1943,19)>Présentation!$N$1,"",VLOOKUP('Calculs cachés'!A29+$V$2,'IC sans ND et TR'!$A$4:$S$1943,19)),IF(VLOOKUP('Calculs cachés'!A29+$V$2,'IC sans TR'!$A$4:$S$3485,19)>Présentation!$N$1,"",VLOOKUP('Calculs cachés'!A29+$V$2,'IC sans TR'!$A$4:$S$3485,19))))) -> 0.879 | C2: =IF($I$1="Tous les tempéraments",IF(B2<=Présentation!$N$1,VLOOKUP('Calculs cachés'!A29+$V$2,'Intercorr. circ.'!$A$4:$S$6968,2),""),IF($I$1="Sans les ND",IF(B2<=Présentation!$N$1,VLOOKUP('Calculs cachés'!A29+$V$2,'IC sans ND'!$A$4:$S$3886,2),""),IF($I$1="Sans les ND et les TR",IF(B2<=Présentation!$N$1,VLOOKUP('Calculs cachés'!A29+$V$2,'IC sans ND et TR'!$A$4:$S$1943,2),""),IF(B2<=Présentation!$N$1,VLOOKUP('Calculs cachés'!A29+$V$2,'IC sans TR'!$A$4:$S$3485,2),"")))) -> Bertier Jérôme - Fa | D2: =IF($I$1="Tous les tempéraments",IF(C2="","",VLOOKUP('Calculs cachés'!A29+$V$2,'Intercorr. circ.'!$A$4:$S$6968,18)),IF($I$1="Sans les ND",IF(C2="","",VLOOKUP('Calculs cachés'!A29+$V$2,'IC sans ND'!$A$4:$S$3886,18)),IF($I$1="Sans Les ND et les TR",IF(C2="","",VLOOKUP('Calculs cachés'!A29+$V$2,'IC sans ND et TR'!$A$4:$S$1943,18)),IF(C2="","",VLOOKUP('Calculs cachés'!A29+$V$2,'IC sans TR'!$A$4:$S$3485,18))))) -> 2001 | L2: =IF($I$1="Tous les tempéraments",IF('Intercorr. circ.'!B3=$F$1&" - "&'Calculs cachés'!$E$64,"",IF('Intercorr. circ.'!S3=0,TRANSPOSE('Intercorr. circ.'!B3),"")),IF($I$1="Sans les ND",IF('IC sans ND'!B4=$F$1&" - "&'Calculs cachés'!$E$64,"",IF('IC sans ND'!S4=0,TRANSPOSE('IC sans ND'!B4),"")),IF($I$1="Sans les ND et les TR",IF('IC sans ND et TR'!B4=$F$1&" - "&'Calculs cachés'!$E$64,"",IF('IC sans ND et TR'!S4=0,TRANSPOSE('IC sans ND et TR'!B4),"")),IF('IC sans TR'!B4=$F$1&" - "&'Calculs cachés'!$E$64,"",IF('IC sans TR'!S4=0,TRANSPOSE('IC sans TR'!B4),""))))) ->  | O2: =IF($I$1="Tous les tempéraments",IF(L2="","",TRANSPOSE('Intercorr. circ.'!R4)),IF($I$1="Sans les ND",IF(L2="","",TRANSPOSE('IC sans ND'!R4)),IF($I$1="Sans les Nd et les TR",IF(L2="","",TRANSPOSE('IC sans ND et TR'!R4)),IF(L2="","",TRANSPOSE('IC sans TR'!R4))))) ->  | U2: =IF(AND(($I$1="Tous les tempéraments"),('Intercorr. circ.'!S4=0)),1,IF(AND(($I$1="Sans les ND"),('IC sans ND'!S4=0)),1,IF(AND(($I$1="Sans les TR"),('IC sans TR'!S4=0)),1,IF(AND(($I$1="Sans les ND et les TR"),('IC sans ND et TR'!S4=0)),1,"")))) -> 1 | V2: =SUM(U2:U24) -> 1
A3: =$N$32+'Calculs cachés'!A30 -> 1 | B3: =IF($I$1="Tous les tempéraments",IF(VLOOKUP('Calculs cachés'!A30+$V$2,'Intercorr. circ.'!$A$4:$S$6968,19)>Présentation!$N$1,"",VLOOKUP('Calculs cachés'!A30+$V$2,'Intercorr. circ.'!$A$4:$S$6968,19)),IF($I$1="Sans les ND",IF(VLOOKUP('Calculs cachés'!A30+$V$2,'IC sans ND'!$A$4:$S$3886,19)>Présentation!$N$1,"",VLOOKUP('Calculs cachés'!A30+$V$2,'IC sans ND'!$A$4:$S$3886,19)),IF($I$1="Sans les ND et les TR",IF(VLOOKUP('Calculs cachés'!A30+$V$2,'IC sans ND et TR'!$A$4:$S$1943,19)>Présentation!$N$1,"",VLOOKUP('Calculs cachés'!A30+$V$2,'IC sans ND et TR'!$A$4:$S$1943,19)),IF(VLOOKUP('Calculs cachés'!A30+$V$2,'IC sans TR'!$A$4:$S$3485,19)>Présentation!$N$1,"",VLOOKUP('Calculs cachés'!A30+$V$2,'IC sans TR'!$A$4:$S$3485,19))))) -> 1 | C3: =IF($I$1="Tous les tempéraments",IF(B3<=Présentation!$N$1,VLOOKUP('Calculs cachés'!A30+$V$2,'Intercorr. circ.'!$A$4:$S$6968,2),""),IF($I$1="Sans les ND",IF(B3<=Présentation!$N$1,VLOOKUP('Calculs cachés'!A30+$V$2,'IC sans ND'!$A$4:$S$3886,2),""),IF($I$1="Sans les ND et les TR",IF(B3<=Présentation!$N$1,VLOOKUP('Calculs cachés'!A30+$V$2,'IC sans ND et TR'!$A$4:$S$1943,2),""),IF(B3<=Présentation!$N$1,VLOOKUP('Calculs cachés'!A30+$V$2,'IC sans TR'!$A$4:$S$3485,2),"")))) -> Calculus Musicus - Do | D3: =IF($I$1="Tous les tempéraments",IF(C3="","",VLOOKUP('Calculs cachés'!A30+$V$2,'Intercorr. circ.'!$A$4:$S$6968,18)),IF($I$1="Sans les ND",IF(C3="","",VLOOKUP('Calculs cachés'!A30+$V$2,'IC sans ND'!$A$4:$S$3886,18)),IF($I$1="Sans Les ND et les TR",IF(C3="","",VLOOKUP('Calculs cachés'!A30+$V$2,'IC sans ND et TR'!$A$4:$S$1943,18)),IF(C3="","",VLOOKUP('Calculs cachés'!A30+$V$2,'IC sans TR'!$A$4:$S$3485,18))))) -> 2006 | L3: =IF($I$1="Tous les tempéraments",IF('Intercorr. circ.'!B4=$F$1&" - "&'Calculs cachés'!$E$64,"",IF('Intercorr. circ.'!S4=0,TRANSPOSE('Intercorr. circ.'!B4),"")),IF($I$1="Sans les ND",IF('IC sans ND'!B5=$F$1&" - "&'Calculs cachés'!$E$64,"",IF('IC sans ND'!S5=0,TRANSPOSE('IC sans ND'!B5),"")),IF($I$1="Sans les ND et les TR",IF('IC sans ND et TR'!B5=$F$1&" - "&'Calculs cachés'!$E$64,"",IF('IC sans ND et TR'!S5=0,TRANSPOSE('IC sans ND et TR'!B5),"")),IF('IC sans TR'!B5=$F$1&" - "&'Calculs cachés'!$E$64,"",IF('IC sans TR'!S5=0,TRANSPOSE('IC sans TR'!B5),""))))) ->  | O3: =IF($I$1="Tous les tempéraments",IF(L3="","",TRANSPOSE('Intercorr. circ.'!R5)),IF($I$1="Sans les ND",IF(L3="","",TRANSPOSE('IC sans ND'!R5)),IF($I$1="Sans les Nd et les TR",IF(L3="","",TRANSPOSE('IC sans ND et TR'!R5)),IF(L3="","",TRANSPOSE('IC sans TR'!R5))))) ->  | U3: =IF(AND(($I$1="Tous les tempéraments"),('Intercorr. circ.'!S5=0)),1,IF(AND(($I$1="Sans les ND"),('IC sans ND'!S5=0)),1,IF(AND(($I$1="Sans les TR"),('IC sans TR'!S5=0)),1,IF(AND(($I$1="Sans les ND et les TR"),('IC sans ND et TR'!S5=0)),1,"")))) -> 
A4: =$N$32+'Calculs cachés'!A31 -> 2 | B4: =IF($I$1="Tous les tempéraments",IF(VLOOKUP('Calculs cachés'!A31+$V$2,'Intercorr. circ.'!$A$4:$S$6968,19)>Présentation!$N$1,"",VLOOKUP('Calculs cachés'!A31+$V$2,'Intercorr. circ.'!$A$4:$S$6968,19)),IF($I$1="Sans les ND",IF(VLOOKUP('Calculs cachés'!A31+$V$2,'IC sans ND'!$A$4:$S$3886,19)>Présentation!$N$1,"",VLOOKUP('Calculs cachés'!A31+$V$2,'IC sans ND'!$A$4:$S$3886,19)),IF($I$1="Sans les ND et les TR",IF(VLOOKUP('Calculs cachés'!A31+$V$2,'IC sans ND et TR'!$A$4:$S$1943,19)>Présentation!$N$1,"",VLOOKUP('Calculs cachés'!A31+$V$2,'IC sans ND et TR'!$A$4:$S$1943,19)),IF(VLOOKUP('Calculs cachés'!A31+$V$2,'IC sans TR'!$A$4:$S$3485,19)>Présentation!$N$1,"",VLOOKUP('Calculs cachés'!A31+$V$2,'IC sans TR'!$A$4:$S$3485,19))))) -> 1.077956989 | C4: =IF($I$1="Tous les tempéraments",IF(B4<=Présentation!$N$1,VLOOKUP('Calculs cachés'!A31+$V$2,'Intercorr. circ.'!$A$4:$S$6968,2),""),IF($I$1="Sans les ND",IF(B4<=Présentation!$N$1,VLOOKUP('Calculs cachés'!A31+$V$2,'IC sans ND'!$A$4:$S$3886,2),""),IF($I$1="Sans les ND et les TR",IF(B4<=Présentation!$N$1,VLOOKUP('Calculs cachés'!A31+$V$2,'IC sans ND et TR'!$A$4:$S$1943,2),""),IF(B4<=Présentation!$N$1,VLOOKUP('Calculs cachés'!A31+$V$2,'IC sans TR'!$A$4:$S$3485,2),"")))) -> Baroque moyen - Do | D4: =IF($I$1="Tous les tempéraments",IF(C4="","",VLOOKUP('Calculs cachés'!A31+$V$2,'Intercorr. circ.'!$A$4:$S$6968,18)),IF($I$1="Sans les ND",IF(C4="","",VLOOKUP('Calculs cachés'!A31+$V$2,'IC sans ND'!$A$4:$S$3886,18)),IF($I$1="Sans Les ND et les TR",IF(C4="","",VLOOKUP('Calculs cachés'!A31+$V$2,'IC sans ND et TR'!$A$4:$S$1943,18)),IF(C4="","",VLOOKUP('Calculs cachés'!A31+$V$2,'IC sans TR'!$A$4:$S$3485,18))))) -> 2012 | L4: =IF($I$1="Tous les tempéraments",IF('Intercorr. circ.'!B5=$F$1&" - "&'Calculs cachés'!$E$64,"",IF('Intercorr. circ.'!S5=0,TRANSPOSE('Intercorr. circ.'!B5),"")),IF($I$1="Sans les ND",IF('IC sans ND'!B6=$F$1&" - "&'Calculs cachés'!$E$64,"",IF('IC sans ND'!S6=0,TRANSPOSE('IC sans ND'!B6),"")),IF($I$1="Sans les ND et les TR",IF('IC sans ND et TR'!B6=$F$1&" - "&'Calculs cachés'!$E$64,"",IF('IC sans ND et TR'!S6=0,TRANSPOSE('IC sans ND et TR'!B6),"")),IF('IC sans TR'!B6=$F$1&" - "&'Calculs cachés'!$E$64,"",IF('IC sans TR'!S6=0,TRANSPOSE('IC sans TR'!B6),""))))) ->  | O4: =IF($I$1="Tous les tempéraments",IF(L4="","",TRANSPOSE('Intercorr. circ.'!R6)),IF($I$1="Sans les ND",IF(L4="","",TRANSPOSE('IC sans ND'!R6)),IF($I$1="Sans les Nd et les TR",IF(L4="","",TRANSPOSE('IC sans ND et TR'!R6)),IF(L4="","",TRANSPOSE('IC sans TR'!R6))))) ->  | U4: =IF(AND(($I$1="Tous les tempéraments"),('Intercorr. circ.'!S6=0)),1,IF(AND(($I$1="Sans les ND"),('IC sans ND'!S6=0)),1,IF(AND(($I$1="Sans les TR"),('IC sans TR'!S6=0)),1,IF(AND(($I$1="Sans les ND et les TR"),('IC sans ND et TR'!S6=0)),1,"")))) -> 
A5: =$N$32+'Calculs cachés'!A32 -> 3 | B5: =IF($I$1="Tous les tempéraments",IF(VLOOKUP('Calculs cachés'!A32+$V$2,'Intercorr. circ.'!$A$4:$S$6968,19)>Présentation!$N$1,"",VLOOKUP('Calculs cachés'!A32+$V$2,'Intercorr. circ.'!$A$4:$S$6968,19)),IF($I$1="Sans les ND",IF(VLOOKUP('Calculs cachés'!A32+$V$2,'IC sans ND'!$A$4:$S$3886,19)>Présentation!$N$1,"",VLOOKUP('Calculs cachés'!A32+$V$2,'IC sans ND'!$A$4:$S$3886,19)),IF($I$1="Sans les ND et les TR",IF(VLOOKUP('Calculs cachés'!A32+$V$2,'IC sans ND et TR'!$A$4:$S$1943,19)>Présentation!$N$1,"",VLOOKUP('Calculs cachés'!A32+$V$2,'IC sans ND et TR'!$A$4:$S$1943,19)),IF(VLOOKUP('Calculs cachés'!A32+$V$2,'IC sans TR'!$A$4:$S$3485,19)>Présentation!$N$1,"",VLOOKUP('Calculs cachés'!A32+$V$2,'IC sans TR'!$A$4:$S$3485,19))))) -> 1.083333333 | C5: =IF($I$1="Tous les tempéraments",IF(B5<=Présentation!$N$1,VLOOKUP('Calculs cachés'!A32+$V$2,'Intercorr. circ.'!$A$4:$S$6968,2),""),IF($I$1="Sans les ND",IF(B5<=Présentation!$N$1,VLOOKUP('Calculs cachés'!A32+$V$2,'IC sans ND'!$A$4:$S$3886,2),""),IF($I$1="Sans les ND et les TR",IF(B5<=Présentation!$N$1,VLOOKUP('Calculs cachés'!A32+$V$2,'IC sans ND et TR'!$A$4:$S$1943,2),""),IF(B5<=Présentation!$N$1,VLOOKUP('Calculs cachés'!A32+$V$2,'IC sans TR'!$A$4:$S$3485,2),"")))) -> Francis Battements égaux - Sib | D5: =IF($I$1="Tous les tempéraments",IF(C5="","",VLOOKUP('Calculs cachés'!A32+$V$2,'Intercorr. circ.'!$A$4:$S$6968,18)),IF($I$1="Sans les ND",IF(C5="","",VLOOKUP('Calculs cachés'!A32+$V$2,'IC sans ND'!$A$4:$S$3886,18)),IF($I$1="Sans Les ND et les TR",IF(C5="","",VLOOKUP('Calculs cachés'!A32+$V$2,'IC sans ND et TR'!$A$4:$S$1943,18)),IF(C5="","",VLOOKUP('Calculs cachés'!A32+$V$2,'IC sans TR'!$A$4:$S$3485,18))))) -> 2005 | L5: =IF($I$1="Tous les tempéraments",IF('Intercorr. circ.'!B6=$F$1&" - "&'Calculs cachés'!$E$64,"",IF('Intercorr. circ.'!S6=0,TRANSPOSE('Intercorr. circ.'!B6),"")),IF($I$1="Sans les ND",IF('IC sans ND'!B7=$F$1&" - "&'Calculs cachés'!$E$64,"",IF('IC sans ND'!S7=0,TRANSPOSE('IC sans ND'!B7),"")),IF($I$1="Sans les ND et les TR",IF('IC sans ND et TR'!B7=$F$1&" - "&'Calculs cachés'!$E$64,"",IF('IC sans ND et TR'!S7=0,TRANSPOSE('IC sans ND et TR'!B7),"")),IF('IC sans TR'!B7=$F$1&" - "&'Calculs cachés'!$E$64,"",IF('IC sans TR'!S7=0,TRANSPOSE('IC sans TR'!B7),""))))) ->  | O5: =IF($I$1="Tous les tempéraments",IF(L5="","",TRANSPOSE('Intercorr. circ.'!R7)),IF($I$1="Sans les ND",IF(L5="","",TRANSPOSE('IC sans ND'!R7)),IF($I$1="Sans les Nd et les TR",IF(L5="","",TRANSPOSE('IC sans ND et TR'!R7)),IF(L5="","",TRANSPOSE('IC sans TR'!R7))))) ->  | U5: =IF(AND(($I$1="Tous les tempéraments"),('Intercorr. circ.'!S7=0)),1,IF(AND(($I$1="Sans les ND"),('IC sans ND'!S7=0)),1,IF(AND(($I$1="Sans les TR"),('IC sans TR'!S7=0)),1,IF(AND(($I$1="Sans les ND et les TR"),('IC sans ND et TR'!S7=0)),1,"")))) -> 
A6: =$N$32+'Calculs cachés'!A33 -> 4 | B6: =IF($I$1="Tous les tempéraments",IF(VLOOKUP('Calculs cachés'!A33+$V$2,'Intercorr. circ.'!$A$4:$S$6968,19)>Présentation!$N$1,"",VLOOKUP('Calculs cachés'!A33+$V$2,'Intercorr. circ.'!$A$4:$S$6968,19)),IF($I$1="Sans les ND",IF(VLOOKUP('Calculs cachés'!A33+$V$2,'IC sans ND'!$A$4:$S$3886,19)>Présentation!$N$1,"",VLOOKUP('Calculs cachés'!A33+$V$2,'IC sans ND'!$A$4:$S$3886,19)),IF($I$1="Sans les ND et les TR",IF(VLOOKUP('Calculs cachés'!A33+$V$2,'IC sans ND et TR'!$A$4:$S$1943,19)>Présentation!$N$1,"",VLOOKUP('Calculs cachés'!A33+$V$2,'IC sans ND et TR'!$A$4:$S$1943,19)),IF(VLOOKUP('Calculs cachés'!A33+$V$2,'IC sans TR'!$A$4:$S$3485,19)>Présentation!$N$1,"",VLOOKUP('Calculs cachés'!A33+$V$2,'IC sans TR'!$A$4:$S$3485,19))))) -> 1.083333333 | C6: =IF($I$1="Tous les tempéraments",IF(B6<=Présentation!$N$1,VLOOKUP('Calculs cachés'!A33+$V$2,'Intercorr. circ.'!$A$4:$S$6968,2),""),IF($I$1="Sans les ND",IF(B6<=Présentation!$N$1,VLOOKUP('Calculs cachés'!A33+$V$2,'IC sans ND'!$A$4:$S$3886,2),""),IF($I$1="Sans les ND et les TR",IF(B6<=Présentation!$N$1,VLOOKUP('Calculs cachés'!A33+$V$2,'IC sans ND et TR'!$A$4:$S$1943,2),""),IF(B6<=Présentation!$N$1,VLOOKUP('Calculs cachés'!A33+$V$2,'IC sans TR'!$A$4:$S$3485,2),"")))) -> Francis 1/4 sc - Do | D6: =IF($I$1="Tous les tempéraments",IF(C6="","",VLOOKUP('Calculs cachés'!A33+$V$2,'Intercorr. circ.'!$A$4:$S$6968,18)),IF($I$1="Sans les ND",IF(C6="","",VLOOKUP('Calculs cachés'!A33+$V$2,'IC sans ND'!$A$4:$S$3886,18)),IF($I$1="Sans Les ND et les TR",IF(C6="","",VLOOKUP('Calculs cachés'!A33+$V$2,'IC sans ND et TR'!$A$4:$S$1943,18)),IF(C6="","",VLOOKUP('Calculs cachés'!A33+$V$2,'IC sans TR'!$A$4:$S$3485,18))))) -> 2005 | L6: =IF($I$1="Tous les tempéraments",IF('Intercorr. circ.'!B7=$F$1&" - "&'Calculs cachés'!$E$64,"",IF('Intercorr. circ.'!S7=0,TRANSPOSE('Intercorr. circ.'!B7),"")),IF($I$1="Sans les ND",IF('IC sans ND'!B8=$F$1&" - "&'Calculs cachés'!$E$64,"",IF('IC sans ND'!S8=0,TRANSPOSE('IC sans ND'!B8),"")),IF($I$1="Sans les ND et les TR",IF('IC sans ND et TR'!B8=$F$1&" - "&'Calculs cachés'!$E$64,"",IF('IC sans ND et TR'!S8=0,TRANSPOSE('IC sans ND et TR'!B8),"")),IF('IC sans TR'!B8=$F$1&" - "&'Calculs cachés'!$E$64,"",IF('IC sans TR'!S8=0,TRANSPOSE('IC sans TR'!B8),""))))) ->  | O6: =IF($I$1="Tous les tempéraments",IF(L6="","",TRANSPOSE('Intercorr. circ.'!R8)),IF($I$1="Sans les ND",IF(L6="","",TRANSPOSE('IC sans ND'!R8)),IF($I$1="Sans les Nd et les TR",IF(L6="","",TRANSPOSE('IC sans ND et TR'!R8)),IF(L6="","",TRANSPOSE('IC sans TR'!R8))))) ->  | U6: =IF(AND(($I$1="Tous les tempéraments"),('Intercorr. circ.'!S8=0)),1,IF(AND(($I$1="Sans les ND"),('IC sans ND'!S8=0)),1,IF(AND(($I$1="Sans les TR"),('IC sans TR'!S8=0)),1,IF(AND(($I$1="Sans les ND et les TR"),('IC sans ND et TR'!S8=0)),1,"")))) -> 
A7: =$N$32+'Calculs cachés'!A34 -> 5 | B7: =IF($I$1="Tous les tempéraments",IF(VLOOKUP('Calculs cachés'!A34+$V$2,'Intercorr. circ.'!$A$4:$S$6968,19)>Présentation!$N$1,"",VLOOKUP('Calculs cachés'!A34+$V$2,'Intercorr. circ.'!$A$4:$S$6968,19)),IF($I$1="Sans les ND",IF(VLOOKUP('Calculs cachés'!A34+$V$2,'IC sans ND'!$A$4:$S$3886,19)>Présentation!$N$1,"",VLOOKUP('Calculs cachés'!A34+$V$2,'IC sans ND'!$A$4:$S$3886,19)),IF($I$1="Sans les ND et les TR",IF(VLOOKUP('Calculs cachés'!A34+$V$2,'IC sans ND et TR'!$A$4:$S$1943,19)>Présentation!$N$1,"",VLOOKUP('Calculs cachés'!A34+$V$2,'IC sans ND et TR'!$A$4:$S$1943,19)),IF(VLOOKUP('Calculs cachés'!A34+$V$2,'IC sans TR'!$A$4:$S$3485,19)>Présentation!$N$1,"",VLOOKUP('Calculs cachés'!A34+$V$2,'IC sans TR'!$A$4:$S$3485,19))))) -> 1.083333333 | C7: =IF($I$1="Tous les tempéraments",IF(B7<=Présentation!$N$1,VLOOKUP('Calculs cachés'!A34+$V$2,'Intercorr. circ.'!$A$4:$S$6968,2),""),IF($I$1="Sans les ND",IF(B7<=Présentation!$N$1,VLOOKUP('Calculs cachés'!A34+$V$2,'IC sans ND'!$A$4:$S$3886,2),""),IF($I$1="Sans les ND et les TR",IF(B7<=Présentation!$N$1,VLOOKUP('Calculs cachés'!A34+$V$2,'IC sans ND et TR'!$A$4:$S$1943,2),""),IF(B7<=Présentation!$N$1,VLOOKUP('Calculs cachés'!A34+$V$2,'IC sans TR'!$A$4:$S$3485,2),"")))) -> Lindley 2006 1/7 sc - Do | D7: =IF($I$1="Tous les tempéraments",IF(C7="","",VLOOKUP('Calculs cachés'!A34+$V$2,'Intercorr. circ.'!$A$4:$S$6968,18)),IF($I$1="Sans les ND",IF(C7="","",VLOOKUP('Calculs cachés'!A34+$V$2,'IC sans ND'!$A$4:$S$3886,18)),IF($I$1="Sans Les ND et les TR",IF(C7="","",VLOOKUP('Calculs cachés'!A34+$V$2,'IC sans ND et TR'!$A$4:$S$1943,18)),IF(C7="","",VLOOKUP('Calculs cachés'!A34+$V$2,'IC sans TR'!$A$4:$S$3485,18))))) -> 2006 | L7: =IF($I$1="Tous les tempéraments",IF('Intercorr. circ.'!B8=$F$1&" - "&'Calculs cachés'!$E$64,"",IF('Intercorr. circ.'!S8=0,TRANSPOSE('Intercorr. circ.'!B8),"")),IF($I$1="Sans les ND",IF('IC sans ND'!B9=$F$1&" - "&'Calculs cachés'!$E$64,"",IF('IC sans ND'!S9=0,TRANSPOSE('IC sans ND'!B9),"")),IF($I$1="Sans les ND et les TR",IF('IC sans ND et TR'!B9=$F$1&" - "&'Calculs cachés'!$E$64,"",IF('IC sans ND et TR'!S9=0,TRANSPOSE('IC sans ND et TR'!B9),"")),IF('IC sans TR'!B9=$F$1&" - "&'Calculs cachés'!$E$64,"",IF('IC sans TR'!S9=0,TRANSPOSE('IC sans TR'!B9),""))))) ->  | O7: =IF($I$1="Tous les tempéraments",IF(L7="","",TRANSPOSE('Intercorr. circ.'!R9)),IF($I$1="Sans les ND",IF(L7="","",TRANSPOSE('IC sans ND'!R9)),IF($I$1="Sans les Nd et les TR",IF(L7="","",TRANSPOSE('IC sans ND et TR'!R9)),IF(L7="","",TRANSPOSE('IC sans TR'!R9))))) ->  | U7: =IF(AND(($I$1="Tous les tempéraments"),('Intercorr. circ.'!S9=0)),1,IF(AND(($I$1="Sans les ND"),('IC sans ND'!S9=0)),1,IF(AND(($I$1="Sans les TR"),('IC sans TR'!S9=0)),1,IF(AND(($I$1="Sans les ND et les TR"),('IC sans ND et TR'!S9=0)),1,"")))) -> 
A8: =$N$32+'Calculs cachés'!A35 -> 6 | B8: =IF($I$1="Tous les tempéraments",IF(VLOOKUP('Calculs cachés'!A35+$V$2,'Intercorr. circ.'!$A$4:$S$6968,19)>Présentation!$N$1,"",VLOOKUP('Calculs cachés'!A35+$V$2,'Intercorr. circ.'!$A$4:$S$6968,19)),IF($I$1="Sans les ND",IF(VLOOKUP('Calculs cachés'!A35+$V$2,'IC sans ND'!$A$4:$S$3886,19)>Présentation!$N$1,"",VLOOKUP('Calculs cachés'!A35+$V$2,'IC sans ND'!$A$4:$S$3886,19)),IF($I$1="Sans les ND et les TR",IF(VLOOKUP('Calculs cachés'!A35+$V$2,'IC sans ND et TR'!$A$4:$S$1943,19)>Présentation!$N$1,"",VLOOKUP('Calculs cachés'!A35+$V$2,'IC sans ND et TR'!$A$4:$S$1943,19)),IF(VLOOKUP('Calculs cachés'!A35+$V$2,'IC sans TR'!$A$4:$S$3485,19)>Présentation!$N$1,"",VLOOKUP('Calculs cachés'!A35+$V$2,'IC sans TR'!$A$4:$S$3485,19))))) -> 1.083333333 | C8: =IF($I$1="Tous les tempéraments",IF(B8<=Présentation!$N$1,VLOOKUP('Calculs cachés'!A35+$V$2,'Intercorr. circ.'!$A$4:$S$6968,2),""),IF($I$1="Sans les ND",IF(B8<=Présentation!$N$1,VLOOKUP('Calculs cachés'!A35+$V$2,'IC sans ND'!$A$4:$S$3886,2),""),IF($I$1="Sans les ND et les TR",IF(B8<=Présentation!$N$1,VLOOKUP('Calculs cachés'!A35+$V$2,'IC sans ND et TR'!$A$4:$S$1943,2),""),IF(B8<=Présentation!$N$1,VLOOKUP('Calculs cachés'!A35+$V$2,'IC sans TR'!$A$4:$S$3485,2),"")))) -> Zapf - Sib | D8: =IF($I$1="Tous les tempéraments",IF(C8="","",VLOOKUP('Calculs cachés'!A35+$V$2,'Intercorr. circ.'!$A$4:$S$6968,18)),IF($I$1="Sans les ND",IF(C8="","",VLOOKUP('Calculs cachés'!A35+$V$2,'IC sans ND'!$A$4:$S$3886,18)),IF($I$1="Sans Les ND et les TR",IF(C8="","",VLOOKUP('Calculs cachés'!A35+$V$2,'IC sans ND et TR'!$A$4:$S$1943,18)),IF(C8="","",VLOOKUP('Calculs cachés'!A35+$V$2,'IC sans TR'!$A$4:$S$3485,18))))) -> 2001 | L8: =IF($I$1="Tous les tempéraments",IF('Intercorr. circ.'!B9=$F$1&" - "&'Calculs cachés'!$E$64,"",IF('Intercorr. circ.'!S9=0,TRANSPOSE('Intercorr. circ.'!B9),"")),IF($I$1="Sans les ND",IF('IC sans ND'!B10=$F$1&" - "&'Calculs cachés'!$E$64,"",IF('IC sans ND'!S10=0,TRANSPOSE('IC sans ND'!B10),"")),IF($I$1="Sans les ND et les TR",IF('IC sans ND et TR'!B10=$F$1&" - "&'Calculs cachés'!$E$64,"",IF('IC sans ND et TR'!S10=0,TRANSPOSE('IC sans ND et TR'!B10),"")),IF('IC sans TR'!B10=$F$1&" - "&'Calculs cachés'!$E$64,"",IF('IC sans TR'!S10=0,TRANSPOSE('IC sans TR'!B10),""))))) ->  | O8: =IF($I$1="Tous les tempéraments",IF(L8="","",TRANSPOSE('Intercorr. circ.'!R10)),IF($I$1="Sans les ND",IF(L8="","",TRANSPOSE('IC sans ND'!R10)),IF($I$1="Sans les Nd et les TR",IF(L8="","",TRANSPOSE('IC sans ND et TR'!R10)),IF(L8="","",TRANSPOSE('IC sans TR'!R10))))) ->  | U8: =IF(AND(($I$1="Tous les tempéraments"),('Intercorr. circ.'!S10=0)),1,IF(AND(($I$1="Sans les ND"),('IC sans ND'!S10=0)),1,IF(AND(($I$1="Sans les TR"),('IC sans TR'!S10=0)),1,IF(AND(($I$1="Sans les ND et les TR"),('IC sans ND et TR'!S10=0)),1,"")))) -> 
A9: =$N$32+'Calculs cachés'!A36 -> 7 | B9: =IF($I$1="Tous les tempéraments",IF(VLOOKUP('Calculs cachés'!A36+$V$2,'Intercorr. circ.'!$A$4:$S$6968,19)>Présentation!$N$1,"",VLOOKUP('Calculs cachés'!A36+$V$2,'Intercorr. circ.'!$A$4:$S$6968,19)),IF($I$1="Sans les ND",IF(VLOOKUP('Calculs cachés'!A36+$V$2,'IC sans ND'!$A$4:$S$3886,19)>Présentation!$N$1,"",VLOOKUP('Calculs cachés'!A36+$V$2,'IC sans ND'!$A$4:$S$3886,19)),IF($I$1="Sans les ND et les TR",IF(VLOOKUP('Calculs cachés'!A36+$V$2,'IC sans ND et TR'!$A$4:$S$1943,19)>Présentation!$N$1,"",VLOOKUP('Calculs cachés'!A36+$V$2,'IC sans ND et TR'!$A$4:$S$1943,19)),IF(VLOOKUP('Calculs cachés'!A36+$V$2,'IC sans TR'!$A$4:$S$3485,19)>Présentation!$N$1,"",VLOOKUP('Calculs cachés'!A36+$V$2,'IC sans TR'!$A$4:$S$3485,19))))) -> 1.116666667 | C9: =IF($I$1="Tous les tempéraments",IF(B9<=Présentation!$N$1,VLOOKUP('Calculs cachés'!A36+$V$2,'Intercorr. circ.'!$A$4:$S$6968,2),""),IF($I$1="Sans les ND",IF(B9<=Présentation!$N$1,VLOOKUP('Calculs cachés'!A36+$V$2,'IC sans ND'!$A$4:$S$3886,2),""),IF($I$1="Sans les ND et les TR",IF(B9<=Présentation!$N$1,VLOOKUP('Calculs cachés'!A36+$V$2,'IC sans ND et TR'!$A$4:$S$1943,2),""),IF(B9<=Présentation!$N$1,VLOOKUP('Calculs cachés'!A36+$V$2,'IC sans TR'!$A$4:$S$3485,2),"")))) -> Sparshuh-Zapf - Sib | D9: =IF($I$1="Tous les tempéraments",IF(C9="","",VLOOKUP('Calculs cachés'!A36+$V$2,'Intercorr. circ.'!$A$4:$S$6968,18)),IF($I$1="Sans les ND",IF(C9="","",VLOOKUP('Calculs cachés'!A36+$V$2,'IC sans ND'!$A$4:$S$3886,18)),IF($I$1="Sans Les ND et les TR",IF(C9="","",VLOOKUP('Calculs cachés'!A36+$V$2,'IC sans ND et TR'!$A$4:$S$1943,18)),IF(C9="","",VLOOKUP('Calculs cachés'!A36+$V$2,'IC sans TR'!$A$4:$S$3485,18))))) -> 2001 | L9: =IF($I$1="Tous les tempéraments",IF('Intercorr. circ.'!B10=$F$1&" - "&'Calculs cachés'!$E$64,"",IF('Intercorr. circ.'!S10=0,TRANSPOSE('Intercorr. circ.'!B10),"")),IF($I$1="Sans les ND",IF('IC sans ND'!B11=$F$1&" - "&'Calculs cachés'!$E$64,"",IF('IC sans ND'!S11=0,TRANSPOSE('IC sans ND'!B11),"")),IF($I$1="Sans les ND et les TR",IF('IC sans ND et TR'!B11=$F$1&" - "&'Calculs cachés'!$E$64,"",IF('IC sans ND et TR'!S11=0,TRANSPOSE('IC sans ND et TR'!B11),"")),IF('IC sans TR'!B11=$F$1&" - "&'Calculs cachés'!$E$64,"",IF('IC sans TR'!S11=0,TRANSPOSE('IC sans TR'!B11),""))))) ->  | O9: =IF($I$1="Tous les tempéraments",IF(L9="","",TRANSPOSE('Intercorr. circ.'!R11)),IF($I$1="Sans les ND",IF(L9="","",TRANSPOSE('IC sans ND'!R11)),IF($I$1="Sans les Nd et les TR",IF(L9="","",TRANSPOSE('IC sans ND et TR'!R11)),IF(L9="","",TRANSPOSE('IC sans TR'!R11))))) ->  | U9: =IF(AND(($I$1="Tous les tempéraments"),('Intercorr. circ.'!S11=0)),1,IF(AND(($I$1="Sans les ND"),('IC sans ND'!S11=0)),1,IF(AND(($I$1="Sans les TR"),('IC sans TR'!S11=0)),1,IF(AND(($I$1="Sans les ND et les TR"),('IC sans ND et TR'!S11=0)),1,"")))) -> 
A10: =$N$32+'Calculs cachés'!A37 -> 8 | B10: =IF($I$1="Tous les tempéraments",IF(VLOOKUP('Calculs cachés'!A37+$V$2,'Intercorr. circ.'!$A$4:$S$6968,19)>Présentation!$N$1,"",VLOOKUP('Calculs cachés'!A37+$V$2,'Intercorr. circ.'!$A$4:$S$6968,19)),IF($I$1="Sans les ND",IF(VLOOKUP('Calculs cachés'!A37+$V$2,'IC sans ND'!$A$4:$S$3886,19)>Présentation!$N$1,"",VLOOKUP('Calculs cachés'!A37+$V$2,'IC sans ND'!$A$4:$S$3886,19)),IF($I$1="Sans les ND et les TR",IF(VLOOKUP('Calculs cachés'!A37+$V$2,'IC sans ND et TR'!$A$4:$S$1943,19)>Présentation!$N$1,"",VLOOKUP('Calculs cachés'!A37+$V$2,'IC sans ND et TR'!$A$4:$S$1943,19)),IF(VLOOKUP('Calculs cachés'!A37+$V$2,'IC sans TR'!$A$4:$S$3485,19)>Présentation!$N$1,"",VLOOKUP('Calculs cachés'!A37+$V$2,'IC sans TR'!$A$4:$S$3485,19))))) -> 1.166666667 | C10: =IF($I$1="Tous les tempéraments",IF(B10<=Présentation!$N$1,VLOOKUP('Calculs cachés'!A37+$V$2,'Intercorr. circ.'!$A$4:$S$6968,2),""),IF($I$1="Sans les ND",IF(B10<=Présentation!$N$1,VLOOKUP('Calculs cachés'!A37+$V$2,'IC sans ND'!$A$4:$S$3886,2),""),IF($I$1="Sans les ND et les TR",IF(B10<=Présentation!$N$1,VLOOKUP('Calculs cachés'!A37+$V$2,'IC sans ND et TR'!$A$4:$S$1943,2),""),IF(B10<=Présentation!$N$1,VLOOKUP('Calculs cachés'!A37+$V$2,'IC sans TR'!$A$4:$S$3485,2),"")))) -> Erdos Jacques 1/7cs - Ré | D10: =IF($I$1="Tous les tempéraments",IF(C10="","",VLOOKUP('Calculs cachés'!A37+$V$2,'Intercorr. circ.'!$A$4:$S$6968,18)),IF($I$1="Sans les ND",IF(C10="","",VLOOKUP('Calculs cachés'!A37+$V$2,'IC sans ND'!$A$4:$S$3886,18)),IF($I$1="Sans Les ND et les TR",IF(C10="","",VLOOKUP('Calculs cachés'!A37+$V$2,'IC sans ND et TR'!$A$4:$S$1943,18)),IF(C10="","",VLOOKUP('Calculs cachés'!A37+$V$2,'IC sans TR'!$A$4:$S$3485,18))))) -> 2002 | L10: =IF($I$1="Tous les tempéraments",IF('Intercorr. circ.'!B11=$F$1&" - "&'Calculs cachés'!$E$64,"",IF('Intercorr. circ.'!S11=0,TRANSPOSE('Intercorr. circ.'!B11),"")),IF($I$1="Sans les ND",IF('IC sans ND'!B12=$F$1&" - "&'Calculs cachés'!$E$64,"",IF('IC sans ND'!S12=0,TRANSPOSE('IC sans ND'!B12),"")),IF($I$1="Sans les ND et les TR",IF('IC sans ND et TR'!B12=$F$1&" - "&'Calculs cachés'!$E$64,"",IF('IC sans ND et TR'!S12=0,TRANSPOSE('IC sans ND et TR'!B12),"")),IF('IC sans TR'!B12=$F$1&" - "&'Calculs cachés'!$E$64,"",IF('IC sans TR'!S12=0,TRANSPOSE('IC sans TR'!B12),""))))) ->  | O10: =IF($I$1="Tous les tempéraments",IF(L10="","",TRANSPOSE('Intercorr. circ.'!R12)),IF($I$1="Sans les ND",IF(L10="","",TRANSPOSE('IC sans ND'!R12)),IF($I$1="Sans les Nd et les TR",IF(L10="","",TRANSPOSE('IC sans ND et TR'!R12)),IF(L10="","",TRANSPOSE('IC sans TR'!R12))))) ->  | U10: =IF(AND(($I$1="Tous les tempéraments"),('Intercorr. circ.'!S12=0)),1,IF(AND(($I$1="Sans les ND"),('IC sans ND'!S12=0)),1,IF(AND(($I$1="Sans les TR"),('IC sans TR'!S12=0)),1,IF(AND(($I$1="Sans les ND et les TR"),('IC sans ND et TR'!S12=0)),1,"")))) -> 
A11: =$N$32+'Calculs cachés'!A38 -> 9 | B11: =IF($I$1="Tous les tempéraments",IF(VLOOKUP('Calculs cachés'!A38+$V$2,'Intercorr. circ.'!$A$4:$S$6968,19)>Présentation!$N$1,"",VLOOKUP('Calculs cachés'!A38+$V$2,'Intercorr. circ.'!$A$4:$S$6968,19)),IF($I$1="Sans les ND",IF(VLOOKUP('Calculs cachés'!A38+$V$2,'IC sans ND'!$A$4:$S$3886,19)>Présentation!$N$1,"",VLOOKUP('Calculs cachés'!A38+$V$2,'IC sans ND'!$A$4:$S$3886,19)),IF($I$1="Sans les ND et les TR",IF(VLOOKUP('Calculs cachés'!A38+$V$2,'IC sans ND et TR'!$A$4:$S$1943,19)>Présentation!$N$1,"",VLOOKUP('Calculs cachés'!A38+$V$2,'IC sans ND et TR'!$A$4:$S$1943,19)),IF(VLOOKUP('Calculs cachés'!A38+$V$2,'IC sans TR'!$A$4:$S$3485,19)>Présentation!$N$1,"",VLOOKUP('Calculs cachés'!A38+$V$2,'IC sans TR'!$A$4:$S$3485,19))))) -> 1.166666667 | C11: =IF($I$1="Tous les tempéraments",IF(B11<=Présentation!$N$1,VLOOKUP('Calculs cachés'!A38+$V$2,'Intercorr. circ.'!$A$4:$S$6968,2),""),IF($I$1="Sans les ND",IF(B11<=Présentation!$N$1,VLOOKUP('Calculs cachés'!A38+$V$2,'IC sans ND'!$A$4:$S$3886,2),""),IF($I$1="Sans les ND et les TR",IF(B11<=Présentation!$N$1,VLOOKUP('Calculs cachés'!A38+$V$2,'IC sans ND et TR'!$A$4:$S$1943,2),""),IF(B11<=Présentation!$N$1,VLOOKUP('Calculs cachés'!A38+$V$2,'IC sans TR'!$A$4:$S$3485,2),"")))) -> Lindley "Neidhardt Moyen" - Do | D11: =IF($I$1="Tous les tempéraments",IF(C11="","",VLOOKUP('Calculs cachés'!A38+$V$2,'Intercorr. circ.'!$A$4:$S$6968,18)),IF($I$1="Sans les ND",IF(C11="","",VLOOKUP('Calculs cachés'!A38+$V$2,'IC sans ND'!$A$4:$S$3886,18)),IF($I$1="Sans Les ND et les TR",IF(C11="","",VLOOKUP('Calculs cachés'!A38+$V$2,'IC sans ND et TR'!$A$4:$S$1943,18)),IF(C11="","",VLOOKUP('Calculs cachés'!A38+$V$2,'IC sans TR'!$A$4:$S$3485,18))))) -> 1994 | L11: =IF($I$1="Tous les tempéraments",IF('Intercorr. circ.'!B12=$F$1&" - "&'Calculs cachés'!$E$64,"",IF('Intercorr. circ.'!S12=0,TRANSPOSE('Intercorr. circ.'!B12),"")),IF($I$1="Sans les ND",IF('IC sans ND'!B13=$F$1&" - "&'Calculs cachés'!$E$64,"",IF('IC sans ND'!S13=0,TRANSPOSE('IC sans ND'!B13),"")),IF($I$1="Sans les ND et les TR",IF('IC sans ND et TR'!B13=$F$1&" - "&'Calculs cachés'!$E$64,"",IF('IC sans ND et TR'!S13=0,TRANSPOSE('IC sans ND et TR'!B13),"")),IF('IC sans TR'!B13=$F$1&" - "&'Calculs cachés'!$E$64,"",IF('IC sans TR'!S13=0,TRANSPOSE('IC sans TR'!B13),""))))) ->  | O11: =IF($I$1="Tous les tempéraments",IF(L11="","",TRANSPOSE('Intercorr. circ.'!R13)),IF($I$1="Sans les ND",IF(L11="","",TRANSPOSE('IC sans ND'!R13)),IF($I$1="Sans les Nd et les TR",IF(L11="","",TRANSPOSE('IC sans ND et TR'!R13)),IF(L11="","",TRANSPOSE('IC sans TR'!R13))))) ->  | U11: =IF(AND(($I$1="Tous les tempéraments"),('Intercorr. circ.'!S13=0)),1,IF(AND(($I$1="Sans les ND"),('IC sans ND'!S13=0)),1,IF(AND(($I$1="Sans les TR"),('IC sans TR'!S13=0)),1,IF(AND(($I$1="Sans les ND et les TR"),('IC sans ND et TR'!S13=0)),1,"")))) -> 
A12: =$N$32+'Calculs cachés'!A39 -> 10 | B12: =IF($I$1="Tous les tempéraments",IF(VLOOKUP('Calculs cachés'!A39+$V$2,'Intercorr. circ.'!$A$4:$S$6968,19)>Présentation!$N$1,"",VLOOKUP('Calculs cachés'!A39+$V$2,'Intercorr. circ.'!$A$4:$S$6968,19)),IF($I$1="Sans les ND",IF(VLOOKUP('Calculs cachés'!A39+$V$2,'IC sans ND'!$A$4:$S$3886,19)>Présentation!$N$1,"",VLOOKUP('Calculs cachés'!A39+$V$2,'IC sans ND'!$A$4:$S$3886,19)),IF($I$1="Sans les ND et les TR",IF(VLOOKUP('Calculs cachés'!A39+$V$2,'IC sans ND et TR'!$A$4:$S$1943,19)>Présentation!$N$1,"",VLOOKUP('Calculs cachés'!A39+$V$2,'IC sans ND et TR'!$A$4:$S$1943,19)),IF(VLOOKUP('Calculs cachés'!A39+$V$2,'IC sans TR'!$A$4:$S$3485,19)>Présentation!$N$1,"",VLOOKUP('Calculs cachés'!A39+$V$2,'IC sans TR'!$A$4:$S$3485,19))))) -> 1.233333333 | C12: =IF($I$1="Tous les tempéraments",IF(B12<=Présentation!$N$1,VLOOKUP('Calculs cachés'!A39+$V$2,'Intercorr. circ.'!$A$4:$S$6968,2),""),IF($I$1="Sans les ND",IF(B12<=Présentation!$N$1,VLOOKUP('Calculs cachés'!A39+$V$2,'IC sans ND'!$A$4:$S$3886,2),""),IF($I$1="Sans les ND et les TR",IF(B12<=Présentation!$N$1,VLOOKUP('Calculs cachés'!A39+$V$2,'IC sans ND et TR'!$A$4:$S$1943,2),""),IF(B12<=Présentation!$N$1,VLOOKUP('Calculs cachés'!A39+$V$2,'IC sans TR'!$A$4:$S$3485,2),"")))) -> Maunder « c » 1/7 et 1/4 cp - Fa | D12: =IF($I$1="Tous les tempéraments",IF(C12="","",VLOOKUP('Calculs cachés'!A39+$V$2,'Intercorr. circ.'!$A$4:$S$6968,18)),IF($I$1="Sans les ND",IF(C12="","",VLOOKUP('Calculs cachés'!A39+$V$2,'IC sans ND'!$A$4:$S$3886,18)),IF($I$1="Sans Les ND et les TR",IF(C12="","",VLOOKUP('Calculs cachés'!A39+$V$2,'IC sans ND et TR'!$A$4:$S$1943,18)),IF(C12="","",VLOOKUP('Calculs cachés'!A39+$V$2,'IC sans TR'!$A$4:$S$3485,18))))) -> 2005 | L12: =IF($I$1="Tous les tempéraments",IF('Intercorr. circ.'!B13=$F$1&" - "&'Calculs cachés'!$E$64,"",IF('Intercorr. circ.'!S13=0,TRANSPOSE('Intercorr. circ.'!B13),"")),IF($I$1="Sans les ND",IF('IC sans ND'!B14=$F$1&" - "&'Calculs cachés'!$E$64,"",IF('IC sans ND'!S14=0,TRANSPOSE('IC sans ND'!B14),"")),IF($I$1="Sans les ND et les TR",IF('IC sans ND et TR'!B14=$F$1&" - "&'Calculs cachés'!$E$64,"",IF('IC sans ND et TR'!S14=0,TRANSPOSE('IC sans ND et TR'!B14),"")),IF('IC sans TR'!B14=$F$1&" - "&'Calculs cachés'!$E$64,"",IF('IC sans TR'!S14=0,TRANSPOSE('IC sans TR'!B14),""))))) ->  | O12: =IF($I$1="Tous les tempéraments",IF(L12="","",TRANSPOSE('Intercorr. circ.'!R14)),IF($I$1="Sans les ND",IF(L12="","",TRANSPOSE('IC sans ND'!R14)),IF($I$1="Sans les Nd et les TR",IF(L12="","",TRANSPOSE('IC sans ND et TR'!R14)),IF(L12="","",TRANSPOSE('IC sans TR'!R14))))) ->  | U12: =IF(AND(($I$1="Tous les tempéraments"),('Intercorr. circ.'!S14=0)),1,IF(AND(($I$1="Sans les ND"),('IC sans ND'!S14=0)),1,IF(AND(($I$1="Sans les TR"),('IC sans TR'!S14=0)),1,IF(AND(($I$1="Sans les ND et les TR"),('IC sans ND et TR'!S14=0)),1,"")))) -> 
A13: =$N$32+'Calculs cachés'!A40 -> 11 | B13: =IF($I$1="Tous les tempéraments",IF(VLOOKUP('Calculs cachés'!A40+$V$2,'Intercorr. circ.'!$A$4:$S$6968,19)>Présentation!$N$1,"",VLOOKUP('Calculs cachés'!A40+$V$2,'Intercorr. circ.'!$A$4:$S$6968,19)),IF($I$1="Sans les ND",IF(VLOOKUP('Calculs cachés'!A40+$V$2,'IC sans ND'!$A$4:$S$3886,19)>Présentation!$N$1,"",VLOOKUP('Calculs cachés'!A40+$V$2,'IC sans ND'!$A$4:$S$3886,19)),IF($I$1="Sans les ND et les TR",IF(VLOOKUP('Calculs cachés'!A40+$V$2,'IC sans ND et TR'!$A$4:$S$1943,19)>Présentation!$N$1,"",VLOOKUP('Calculs cachés'!A40+$V$2,'IC sans ND et TR'!$A$4:$S$1943,19)),IF(VLOOKUP('Calculs cachés'!A40+$V$2,'IC sans TR'!$A$4:$S$3485,19)>Présentation!$N$1,"",VLOOKUP('Calculs cachés'!A40+$V$2,'IC sans TR'!$A$4:$S$3485,19))))) -> 1.25 | C13: =IF($I$1="Tous les tempéraments",IF(B13<=Présentation!$N$1,VLOOKUP('Calculs cachés'!A40+$V$2,'Intercorr. circ.'!$A$4:$S$6968,2),""),IF($I$1="Sans les ND",IF(B13<=Présentation!$N$1,VLOOKUP('Calculs cachés'!A40+$V$2,'IC sans ND'!$A$4:$S$3886,2),""),IF($I$1="Sans les ND et les TR",IF(B13<=Présentation!$N$1,VLOOKUP('Calculs cachés'!A40+$V$2,'IC sans ND et TR'!$A$4:$S$1943,2),""),IF(B13<=Présentation!$N$1,VLOOKUP('Calculs cachés'!A40+$V$2,'IC sans TR'!$A$4:$S$3485,2),"")))) -> Allain-Dupré - Fa | D13: =IF($I$1="Tous les tempéraments",IF(C13="","",VLOOKUP('Calculs cachés'!A40+$V$2,'Intercorr. circ.'!$A$4:$S$6968,18)),IF($I$1="Sans les ND",IF(C13="","",VLOOKUP('Calculs cachés'!A40+$V$2,'IC sans ND'!$A$4:$S$3886,18)),IF($I$1="Sans Les ND et les TR",IF(C13="","",VLOOKUP('Calculs cachés'!A40+$V$2,'IC sans ND et TR'!$A$4:$S$1943,18)),IF(C13="","",VLOOKUP('Calculs cachés'!A40+$V$2,'IC sans TR'!$A$4:$S$3485,18))))) -> 2005 | L13: =IF($I$1="Tous les tempéraments",IF('Intercorr. circ.'!B14=$F$1&" - "&'Calculs cachés'!$E$64,"",IF('Intercorr. circ.'!S14=0,TRANSPOSE('Intercorr. circ.'!B14),"")),IF($I$1="Sans les ND",IF('IC sans ND'!B15=$F$1&" - "&'Calculs cachés'!$E$64,"",IF('IC sans ND'!S15=0,TRANSPOSE('IC sans ND'!B15),"")),IF($I$1="Sans les ND et les TR",IF('IC sans ND et TR'!B15=$F$1&" - "&'Calculs cachés'!$E$64,"",IF('IC sans ND et TR'!S15=0,TRANSPOSE('IC sans ND et TR'!B15),"")),IF('IC sans TR'!B15=$F$1&" - "&'Calculs cachés'!$E$64,"",IF('IC sans TR'!S15=0,TRANSPOSE('IC sans TR'!B15),""))))) ->  | O13: =IF($I$1="Tous les tempéraments",IF(L13="","",TRANSPOSE('Intercorr. circ.'!R15)),IF($I$1="Sans les ND",IF(L13="","",TRANSPOSE('IC sans ND'!R15)),IF($I$1="Sans les Nd et les TR",IF(L13="","",TRANSPOSE('IC sans ND et TR'!R15)),IF(L13="","",TRANSPOSE('IC sans TR'!R15))))) ->  | U13: =IF(AND(($I$1="Tous les tempéraments"),('Intercorr. circ.'!S15=0)),1,IF(AND(($I$1="Sans les ND"),('IC sans ND'!S15=0)),1,IF(AND(($I$1="Sans les TR"),('IC sans TR'!S15=0)),1,IF(AND(($I$1="Sans les ND et les TR"),('IC sans ND et TR'!S15=0)),1,"")))) -> 
A14: =$N$32+'Calculs cachés'!A41 -> 12 | B14: =IF($I$1="Tous les tempéraments",IF(VLOOKUP('Calculs cachés'!A41+$V$2,'Intercorr. circ.'!$A$4:$S$6968,19)>Présentation!$N$1,"",VLOOKUP('Calculs cachés'!A41+$V$2,'Intercorr. circ.'!$A$4:$S$6968,19)),IF($I$1="Sans les ND",IF(VLOOKUP('Calculs cachés'!A41+$V$2,'IC sans ND'!$A$4:$S$3886,19)>Présentation!$N$1,"",VLOOKUP('Calculs cachés'!A41+$V$2,'IC sans ND'!$A$4:$S$3886,19)),IF($I$1="Sans les ND et les TR",IF(VLOOKUP('Calculs cachés'!A41+$V$2,'IC sans ND et TR'!$A$4:$S$1943,19)>Présentation!$N$1,"",VLOOKUP('Calculs cachés'!A41+$V$2,'IC sans ND et TR'!$A$4:$S$1943,19)),IF(VLOOKUP('Calculs cachés'!A41+$V$2,'IC sans TR'!$A$4:$S$3485,19)>Présentation!$N$1,"",VLOOKUP('Calculs cachés'!A41+$V$2,'IC sans TR'!$A$4:$S$3485,19))))) -> 1.25 | C14: =IF($I$1="Tous les tempéraments",IF(B14<=Présentation!$N$1,VLOOKUP('Calculs cachés'!A41+$V$2,'Intercorr. circ.'!$A$4:$S$6968,2),""),IF($I$1="Sans les ND",IF(B14<=Présentation!$N$1,VLOOKUP('Calculs cachés'!A41+$V$2,'IC sans ND'!$A$4:$S$3886,2),""),IF($I$1="Sans les ND et les TR",IF(B14<=Présentation!$N$1,VLOOKUP('Calculs cachés'!A41+$V$2,'IC sans ND et TR'!$A$4:$S$1943,2),""),IF(B14<=Présentation!$N$1,VLOOKUP('Calculs cachés'!A41+$V$2,'IC sans TR'!$A$4:$S$3485,2),"")))) -> Labyrinthus Musicus - Do | D14: =IF($I$1="Tous les tempéraments",IF(C14="","",VLOOKUP('Calculs cachés'!A41+$V$2,'Intercorr. circ.'!$A$4:$S$6968,18)),IF($I$1="Sans les ND",IF(C14="","",VLOOKUP('Calculs cachés'!A41+$V$2,'IC sans ND'!$A$4:$S$3886,18)),IF($I$1="Sans Les ND et les TR",IF(C14="","",VLOOKUP('Calculs cachés'!A41+$V$2,'IC sans ND et TR'!$A$4:$S$1943,18)),IF(C14="","",VLOOKUP('Calculs cachés'!A41+$V$2,'IC sans TR'!$A$4:$S$3485,18))))) -> 2006 | L14: =IF($I$1="Tous les tempéraments",IF('Intercorr. circ.'!B15=$F$1&" - "&'Calculs cachés'!$E$64,"",IF('Intercorr. circ.'!S15=0,TRANSPOSE('Intercorr. circ.'!B15),"")),IF($I$1="Sans les ND",IF('IC sans ND'!B16=$F$1&" - "&'Calculs cachés'!$E$64,"",IF('IC sans ND'!S16=0,TRANSPOSE('IC sans ND'!B16),"")),IF($I$1="Sans les ND et les TR",IF('IC sans ND et TR'!B16=$F$1&" - "&'Calculs cachés'!$E$64,"",IF('IC sans ND et TR'!S16=0,TRANSPOSE('IC sans ND et TR'!B16),"")),IF('IC sans TR'!B16=$F$1&" - "&'Calculs cachés'!$E$64,"",IF('IC sans TR'!S16=0,TRANSPOSE('IC sans TR'!B16),""))))) ->  | O14: =IF($I$1="Tous les tempéraments",IF(L14="","",TRANSPOSE('Intercorr. circ.'!R16)),IF($I$1="Sans les ND",IF(L14="","",TRANSPOSE('IC sans ND'!R16)),IF($I$1="Sans les Nd et les TR",IF(L14="","",TRANSPOSE('IC sans ND et TR'!R16)),IF(L14="","",TRANSPOSE('IC sans TR'!R16))))) ->  | U14: =IF(AND(($I$1="Tous les tempéraments"),('Intercorr. circ.'!S16=0)),1,IF(AND(($I$1="Sans les ND"),('IC sans ND'!S16=0)),1,IF(AND(($I$1="Sans les TR"),('IC sans TR'!S16=0)),1,IF(AND(($I$1="Sans les ND et les TR"),('IC sans ND et TR'!S16=0)),1,"")))) -> 
A15: =$N$32+'Calculs cachés'!A42 -> 13 | B15: =IF($I$1="Tous les tempéraments",IF(VLOOKUP('Calculs cachés'!A42+$V$2,'Intercorr. circ.'!$A$4:$S$6968,19)>Présentation!$N$1,"",VLOOKUP('Calculs cachés'!A42+$V$2,'Intercorr. circ.'!$A$4:$S$6968,19)),IF($I$1="Sans les ND",IF(VLOOKUP('Calculs cachés'!A42+$V$2,'IC sans ND'!$A$4:$S$3886,19)>Présentation!$N$1,"",VLOOKUP('Calculs cachés'!A42+$V$2,'IC sans ND'!$A$4:$S$3886,19)),IF($I$1="Sans les ND et les TR",IF(VLOOKUP('Calculs cachés'!A42+$V$2,'IC sans ND et TR'!$A$4:$S$1943,19)>Présentation!$N$1,"",VLOOKUP('Calculs cachés'!A42+$V$2,'IC sans ND et TR'!$A$4:$S$1943,19)),IF(VLOOKUP('Calculs cachés'!A42+$V$2,'IC sans TR'!$A$4:$S$3485,19)>Présentation!$N$1,"",VLOOKUP('Calculs cachés'!A42+$V$2,'IC sans TR'!$A$4:$S$3485,19))))) -> 1.25 | C15: =IF($I$1="Tous les tempéraments",IF(B15<=Présentation!$N$1,VLOOKUP('Calculs cachés'!A42+$V$2,'Intercorr. circ.'!$A$4:$S$6968,2),""),IF($I$1="Sans les ND",IF(B15<=Présentation!$N$1,VLOOKUP('Calculs cachés'!A42+$V$2,'IC sans ND'!$A$4:$S$3886,2),""),IF($I$1="Sans les ND et les TR",IF(B15<=Présentation!$N$1,VLOOKUP('Calculs cachés'!A42+$V$2,'IC sans ND et TR'!$A$4:$S$1943,2),""),IF(B15<=Présentation!$N$1,VLOOKUP('Calculs cachés'!A42+$V$2,'IC sans TR'!$A$4:$S$3485,2),"")))) -> Sparshuh - Do | D15: =IF($I$1="Tous les tempéraments",IF(C15="","",VLOOKUP('Calculs cachés'!A42+$V$2,'Intercorr. circ.'!$A$4:$S$6968,18)),IF($I$1="Sans les ND",IF(C15="","",VLOOKUP('Calculs cachés'!A42+$V$2,'IC sans ND'!$A$4:$S$3886,18)),IF($I$1="Sans Les ND et les TR",IF(C15="","",VLOOKUP('Calculs cachés'!A42+$V$2,'IC sans ND et TR'!$A$4:$S$1943,18)),IF(C15="","",VLOOKUP('Calculs cachés'!A42+$V$2,'IC sans TR'!$A$4:$S$3485,18))))) -> 1999 | L15: =IF($I$1="Tous les tempéraments",IF('Intercorr. circ.'!B16=$F$1&" - "&'Calculs cachés'!$E$64,"",IF('Intercorr. circ.'!S16=0,TRANSPOSE('Intercorr. circ.'!B16),"")),IF($I$1="Sans les ND",IF('IC sans ND'!B17=$F$1&" - "&'Calculs cachés'!$E$64,"",IF('IC sans ND'!S17=0,TRANSPOSE('IC sans ND'!B17),"")),IF($I$1="Sans les ND et les TR",IF('IC sans ND et TR'!B17=$F$1&" - "&'Calculs cachés'!$E$64,"",IF('IC sans ND et TR'!S17=0,TRANSPOSE('IC sans ND et TR'!B17),"")),IF('IC sans TR'!B17=$F$1&" - "&'Calculs cachés'!$E$64,"",IF('IC sans TR'!S17=0,TRANSPOSE('IC sans TR'!B17),""))))) ->  | O15: =IF($I$1="Tous les tempéraments",IF(L15="","",TRANSPOSE('Intercorr. circ.'!R17)),IF($I$1="Sans les ND",IF(L15="","",TRANSPOSE('IC sans ND'!R17)),IF($I$1="Sans les Nd et les TR",IF(L15="","",TRANSPOSE('IC sans ND et TR'!R17)),IF(L15="","",TRANSPOSE('IC sans TR'!R17))))) ->  | U15: =IF(AND(($I$1="Tous les tempéraments"),('Intercorr. circ.'!S17=0)),1,IF(AND(($I$1="Sans les ND"),('IC sans ND'!S17=0)),1,IF(AND(($I$1="Sans les TR"),('IC sans TR'!S17=0)),1,IF(AND(($I$1="Sans les ND et les TR"),('IC sans ND et TR'!S17=0)),1,"")))) -> 
A16: =$N$32+'Calculs cachés'!A43 -> 14 | B16: =IF($I$1="Tous les tempéraments",IF(VLOOKUP('Calculs cachés'!A43+$V$2,'Intercorr. circ.'!$A$4:$S$6968,19)>Présentation!$N$1,"",VLOOKUP('Calculs cachés'!A43+$V$2,'Intercorr. circ.'!$A$4:$S$6968,19)),IF($I$1="Sans les ND",IF(VLOOKUP('Calculs cachés'!A43+$V$2,'IC sans ND'!$A$4:$S$3886,19)>Présentation!$N$1,"",VLOOKUP('Calculs cachés'!A43+$V$2,'IC sans ND'!$A$4:$S$3886,19)),IF($I$1="Sans les ND et les TR",IF(VLOOKUP('Calculs cachés'!A43+$V$2,'IC sans ND et TR'!$A$4:$S$1943,19)>Présentation!$N$1,"",VLOOKUP('Calculs cachés'!A43+$V$2,'IC sans ND et TR'!$A$4:$S$1943,19)),IF(VLOOKUP('Calculs cachés'!A43+$V$2,'IC sans TR'!$A$4:$S$3485,19)>Présentation!$N$1,"",VLOOKUP('Calculs cachés'!A43+$V$2,'IC sans TR'!$A$4:$S$3485,19))))) -> 1.283333333 | C16: =IF($I$1="Tous les tempéraments",IF(B16<=Présentation!$N$1,VLOOKUP('Calculs cachés'!A43+$V$2,'Intercorr. circ.'!$A$4:$S$6968,2),""),IF($I$1="Sans les ND",IF(B16<=Présentation!$N$1,VLOOKUP('Calculs cachés'!A43+$V$2,'IC sans ND'!$A$4:$S$3886,2),""),IF($I$1="Sans les ND et les TR",IF(B16<=Présentation!$N$1,VLOOKUP('Calculs cachés'!A43+$V$2,'IC sans ND et TR'!$A$4:$S$1943,2),""),IF(B16<=Présentation!$N$1,VLOOKUP('Calculs cachés'!A43+$V$2,'IC sans TR'!$A$4:$S$3485,2),"")))) -> Jencka - Fa | D16: =IF($I$1="Tous les tempéraments",IF(C16="","",VLOOKUP('Calculs cachés'!A43+$V$2,'Intercorr. circ.'!$A$4:$S$6968,18)),IF($I$1="Sans les ND",IF(C16="","",VLOOKUP('Calculs cachés'!A43+$V$2,'IC sans ND'!$A$4:$S$3886,18)),IF($I$1="Sans Les ND et les TR",IF(C16="","",VLOOKUP('Calculs cachés'!A43+$V$2,'IC sans ND et TR'!$A$4:$S$1943,18)),IF(C16="","",VLOOKUP('Calculs cachés'!A43+$V$2,'IC sans TR'!$A$4:$S$3485,18))))) -> 2005 | L16: =IF($I$1="Tous les tempéraments",IF('Intercorr. circ.'!B17=$F$1&" - "&'Calculs cachés'!$E$64,"",IF('Intercorr. circ.'!S17=0,TRANSPOSE('Intercorr. circ.'!B17),"")),IF($I$1="Sans les ND",IF('IC sans ND'!B18=$F$1&" - "&'Calculs cachés'!$E$64,"",IF('IC sans ND'!S18=0,TRANSPOSE('IC sans ND'!B18),"")),IF($I$1="Sans les ND et les TR",IF('IC sans ND et TR'!B18=$F$1&" - "&'Calculs cachés'!$E$64,"",IF('IC sans ND et TR'!S18=0,TRANSPOSE('IC sans ND et TR'!B18),"")),IF('IC sans TR'!B18=$F$1&" - "&'Calculs cachés'!$E$64,"",IF('IC sans TR'!S18=0,TRANSPOSE('IC sans TR'!B18),""))))) ->  | O16: =IF($I$1="Tous les tempéraments",IF(L16="","",TRANSPOSE('Intercorr. circ.'!R18)),IF($I$1="Sans les ND",IF(L16="","",TRANSPOSE('IC sans ND'!R18)),IF($I$1="Sans les Nd et les TR",IF(L16="","",TRANSPOSE('IC sans ND et TR'!R18)),IF(L16="","",TRANSPOSE('IC sans TR'!R18))))) ->  | U16: =IF(AND(($I$1="Tous les tempéraments"),('Intercorr. circ.'!S18=0)),1,IF(AND(($I$1="Sans les ND"),('IC sans ND'!S18=0)),1,IF(AND(($I$1="Sans les TR"),('IC sans TR'!S18=0)),1,IF(AND(($I$1="Sans les ND et les TR"),('IC sans ND et TR'!S18=0)),1,"")))) -> 
A17: =$N$32+'Calculs cachés'!A44 -> 15 | B17: =IF($I$1="Tous les tempéraments",IF(VLOOKUP('Calculs cachés'!A44+$V$2,'Intercorr. circ.'!$A$4:$S$6968,19)>Présentation!$N$1,"",VLOOKUP('Calculs cachés'!A44+$V$2,'Intercorr. circ.'!$A$4:$S$6968,19)),IF($I$1="Sans les ND",IF(VLOOKUP('Calculs cachés'!A44+$V$2,'IC sans ND'!$A$4:$S$3886,19)>Présentation!$N$1,"",VLOOKUP('Calculs cachés'!A44+$V$2,'IC sans ND'!$A$4:$S$3886,19)),IF($I$1="Sans les ND et les TR",IF(VLOOKUP('Calculs cachés'!A44+$V$2,'IC sans ND et TR'!$A$4:$S$1943,19)>Présentation!$N$1,"",VLOOKUP('Calculs cachés'!A44+$V$2,'IC sans ND et TR'!$A$4:$S$1943,19)),IF(VLOOKUP('Calculs cachés'!A44+$V$2,'IC sans TR'!$A$4:$S$3485,19)>Présentation!$N$1,"",VLOOKUP('Calculs cachés'!A44+$V$2,'IC sans TR'!$A$4:$S$3485,19))))) -> 1.283333333 | C17: =IF($I$1="Tous les tempéraments",IF(B17<=Présentation!$N$1,VLOOKUP('Calculs cachés'!A44+$V$2,'Intercorr. circ.'!$A$4:$S$6968,2),""),IF($I$1="Sans les ND",IF(B17<=Présentation!$N$1,VLOOKUP('Calculs cachés'!A44+$V$2,'IC sans ND'!$A$4:$S$3886,2),""),IF($I$1="Sans les ND et les TR",IF(B17<=Présentation!$N$1,VLOOKUP('Calculs cachés'!A44+$V$2,'IC sans ND et TR'!$A$4:$S$1943,2),""),IF(B17<=Présentation!$N$1,VLOOKUP('Calculs cachés'!A44+$V$2,'IC sans TR'!$A$4:$S$3485,2),"")))) -> Maunder « b » 1/6 et 1/24 cp - Fa | D17: =IF($I$1="Tous les tempéraments",IF(C17="","",VLOOKUP('Calculs cachés'!A44+$V$2,'Intercorr. circ.'!$A$4:$S$6968,18)),IF($I$1="Sans les ND",IF(C17="","",VLOOKUP('Calculs cachés'!A44+$V$2,'IC sans ND'!$A$4:$S$3886,18)),IF($I$1="Sans Les ND et les TR",IF(C17="","",VLOOKUP('Calculs cachés'!A44+$V$2,'IC sans ND et TR'!$A$4:$S$1943,18)),IF(C17="","",VLOOKUP('Calculs cachés'!A44+$V$2,'IC sans TR'!$A$4:$S$3485,18))))) -> 2005 | L17: =IF($I$1="Tous les tempéraments",IF('Intercorr. circ.'!B18=$F$1&" - "&'Calculs cachés'!$E$64,"",IF('Intercorr. circ.'!S18=0,TRANSPOSE('Intercorr. circ.'!B18),"")),IF($I$1="Sans les ND",IF('IC sans ND'!B19=$F$1&" - "&'Calculs cachés'!$E$64,"",IF('IC sans ND'!S19=0,TRANSPOSE('IC sans ND'!B19),"")),IF($I$1="Sans les ND et les TR",IF('IC sans ND et TR'!B19=$F$1&" - "&'Calculs cachés'!$E$64,"",IF('IC sans ND et TR'!S19=0,TRANSPOSE('IC sans ND et TR'!B19),"")),IF('IC sans TR'!B19=$F$1&" - "&'Calculs cachés'!$E$64,"",IF('IC sans TR'!S19=0,TRANSPOSE('IC sans TR'!B19),""))))) ->  | O17: =IF($I$1="Tous les tempéraments",IF(L17="","",TRANSPOSE('Intercorr. circ.'!R19)),IF($I$1="Sans les ND",IF(L17="","",TRANSPOSE('IC sans ND'!R19)),IF($I$1="Sans les Nd et les TR",IF(L17="","",TRANSPOSE('IC sans ND et TR'!R19)),IF(L17="","",TRANSPOSE('IC sans TR'!R19))))) ->  | U17: =IF(AND(($I$1="Tous les tempéraments"),('Intercorr. circ.'!S19=0)),1,IF(AND(($I$1="Sans les ND"),('IC sans ND'!S19=0)),1,IF(AND(($I$1="Sans les TR"),('IC sans TR'!S19=0)),1,IF(AND(($I$1="Sans les ND et les TR"),('IC sans ND et TR'!S19=0)),1,"")))) -> 
A18: =$N$32+'Calculs cachés'!A45 -> 16 | B18: =IF($I$1="Tous les tempéraments",IF(VLOOKUP('Calculs cachés'!A45+$V$2,'Intercorr. circ.'!$A$4:$S$6968,19)>Présentation!$N$1,"",VLOOKUP('Calculs cachés'!A45+$V$2,'Intercorr. circ.'!$A$4:$S$6968,19)),IF($I$1="Sans les ND",IF(VLOOKUP('Calculs cachés'!A45+$V$2,'IC sans ND'!$A$4:$S$3886,19)>Présentation!$N$1,"",VLOOKUP('Calculs cachés'!A45+$V$2,'IC sans ND'!$A$4:$S$3886,19)),IF($I$1="Sans les ND et les TR",IF(VLOOKUP('Calculs cachés'!A45+$V$2,'IC sans ND et TR'!$A$4:$S$1943,19)>Présentation!$N$1,"",VLOOKUP('Calculs cachés'!A45+$V$2,'IC sans ND et TR'!$A$4:$S$1943,19)),IF(VLOOKUP('Calculs cachés'!A45+$V$2,'IC sans TR'!$A$4:$S$3485,19)>Présentation!$N$1,"",VLOOKUP('Calculs cachés'!A45+$V$2,'IC sans TR'!$A$4:$S$3485,19))))) -> 1.316666667 | C18: =IF($I$1="Tous les tempéraments",IF(B18<=Présentation!$N$1,VLOOKUP('Calculs cachés'!A45+$V$2,'Intercorr. circ.'!$A$4:$S$6968,2),""),IF($I$1="Sans les ND",IF(B18<=Présentation!$N$1,VLOOKUP('Calculs cachés'!A45+$V$2,'IC sans ND'!$A$4:$S$3886,2),""),IF($I$1="Sans les ND et les TR",IF(B18<=Présentation!$N$1,VLOOKUP('Calculs cachés'!A45+$V$2,'IC sans ND et TR'!$A$4:$S$1943,2),""),IF(B18<=Présentation!$N$1,VLOOKUP('Calculs cachés'!A45+$V$2,'IC sans TR'!$A$4:$S$3485,2),"")))) -> Lindley conférence de Michaelstein - Do | D18: =IF($I$1="Tous les tempéraments",IF(C18="","",VLOOKUP('Calculs cachés'!A45+$V$2,'Intercorr. circ.'!$A$4:$S$6968,18)),IF($I$1="Sans les ND",IF(C18="","",VLOOKUP('Calculs cachés'!A45+$V$2,'IC sans ND'!$A$4:$S$3886,18)),IF($I$1="Sans Les ND et les TR",IF(C18="","",VLOOKUP('Calculs cachés'!A45+$V$2,'IC sans ND et TR'!$A$4:$S$1943,18)),IF(C18="","",VLOOKUP('Calculs cachés'!A45+$V$2,'IC sans TR'!$A$4:$S$3485,18))))) -> 1994 | L18: =IF($I$1="Tous les tempéraments",IF('Intercorr. circ.'!B19=$F$1&" - "&'Calculs cachés'!$E$64,"",IF('Intercorr. circ.'!S19=0,TRANSPOSE('Intercorr. circ.'!B19),"")),IF($I$1="Sans les ND",IF('IC sans ND'!B20=$F$1&" - "&'Calculs cachés'!$E$64,"",IF('IC sans ND'!S20=0,TRANSPOSE('IC sans ND'!B20),"")),IF($I$1="Sans les ND et les TR",IF('IC sans ND et TR'!B20=$F$1&" - "&'Calculs cachés'!$E$64,"",IF('IC sans ND et TR'!S20=0,TRANSPOSE('IC sans ND et TR'!B20),"")),IF('IC sans TR'!B20=$F$1&" - "&'Calculs cachés'!$E$64,"",IF('IC sans TR'!S20=0,TRANSPOSE('IC sans TR'!B20),""))))) ->  | O18: =IF($I$1="Tous les tempéraments",IF(L18="","",TRANSPOSE('Intercorr. circ.'!R20)),IF($I$1="Sans les ND",IF(L18="","",TRANSPOSE('IC sans ND'!R20)),IF($I$1="Sans les Nd et les TR",IF(L18="","",TRANSPOSE('IC sans ND et TR'!R20)),IF(L18="","",TRANSPOSE('IC sans TR'!R20))))) ->  | U18: =IF(AND(($I$1="Tous les tempéraments"),('Intercorr. circ.'!S20=0)),1,IF(AND(($I$1="Sans les ND"),('IC sans ND'!S20=0)),1,IF(AND(($I$1="Sans les TR"),('IC sans TR'!S20=0)),1,IF(AND(($I$1="Sans les ND et les TR"),('IC sans ND et TR'!S20=0)),1,"")))) -> 
A19: =$N$32+'Calculs cachés'!A46 -> 17 | B19: =IF($I$1="Tous les tempéraments",IF(VLOOKUP('Calculs cachés'!A46+$V$2,'Intercorr. circ.'!$A$4:$S$6968,19)>Présentation!$N$1,"",VLOOKUP('Calculs cachés'!A46+$V$2,'Intercorr. circ.'!$A$4:$S$6968,19)),IF($I$1="Sans les ND",IF(VLOOKUP('Calculs cachés'!A46+$V$2,'IC sans ND'!$A$4:$S$3886,19)>Présentation!$N$1,"",VLOOKUP('Calculs cachés'!A46+$V$2,'IC sans ND'!$A$4:$S$3886,19)),IF($I$1="Sans les ND et les TR",IF(VLOOKUP('Calculs cachés'!A46+$V$2,'IC sans ND et TR'!$A$4:$S$1943,19)>Présentation!$N$1,"",VLOOKUP('Calculs cachés'!A46+$V$2,'IC sans ND et TR'!$A$4:$S$1943,19)),IF(VLOOKUP('Calculs cachés'!A46+$V$2,'IC sans TR'!$A$4:$S$3485,19)>Présentation!$N$1,"",VLOOKUP('Calculs cachés'!A46+$V$2,'IC sans TR'!$A$4:$S$3485,19))))) -> 1.333333333 | C19: =IF($I$1="Tous les tempéraments",IF(B19<=Présentation!$N$1,VLOOKUP('Calculs cachés'!A46+$V$2,'Intercorr. circ.'!$A$4:$S$6968,2),""),IF($I$1="Sans les ND",IF(B19<=Présentation!$N$1,VLOOKUP('Calculs cachés'!A46+$V$2,'IC sans ND'!$A$4:$S$3886,2),""),IF($I$1="Sans les ND et les TR",IF(B19<=Présentation!$N$1,VLOOKUP('Calculs cachés'!A46+$V$2,'IC sans ND et TR'!$A$4:$S$1943,2),""),IF(B19<=Présentation!$N$1,VLOOKUP('Calculs cachés'!A46+$V$2,'IC sans TR'!$A$4:$S$3485,2),"")))) -> Calvet baroque 1/9 cp - Si | D19: =IF($I$1="Tous les tempéraments",IF(C19="","",VLOOKUP('Calculs cachés'!A46+$V$2,'Intercorr. circ.'!$A$4:$S$6968,18)),IF($I$1="Sans les ND",IF(C19="","",VLOOKUP('Calculs cachés'!A46+$V$2,'IC sans ND'!$A$4:$S$3886,18)),IF($I$1="Sans Les ND et les TR",IF(C19="","",VLOOKUP('Calculs cachés'!A46+$V$2,'IC sans ND et TR'!$A$4:$S$1943,18)),IF(C19="","",VLOOKUP('Calculs cachés'!A46+$V$2,'IC sans TR'!$A$4:$S$3485,18))))) -> 2011 | L19: =IF($I$1="Tous les tempéraments",IF('Intercorr. circ.'!B20=$F$1&" - "&'Calculs cachés'!$E$64,"",IF('Intercorr. circ.'!S20=0,TRANSPOSE('Intercorr. circ.'!B20),"")),IF($I$1="Sans les ND",IF('IC sans ND'!B21=$F$1&" - "&'Calculs cachés'!$E$64,"",IF('IC sans ND'!S21=0,TRANSPOSE('IC sans ND'!B21),"")),IF($I$1="Sans les ND et les TR",IF('IC sans ND et TR'!B21=$F$1&" - "&'Calculs cachés'!$E$64,"",IF('IC sans ND et TR'!S21=0,TRANSPOSE('IC sans ND et TR'!B21),"")),IF('IC sans TR'!B21=$F$1&" - "&'Calculs cachés'!$E$64,"",IF('IC sans TR'!S21=0,TRANSPOSE('IC sans TR'!B21),""))))) ->  | O19: =IF($I$1="Tous les tempéraments",IF(L19="","",TRANSPOSE('Intercorr. circ.'!R21)),IF($I$1="Sans les ND",IF(L19="","",TRANSPOSE('IC sans ND'!R21)),IF($I$1="Sans les Nd et les TR",IF(L19="","",TRANSPOSE('IC sans ND et TR'!R21)),IF(L19="","",TRANSPOSE('IC sans TR'!R21))))) ->  | U19: =IF(AND(($I$1="Tous les tempéraments"),('Intercorr. circ.'!S21=0)),1,IF(AND(($I$1="Sans les ND"),('IC sans ND'!S21=0)),1,IF(AND(($I$1="Sans les TR"),('IC sans TR'!S21=0)),1,IF(AND(($I$1="Sans les ND et les TR"),('IC sans ND et TR'!S21=0)),1,"")))) -> 
A20: =$N$32+'Calculs cachés'!A47 -> 18 | B20: =IF($I$1="Tous les tempéraments",IF(VLOOKUP('Calculs cachés'!A47+$V$2,'Intercorr. circ.'!$A$4:$S$6968,19)>Présentation!$N$1,"",VLOOKUP('Calculs cachés'!A47+$V$2,'Intercorr. circ.'!$A$4:$S$6968,19)),IF($I$1="Sans les ND",IF(VLOOKUP('Calculs cachés'!A47+$V$2,'IC sans ND'!$A$4:$S$3886,19)>Présentation!$N$1,"",VLOOKUP('Calculs cachés'!A47+$V$2,'IC sans ND'!$A$4:$S$3886,19)),IF($I$1="Sans les ND et les TR",IF(VLOOKUP('Calculs cachés'!A47+$V$2,'IC sans ND et TR'!$A$4:$S$1943,19)>Présentation!$N$1,"",VLOOKUP('Calculs cachés'!A47+$V$2,'IC sans ND et TR'!$A$4:$S$1943,19)),IF(VLOOKUP('Calculs cachés'!A47+$V$2,'IC sans TR'!$A$4:$S$3485,19)>Présentation!$N$1,"",VLOOKUP('Calculs cachés'!A47+$V$2,'IC sans TR'!$A$4:$S$3485,19))))) -> 1.333333333 | C20: =IF($I$1="Tous les tempéraments",IF(B20<=Présentation!$N$1,VLOOKUP('Calculs cachés'!A47+$V$2,'Intercorr. circ.'!$A$4:$S$6968,2),""),IF($I$1="Sans les ND",IF(B20<=Présentation!$N$1,VLOOKUP('Calculs cachés'!A47+$V$2,'IC sans ND'!$A$4:$S$3886,2),""),IF($I$1="Sans les ND et les TR",IF(B20<=Présentation!$N$1,VLOOKUP('Calculs cachés'!A47+$V$2,'IC sans ND et TR'!$A$4:$S$1943,2),""),IF(B20<=Présentation!$N$1,VLOOKUP('Calculs cachés'!A47+$V$2,'IC sans TR'!$A$4:$S$3485,2),"")))) -> Neidhardt II - Do | D20: =IF($I$1="Tous les tempéraments",IF(C20="","",VLOOKUP('Calculs cachés'!A47+$V$2,'Intercorr. circ.'!$A$4:$S$6968,18)),IF($I$1="Sans les ND",IF(C20="","",VLOOKUP('Calculs cachés'!A47+$V$2,'IC sans ND'!$A$4:$S$3886,18)),IF($I$1="Sans Les ND et les TR",IF(C20="","",VLOOKUP('Calculs cachés'!A47+$V$2,'IC sans ND et TR'!$A$4:$S$1943,18)),IF(C20="","",VLOOKUP('Calculs cachés'!A47+$V$2,'IC sans TR'!$A$4:$S$3485,18))))) -> 1732 | L20: =IF($I$1="Tous les tempéraments",IF('Intercorr. circ.'!B21=$F$1&" - "&'Calculs cachés'!$E$64,"",IF('Intercorr. circ.'!S21=0,TRANSPOSE('Intercorr. circ.'!B21),"")),IF($I$1="Sans les ND",IF('IC sans ND'!B22=$F$1&" - "&'Calculs cachés'!$E$64,"",IF('IC sans ND'!S22=0,TRANSPOSE('IC sans ND'!B22),"")),IF($I$1="Sans les ND et les TR",IF('IC sans ND et TR'!B22=$F$1&" - "&'Calculs cachés'!$E$64,"",IF('IC sans ND et TR'!S22=0,TRANSPOSE('IC sans ND et TR'!B22),"")),IF('IC sans TR'!B22=$F$1&" - "&'Calculs cachés'!$E$64,"",IF('IC sans TR'!S22=0,TRANSPOSE('IC sans TR'!B22),""))))) ->  | O20: =IF($I$1="Tous les tempéraments",IF(L20="","",TRANSPOSE('Intercorr. circ.'!R22)),IF($I$1="Sans les ND",IF(L20="","",TRANSPOSE('IC sans ND'!R22)),IF($I$1="Sans les Nd et les TR",IF(L20="","",TRANSPOSE('IC sans ND et TR'!R22)),IF(L20="","",TRANSPOSE('IC sans TR'!R22))))) ->  | U20: =IF(AND(($I$1="Tous les tempéraments"),('Intercorr. circ.'!S22=0)),1,IF(AND(($I$1="Sans les ND"),('IC sans ND'!S22=0)),1,IF(AND(($I$1="Sans les TR"),('IC sans TR'!S22=0)),1,IF(AND(($I$1="Sans les ND et les TR"),('IC sans ND et TR'!S22=0)),1,"")))) -> 
A21: =$N$32+'Calculs cachés'!A48 -> 19 | B21: =IF($I$1="Tous les tempéraments",IF(VLOOKUP('Calculs cachés'!A48+$V$2,'Intercorr. circ.'!$A$4:$S$6968,19)>Présentation!$N$1,"",VLOOKUP('Calculs cachés'!A48+$V$2,'Intercorr. circ.'!$A$4:$S$6968,19)),IF($I$1="Sans les ND",IF(VLOOKUP('Calculs cachés'!A48+$V$2,'IC sans ND'!$A$4:$S$3886,19)>Présentation!$N$1,"",VLOOKUP('Calculs cachés'!A48+$V$2,'IC sans ND'!$A$4:$S$3886,19)),IF($I$1="Sans les ND et les TR",IF(VLOOKUP('Calculs cachés'!A48+$V$2,'IC sans ND et TR'!$A$4:$S$1943,19)>Présentation!$N$1,"",VLOOKUP('Calculs cachés'!A48+$V$2,'IC sans ND et TR'!$A$4:$S$1943,19)),IF(VLOOKUP('Calculs cachés'!A48+$V$2,'IC sans TR'!$A$4:$S$3485,19)>Présentation!$N$1,"",VLOOKUP('Calculs cachés'!A48+$V$2,'IC sans TR'!$A$4:$S$3485,19))))) -> 1.333333333 | C21: =IF($I$1="Tous les tempéraments",IF(B21<=Présentation!$N$1,VLOOKUP('Calculs cachés'!A49+$V$2,'Intercorr. circ.'!$A$4:$S$6968,2),""),IF($I$1="Sans les ND",IF(B21<=Présentation!$N$1,VLOOKUP('Calculs cachés'!A49+$V$2,'IC sans ND'!$A$4:$S$3886,2),""),IF($I$1="Sans les ND et les TR",IF(B21<=Présentation!$N$1,VLOOKUP('Calculs cachés'!A49+$V$2,'IC sans ND et TR'!$A$4:$S$1943,2),""),IF(B21<=Présentation!$N$1,VLOOKUP('Calculs cachés'!A49+$V$2,'IC sans TR'!$A$4:$S$3485,2),"")))) -> Neidhardt XVII - Do | D21: =IF($I$1="Tous les tempéraments",IF(C21="","",VLOOKUP('Calculs cachés'!A49+$V$2,'Intercorr. circ.'!$A$4:$S$6968,18)),IF($I$1="Sans les ND",IF(C21="","",VLOOKUP('Calculs cachés'!A49+$V$2,'IC sans ND'!$A$4:$S$3886,18)),IF($I$1="Sans Les ND et les TR",IF(C21="","",VLOOKUP('Calculs cachés'!A49+$V$2,'IC sans ND et TR'!$A$4:$S$1943,18)),IF(C21="","",VLOOKUP('Calculs cachés'!A49+$V$2,'IC sans TR'!$A$4:$S$3485,18))))) -> 1732 | L21: =IF($I$1="Tous les tempéraments",IF('Intercorr. circ.'!B22=$F$1&" - "&'Calculs cachés'!$E$64,"",IF('Intercorr. circ.'!S22=0,TRANSPOSE('Intercorr. circ.'!B22),"")),IF($I$1="Sans les ND",IF('IC sans ND'!B23=$F$1&" - "&'Calculs cachés'!$E$64,"",IF('IC sans ND'!S23=0,TRANSPOSE('IC sans ND'!B23),"")),IF($I$1="Sans les ND et les TR",IF('IC sans ND et TR'!B23=$F$1&" - "&'Calculs cachés'!$E$64,"",IF('IC sans ND et TR'!S23=0,TRANSPOSE('IC sans ND et TR'!B23),"")),IF('IC sans TR'!B23=$F$1&" - "&'Calculs cachés'!$E$64,"",IF('IC sans TR'!S23=0,TRANSPOSE('IC sans TR'!B23),""))))) ->  | O21: =IF($I$1="Tous les tempéraments",IF(L21="","",TRANSPOSE('Intercorr. circ.'!R23)),IF($I$1="Sans les ND",IF(L21="","",TRANSPOSE('IC sans ND'!R23)),IF($I$1="Sans les Nd et les TR",IF(L21="","",TRANSPOSE('IC sans ND et TR'!R23)),IF(L21="","",TRANSPOSE('IC sans TR'!R23))))) ->  | U21: =IF(AND(($I$1="Tous les tempéraments"),('Intercorr. circ.'!S23=0)),1,IF(AND(($I$1="Sans les ND"),('IC sans ND'!S23=0)),1,IF(AND(($I$1="Sans les TR"),('IC sans TR'!S23=0)),1,IF(AND(($I$1="Sans les ND et les TR"),('IC sans ND et TR'!S23=0)),1,"")))) -> 
A22: =$N$32+'Calculs cachés'!A49 -> 20 | B22: =IF($I$1="Tous les tempéraments",IF(VLOOKUP('Calculs cachés'!A49+$V$2,'Intercorr. circ.'!$A$4:$S$6968,19)>Présentation!$N$1,"",VLOOKUP('Calculs cachés'!A49+$V$2,'Intercorr. circ.'!$A$4:$S$6968,19)),IF($I$1="Sans les ND",IF(VLOOKUP('Calculs cachés'!A49+$V$2,'IC sans ND'!$A$4:$S$3886,19)>Présentation!$N$1,"",VLOOKUP('Calculs cachés'!A49+$V$2,'IC sans ND'!$A$4:$S$3886,19)),IF($I$1="Sans les ND et les TR",IF(VLOOKUP('Calculs cachés'!A49+$V$2,'IC sans ND et TR'!$A$4:$S$1943,19)>Présentation!$N$1,"",VLOOKUP('Calculs cachés'!A49+$V$2,'IC sans ND et TR'!$A$4:$S$1943,19)),IF(VLOOKUP('Calculs cachés'!A49+$V$2,'IC sans TR'!$A$4:$S$3485,19)>Présentation!$N$1,"",VLOOKUP('Calculs cachés'!A49+$V$2,'IC sans TR'!$A$4:$S$3485,19))))) -> 1.333333333 | C22: =IF($I$1="Tous les tempéraments",IF(B22<=Présentation!$N$1,VLOOKUP('Calculs cachés'!A48+$V$2,'Intercorr. circ.'!$A$4:$S$6968,2),""),IF($I$1="Sans les ND",IF(B22<=Présentation!$N$1,VLOOKUP('Calculs cachés'!A48+$V$2,'IC sans ND'!$A$4:$S$3886,2),""),IF($I$1="Sans les ND et les TR",IF(B22<=Présentation!$N$1,VLOOKUP('Calculs cachés'!A48+$V$2,'IC sans ND et TR'!$A$4:$S$1943,2),""),IF(B22<=Présentation!$N$1,VLOOKUP('Calculs cachés'!A48+$V$2,'IC sans TR'!$A$4:$S$3485,2),"")))) -> Neidhardt XI - Do | D22: =IF($I$1="Tous les tempéraments",IF(C22="","",VLOOKUP('Calculs cachés'!A48+$V$2,'Intercorr. circ.'!$A$4:$S$6968,18)),IF($I$1="Sans les ND",IF(C22="","",VLOOKUP('Calculs cachés'!A48+$V$2,'IC sans ND'!$A$4:$S$3886,18)),IF($I$1="Sans Les ND et les TR",IF(C22="","",VLOOKUP('Calculs cachés'!A48+$V$2,'IC sans ND et TR'!$A$4:$S$1943,18)),IF(C22="","",VLOOKUP('Calculs cachés'!A48+$V$2,'IC sans TR'!$A$4:$S$3485,18))))) -> 1732 | L22: =IF($I$1="Tous les tempéraments",IF('Intercorr. circ.'!B23=$F$1&" - "&'Calculs cachés'!$E$64,"",IF('Intercorr. circ.'!S23=0,TRANSPOSE('Intercorr. circ.'!B23),"")),IF($I$1="Sans les ND",IF('IC sans ND'!B24=$F$1&" - "&'Calculs cachés'!$E$64,"",IF('IC sans ND'!S24=0,TRANSPOSE('IC sans ND'!B24),"")),IF($I$1="Sans les ND et les TR",IF('IC sans ND et TR'!B24=$F$1&" - "&'Calculs cachés'!$E$64,"",IF('IC sans ND et TR'!S24=0,TRANSPOSE('IC sans ND et TR'!B24),"")),IF('IC sans TR'!B24=$F$1&" - "&'Calculs cachés'!$E$64,"",IF('IC sans TR'!S24=0,TRANSPOSE('IC sans TR'!B24),""))))) ->  | O22: =IF($I$1="Tous les tempéraments",IF(L22="","",TRANSPOSE('Intercorr. circ.'!R24)),IF($I$1="Sans les ND",IF(L22="","",TRANSPOSE('IC sans ND'!R24)),IF($I$1="Sans les Nd et les TR",IF(L22="","",TRANSPOSE('IC sans ND et TR'!R24)),IF(L22="","",TRANSPOSE('IC sans TR'!R24))))) ->  | U22: =IF(AND(($I$1="Tous les tempéraments"),('Intercorr. circ.'!S24=0)),1,IF(AND(($I$1="Sans les ND"),('IC sans ND'!S24=0)),1,IF(AND(($I$1="Sans les TR"),('IC sans TR'!S24=0)),1,IF(AND(($I$1="Sans les ND et les TR"),('IC sans ND et TR'!S24=0)),1,"")))) -> 
A23: =$N$32+'Calculs cachés'!A50 -> 21 | B23: =IF($I$1="Tous les tempéraments",IF(VLOOKUP('Calculs cachés'!A50+$V$2,'Intercorr. circ.'!$A$4:$S$6968,19)>Présentation!$N$1,"",VLOOKUP('Calculs cachés'!A50+$V$2,'Intercorr. circ.'!$A$4:$S$6968,19)),IF($I$1="Sans les ND",IF(VLOOKUP('Calculs cachés'!A50+$V$2,'IC sans ND'!$A$4:$S$3886,19)>Présentation!$N$1,"",VLOOKUP('Calculs cachés'!A50+$V$2,'IC sans ND'!$A$4:$S$3886,19)),IF($I$1="Sans les ND et les TR",IF(VLOOKUP('Calculs cachés'!A50+$V$2,'IC sans ND et TR'!$A$4:$S$1943,19)>Présentation!$N$1,"",VLOOKUP('Calculs cachés'!A50+$V$2,'IC sans ND et TR'!$A$4:$S$1943,19)),IF(VLOOKUP('Calculs cachés'!A50+$V$2,'IC sans TR'!$A$4:$S$3485,19)>Présentation!$N$1,"",VLOOKUP('Calculs cachés'!A50+$V$2,'IC sans TR'!$A$4:$S$3485,19))))) -> 1.333333333 | C23: =IF($I$1="Tous les tempéraments",IF(B23<=Présentation!$N$1,VLOOKUP('Calculs cachés'!A50+$V$2,'Intercorr. circ.'!$A$4:$S$6968,2),""),IF($I$1="Sans les ND",IF(B23<=Présentation!$N$1,VLOOKUP('Calculs cachés'!A50+$V$2,'IC sans ND'!$A$4:$S$3886,2),""),IF($I$1="Sans les ND et les TR",IF(B23<=Présentation!$N$1,VLOOKUP('Calculs cachés'!A50+$V$2,'IC sans ND et TR'!$A$4:$S$1943,2),""),IF(B23<=Présentation!$N$1,VLOOKUP('Calculs cachés'!A50+$V$2,'IC sans TR'!$A$4:$S$3485,2),"")))) -> Young I - Do | D23: =IF($I$1="Tous les tempéraments",IF(C23="","",VLOOKUP('Calculs cachés'!A50+$V$2,'Intercorr. circ.'!$A$4:$S$6968,18)),IF($I$1="Sans les ND",IF(C23="","",VLOOKUP('Calculs cachés'!A50+$V$2,'IC sans ND'!$A$4:$S$3886,18)),IF($I$1="Sans Les ND et les TR",IF(C23="","",VLOOKUP('Calculs cachés'!A50+$V$2,'IC sans ND et TR'!$A$4:$S$1943,18)),IF(C23="","",VLOOKUP('Calculs cachés'!A50+$V$2,'IC sans TR'!$A$4:$S$3485,18))))) -> 1800 | F23: =IF(C2="","",VLOOKUP(G23,'Var x12'!B3:R6915,17)) -> 2001 | G23: Bertier Jérôme - Fa | L23: =IF($I$1="Tous les tempéraments",IF('Intercorr. circ.'!B24=$F$1&" - "&'Calculs cachés'!$E$64,"",IF('Intercorr. circ.'!S24=0,TRANSPOSE('Intercorr. circ.'!B24),"")),IF($I$1="Sans les ND",IF('IC sans ND'!B25=$F$1&" - "&'Calculs cachés'!$E$64,"",IF('IC sans ND'!S25=0,TRANSPOSE('IC sans ND'!B25),"")),IF($I$1="Sans les ND et les TR",IF('IC sans ND et TR'!B25=$F$1&" - "&'Calculs cachés'!$E$64,"",IF('IC sans ND et TR'!S25=0,TRANSPOSE('IC sans ND et TR'!B25),"")),IF('IC sans TR'!B25=$F$1&" - "&'Calculs cachés'!$E$64,"",IF('IC sans TR'!S25=0,TRANSPOSE('IC sans TR'!B25),""))))) ->  | O23: =IF($I$1="Tous les tempéraments",IF(L23="","",TRANSPOSE('Intercorr. circ.'!R25)),IF($I$1="Sans les ND",IF(L23="","",TRANSPOSE('IC sans ND'!R25)),IF($I$1="Sans les Nd et les TR",IF(L23="","",TRANSPOSE('IC sans ND et TR'!R25)),IF(L23="","",TRANSPOSE('IC sans TR'!R25))))) ->  | U23: =IF(AND(($I$1="Tous les tempéraments"),('Intercorr. circ.'!S25=0)),1,IF(AND(($I$1="Sans les ND"),('IC sans ND'!S25=0)),1,IF(AND(($I$1="Sans les TR"),('IC sans TR'!S25=0)),1,IF(AND(($I$1="Sans les ND et les TR"),('IC sans ND et TR'!S25=0)),1,"")))) -> 
A24: =$N$32+'Calculs cachés'!A51 -> 22 | B24: =IF($I$1="Tous les tempéraments",IF(VLOOKUP('Calculs cachés'!A51+$V$2,'Intercorr. circ.'!$A$4:$S$6968,19)>Présentation!$N$1,"",VLOOKUP('Calculs cachés'!A51+$V$2,'Intercorr. circ.'!$A$4:$S$6968,19)),IF($I$1="Sans les ND",IF(VLOOKUP('Calculs cachés'!A51+$V$2,'IC sans ND'!$A$4:$S$3886,19)>Présentation!$N$1,"",VLOOKUP('Calculs cachés'!A51+$V$2,'IC sans ND'!$A$4:$S$3886,19)),IF($I$1="Sans les ND et les TR",IF(VLOOKUP('Calculs cachés'!A51+$V$2,'IC sans ND et TR'!$A$4:$S$1943,19)>Présentation!$N$1,"",VLOOKUP('Calculs cachés'!A51+$V$2,'IC sans ND et TR'!$A$4:$S$1943,19)),IF(VLOOKUP('Calculs cachés'!A51+$V$2,'IC sans TR'!$A$4:$S$3485,19)>Présentation!$N$1,"",VLOOKUP('Calculs cachés'!A51+$V$2,'IC sans TR'!$A$4:$S$3485,19))))) -> 1.333333333 | C24: =IF($I$1="Tous les tempéraments",IF(B24<=Présentation!$N$1,VLOOKUP('Calculs cachés'!A51+$V$2,'Intercorr. circ.'!$A$4:$S$6968,2),""),IF($I$1="Sans les ND",IF(B24<=Présentation!$N$1,VLOOKUP('Calculs cachés'!A51+$V$2,'IC sans ND'!$A$4:$S$3886,2),""),IF($I$1="Sans les ND et les TR",IF(B24<=Présentation!$N$1,VLOOKUP('Calculs cachés'!A51+$V$2,'IC sans ND et TR'!$A$4:$S$1943,2),""),IF(B24<=Présentation!$N$1,VLOOKUP('Calculs cachés'!A51+$V$2,'IC sans TR'!$A$4:$S$3485,2),"")))) -> Barca Alessandro - Do | D24: =IF($I$1="Tous les tempéraments",IF(C24="","",VLOOKUP('Calculs cachés'!A51+$V$2,'Intercorr. circ.'!$A$4:$S$6968,18)),IF($I$1="Sans les ND",IF(C24="","",VLOOKUP('Calculs cachés'!A51+$V$2,'IC sans ND'!$A$4:$S$3886,18)),IF($I$1="Sans Les ND et les TR",IF(C24="","",VLOOKUP('Calculs cachés'!A51+$V$2,'IC sans ND et TR'!$A$4:$S$1943,18)),IF(C24="","",VLOOKUP('Calculs cachés'!A51+$V$2,'IC sans TR'!$A$4:$S$3485,18))))) -> 1802 | L24: =IF($I$1="Tous les tempéraments",IF('Intercorr. circ.'!B25=$F$1&" - "&'Calculs cachés'!$E$64,"",IF('Intercorr. circ.'!S25=0,TRANSPOSE('Intercorr. circ.'!B25),"")),IF($I$1="Sans les ND",IF('IC sans ND'!B26=$F$1&" - "&'Calculs cachés'!$E$64,"",IF('IC sans ND'!S26=0,TRANSPOSE('IC sans ND'!B26),"")),IF($I$1="Sans les ND et les TR",IF('IC sans ND et TR'!B26=$F$1&" - "&'Calculs cachés'!$E$64,"",IF('IC sans ND et TR'!S26=0,TRANSPOSE('IC sans ND et TR'!B26),"")),IF('IC sans TR'!B26=$F$1&" - "&'Calculs cachés'!$E$64,"",IF('IC sans TR'!S26=0,TRANSPOSE('IC sans TR'!B26),""))))) ->  | O24: =IF($I$1="Tous les tempéraments",IF(L24="","",TRANSPOSE('Intercorr. circ.'!R26)),IF($I$1="Sans les ND",IF(L24="","",TRANSPOSE('IC sans ND'!R26)),IF($I$1="Sans les Nd et les TR",IF(L24="","",TRANSPOSE('IC sans ND et TR'!R26)),IF(L24="","",TRANSPOSE('IC sans TR'!R26))))) ->  | U24: =IF(AND(($I$1="Tous les tempéraments"),('Intercorr. circ.'!S26=0)),1,IF(AND(($I$1="Sans les ND"),('IC sans ND'!S26=0)),1,IF(AND(($I$1="Sans les TR"),('IC sans TR'!S26=0)),1,IF(AND(($I$1="Sans les ND et les TR"),('IC sans ND et TR'!S26=0)),1,"")))) -> 
A25: =$N$32+'Calculs cachés'!A52 -> 23 | B25: =IF($I$1="Tous les tempéraments",IF(VLOOKUP('Calculs cachés'!A52+$V$2,'Intercorr. circ.'!$A$4:$S$6968,19)>Présentation!$N$1,"",VLOOKUP('Calculs cachés'!A52+$V$2,'Intercorr. circ.'!$A$4:$S$6968,19)),IF($I$1="Sans les ND",IF(VLOOKUP('Calculs cachés'!A52+$V$2,'IC sans ND'!$A$4:$S$3886,19)>Présentation!$N$1,"",VLOOKUP('Calculs cachés'!A52+$V$2,'IC sans ND'!$A$4:$S$3886,19)),IF($I$1="Sans les ND et les TR",IF(VLOOKUP('Calculs cachés'!A52+$V$2,'IC sans ND et TR'!$A$4:$S$1943,19)>Présentation!$N$1,"",VLOOKUP('Calculs cachés'!A52+$V$2,'IC sans ND et TR'!$A$4:$S$1943,19)),IF(VLOOKUP('Calculs cachés'!A52+$V$2,'IC sans TR'!$A$4:$S$3485,19)>Présentation!$N$1,"",VLOOKUP('Calculs cachés'!A52+$V$2,'IC sans TR'!$A$4:$S$3485,19))))) -> 1.416666667 | C25: =IF($I$1="Tous les tempéraments",IF(B25<=Présentation!$N$1,VLOOKUP('Calculs cachés'!A52+$V$2,'Intercorr. circ.'!$A$4:$S$6968,2),""),IF($I$1="Sans les ND",IF(B25<=Présentation!$N$1,VLOOKUP('Calculs cachés'!A52+$V$2,'IC sans ND'!$A$4:$S$3886,2),""),IF($I$1="Sans les ND et les TR",IF(B25<=Présentation!$N$1,VLOOKUP('Calculs cachés'!A52+$V$2,'IC sans ND et TR'!$A$4:$S$1943,2),""),IF(B25<=Présentation!$N$1,VLOOKUP('Calculs cachés'!A52+$V$2,'IC sans TR'!$A$4:$S$3485,2),"")))) -> Barnes 1/6 cp - Do | D25: =IF($I$1="Tous les tempéraments",IF(C25="","",VLOOKUP('Calculs cachés'!A52+$V$2,'Intercorr. circ.'!$A$4:$S$6968,18)),IF($I$1="Sans les ND",IF(C25="","",VLOOKUP('Calculs cachés'!A52+$V$2,'IC sans ND'!$A$4:$S$3886,18)),IF($I$1="Sans Les ND et les TR",IF(C25="","",VLOOKUP('Calculs cachés'!A52+$V$2,'IC sans ND et TR'!$A$4:$S$1943,18)),IF(C25="","",VLOOKUP('Calculs cachés'!A52+$V$2,'IC sans TR'!$A$4:$S$3485,18))))) -> 1979 | L25: Valeurs normales | U25: =IF(AND(($I$1="Tous les tempéraments"),('Intercorr. circ.'!S27=0)),1,IF(AND(($I$1="Sans les ND"),('IC sans ND'!S27=0)),1,IF(AND(($I$1="Sans les TR"),('IC sans TR'!S27=0)),1,IF(AND(($I$1="Sans les ND et les TR"),('IC sans ND et TR'!S27=0)),1,"")))) -> 
B26: =IF($I$1="Tous les tempéraments",IF(VLOOKUP('Calculs cachés'!A53+$V$2,'Intercorr. circ.'!$A$4:$S$6968,19)>Présentation!$N$1,"",VLOOKUP('Calculs cachés'!A53+$V$2,'Intercorr. circ.'!$A$4:$S$6968,19)),IF($I$1="Sans les ND",IF(VLOOKUP('Calculs cachés'!A53+$V$2,'IC sans ND'!$A$4:$S$3886,19)>Présentation!$N$1,"",VLOOKUP('Calculs cachés'!A53+$V$2,'IC sans ND'!$A$4:$S$3886,19)),IF($I$1="Sans les ND et les TR",IF(VLOOKUP('Calculs cachés'!A53+$V$2,'IC sans ND et TR'!$A$4:$S$1943,19)>Présentation!$N$1,"",VLOOKUP('Calculs cachés'!A53+$V$2,'IC sans ND et TR'!$A$4:$S$1943,19)),IF(VLOOKUP('Calculs cachés'!A53+$V$2,'IC sans TR'!$A$4:$S$3485,19)>Présentation!$N$1,"",VLOOKUP('Calculs cachés'!A53+$V$2,'IC sans TR'!$A$4:$S$3485,19))))) -> 1.466666667 | C26: =IF($I$1="Tous les tempéraments",IF(B26<=Présentation!$N$1,VLOOKUP('Calculs cachés'!A53+$V$2,'Intercorr. circ.'!$A$4:$S$6968,2),""),IF($I$1="Sans les ND",IF(B26<=Présentation!$N$1,VLOOKUP('Calculs cachés'!A53+$V$2,'IC sans ND'!$A$4:$S$3886,2),""),IF($I$1="Sans les ND et les TR",IF(B26<=Présentation!$N$1,VLOOKUP('Calculs cachés'!A53+$V$2,'IC sans ND et TR'!$A$4:$S$1943,2),""),IF(B26<=Présentation!$N$1,VLOOKUP('Calculs cachés'!A53+$V$2,'IC sans TR'!$A$4:$S$3485,2),"")))) -> Di Veroli - Fa | D26: =IF($I$1="Tous les tempéraments",IF(C26="","",VLOOKUP('Calculs cachés'!A53+$V$2,'Intercorr. circ.'!$A$4:$S$6968,18)),IF($I$1="Sans les ND",IF(C26="","",VLOOKUP('Calculs cachés'!A53+$V$2,'IC sans ND'!$A$4:$S$3886,18)),IF($I$1="Sans Les ND et les TR",IF(C26="","",VLOOKUP('Calculs cachés'!A53+$V$2,'IC sans ND et TR'!$A$4:$S$1943,18)),IF(C26="","",VLOOKUP('Calculs cachés'!A53+$V$2,'IC sans TR'!$A$4:$S$3485,18))))) -> 2008 | U26: =IF(AND(($I$1="Tous les tempéraments"),('Intercorr. circ.'!S28=0)),1,IF(AND(($I$1="Sans les ND"),('IC sans ND'!S28=0)),1,IF(AND(($I$1="Sans les TR"),('IC sans TR'!S28=0)),1,IF(AND(($I$1="Sans les ND et TR"),('IC sans ND et TR'!S28=0)),1,"")))) -> 
B27: =IF($I$1="Tous les tempéraments",IF(VLOOKUP('Calculs cachés'!A54+$V$2,'Intercorr. circ.'!$A$4:$S$6968,19)>Présentation!$N$1,"",VLOOKUP('Calculs cachés'!A54+$V$2,'Intercorr. circ.'!$A$4:$S$6968,19)),IF($I$1="Sans les ND",IF(VLOOKUP('Calculs cachés'!A54+$V$2,'IC sans ND'!$A$4:$S$3886,19)>Présentation!$N$1,"",VLOOKUP('Calculs cachés'!A54+$V$2,'IC sans ND'!$A$4:$S$3886,19)),IF($I$1="Sans les ND et les TR",IF(VLOOKUP('Calculs cachés'!A54+$V$2,'IC sans ND et TR'!$A$4:$S$1943,19)>Présentation!$N$1,"",VLOOKUP('Calculs cachés'!A54+$V$2,'IC sans ND et TR'!$A$4:$S$1943,19)),IF(VLOOKUP('Calculs cachés'!A54+$V$2,'IC sans TR'!$A$4:$S$3485,19)>Présentation!$N$1,"",VLOOKUP('Calculs cachés'!A54+$V$2,'IC sans TR'!$A$4:$S$3485,19))))) -> 1.483333333 | C27: =IF($I$1="Tous les tempéraments",IF(B27<=Présentation!$N$1,VLOOKUP('Calculs cachés'!A54+$V$2,'Intercorr. circ.'!$A$4:$S$6968,2),""),IF($I$1="Sans les ND",IF(B27<=Présentation!$N$1,VLOOKUP('Calculs cachés'!A54+$V$2,'IC sans ND'!$A$4:$S$3886,2),""),IF($I$1="Sans les ND et les TR",IF(B27<=Présentation!$N$1,VLOOKUP('Calculs cachés'!A54+$V$2,'IC sans ND et TR'!$A$4:$S$1943,2),""),IF(B27<=Présentation!$N$1,VLOOKUP('Calculs cachés'!A54+$V$2,'IC sans TR'!$A$4:$S$3485,2),"")))) -> Maunder « c » 1/7 et 1/4 cp - Sib | D27: =IF($I$1="Tous les tempéraments",IF(C27="","",VLOOKUP('Calculs cachés'!A54+$V$2,'Intercorr. circ.'!$A$4:$S$6968,18)),IF($I$1="Sans les ND",IF(C27="","",VLOOKUP('Calculs cachés'!A54+$V$2,'IC sans ND'!$A$4:$S$3886,18)),IF($I$1="Sans Les ND et les TR",IF(C27="","",VLOOKUP('Calculs cachés'!A54+$V$2,'IC sans ND et TR'!$A$4:$S$1943,18)),IF(C27="","",VLOOKUP('Calculs cachés'!A54+$V$2,'IC sans TR'!$A$4:$S$3485,18))))) -> 2005 | N27: =IF('Intercorr. circ.'!S29=0,1,"") ->  | U27: =IF(AND(($I$1="Tous les tempéraments"),('Intercorr. circ.'!S29=0)),1,IF(AND(($I$1="Sans les ND"),('IC sans ND'!S29=0)),1,IF(AND(($I$1="Sans les TR"),('IC sans TR'!S29=0)),1,IF(AND(($I$1="Sans les ND et TR"),('IC sans ND et TR'!S29=0)),1,"")))) -> 
B28: =IF($I$1="Tous les tempéraments",IF(VLOOKUP('Calculs cachés'!A55+$V$2,'Intercorr. circ.'!$A$4:$S$6968,19)>Présentation!$N$1,"",VLOOKUP('Calculs cachés'!A55+$V$2,'Intercorr. circ.'!$A$4:$S$6968,19)),IF($I$1="Sans les ND",IF(VLOOKUP('Calculs cachés'!A55+$V$2,'IC sans ND'!$A$4:$S$3886,19)>Présentation!$N$1,"",VLOOKUP('Calculs cachés'!A55+$V$2,'IC sans ND'!$A$4:$S$3886,19)),IF($I$1="Sans les ND et les TR",IF(VLOOKUP('Calculs cachés'!A55+$V$2,'IC sans ND et TR'!$A$4:$S$1943,19)>Présentation!$N$1,"",VLOOKUP('Calculs cachés'!A55+$V$2,'IC sans ND et TR'!$A$4:$S$1943,19)),IF(VLOOKUP('Calculs cachés'!A55+$V$2,'IC sans TR'!$A$4:$S$3485,19)>Présentation!$N$1,"",VLOOKUP('Calculs cachés'!A55+$V$2,'IC sans TR'!$A$4:$S$3485,19))))) -> 1.5 | C28: =IF($I$1="Tous les tempéraments",IF(B28<=Présentation!$N$1,VLOOKUP('Calculs cachés'!A55+$V$2,'Intercorr. circ.'!$A$4:$S$6968,2),""),IF($I$1="Sans les ND",IF(B28<=Présentation!$N$1,VLOOKUP('Calculs cachés'!A55+$V$2,'IC sans ND'!$A$4:$S$3886,2),""),IF($I$1="Sans les ND et les TR",IF(B28<=Présentation!$N$1,VLOOKUP('Calculs cachés'!A55+$V$2,'IC sans ND et TR'!$A$4:$S$1943,2),""),IF(B28<=Présentation!$N$1,VLOOKUP('Calculs cachés'!A55+$V$2,'IC sans TR'!$A$4:$S$3485,2),"")))) -> Lucktenberg - Fa | D28: =IF($I$1="Tous les tempéraments",IF(C28="","",VLOOKUP('Calculs cachés'!A55+$V$2,'Intercorr. circ.'!$A$4:$S$6968,18)),IF($I$1="Sans les ND",IF(C28="","",VLOOKUP('Calculs cachés'!A55+$V$2,'IC sans ND'!$A$4:$S$3886,18)),IF($I$1="Sans Les ND et les TR",IF(C28="","",VLOOKUP('Calculs cachés'!A55+$V$2,'IC sans ND et TR'!$A$4:$S$1943,18)),IF(C28="","",VLOOKUP('Calculs cachés'!A55+$V$2,'IC sans TR'!$A$4:$S$3485,18))))) -> 2005
B29: =IF($I$1="Tous les tempéraments",IF(VLOOKUP('Calculs cachés'!A56+$V$2,'Intercorr. circ.'!$A$4:$S$6968,19)>Présentation!$N$1,"",VLOOKUP('Calculs cachés'!A56+$V$2,'Intercorr. circ.'!$A$4:$S$6968,19)),IF($I$1="Sans les ND",IF(VLOOKUP('Calculs cachés'!A56+$V$2,'IC sans ND'!$A$4:$S$3886,19)>Présentation!$N$1,"",VLOOKUP('Calculs cachés'!A56+$V$2,'IC sans ND'!$A$4:$S$3886,19)),IF($I$1="Sans les ND et les TR",IF(VLOOKUP('Calculs cachés'!A56+$V$2,'IC sans ND et TR'!$A$4:$S$1943,19)>Présentation!$N$1,"",VLOOKUP('Calculs cachés'!A56+$V$2,'IC sans ND et TR'!$A$4:$S$1943,19)),IF(VLOOKUP('Calculs cachés'!A56+$V$2,'IC sans TR'!$A$4:$S$3485,19)>Présentation!$N$1,"",VLOOKUP('Calculs cachés'!A56+$V$2,'IC sans TR'!$A$4:$S$3485,19))))) -> 1.5 | C29: =IF($I$1="Tous les tempéraments",IF(B29<=Présentation!$N$1,VLOOKUP('Calculs cachés'!A56+$V$2,'Intercorr. circ.'!$A$4:$S$6968,2),""),IF($I$1="Sans les ND",IF(B29<=Présentation!$N$1,VLOOKUP('Calculs cachés'!A56+$V$2,'IC sans ND'!$A$4:$S$3886,2),""),IF($I$1="Sans les ND et les TR",IF(B29<=Présentation!$N$1,VLOOKUP('Calculs cachés'!A56+$V$2,'IC sans ND et TR'!$A$4:$S$1943,2),""),IF(B29<=Présentation!$N$1,VLOOKUP('Calculs cachés'!A56+$V$2,'IC sans TR'!$A$4:$S$3485,2),"")))) -> Calvet baroque 1/8 cp - Si | D29: =IF($I$1="Tous les tempéraments",IF(C29="","",VLOOKUP('Calculs cachés'!A56+$V$2,'Intercorr. circ.'!$A$4:$S$6968,18)),IF($I$1="Sans les ND",IF(C29="","",VLOOKUP('Calculs cachés'!A56+$V$2,'IC sans ND'!$A$4:$S$3886,18)),IF($I$1="Sans Les ND et les TR",IF(C29="","",VLOOKUP('Calculs cachés'!A56+$V$2,'IC sans ND et TR'!$A$4:$S$1943,18)),IF(C29="","",VLOOKUP('Calculs cachés'!A56+$V$2,'IC sans TR'!$A$4:$S$3485,18))))) -> 2011 | N29: =IF('Intercorr. circ.'!S31=0,1,"") -> 
B30: =IF($I$1="Tous les tempéraments",IF(VLOOKUP('Calculs cachés'!A57+$V$2,'Intercorr. circ.'!$A$4:$S$6968,19)>Présentation!$N$1,"",VLOOKUP('Calculs cachés'!A57+$V$2,'Intercorr. circ.'!$A$4:$S$6968,19)),IF($I$1="Sans les ND",IF(VLOOKUP('Calculs cachés'!A57+$V$2,'IC sans ND'!$A$4:$S$3886,19)>Présentation!$N$1,"",VLOOKUP('Calculs cachés'!A57+$V$2,'IC sans ND'!$A$4:$S$3886,19)),IF($I$1="Sans les ND et les TR",IF(VLOOKUP('Calculs cachés'!A57+$V$2,'IC sans ND et TR'!$A$4:$S$1943,19)>Présentation!$N$1,"",VLOOKUP('Calculs cachés'!A57+$V$2,'IC sans ND et TR'!$A$4:$S$1943,19)),IF(VLOOKUP('Calculs cachés'!A57+$V$2,'IC sans TR'!$A$4:$S$3485,19)>Présentation!$N$1,"",VLOOKUP('Calculs cachés'!A57+$V$2,'IC sans TR'!$A$4:$S$3485,19))))) -> 1.5 | C30: =IF($I$1="Tous les tempéraments",IF(B30<=Présentation!$N$1,VLOOKUP('Calculs cachés'!A57+$V$2,'Intercorr. circ.'!$A$4:$S$6968,2),""),IF($I$1="Sans les ND",IF(B30<=Présentation!$N$1,VLOOKUP('Calculs cachés'!A57+$V$2,'IC sans ND'!$A$4:$S$3886,2),""),IF($I$1="Sans les ND et les TR",IF(B30<=Présentation!$N$1,VLOOKUP('Calculs cachés'!A57+$V$2,'IC sans ND et TR'!$A$4:$S$1943,2),""),IF(B30<=Présentation!$N$1,VLOOKUP('Calculs cachés'!A57+$V$2,'IC sans TR'!$A$4:$S$3485,2),"")))) -> Neidhardt I - Do | D30: =IF($I$1="Tous les tempéraments",IF(C30="","",VLOOKUP('Calculs cachés'!A57+$V$2,'Intercorr. circ.'!$A$4:$S$6968,18)),IF($I$1="Sans les ND",IF(C30="","",VLOOKUP('Calculs cachés'!A57+$V$2,'IC sans ND'!$A$4:$S$3886,18)),IF($I$1="Sans Les ND et les TR",IF(C30="","",VLOOKUP('Calculs cachés'!A57+$V$2,'IC sans ND et TR'!$A$4:$S$1943,18)),IF(C30="","",VLOOKUP('Calculs cachés'!A57+$V$2,'IC sans TR'!$A$4:$S$3485,18))))) -> 1732 | F30: Ecart cents au TE
B31: =IF($I$1="Tous les tempéraments",IF(VLOOKUP('Calculs cachés'!A58+$V$2,'Intercorr. circ.'!$A$4:$S$6968,19)>Présentation!$N$1,"",VLOOKUP('Calculs cachés'!A58+$V$2,'Intercorr. circ.'!$A$4:$S$6968,19)),IF($I$1="Sans les ND",IF(VLOOKUP('Calculs cachés'!A58+$V$2,'IC sans ND'!$A$4:$S$3886,19)>Présentation!$N$1,"",VLOOKUP('Calculs cachés'!A58+$V$2,'IC sans ND'!$A$4:$S$3886,19)),IF($I$1="Sans les ND et les TR",IF(VLOOKUP('Calculs cachés'!A58+$V$2,'IC sans ND et TR'!$A$4:$S$1943,19)>Présentation!$N$1,"",VLOOKUP('Calculs cachés'!A58+$V$2,'IC sans ND et TR'!$A$4:$S$1943,19)),IF(VLOOKUP('Calculs cachés'!A58+$V$2,'IC sans TR'!$A$4:$S$3485,19)>Présentation!$N$1,"",VLOOKUP('Calculs cachés'!A58+$V$2,'IC sans TR'!$A$4:$S$3485,19))))) -> 1.5 | C31: =IF($I$1="Tous les tempéraments",IF(B31<=Présentation!$N$1,VLOOKUP('Calculs cachés'!A58+$V$2,'Intercorr. circ.'!$A$4:$S$6968,2),""),IF($I$1="Sans les ND",IF(B31<=Présentation!$N$1,VLOOKUP('Calculs cachés'!A58+$V$2,'IC sans ND'!$A$4:$S$3886,2),""),IF($I$1="Sans les ND et les TR",IF(B31<=Présentation!$N$1,VLOOKUP('Calculs cachés'!A58+$V$2,'IC sans ND et TR'!$A$4:$S$1943,2),""),IF(B31<=Présentation!$N$1,VLOOKUP('Calculs cachés'!A58+$V$2,'IC sans TR'!$A$4:$S$3485,2),"")))) -> Lucktenberg - Do | D31: =IF($I$1="Tous les tempéraments",IF(C31="","",VLOOKUP('Calculs cachés'!A58+$V$2,'Intercorr. circ.'!$A$4:$S$6968,18)),IF($I$1="Sans les ND",IF(C31="","",VLOOKUP('Calculs cachés'!A58+$V$2,'IC sans ND'!$A$4:$S$3886,18)),IF($I$1="Sans Les ND et les TR",IF(C31="","",VLOOKUP('Calculs cachés'!A58+$V$2,'IC sans ND et TR'!$A$4:$S$1943,18)),IF(C31="","",VLOOKUP('Calculs cachés'!A58+$V$2,'IC sans TR'!$A$4:$S$3485,18))))) -> 2005 | F31: TE | G31: 0 | H31: 0 | I31: 0 | J31: 0 | K31: 0 | L31: 0 | M31: 0 | N31: 0 | O31: 0 | P31: 0 | Q31: 0 | R31: 0 | S31: 0
B32: =IF($I$1="Tous les tempéraments",IF(VLOOKUP('Calculs cachés'!A59+$V$2,'Intercorr. circ.'!$A$4:$S$6968,19)>Présentation!$N$1,"",VLOOKUP('Calculs cachés'!A59+$V$2,'Intercorr. circ.'!$A$4:$S$6968,19)),IF($I$1="Sans les ND",IF(VLOOKUP('Calculs cachés'!A59+$V$2,'IC sans ND'!$A$4:$S$3886,19)>Présentation!$N$1,"",VLOOKUP('Calculs cachés'!A59+$V$2,'IC sans ND'!$A$4:$S$3886,19)),IF($I$1="Sans les ND et les TR",IF(VLOOKUP('Calculs cachés'!A59+$V$2,'IC sans ND et TR'!$A$4:$S$1943,19)>Présentation!$N$1,"",VLOOKUP('Calculs cachés'!A59+$V$2,'IC sans ND et TR'!$A$4:$S$1943,19)),IF(VLOOKUP('Calculs cachés'!A59+$V$2,'IC sans TR'!$A$4:$S$3485,19)>Présentation!$N$1,"",VLOOKUP('Calculs cachés'!A59+$V$2,'IC sans TR'!$A$4:$S$3485,19))))) -> 1.5 | C32: =IF($I$1="Tous les tempéraments",IF(B32<=Présentation!$N$1,VLOOKUP('Calculs cachés'!A59+$V$2,'Intercorr. circ.'!$A$4:$S$6968,2),""),IF($I$1="Sans les ND",IF(B32<=Présentation!$N$1,VLOOKUP('Calculs cachés'!A59+$V$2,'IC sans ND'!$A$4:$S$3886,2),""),IF($I$1="Sans les ND et les TR",IF(B32<=Présentation!$N$1,VLOOKUP('Calculs cachés'!A59+$V$2,'IC sans ND et TR'!$A$4:$S$1943,2),""),IF(B32<=Présentation!$N$1,VLOOKUP('Calculs cachés'!A59+$V$2,'IC sans TR'!$A$4:$S$3485,2),"")))) -> Jira Tempérament fermé (pas de quinte large) - Sol | D32: =IF($I$1="Tous les tempéraments",IF(C32="","",VLOOKUP('Calculs cachés'!A59+$V$2,'Intercorr. circ.'!$A$4:$S$6968,18)),IF($I$1="Sans les ND",IF(C32="","",VLOOKUP('Calculs cachés'!A59+$V$2,'IC sans ND'!$A$4:$S$3886,18)),IF($I$1="Sans Les ND et les TR",IF(C32="","",VLOOKUP('Calculs cachés'!A59+$V$2,'IC sans ND et TR'!$A$4:$S$1943,18)),IF(C32="","",VLOOKUP('Calculs cachés'!A59+$V$2,'IC sans TR'!$A$4:$S$3485,18))))) -> 2000 | F32: =IF(Présentation!K1="Do-Do",Présentation!B1&" - "&"Do",Présentation!B1&" - "&"Fa") -> Asselin - Do | G32: =VLOOKUP($F$1,'Ecart cents'!$A$4:$AM$341,'Calculs cachés'!C18) -> 0 | H32: =VLOOKUP($F$1,'Ecart cents'!$A$4:$AM$341,'Calculs cachés'!D18) -> -4 | I32: =VLOOKUP($F$1,'Ecart cents'!$A$4:$AM$341,'Calculs cachés'!E18) -> -2 | J32: =VLOOKUP($F$1,'Ecart cents'!$A$4:$AM$341,'Calculs cachés'!F18) -> 0 | K32: =VLOOKUP($F$1,'Ecart cents'!$A$4:$AM$341,'Calculs cachés'!G18) -> -4 | L32: =VLOOKUP($F$1,'Ecart cents'!$A$4:$AM$341,'Calculs cachés'!H18) -> 1 | M32: =VLOOKUP($F$1,'Ecart cents'!$A$4:$AM$341,'Calculs cachés'!I18) -> -6 | N32: =VLOOKUP($F$1,'Ecart cents'!$A$4:$AM$341,'Calculs cachés'!J18) -> -1 | O32: =VLOOKUP($F$1,'Ecart cents'!$A$4:$AM$341,'Calculs cachés'!K18) -> -2 | P32: =VLOOKUP($F$1,'Ecart cents'!$A$4:$AM$341,'Calculs cachés'!L18) -> -3 | Q32: =VLOOKUP($F$1,'Ecart cents'!$A$4:$AM$341,'Calculs cachés'!M18) -> 2 | R32: =VLOOKUP($F$1,'Ecart cents'!$A$4:$AM$341,'Calculs cachés'!N18) -> -5 | S32: =VLOOKUP($F$1,'Ecart cents'!$A$4:$AM$341,'Calculs cachés'!O18) -> 0
B33: =IF($I$1="Tous les tempéraments",IF(VLOOKUP('Calculs cachés'!A60+$V$2,'Intercorr. circ.'!$A$4:$S$6968,19)>Présentation!$N$1,"",VLOOKUP('Calculs cachés'!A60+$V$2,'Intercorr. circ.'!$A$4:$S$6968,19)),IF($I$1="Sans les ND",IF(VLOOKUP('Calculs cachés'!A60+$V$2,'IC sans ND'!$A$4:$S$3886,19)>Présentation!$N$1,"",VLOOKUP('Calculs cachés'!A60+$V$2,'IC sans ND'!$A$4:$S$3886,19)),IF($I$1="Sans les ND et les TR",IF(VLOOKUP('Calculs cachés'!A60+$V$2,'IC sans ND et TR'!$A$4:$S$1943,19)>Présentation!$N$1,"",VLOOKUP('Calculs cachés'!A60+$V$2,'IC sans ND et TR'!$A$4:$S$1943,19)),IF(VLOOKUP('Calculs cachés'!A60+$V$2,'IC sans TR'!$A$4:$S$3485,19)>Présentation!$N$1,"",VLOOKUP('Calculs cachés'!A60+$V$2,'IC sans TR'!$A$4:$S$3485,19))))) -> 1.533333333 | C33: =IF($I$1="Tous les tempéraments",IF(B33<=Présentation!$N$1,VLOOKUP('Calculs cachés'!A60+$V$2,'Intercorr. circ.'!$A$4:$S$6968,2),""),IF($I$1="Sans les ND",IF(B33<=Présentation!$N$1,VLOOKUP('Calculs cachés'!A60+$V$2,'IC sans ND'!$A$4:$S$3886,2),""),IF($I$1="Sans les ND et les TR",IF(B33<=Présentation!$N$1,VLOOKUP('Calculs cachés'!A60+$V$2,'IC sans ND et TR'!$A$4:$S$1943,2),""),IF(B33<=Présentation!$N$1,VLOOKUP('Calculs cachés'!A60+$V$2,'IC sans TR'!$A$4:$S$3485,2),"")))) -> Francis 1/4 sc - Sol | D33: =IF($I$1="Tous les tempéraments",IF(C33="","",VLOOKUP('Calculs cachés'!A60+$V$2,'Intercorr. circ.'!$A$4:$S$6968,18)),IF($I$1="Sans les ND",IF(C33="","",VLOOKUP('Calculs cachés'!A60+$V$2,'IC sans ND'!$A$4:$S$3886,18)),IF($I$1="Sans Les ND et les TR",IF(C33="","",VLOOKUP('Calculs cachés'!A60+$V$2,'IC sans ND et TR'!$A$4:$S$1943,18)),IF(C33="","",VLOOKUP('Calculs cachés'!A60+$V$2,'IC sans TR'!$A$4:$S$3485,18))))) -> 2005 | F33: =G23 -> Bertier Jérôme - Fa | G33: =IF($L$25="Valeurs normales",VLOOKUP($F$33,'Ecarts cents x12'!$A$4:$R$6968,'Calculs cachés'!D18),VLOOKUP($F$33,'Ecarts cents x12'!$A$4:$R$6968,'Calculs cachés'!D18)-VLOOKUP($F$33,'Ecarts cents x12'!$A$4:$R$6968,'Calculs cachés'!$D$18)) -> 0 | H33: =IF($L$25="Valeurs normales",VLOOKUP($F$33,'Ecarts cents x12'!$A$4:$R$6968,'Calculs cachés'!E18),VLOOKUP($F$33,'Ecarts cents x12'!$A$4:$R$6968,'Calculs cachés'!E18)-VLOOKUP($F$33,'Ecarts cents x12'!$A$4:$R$6968,'Calculs cachés'!$D$18)) -> -5.341 | I33: =IF($L$25="Valeurs normales",VLOOKUP($F$33,'Ecarts cents x12'!$A$4:$R$6968,'Calculs cachés'!F18),VLOOKUP($F$33,'Ecarts cents x12'!$A$4:$R$6968,'Calculs cachés'!F18)-VLOOKUP($F$33,'Ecarts cents x12'!$A$4:$R$6968,'Calculs cachés'!$D$18)) -> -3.386 | J33: =IF($L$25="Valeurs normales",VLOOKUP($F$33,'Ecarts cents x12'!$A$4:$R$6968,'Calculs cachés'!G18),VLOOKUP($F$33,'Ecarts cents x12'!$A$4:$R$6968,'Calculs cachés'!G18)-VLOOKUP($F$33,'Ecarts cents x12'!$A$4:$R$6968,'Calculs cachés'!$D$18)) -> -1.431 | K33: =IF($L$25="Valeurs normales",VLOOKUP($F$33,'Ecarts cents x12'!$A$4:$R$6968,'Calculs cachés'!H18),VLOOKUP($F$33,'Ecarts cents x12'!$A$4:$R$6968,'Calculs cachés'!H18)-VLOOKUP($F$33,'Ecarts cents x12'!$A$4:$R$6968,'Calculs cachés'!$D$18)) -> -6.772 | L33: =IF($L$25="Valeurs normales",VLOOKUP($F$33,'Ecarts cents x12'!$A$4:$R$6968,'Calculs cachés'!I18),VLOOKUP($F$33,'Ecarts cents x12'!$A$4:$R$6968,'Calculs cachés'!I18)-VLOOKUP($F$33,'Ecarts cents x12'!$A$4:$R$6968,'Calculs cachés'!$D$18)) -> 0.524 | M33: =IF($L$25="Valeurs normales",VLOOKUP($F$33,'Ecarts cents x12'!$A$4:$R$6968,'Calculs cachés'!J18),VLOOKUP($F$33,'Ecarts cents x12'!$A$4:$R$6968,'Calculs cachés'!J18)-VLOOKUP($F$33,'Ecarts cents x12'!$A$4:$R$6968,'Calculs cachés'!$D$18)) -> -6.772 | N33: =IF($L$25="Valeurs normales",VLOOKUP($F$33,'Ecarts cents x12'!$A$4:$R$6968,'Calculs cachés'!K18),VLOOKUP($F$33,'Ecarts cents x12'!$A$4:$R$6968,'Calculs cachés'!K18)-VLOOKUP($F$33,'Ecarts cents x12'!$A$4:$R$6968,'Calculs cachés'!$D$18)) -> -1.431 | O33: =IF($L$25="Valeurs normales",VLOOKUP($F$33,'Ecarts cents x12'!$A$4:$R$6968,'Calculs cachés'!L18),VLOOKUP($F$33,'Ecarts cents x12'!$A$4:$R$6968,'Calculs cachés'!L18)-VLOOKUP($F$33,'Ecarts cents x12'!$A$4:$R$6968,'Calculs cachés'!$D$18)) -> -3.386 | P33: =IF($L$25="Valeurs normales",VLOOKUP($F$33,'Ecarts cents x12'!$A$4:$R$6968,'Calculs cachés'!M18),VLOOKUP($F$33,'Ecarts cents x12'!$A$4:$R$6968,'Calculs cachés'!M18)-VLOOKUP($F$33,'Ecarts cents x12'!$A$4:$R$6968,'Calculs cachés'!$D$18)) -> -5.341 | Q33: =IF($L$25="Valeurs normales",VLOOKUP($F$33,'Ecarts cents x12'!$A$4:$R$6968,'Calculs cachés'!N18),VLOOKUP($F$33,'Ecarts cents x12'!$A$4:$R$6968,'Calculs cachés'!N18)-VLOOKUP($F$33,'Ecarts cents x12'!$A$4:$R$6968,'Calculs cachés'!$D$18)) -> 0 | R33: =IF($L$25="Valeurs normales",VLOOKUP($F$33,'Ecarts cents x12'!$A$4:$R$6968,'Calculs cachés'!O18),VLOOKUP($F$33,'Ecarts cents x12'!$A$4:$R$6968,'Calculs cachés'!O18)-VLOOKUP($F$33,'Ecarts cents x12'!$A$4:$R$6968,'Calculs cachés'!$D$18)) -> -7.296 | S33: =IF($L$25="Valeurs normales",VLOOKUP($F$33,'Ecarts cents x12'!$A$4:$R$6968,'Calculs cachés'!P18),VLOOKUP($F$33,'Ecarts cents x12'!$A$4:$R$6968,'Calculs cachés'!P18)-VLOOKUP($F$33,'Ecarts cents x12'!$A$4:$R$6968,'Calculs cachés'!$D$18)) -> 0
B34: =IF($I$1="Tous les tempéraments",IF(VLOOKUP('Calculs cachés'!A61+$V$2,'Intercorr. circ.'!$A$4:$S$6968,19)>Présentation!$N$1,"",VLOOKUP('Calculs cachés'!A61+$V$2,'Intercorr. circ.'!$A$4:$S$6968,19)),IF($I$1="Sans les ND",IF(VLOOKUP('Calculs cachés'!A61+$V$2,'IC sans ND'!$A$4:$S$3886,19)>Présentation!$N$1,"",VLOOKUP('Calculs cachés'!A61+$V$2,'IC sans ND'!$A$4:$S$3886,19)),IF($I$1="Sans les ND et les TR",IF(VLOOKUP('Calculs cachés'!A61+$V$2,'IC sans ND et TR'!$A$4:$S$1943,19)>Présentation!$N$1,"",VLOOKUP('Calculs cachés'!A61+$V$2,'IC sans ND et TR'!$A$4:$S$1943,19)),IF(VLOOKUP('Calculs cachés'!A61+$V$2,'IC sans TR'!$A$4:$S$3485,19)>Présentation!$N$1,"",VLOOKUP('Calculs cachés'!A61+$V$2,'IC sans TR'!$A$4:$S$3485,19))))) -> 1.533333333 | C34: =IF($I$1="Tous les tempéraments",IF(B34<=Présentation!$N$1,VLOOKUP('Calculs cachés'!A61+$V$2,'Intercorr. circ.'!$A$4:$S$6968,2),""),IF($I$1="Sans les ND",IF(B34<=Présentation!$N$1,VLOOKUP('Calculs cachés'!A61+$V$2,'IC sans ND'!$A$4:$S$3886,2),""),IF($I$1="Sans les ND et les TR",IF(B34<=Présentation!$N$1,VLOOKUP('Calculs cachés'!A61+$V$2,'IC sans ND et TR'!$A$4:$S$1943,2),""),IF(B34<=Présentation!$N$1,VLOOKUP('Calculs cachés'!A61+$V$2,'IC sans TR'!$A$4:$S$3485,2),"")))) -> Francis Battements égaux - Fa | D34: =IF($I$1="Tous les tempéraments",IF(C34="","",VLOOKUP('Calculs cachés'!A61+$V$2,'Intercorr. circ.'!$A$4:$S$6968,18)),IF($I$1="Sans les ND",IF(C34="","",VLOOKUP('Calculs cachés'!A61+$V$2,'IC sans ND'!$A$4:$S$3886,18)),IF($I$1="Sans Les ND et les TR",IF(C34="","",VLOOKUP('Calculs cachés'!A61+$V$2,'IC sans ND et TR'!$A$4:$S$1943,18)),IF(C34="","",VLOOKUP('Calculs cachés'!A61+$V$2,'IC sans TR'!$A$4:$S$3485,18))))) -> 2005 | F34: Différence | G34: =G33-G32 -> 0 | H34: =H33-H32 -> -1.341 | I34: -1.386 | J34: -1.431 | K34: -2.772 | L34: -0.476 | M34: -0.772 | N34: -0.431 | O34: -1.386 | P34: -2.341 | Q34: -2 | R34: -2.296 | S34: 0
B35: =IF($I$1="Tous les tempéraments",IF(VLOOKUP('Calculs cachés'!A62+$V$2,'Intercorr. circ.'!$A$4:$S$6968,19)>Présentation!$N$1,"",VLOOKUP('Calculs cachés'!A62+$V$2,'Intercorr. circ.'!$A$4:$S$6968,19)),IF($I$1="Sans les ND",IF(VLOOKUP('Calculs cachés'!A62+$V$2,'IC sans ND'!$A$4:$S$3886,19)>Présentation!$N$1,"",VLOOKUP('Calculs cachés'!A62+$V$2,'IC sans ND'!$A$4:$S$3886,19)),IF($I$1="Sans les ND et les TR",IF(VLOOKUP('Calculs cachés'!A62+$V$2,'IC sans ND et TR'!$A$4:$S$1943,19)>Présentation!$N$1,"",VLOOKUP('Calculs cachés'!A62+$V$2,'IC sans ND et TR'!$A$4:$S$1943,19)),IF(VLOOKUP('Calculs cachés'!A62+$V$2,'IC sans TR'!$A$4:$S$3485,19)>Présentation!$N$1,"",VLOOKUP('Calculs cachés'!A62+$V$2,'IC sans TR'!$A$4:$S$3485,19))))) -> 1.583333333 | C35: =IF($I$1="Tous les tempéraments",IF(B35<=Présentation!$N$1,VLOOKUP('Calculs cachés'!A62+$V$2,'Intercorr. circ.'!$A$4:$S$6968,2),""),IF($I$1="Sans les ND",IF(B35<=Présentation!$N$1,VLOOKUP('Calculs cachés'!A62+$V$2,'IC sans ND'!$A$4:$S$3886,2),""),IF($I$1="Sans les ND et les TR",IF(B35<=Présentation!$N$1,VLOOKUP('Calculs cachés'!A62+$V$2,'IC sans ND et TR'!$A$4:$S$1943,2),""),IF(B35<=Présentation!$N$1,VLOOKUP('Calculs cachés'!A62+$V$2,'IC sans TR'!$A$4:$S$3485,2),"")))) -> Lindley 2006 1/7 cp - Do | D35: =IF($I$1="Tous les tempéraments",IF(C35="","",VLOOKUP('Calculs cachés'!A62+$V$2,'Intercorr. circ.'!$A$4:$S$6968,18)),IF($I$1="Sans les ND",IF(C35="","",VLOOKUP('Calculs cachés'!A62+$V$2,'IC sans ND'!$A$4:$S$3886,18)),IF($I$1="Sans Les ND et les TR",IF(C35="","",VLOOKUP('Calculs cachés'!A62+$V$2,'IC sans ND et TR'!$A$4:$S$1943,18)),IF(C35="","",VLOOKUP('Calculs cachés'!A62+$V$2,'IC sans TR'!$A$4:$S$3485,18))))) -> 2006 | N35: =IF('Intercorr. circ.'!S37=0,1,"") -> 
B36: =IF($I$1="Tous les tempéraments",IF(VLOOKUP('Calculs cachés'!A63+$V$2,'Intercorr. circ.'!$A$4:$S$6968,19)>Présentation!$N$1,"",VLOOKUP('Calculs cachés'!A63+$V$2,'Intercorr. circ.'!$A$4:$S$6968,19)),IF($I$1="Sans les ND",IF(VLOOKUP('Calculs cachés'!A63+$V$2,'IC sans ND'!$A$4:$S$3886,19)>Présentation!$N$1,"",VLOOKUP('Calculs cachés'!A63+$V$2,'IC sans ND'!$A$4:$S$3886,19)),IF($I$1="Sans les ND et les TR",IF(VLOOKUP('Calculs cachés'!A63+$V$2,'IC sans ND et TR'!$A$4:$S$1943,19)>Présentation!$N$1,"",VLOOKUP('Calculs cachés'!A63+$V$2,'IC sans ND et TR'!$A$4:$S$1943,19)),IF(VLOOKUP('Calculs cachés'!A63+$V$2,'IC sans TR'!$A$4:$S$3485,19)>Présentation!$N$1,"",VLOOKUP('Calculs cachés'!A63+$V$2,'IC sans TR'!$A$4:$S$3485,19))))) -> 1.616666667 | C36: =IF($I$1="Tous les tempéraments",IF(B36<=Présentation!$N$1,VLOOKUP('Calculs cachés'!A63+$V$2,'Intercorr. circ.'!$A$4:$S$6968,2),""),IF($I$1="Sans les ND",IF(B36<=Présentation!$N$1,VLOOKUP('Calculs cachés'!A63+$V$2,'IC sans ND'!$A$4:$S$3886,2),""),IF($I$1="Sans les ND et les TR",IF(B36<=Présentation!$N$1,VLOOKUP('Calculs cachés'!A63+$V$2,'IC sans ND et TR'!$A$4:$S$1943,2),""),IF(B36<=Présentation!$N$1,VLOOKUP('Calculs cachés'!A63+$V$2,'IC sans TR'!$A$4:$S$3485,2),"")))) -> Lindley conférence de Michaelstein - Sol | D36: =IF($I$1="Tous les tempéraments",IF(C36="","",VLOOKUP('Calculs cachés'!A63+$V$2,'Intercorr. circ.'!$A$4:$S$6968,18)),IF($I$1="Sans les ND",IF(C36="","",VLOOKUP('Calculs cachés'!A63+$V$2,'IC sans ND'!$A$4:$S$3886,18)),IF($I$1="Sans Les ND et les TR",IF(C36="","",VLOOKUP('Calculs cachés'!A63+$V$2,'IC sans ND et TR'!$A$4:$S$1943,18)),IF(C36="","",VLOOKUP('Calculs cachés'!A63+$V$2,'IC sans TR'!$A$4:$S$3485,18))))) -> 1994 | N36: =IF('Intercorr. circ.'!S38=0,1,"") -> 
B37: =IF($I$1="Tous les tempéraments",IF(VLOOKUP('Calculs cachés'!A64+$V$2,'Intercorr. circ.'!$A$4:$S$6968,19)>Présentation!$N$1,"",VLOOKUP('Calculs cachés'!A64+$V$2,'Intercorr. circ.'!$A$4:$S$6968,19)),IF($I$1="Sans les ND",IF(VLOOKUP('Calculs cachés'!A64+$V$2,'IC sans ND'!$A$4:$S$3886,19)>Présentation!$N$1,"",VLOOKUP('Calculs cachés'!A64+$V$2,'IC sans ND'!$A$4:$S$3886,19)),IF($I$1="Sans les ND et les TR",IF(VLOOKUP('Calculs cachés'!A64+$V$2,'IC sans ND et TR'!$A$4:$S$1943,19)>Présentation!$N$1,"",VLOOKUP('Calculs cachés'!A64+$V$2,'IC sans ND et TR'!$A$4:$S$1943,19)),IF(VLOOKUP('Calculs cachés'!A64+$V$2,'IC sans TR'!$A$4:$S$3485,19)>Présentation!$N$1,"",VLOOKUP('Calculs cachés'!A64+$V$2,'IC sans TR'!$A$4:$S$3485,19))))) -> 1.616666667 | C37: =IF($I$1="Tous les tempéraments",IF(B37<=Présentation!$N$1,VLOOKUP('Calculs cachés'!A64+$V$2,'Intercorr. circ.'!$A$4:$S$6968,2),""),IF($I$1="Sans les ND",IF(B37<=Présentation!$N$1,VLOOKUP('Calculs cachés'!A64+$V$2,'IC sans ND'!$A$4:$S$3886,2),""),IF($I$1="Sans les ND et les TR",IF(B37<=Présentation!$N$1,VLOOKUP('Calculs cachés'!A64+$V$2,'IC sans ND et TR'!$A$4:$S$1943,2),""),IF(B37<=Présentation!$N$1,VLOOKUP('Calculs cachés'!A64+$V$2,'IC sans TR'!$A$4:$S$3485,2),"")))) -> Di Veroli - Do | D37: =IF($I$1="Tous les tempéraments",IF(C37="","",VLOOKUP('Calculs cachés'!A64+$V$2,'Intercorr. circ.'!$A$4:$S$6968,18)),IF($I$1="Sans les ND",IF(C37="","",VLOOKUP('Calculs cachés'!A64+$V$2,'IC sans ND'!$A$4:$S$3886,18)),IF($I$1="Sans Les ND et les TR",IF(C37="","",VLOOKUP('Calculs cachés'!A64+$V$2,'IC sans ND et TR'!$A$4:$S$1943,18)),IF(C37="","",VLOOKUP('Calculs cachés'!A64+$V$2,'IC sans TR'!$A$4:$S$3485,18))))) -> 2008 | N37: =IF('Intercorr. circ.'!S39=0,1,"") -> 
B38: =IF($I$1="Tous les tempéraments",IF(VLOOKUP('Calculs cachés'!A65+$V$2,'Intercorr. circ.'!$A$4:$S$6968,19)>Présentation!$N$1,"",VLOOKUP('Calculs cachés'!A65+$V$2,'Intercorr. circ.'!$A$4:$S$6968,19)),IF($I$1="Sans les ND",IF(VLOOKUP('Calculs cachés'!A65+$V$2,'IC sans ND'!$A$4:$S$3886,19)>Présentation!$N$1,"",VLOOKUP('Calculs cachés'!A65+$V$2,'IC sans ND'!$A$4:$S$3886,19)),IF($I$1="Sans les ND et les TR",IF(VLOOKUP('Calculs cachés'!A65+$V$2,'IC sans ND et TR'!$A$4:$S$1943,19)>Présentation!$N$1,"",VLOOKUP('Calculs cachés'!A65+$V$2,'IC sans ND et TR'!$A$4:$S$1943,19)),IF(VLOOKUP('Calculs cachés'!A65+$V$2,'IC sans TR'!$A$4:$S$3485,19)>Présentation!$N$1,"",VLOOKUP('Calculs cachés'!A65+$V$2,'IC sans TR'!$A$4:$S$3485,19))))) -> 1.65 | C38: =IF($I$1="Tous les tempéraments",IF(B38<=Présentation!$N$1,VLOOKUP('Calculs cachés'!A65+$V$2,'Intercorr. circ.'!$A$4:$S$6968,2),""),IF($I$1="Sans les ND",IF(B38<=Présentation!$N$1,VLOOKUP('Calculs cachés'!A65+$V$2,'IC sans ND'!$A$4:$S$3886,2),""),IF($I$1="Sans les ND et les TR",IF(B38<=Présentation!$N$1,VLOOKUP('Calculs cachés'!A65+$V$2,'IC sans ND et TR'!$A$4:$S$1943,2),""),IF(B38<=Présentation!$N$1,VLOOKUP('Calculs cachés'!A65+$V$2,'IC sans TR'!$A$4:$S$3485,2),"")))) -> Sparshuh - Sol | D38: =IF($I$1="Tous les tempéraments",IF(C38="","",VLOOKUP('Calculs cachés'!A65+$V$2,'Intercorr. circ.'!$A$4:$S$6968,18)),IF($I$1="Sans les ND",IF(C38="","",VLOOKUP('Calculs cachés'!A65+$V$2,'IC sans ND'!$A$4:$S$3886,18)),IF($I$1="Sans Les ND et les TR",IF(C38="","",VLOOKUP('Calculs cachés'!A65+$V$2,'IC sans ND et TR'!$A$4:$S$1943,18)),IF(C38="","",VLOOKUP('Calculs cachés'!A65+$V$2,'IC sans TR'!$A$4:$S$3485,18))))) -> 1999 | N38: =IF('Intercorr. circ.'!S40=0,1,"") -> 
B39: =IF($I$1="Tous les tempéraments",IF(VLOOKUP('Calculs cachés'!A66+$V$2,'Intercorr. circ.'!$A$4:$S$6968,19)>Présentation!$N$1,"",VLOOKUP('Calculs cachés'!A66+$V$2,'Intercorr. circ.'!$A$4:$S$6968,19)),IF($I$1="Sans les ND",IF(VLOOKUP('Calculs cachés'!A66+$V$2,'IC sans ND'!$A$4:$S$3886,19)>Présentation!$N$1,"",VLOOKUP('Calculs cachés'!A66+$V$2,'IC sans ND'!$A$4:$S$3886,19)),IF($I$1="Sans les ND et les TR",IF(VLOOKUP('Calculs cachés'!A66+$V$2,'IC sans ND et TR'!$A$4:$S$1943,19)>Présentation!$N$1,"",VLOOKUP('Calculs cachés'!A66+$V$2,'IC sans ND et TR'!$A$4:$S$1943,19)),IF(VLOOKUP('Calculs cachés'!A66+$V$2,'IC sans TR'!$A$4:$S$3485,19)>Présentation!$N$1,"",VLOOKUP('Calculs cachés'!A66+$V$2,'IC sans TR'!$A$4:$S$3485,19))))) -> 1.666666667 | C39: =IF($I$1="Tous les tempéraments",IF(B39<=Présentation!$N$1,VLOOKUP('Calculs cachés'!A66+$V$2,'Intercorr. circ.'!$A$4:$S$6968,2),""),IF($I$1="Sans les ND",IF(B39<=Présentation!$N$1,VLOOKUP('Calculs cachés'!A66+$V$2,'IC sans ND'!$A$4:$S$3886,2),""),IF($I$1="Sans les ND et les TR",IF(B39<=Présentation!$N$1,VLOOKUP('Calculs cachés'!A66+$V$2,'IC sans ND et TR'!$A$4:$S$1943,2),""),IF(B39<=Présentation!$N$1,VLOOKUP('Calculs cachés'!A66+$V$2,'IC sans TR'!$A$4:$S$3485,2),"")))) -> Lehman 2 - Fa | D39: =IF($I$1="Tous les tempéraments",IF(C39="","",VLOOKUP('Calculs cachés'!A66+$V$2,'Intercorr. circ.'!$A$4:$S$6968,18)),IF($I$1="Sans les ND",IF(C39="","",VLOOKUP('Calculs cachés'!A66+$V$2,'IC sans ND'!$A$4:$S$3886,18)),IF($I$1="Sans Les ND et les TR",IF(C39="","",VLOOKUP('Calculs cachés'!A66+$V$2,'IC sans ND et TR'!$A$4:$S$1943,18)),IF(C39="","",VLOOKUP('Calculs cachés'!A66+$V$2,'IC sans TR'!$A$4:$S$3485,18))))) -> 2006 | N39: =IF('Intercorr. circ.'!S41=0,1,"") -> 
B40: =IF($I$1="Tous les tempéraments",IF(VLOOKUP('Calculs cachés'!A67+$V$2,'Intercorr. circ.'!$A$4:$S$6968,19)>Présentation!$N$1,"",VLOOKUP('Calculs cachés'!A67+$V$2,'Intercorr. circ.'!$A$4:$S$6968,19)),IF($I$1="Sans les ND",IF(VLOOKUP('Calculs cachés'!A67+$V$2,'IC sans ND'!$A$4:$S$3886,19)>Présentation!$N$1,"",VLOOKUP('Calculs cachés'!A67+$V$2,'IC sans ND'!$A$4:$S$3886,19)),IF($I$1="Sans les ND et les TR",IF(VLOOKUP('Calculs cachés'!A67+$V$2,'IC sans ND et TR'!$A$4:$S$1943,19)>Présentation!$N$1,"",VLOOKUP('Calculs cachés'!A67+$V$2,'IC sans ND et TR'!$A$4:$S$1943,19)),IF(VLOOKUP('Calculs cachés'!A67+$V$2,'IC sans TR'!$A$4:$S$3485,19)>Présentation!$N$1,"",VLOOKUP('Calculs cachés'!A67+$V$2,'IC sans TR'!$A$4:$S$3485,19))))) -> 1.666666667 | C40: =IF($I$1="Tous les tempéraments",IF(B40<=Présentation!$N$1,VLOOKUP('Calculs cachés'!A67+$V$2,'Intercorr. circ.'!$A$4:$S$6968,2),""),IF($I$1="Sans les ND",IF(B40<=Présentation!$N$1,VLOOKUP('Calculs cachés'!A67+$V$2,'IC sans ND'!$A$4:$S$3886,2),""),IF($I$1="Sans les ND et les TR",IF(B40<=Présentation!$N$1,VLOOKUP('Calculs cachés'!A67+$V$2,'IC sans ND et TR'!$A$4:$S$1943,2),""),IF(B40<=Présentation!$N$1,VLOOKUP('Calculs cachés'!A67+$V$2,'IC sans TR'!$A$4:$S$3485,2),"")))) -> Bach JS-Lehman - Fa | D40: =IF($I$1="Tous les tempéraments",IF(C40="","",VLOOKUP('Calculs cachés'!A67+$V$2,'Intercorr. circ.'!$A$4:$S$6968,18)),IF($I$1="Sans les ND",IF(C40="","",VLOOKUP('Calculs cachés'!A67+$V$2,'IC sans ND'!$A$4:$S$3886,18)),IF($I$1="Sans Les ND et les TR",IF(C40="","",VLOOKUP('Calculs cachés'!A67+$V$2,'IC sans ND et TR'!$A$4:$S$1943,18)),IF(C40="","",VLOOKUP('Calculs cachés'!A67+$V$2,'IC sans TR'!$A$4:$S$3485,18))))) -> 2005 | N40: =IF('Intercorr. circ.'!S42=0,1,"") -> 
B41: =IF($I$1="Tous les tempéraments",IF(VLOOKUP('Calculs cachés'!A68+$V$2,'Intercorr. circ.'!$A$4:$S$6968,19)>Présentation!$N$1,"",VLOOKUP('Calculs cachés'!A68+$V$2,'Intercorr. circ.'!$A$4:$S$6968,19)),IF($I$1="Sans les ND",IF(VLOOKUP('Calculs cachés'!A68+$V$2,'IC sans ND'!$A$4:$S$3886,19)>Présentation!$N$1,"",VLOOKUP('Calculs cachés'!A68+$V$2,'IC sans ND'!$A$4:$S$3886,19)),IF($I$1="Sans les ND et les TR",IF(VLOOKUP('Calculs cachés'!A68+$V$2,'IC sans ND et TR'!$A$4:$S$1943,19)>Présentation!$N$1,"",VLOOKUP('Calculs cachés'!A68+$V$2,'IC sans ND et TR'!$A$4:$S$1943,19)),IF(VLOOKUP('Calculs cachés'!A68+$V$2,'IC sans TR'!$A$4:$S$3485,19)>Présentation!$N$1,"",VLOOKUP('Calculs cachés'!A68+$V$2,'IC sans TR'!$A$4:$S$3485,19))))) -> 1.666666667 | C41: =IF($I$1="Tous les tempéraments",IF(B41<=Présentation!$N$1,VLOOKUP('Calculs cachés'!A68+$V$2,'Intercorr. circ.'!$A$4:$S$6968,2),""),IF($I$1="Sans les ND",IF(B41<=Présentation!$N$1,VLOOKUP('Calculs cachés'!A68+$V$2,'IC sans ND'!$A$4:$S$3886,2),""),IF($I$1="Sans les ND et les TR",IF(B41<=Présentation!$N$1,VLOOKUP('Calculs cachés'!A68+$V$2,'IC sans ND et TR'!$A$4:$S$1943,2),""),IF(B41<=Présentation!$N$1,VLOOKUP('Calculs cachés'!A68+$V$2,'IC sans TR'!$A$4:$S$3485,2),"")))) -> Neidhardt III - Do | D41: =IF($I$1="Tous les tempéraments",IF(C41="","",VLOOKUP('Calculs cachés'!A68+$V$2,'Intercorr. circ.'!$A$4:$S$6968,18)),IF($I$1="Sans les ND",IF(C41="","",VLOOKUP('Calculs cachés'!A68+$V$2,'IC sans ND'!$A$4:$S$3886,18)),IF($I$1="Sans Les ND et les TR",IF(C41="","",VLOOKUP('Calculs cachés'!A68+$V$2,'IC sans ND et TR'!$A$4:$S$1943,18)),IF(C41="","",VLOOKUP('Calculs cachés'!A68+$V$2,'IC sans TR'!$A$4:$S$3485,18))))) -> 1732 | N41: =IF('Intercorr. circ.'!S43=0,1,"") -> 
B42: =IF($I$1="Tous les tempéraments",IF(VLOOKUP('Calculs cachés'!A69+$V$2,'Intercorr. circ.'!$A$4:$S$6968,19)>Présentation!$N$1,"",VLOOKUP('Calculs cachés'!A69+$V$2,'Intercorr. circ.'!$A$4:$S$6968,19)),IF($I$1="Sans les ND",IF(VLOOKUP('Calculs cachés'!A69+$V$2,'IC sans ND'!$A$4:$S$3886,19)>Présentation!$N$1,"",VLOOKUP('Calculs cachés'!A69+$V$2,'IC sans ND'!$A$4:$S$3886,19)),IF($I$1="Sans les ND et les TR",IF(VLOOKUP('Calculs cachés'!A69+$V$2,'IC sans ND et TR'!$A$4:$S$1943,19)>Présentation!$N$1,"",VLOOKUP('Calculs cachés'!A69+$V$2,'IC sans ND et TR'!$A$4:$S$1943,19)),IF(VLOOKUP('Calculs cachés'!A69+$V$2,'IC sans TR'!$A$4:$S$3485,19)>Présentation!$N$1,"",VLOOKUP('Calculs cachés'!A69+$V$2,'IC sans TR'!$A$4:$S$3485,19))))) -> 1.666666667 | C42: =IF($I$1="Tous les tempéraments",IF(B42<=Présentation!$N$1,VLOOKUP('Calculs cachés'!A69+$V$2,'Intercorr. circ.'!$A$4:$S$6968,2),""),IF($I$1="Sans les ND",IF(B42<=Présentation!$N$1,VLOOKUP('Calculs cachés'!A69+$V$2,'IC sans ND'!$A$4:$S$3886,2),""),IF($I$1="Sans les ND et les TR",IF(B42<=Présentation!$N$1,VLOOKUP('Calculs cachés'!A69+$V$2,'IC sans ND et TR'!$A$4:$S$1943,2),""),IF(B42<=Présentation!$N$1,VLOOKUP('Calculs cachés'!A69+$V$2,'IC sans TR'!$A$4:$S$3485,2),"")))) -> Neidhardt I - Sol | D42: =IF($I$1="Tous les tempéraments",IF(C42="","",VLOOKUP('Calculs cachés'!A69+$V$2,'Intercorr. circ.'!$A$4:$S$6968,18)),IF($I$1="Sans les ND",IF(C42="","",VLOOKUP('Calculs cachés'!A69+$V$2,'IC sans ND'!$A$4:$S$3886,18)),IF($I$1="Sans Les ND et les TR",IF(C42="","",VLOOKUP('Calculs cachés'!A69+$V$2,'IC sans ND et TR'!$A$4:$S$1943,18)),IF(C42="","",VLOOKUP('Calculs cachés'!A69+$V$2,'IC sans TR'!$A$4:$S$3485,18))))) -> 1732 | N42: =IF('Intercorr. circ.'!S44=0,1,"") -> 
B43: =IF($I$1="Tous les tempéraments",IF(VLOOKUP('Calculs cachés'!A70+$V$2,'Intercorr. circ.'!$A$4:$S$6968,19)>Présentation!$N$1,"",VLOOKUP('Calculs cachés'!A70+$V$2,'Intercorr. circ.'!$A$4:$S$6968,19)),IF($I$1="Sans les ND",IF(VLOOKUP('Calculs cachés'!A70+$V$2,'IC sans ND'!$A$4:$S$3886,19)>Présentation!$N$1,"",VLOOKUP('Calculs cachés'!A70+$V$2,'IC sans ND'!$A$4:$S$3886,19)),IF($I$1="Sans les ND et les TR",IF(VLOOKUP('Calculs cachés'!A70+$V$2,'IC sans ND et TR'!$A$4:$S$1943,19)>Présentation!$N$1,"",VLOOKUP('Calculs cachés'!A70+$V$2,'IC sans ND et TR'!$A$4:$S$1943,19)),IF(VLOOKUP('Calculs cachés'!A70+$V$2,'IC sans TR'!$A$4:$S$3485,19)>Présentation!$N$1,"",VLOOKUP('Calculs cachés'!A70+$V$2,'IC sans TR'!$A$4:$S$3485,19))))) -> 1.733333333 | C43: =IF($I$1="Tous les tempéraments",IF(B43<=Présentation!$N$1,VLOOKUP('Calculs cachés'!A70+$V$2,'Intercorr. circ.'!$A$4:$S$6968,2),""),IF($I$1="Sans les ND",IF(B43<=Présentation!$N$1,VLOOKUP('Calculs cachés'!A70+$V$2,'IC sans ND'!$A$4:$S$3886,2),""),IF($I$1="Sans les ND et les TR",IF(B43<=Présentation!$N$1,VLOOKUP('Calculs cachés'!A70+$V$2,'IC sans ND et TR'!$A$4:$S$1943,2),""),IF(B43<=Présentation!$N$1,VLOOKUP('Calculs cachés'!A70+$V$2,'IC sans TR'!$A$4:$S$3485,2),"")))) -> Jira Tempérament ouvert (une quinte large) - Sol | D43: =IF($I$1="Tous les tempéraments",IF(C43="","",VLOOKUP('Calculs cachés'!A70+$V$2,'Intercorr. circ.'!$A$4:$S$6968,18)),IF($I$1="Sans les ND",IF(C43="","",VLOOKUP('Calculs cachés'!A70+$V$2,'IC sans ND'!$A$4:$S$3886,18)),IF($I$1="Sans Les ND et les TR",IF(C43="","",VLOOKUP('Calculs cachés'!A70+$V$2,'IC sans ND et TR'!$A$4:$S$1943,18)),IF(C43="","",VLOOKUP('Calculs cachés'!A70+$V$2,'IC sans TR'!$A$4:$S$3485,18))))) -> 2000 | N43: =IF('Intercorr. circ.'!S45=0,1,"") -> 
B44: =IF($I$1="Tous les tempéraments",IF(VLOOKUP('Calculs cachés'!A71+$V$2,'Intercorr. circ.'!$A$4:$S$6968,19)>Présentation!$N$1,"",VLOOKUP('Calculs cachés'!A71+$V$2,'Intercorr. circ.'!$A$4:$S$6968,19)),IF($I$1="Sans les ND",IF(VLOOKUP('Calculs cachés'!A71+$V$2,'IC sans ND'!$A$4:$S$3886,19)>Présentation!$N$1,"",VLOOKUP('Calculs cachés'!A71+$V$2,'IC sans ND'!$A$4:$S$3886,19)),IF($I$1="Sans les ND et les TR",IF(VLOOKUP('Calculs cachés'!A71+$V$2,'IC sans ND et TR'!$A$4:$S$1943,19)>Présentation!$N$1,"",VLOOKUP('Calculs cachés'!A71+$V$2,'IC sans ND et TR'!$A$4:$S$1943,19)),IF(VLOOKUP('Calculs cachés'!A71+$V$2,'IC sans TR'!$A$4:$S$3485,19)>Présentation!$N$1,"",VLOOKUP('Calculs cachés'!A71+$V$2,'IC sans TR'!$A$4:$S$3485,19))))) -> 1.75 | C44: =IF($I$1="Tous les tempéraments",IF(B44<=Présentation!$N$1,VLOOKUP('Calculs cachés'!A71+$V$2,'Intercorr. circ.'!$A$4:$S$6968,2),""),IF($I$1="Sans les ND",IF(B44<=Présentation!$N$1,VLOOKUP('Calculs cachés'!A71+$V$2,'IC sans ND'!$A$4:$S$3886,2),""),IF($I$1="Sans les ND et les TR",IF(B44<=Présentation!$N$1,VLOOKUP('Calculs cachés'!A71+$V$2,'IC sans ND et TR'!$A$4:$S$1943,2),""),IF(B44<=Présentation!$N$1,VLOOKUP('Calculs cachés'!A71+$V$2,'IC sans TR'!$A$4:$S$3485,2),"")))) -> Lindley 2006 1/7 cp - Sol | D44: =IF($I$1="Tous les tempéraments",IF(C44="","",VLOOKUP('Calculs cachés'!A71+$V$2,'Intercorr. circ.'!$A$4:$S$6968,18)),IF($I$1="Sans les ND",IF(C44="","",VLOOKUP('Calculs cachés'!A71+$V$2,'IC sans ND'!$A$4:$S$3886,18)),IF($I$1="Sans Les ND et les TR",IF(C44="","",VLOOKUP('Calculs cachés'!A71+$V$2,'IC sans ND et TR'!$A$4:$S$1943,18)),IF(C44="","",VLOOKUP('Calculs cachés'!A71+$V$2,'IC sans TR'!$A$4:$S$3485,18))))) -> 2006 | N44: =IF('Intercorr. circ.'!#REF!=0,1,"") -> 
B45: =IF($I$1="Tous les tempéraments",IF(VLOOKUP('Calculs cachés'!A72+$V$2,'Intercorr. circ.'!$A$4:$S$6968,19)>Présentation!$N$1,"",VLOOKUP('Calculs cachés'!A72+$V$2,'Intercorr. circ.'!$A$4:$S$6968,19)),IF($I$1="Sans les ND",IF(VLOOKUP('Calculs cachés'!A72+$V$2,'IC sans ND'!$A$4:$S$3886,19)>Présentation!$N$1,"",VLOOKUP('Calculs cachés'!A72+$V$2,'IC sans ND'!$A$4:$S$3886,19)),IF($I$1="Sans les ND et les TR",IF(VLOOKUP('Calculs cachés'!A72+$V$2,'IC sans ND et TR'!$A$4:$S$1943,19)>Présentation!$N$1,"",VLOOKUP('Calculs cachés'!A72+$V$2,'IC sans ND et TR'!$A$4:$S$1943,19)),IF(VLOOKUP('Calculs cachés'!A72+$V$2,'IC sans TR'!$A$4:$S$3485,19)>Présentation!$N$1,"",VLOOKUP('Calculs cachés'!A72+$V$2,'IC sans TR'!$A$4:$S$3485,19))))) -> 1.816666667 | C45: =IF($I$1="Tous les tempéraments",IF(B45<=Présentation!$N$1,VLOOKUP('Calculs cachés'!A72+$V$2,'Intercorr. circ.'!$A$4:$S$6968,2),""),IF($I$1="Sans les ND",IF(B45<=Présentation!$N$1,VLOOKUP('Calculs cachés'!A72+$V$2,'IC sans ND'!$A$4:$S$3886,2),""),IF($I$1="Sans les ND et les TR",IF(B45<=Présentation!$N$1,VLOOKUP('Calculs cachés'!A72+$V$2,'IC sans ND et TR'!$A$4:$S$1943,2),""),IF(B45<=Présentation!$N$1,VLOOKUP('Calculs cachés'!A72+$V$2,'IC sans TR'!$A$4:$S$3485,2),"")))) -> Jira Tempérament fermé (pas de quinte large) - Do | D45: =IF($I$1="Tous les tempéraments",IF(C45="","",VLOOKUP('Calculs cachés'!A72+$V$2,'Intercorr. circ.'!$A$4:$S$6968,18)),IF($I$1="Sans les ND",IF(C45="","",VLOOKUP('Calculs cachés'!A72+$V$2,'IC sans ND'!$A$4:$S$3886,18)),IF($I$1="Sans Les ND et les TR",IF(C45="","",VLOOKUP('Calculs cachés'!A72+$V$2,'IC sans ND et TR'!$A$4:$S$1943,18)),IF(C45="","",VLOOKUP('Calculs cachés'!A72+$V$2,'IC sans TR'!$A$4:$S$3485,18))))) -> 2000 | N45: =IF('Intercorr. circ.'!#REF!=0,1,"") -> 
B46: =IF($I$1="Tous les tempéraments",IF(VLOOKUP('Calculs cachés'!A73+$V$2,'Intercorr. circ.'!$A$4:$S$6968,19)>Présentation!$N$1,"",VLOOKUP('Calculs cachés'!A73+$V$2,'Intercorr. circ.'!$A$4:$S$6968,19)),IF($I$1="Sans les ND",IF(VLOOKUP('Calculs cachés'!A73+$V$2,'IC sans ND'!$A$4:$S$3886,19)>Présentation!$N$1,"",VLOOKUP('Calculs cachés'!A73+$V$2,'IC sans ND'!$A$4:$S$3886,19)),IF($I$1="Sans les ND et les TR",IF(VLOOKUP('Calculs cachés'!A73+$V$2,'IC sans ND et TR'!$A$4:$S$1943,19)>Présentation!$N$1,"",VLOOKUP('Calculs cachés'!A73+$V$2,'IC sans ND et TR'!$A$4:$S$1943,19)),IF(VLOOKUP('Calculs cachés'!A73+$V$2,'IC sans TR'!$A$4:$S$3485,19)>Présentation!$N$1,"",VLOOKUP('Calculs cachés'!A73+$V$2,'IC sans TR'!$A$4:$S$3485,19))))) -> 1.833333333 | C46: =IF($I$1="Tous les tempéraments",IF(B46<=Présentation!$N$1,VLOOKUP('Calculs cachés'!A73+$V$2,'Intercorr. circ.'!$A$4:$S$6968,2),""),IF($I$1="Sans les ND",IF(B46<=Présentation!$N$1,VLOOKUP('Calculs cachés'!A73+$V$2,'IC sans ND'!$A$4:$S$3886,2),""),IF($I$1="Sans les ND et les TR",IF(B46<=Présentation!$N$1,VLOOKUP('Calculs cachés'!A73+$V$2,'IC sans ND et TR'!$A$4:$S$1943,2),""),IF(B46<=Présentation!$N$1,VLOOKUP('Calculs cachés'!A73+$V$2,'IC sans TR'!$A$4:$S$3485,2),"")))) -> Erdos Jacques 1/7cs - Sol | D46: =IF($I$1="Tous les tempéraments",IF(C46="","",VLOOKUP('Calculs cachés'!A73+$V$2,'Intercorr. circ.'!$A$4:$S$6968,18)),IF($I$1="Sans les ND",IF(C46="","",VLOOKUP('Calculs cachés'!A73+$V$2,'IC sans ND'!$A$4:$S$3886,18)),IF($I$1="Sans Les ND et les TR",IF(C46="","",VLOOKUP('Calculs cachés'!A73+$V$2,'IC sans ND et TR'!$A$4:$S$1943,18)),IF(C46="","",VLOOKUP('Calculs cachés'!A73+$V$2,'IC sans TR'!$A$4:$S$3485,18))))) -> 2002 | N46: =IF('Intercorr. circ.'!#REF!=0,1,"") -> 
B47: =IF($I$1="Tous les tempéraments",IF(VLOOKUP('Calculs cachés'!A74+$V$2,'Intercorr. circ.'!$A$4:$S$6968,19)>Présentation!$N$1,"",VLOOKUP('Calculs cachés'!A74+$V$2,'Intercorr. circ.'!$A$4:$S$6968,19)),IF($I$1="Sans les ND",IF(VLOOKUP('Calculs cachés'!A74+$V$2,'IC sans ND'!$A$4:$S$3886,19)>Présentation!$N$1,"",VLOOKUP('Calculs cachés'!A74+$V$2,'IC sans ND'!$A$4:$S$3886,19)),IF($I$1="Sans les ND et les TR",IF(VLOOKUP('Calculs cachés'!A74+$V$2,'IC sans ND et TR'!$A$4:$S$1943,19)>Présentation!$N$1,"",VLOOKUP('Calculs cachés'!A74+$V$2,'IC sans ND et TR'!$A$4:$S$1943,19)),IF(VLOOKUP('Calculs cachés'!A74+$V$2,'IC sans TR'!$A$4:$S$3485,19)>Présentation!$N$1,"",VLOOKUP('Calculs cachés'!A74+$V$2,'IC sans TR'!$A$4:$S$3485,19))))) -> 1.833333333 | C47: =IF($I$1="Tous les tempéraments",IF(B47<=Présentation!$N$1,VLOOKUP('Calculs cachés'!A74+$V$2,'Intercorr. circ.'!$A$4:$S$6968,2),""),IF($I$1="Sans les ND",IF(B47<=Présentation!$N$1,VLOOKUP('Calculs cachés'!A74+$V$2,'IC sans ND'!$A$4:$S$3886,2),""),IF($I$1="Sans les ND et les TR",IF(B47<=Présentation!$N$1,VLOOKUP('Calculs cachés'!A74+$V$2,'IC sans ND et TR'!$A$4:$S$1943,2),""),IF(B47<=Présentation!$N$1,VLOOKUP('Calculs cachés'!A74+$V$2,'IC sans TR'!$A$4:$S$3485,2),"")))) -> Calvet baroque 1/9 cp - Mi | D47: =IF($I$1="Tous les tempéraments",IF(C47="","",VLOOKUP('Calculs cachés'!A74+$V$2,'Intercorr. circ.'!$A$4:$S$6968,18)),IF($I$1="Sans les ND",IF(C47="","",VLOOKUP('Calculs cachés'!A74+$V$2,'IC sans ND'!$A$4:$S$3886,18)),IF($I$1="Sans Les ND et les TR",IF(C47="","",VLOOKUP('Calculs cachés'!A74+$V$2,'IC sans ND et TR'!$A$4:$S$1943,18)),IF(C47="","",VLOOKUP('Calculs cachés'!A74+$V$2,'IC sans TR'!$A$4:$S$3485,18))))) -> 2011 | N47: =IF('Intercorr. circ.'!#REF!=0,1,"") -> 
B48: =IF($I$1="Tous les tempéraments",IF(VLOOKUP('Calculs cachés'!A75+$V$2,'Intercorr. circ.'!$A$4:$S$6968,19)>Présentation!$N$1,"",VLOOKUP('Calculs cachés'!A75+$V$2,'Intercorr. circ.'!$A$4:$S$6968,19)),IF($I$1="Sans les ND",IF(VLOOKUP('Calculs cachés'!A75+$V$2,'IC sans ND'!$A$4:$S$3886,19)>Présentation!$N$1,"",VLOOKUP('Calculs cachés'!A75+$V$2,'IC sans ND'!$A$4:$S$3886,19)),IF($I$1="Sans les ND et les TR",IF(VLOOKUP('Calculs cachés'!A75+$V$2,'IC sans ND et TR'!$A$4:$S$1943,19)>Présentation!$N$1,"",VLOOKUP('Calculs cachés'!A75+$V$2,'IC sans ND et TR'!$A$4:$S$1943,19)),IF(VLOOKUP('Calculs cachés'!A75+$V$2,'IC sans TR'!$A$4:$S$3485,19)>Présentation!$N$1,"",VLOOKUP('Calculs cachés'!A75+$V$2,'IC sans TR'!$A$4:$S$3485,19))))) -> 1.833333333 | C48: =IF($I$1="Tous les tempéraments",IF(B48<=Présentation!$N$1,VLOOKUP('Calculs cachés'!A75+$V$2,'Intercorr. circ.'!$A$4:$S$6968,2),""),IF($I$1="Sans les ND",IF(B48<=Présentation!$N$1,VLOOKUP('Calculs cachés'!A75+$V$2,'IC sans ND'!$A$4:$S$3886,2),""),IF($I$1="Sans les ND et les TR",IF(B48<=Présentation!$N$1,VLOOKUP('Calculs cachés'!A75+$V$2,'IC sans ND et TR'!$A$4:$S$1943,2),""),IF(B48<=Présentation!$N$1,VLOOKUP('Calculs cachés'!A75+$V$2,'IC sans TR'!$A$4:$S$3485,2),"")))) -> Neidhardt XI - Fa | D48: =IF($I$1="Tous les tempéraments",IF(C48="","",VLOOKUP('Calculs cachés'!A75+$V$2,'Intercorr. circ.'!$A$4:$S$6968,18)),IF($I$1="Sans les ND",IF(C48="","",VLOOKUP('Calculs cachés'!A75+$V$2,'IC sans ND'!$A$4:$S$3886,18)),IF($I$1="Sans Les ND et les TR",IF(C48="","",VLOOKUP('Calculs cachés'!A75+$V$2,'IC sans ND et TR'!$A$4:$S$1943,18)),IF(C48="","",VLOOKUP('Calculs cachés'!A75+$V$2,'IC sans TR'!$A$4:$S$3485,18))))) -> 1732 | N48: =IF('Intercorr. circ.'!#REF!=0,1,"") -> 
B49: =IF($I$1="Tous les tempéraments",IF(VLOOKUP('Calculs cachés'!A76+$V$2,'Intercorr. circ.'!$A$4:$S$6968,19)>Présentation!$N$1,"",VLOOKUP('Calculs cachés'!A76+$V$2,'Intercorr. circ.'!$A$4:$S$6968,19)),IF($I$1="Sans les ND",IF(VLOOKUP('Calculs cachés'!A76+$V$2,'IC sans ND'!$A$4:$S$3886,19)>Présentation!$N$1,"",VLOOKUP('Calculs cachés'!A76+$V$2,'IC sans ND'!$A$4:$S$3886,19)),IF($I$1="Sans les ND et les TR",IF(VLOOKUP('Calculs cachés'!A76+$V$2,'IC sans ND et TR'!$A$4:$S$1943,19)>Présentation!$N$1,"",VLOOKUP('Calculs cachés'!A76+$V$2,'IC sans ND et TR'!$A$4:$S$1943,19)),IF(VLOOKUP('Calculs cachés'!A76+$V$2,'IC sans TR'!$A$4:$S$3485,19)>Présentation!$N$1,"",VLOOKUP('Calculs cachés'!A76+$V$2,'IC sans TR'!$A$4:$S$3485,19))))) -> 1.833333333 | C49: =IF($I$1="Tous les tempéraments",IF(B49<=Présentation!$N$1,VLOOKUP('Calculs cachés'!A76+$V$2,'Intercorr. circ.'!$A$4:$S$6968,2),""),IF($I$1="Sans les ND",IF(B49<=Présentation!$N$1,VLOOKUP('Calculs cachés'!A76+$V$2,'IC sans ND'!$A$4:$S$3886,2),""),IF($I$1="Sans les ND et les TR",IF(B49<=Présentation!$N$1,VLOOKUP('Calculs cachés'!A76+$V$2,'IC sans ND et TR'!$A$4:$S$1943,2),""),IF(B49<=Présentation!$N$1,VLOOKUP('Calculs cachés'!A76+$V$2,'IC sans TR'!$A$4:$S$3485,2),"")))) -> Neidhardt XVII - Fa | D49: =IF($I$1="Tous les tempéraments",IF(C49="","",VLOOKUP('Calculs cachés'!A76+$V$2,'Intercorr. circ.'!$A$4:$S$6968,18)),IF($I$1="Sans les ND",IF(C49="","",VLOOKUP('Calculs cachés'!A76+$V$2,'IC sans ND'!$A$4:$S$3886,18)),IF($I$1="Sans Les ND et les TR",IF(C49="","",VLOOKUP('Calculs cachés'!A76+$V$2,'IC sans ND et TR'!$A$4:$S$1943,18)),IF(C49="","",VLOOKUP('Calculs cachés'!A76+$V$2,'IC sans TR'!$A$4:$S$3485,18))))) -> 1732 | N49: =IF('Intercorr. circ.'!#REF!=0,1,"") -> 
B50: =IF($I$1="Tous les tempéraments",IF(VLOOKUP('Calculs cachés'!A77+$V$2,'Intercorr. circ.'!$A$4:$S$6968,19)>Présentation!$N$1,"",VLOOKUP('Calculs cachés'!A77+$V$2,'Intercorr. circ.'!$A$4:$S$6968,19)),IF($I$1="Sans les ND",IF(VLOOKUP('Calculs cachés'!A77+$V$2,'IC sans ND'!$A$4:$S$3886,19)>Présentation!$N$1,"",VLOOKUP('Calculs cachés'!A77+$V$2,'IC sans ND'!$A$4:$S$3886,19)),IF($I$1="Sans les ND et les TR",IF(VLOOKUP('Calculs cachés'!A77+$V$2,'IC sans ND et TR'!$A$4:$S$1943,19)>Présentation!$N$1,"",VLOOKUP('Calculs cachés'!A77+$V$2,'IC sans ND et TR'!$A$4:$S$1943,19)),IF(VLOOKUP('Calculs cachés'!A77+$V$2,'IC sans TR'!$A$4:$S$3485,19)>Présentation!$N$1,"",VLOOKUP('Calculs cachés'!A77+$V$2,'IC sans TR'!$A$4:$S$3485,19))))) -> 1.833333333 | C50: =IF($I$1="Tous les tempéraments",IF(B50<=Présentation!$N$1,VLOOKUP('Calculs cachés'!A77+$V$2,'Intercorr. circ.'!$A$4:$S$6968,2),""),IF($I$1="Sans les ND",IF(B50<=Présentation!$N$1,VLOOKUP('Calculs cachés'!A77+$V$2,'IC sans ND'!$A$4:$S$3886,2),""),IF($I$1="Sans les ND et les TR",IF(B50<=Présentation!$N$1,VLOOKUP('Calculs cachés'!A77+$V$2,'IC sans ND et TR'!$A$4:$S$1943,2),""),IF(B50<=Présentation!$N$1,VLOOKUP('Calculs cachés'!A77+$V$2,'IC sans TR'!$A$4:$S$3485,2),"")))) -> Sorge II - Fa | D50: =IF($I$1="Tous les tempéraments",IF(C50="","",VLOOKUP('Calculs cachés'!A77+$V$2,'Intercorr. circ.'!$A$4:$S$6968,18)),IF($I$1="Sans les ND",IF(C50="","",VLOOKUP('Calculs cachés'!A77+$V$2,'IC sans ND'!$A$4:$S$3886,18)),IF($I$1="Sans Les ND et les TR",IF(C50="","",VLOOKUP('Calculs cachés'!A77+$V$2,'IC sans ND et TR'!$A$4:$S$1943,18)),IF(C50="","",VLOOKUP('Calculs cachés'!A77+$V$2,'IC sans TR'!$A$4:$S$3485,18))))) -> 1744
B51: =IF($I$1="Tous les tempéraments",IF(VLOOKUP('Calculs cachés'!A78+$V$2,'Intercorr. circ.'!$A$4:$S$6968,19)>Présentation!$N$1,"",VLOOKUP('Calculs cachés'!A78+$V$2,'Intercorr. circ.'!$A$4:$S$6968,19)),IF($I$1="Sans les ND",IF(VLOOKUP('Calculs cachés'!A78+$V$2,'IC sans ND'!$A$4:$S$3886,19)>Présentation!$N$1,"",VLOOKUP('Calculs cachés'!A78+$V$2,'IC sans ND'!$A$4:$S$3886,19)),IF($I$1="Sans les ND et les TR",IF(VLOOKUP('Calculs cachés'!A78+$V$2,'IC sans ND et TR'!$A$4:$S$1943,19)>Présentation!$N$1,"",VLOOKUP('Calculs cachés'!A78+$V$2,'IC sans ND et TR'!$A$4:$S$1943,19)),IF(VLOOKUP('Calculs cachés'!A78+$V$2,'IC sans TR'!$A$4:$S$3485,19)>Présentation!$N$1,"",VLOOKUP('Calculs cachés'!A78+$V$2,'IC sans TR'!$A$4:$S$3485,19))))) -> 1.833333333 | C51: =IF($I$1="Tous les tempéraments",IF(B51<=Présentation!$N$1,VLOOKUP('Calculs cachés'!A78+$V$2,'Intercorr. circ.'!$A$4:$S$6968,2),""),IF($I$1="Sans les ND",IF(B51<=Présentation!$N$1,VLOOKUP('Calculs cachés'!A78+$V$2,'IC sans ND'!$A$4:$S$3886,2),""),IF($I$1="Sans les ND et les TR",IF(B51<=Présentation!$N$1,VLOOKUP('Calculs cachés'!A78+$V$2,'IC sans ND et TR'!$A$4:$S$1943,2),""),IF(B51<=Présentation!$N$1,VLOOKUP('Calculs cachés'!A78+$V$2,'IC sans TR'!$A$4:$S$3485,2),"")))) -> Sorge II - Do | D51: =IF($I$1="Tous les tempéraments",IF(C51="","",VLOOKUP('Calculs cachés'!A78+$V$2,'Intercorr. circ.'!$A$4:$S$6968,18)),IF($I$1="Sans les ND",IF(C51="","",VLOOKUP('Calculs cachés'!A78+$V$2,'IC sans ND'!$A$4:$S$3886,18)),IF($I$1="Sans Les ND et les TR",IF(C51="","",VLOOKUP('Calculs cachés'!A78+$V$2,'IC sans ND et TR'!$A$4:$S$1943,18)),IF(C51="","",VLOOKUP('Calculs cachés'!A78+$V$2,'IC sans TR'!$A$4:$S$3485,18))))) -> 1744
B52: =IF($I$1="Tous les tempéraments",IF(VLOOKUP('Calculs cachés'!A79+$V$2,'Intercorr. circ.'!$A$4:$S$6968,19)>Présentation!$N$1,"",VLOOKUP('Calculs cachés'!A79+$V$2,'Intercorr. circ.'!$A$4:$S$6968,19)),IF($I$1="Sans les ND",IF(VLOOKUP('Calculs cachés'!A79+$V$2,'IC sans ND'!$A$4:$S$3886,19)>Présentation!$N$1,"",VLOOKUP('Calculs cachés'!A79+$V$2,'IC sans ND'!$A$4:$S$3886,19)),IF($I$1="Sans les ND et les TR",IF(VLOOKUP('Calculs cachés'!A79+$V$2,'IC sans ND et TR'!$A$4:$S$1943,19)>Présentation!$N$1,"",VLOOKUP('Calculs cachés'!A79+$V$2,'IC sans ND et TR'!$A$4:$S$1943,19)),IF(VLOOKUP('Calculs cachés'!A79+$V$2,'IC sans TR'!$A$4:$S$3485,19)>Présentation!$N$1,"",VLOOKUP('Calculs cachés'!A79+$V$2,'IC sans TR'!$A$4:$S$3485,19))))) -> 1.85 | C52: =IF($I$1="Tous les tempéraments",IF(B52<=Présentation!$N$1,VLOOKUP('Calculs cachés'!A79+$V$2,'Intercorr. circ.'!$A$4:$S$6968,2),""),IF($I$1="Sans les ND",IF(B52<=Présentation!$N$1,VLOOKUP('Calculs cachés'!A79+$V$2,'IC sans ND'!$A$4:$S$3886,2),""),IF($I$1="Sans les ND et les TR",IF(B52<=Présentation!$N$1,VLOOKUP('Calculs cachés'!A79+$V$2,'IC sans ND et TR'!$A$4:$S$1943,2),""),IF(B52<=Présentation!$N$1,VLOOKUP('Calculs cachés'!A79+$V$2,'IC sans TR'!$A$4:$S$3485,2),"")))) -> Mobbs/MacKenzie 1/4 cs - Fa | D52: =IF($I$1="Tous les tempéraments",IF(C52="","",VLOOKUP('Calculs cachés'!A79+$V$2,'Intercorr. circ.'!$A$4:$S$6968,18)),IF($I$1="Sans les ND",IF(C52="","",VLOOKUP('Calculs cachés'!A79+$V$2,'IC sans ND'!$A$4:$S$3886,18)),IF($I$1="Sans Les ND et les TR",IF(C52="","",VLOOKUP('Calculs cachés'!A79+$V$2,'IC sans ND et TR'!$A$4:$S$1943,18)),IF(C52="","",VLOOKUP('Calculs cachés'!A79+$V$2,'IC sans TR'!$A$4:$S$3485,18))))) -> 2005
B53: =IF($I$1="Tous les tempéraments",IF(VLOOKUP('Calculs cachés'!A80+$V$2,'Intercorr. circ.'!$A$4:$S$6968,19)>Présentation!$N$1,"",VLOOKUP('Calculs cachés'!A80+$V$2,'Intercorr. circ.'!$A$4:$S$6968,19)),IF($I$1="Sans les ND",IF(VLOOKUP('Calculs cachés'!A80+$V$2,'IC sans ND'!$A$4:$S$3886,19)>Présentation!$N$1,"",VLOOKUP('Calculs cachés'!A80+$V$2,'IC sans ND'!$A$4:$S$3886,19)),IF($I$1="Sans les ND et les TR",IF(VLOOKUP('Calculs cachés'!A80+$V$2,'IC sans ND et TR'!$A$4:$S$1943,19)>Présentation!$N$1,"",VLOOKUP('Calculs cachés'!A80+$V$2,'IC sans ND et TR'!$A$4:$S$1943,19)),IF(VLOOKUP('Calculs cachés'!A80+$V$2,'IC sans TR'!$A$4:$S$3485,19)>Présentation!$N$1,"",VLOOKUP('Calculs cachés'!A80+$V$2,'IC sans TR'!$A$4:$S$3485,19))))) -> 1.862903226 | C53: =IF($I$1="Tous les tempéraments",IF(B53<=Présentation!$N$1,VLOOKUP('Calculs cachés'!A80+$V$2,'Intercorr. circ.'!$A$4:$S$6968,2),""),IF($I$1="Sans les ND",IF(B53<=Présentation!$N$1,VLOOKUP('Calculs cachés'!A80+$V$2,'IC sans ND'!$A$4:$S$3886,2),""),IF($I$1="Sans les ND et les TR",IF(B53<=Présentation!$N$1,VLOOKUP('Calculs cachés'!A80+$V$2,'IC sans ND et TR'!$A$4:$S$1943,2),""),IF(B53<=Présentation!$N$1,VLOOKUP('Calculs cachés'!A80+$V$2,'IC sans TR'!$A$4:$S$3485,2),"")))) -> Baroque moyen - Fa | D53: =IF($I$1="Tous les tempéraments",IF(C53="","",VLOOKUP('Calculs cachés'!A80+$V$2,'Intercorr. circ.'!$A$4:$S$6968,18)),IF($I$1="Sans les ND",IF(C53="","",VLOOKUP('Calculs cachés'!A80+$V$2,'IC sans ND'!$A$4:$S$3886,18)),IF($I$1="Sans Les ND et les TR",IF(C53="","",VLOOKUP('Calculs cachés'!A80+$V$2,'IC sans ND et TR'!$A$4:$S$1943,18)),IF(C53="","",VLOOKUP('Calculs cachés'!A80+$V$2,'IC sans TR'!$A$4:$S$3485,18))))) -> 2012
B54: =IF($I$1="Tous les tempéraments",IF(VLOOKUP('Calculs cachés'!A81+$V$2,'Intercorr. circ.'!$A$4:$S$6968,19)>Présentation!$N$1,"",VLOOKUP('Calculs cachés'!A81+$V$2,'Intercorr. circ.'!$A$4:$S$6968,19)),IF($I$1="Sans les ND",IF(VLOOKUP('Calculs cachés'!A81+$V$2,'IC sans ND'!$A$4:$S$3886,19)>Présentation!$N$1,"",VLOOKUP('Calculs cachés'!A81+$V$2,'IC sans ND'!$A$4:$S$3886,19)),IF($I$1="Sans les ND et les TR",IF(VLOOKUP('Calculs cachés'!A81+$V$2,'IC sans ND et TR'!$A$4:$S$1943,19)>Présentation!$N$1,"",VLOOKUP('Calculs cachés'!A81+$V$2,'IC sans ND et TR'!$A$4:$S$1943,19)),IF(VLOOKUP('Calculs cachés'!A81+$V$2,'IC sans TR'!$A$4:$S$3485,19)>Présentation!$N$1,"",VLOOKUP('Calculs cachés'!A81+$V$2,'IC sans TR'!$A$4:$S$3485,19))))) -> 1.916666667 | C54: =IF($I$1="Tous les tempéraments",IF(B54<=Présentation!$N$1,VLOOKUP('Calculs cachés'!A81+$V$2,'Intercorr. circ.'!$A$4:$S$6968,2),""),IF($I$1="Sans les ND",IF(B54<=Présentation!$N$1,VLOOKUP('Calculs cachés'!A81+$V$2,'IC sans ND'!$A$4:$S$3886,2),""),IF($I$1="Sans les ND et les TR",IF(B54<=Présentation!$N$1,VLOOKUP('Calculs cachés'!A81+$V$2,'IC sans ND et TR'!$A$4:$S$1943,2),""),IF(B54<=Présentation!$N$1,VLOOKUP('Calculs cachés'!A81+$V$2,'IC sans TR'!$A$4:$S$3485,2),"")))) -> Lindley 2006 1/7 sc - Sol | D54: =IF($I$1="Tous les tempéraments",IF(C54="","",VLOOKUP('Calculs cachés'!A81+$V$2,'Intercorr. circ.'!$A$4:$S$6968,18)),IF($I$1="Sans les ND",IF(C54="","",VLOOKUP('Calculs cachés'!A81+$V$2,'IC sans ND'!$A$4:$S$3886,18)),IF($I$1="Sans Les ND et les TR",IF(C54="","",VLOOKUP('Calculs cachés'!A81+$V$2,'IC sans ND et TR'!$A$4:$S$1943,18)),IF(C54="","",VLOOKUP('Calculs cachés'!A81+$V$2,'IC sans TR'!$A$4:$S$3485,18))))) -> 2006
B55: =IF($I$1="Tous les tempéraments",IF(VLOOKUP('Calculs cachés'!A82+$V$2,'Intercorr. circ.'!$A$4:$S$6968,19)>Présentation!$N$1,"",VLOOKUP('Calculs cachés'!A82+$V$2,'Intercorr. circ.'!$A$4:$S$6968,19)),IF($I$1="Sans les ND",IF(VLOOKUP('Calculs cachés'!A82+$V$2,'IC sans ND'!$A$4:$S$3886,19)>Présentation!$N$1,"",VLOOKUP('Calculs cachés'!A82+$V$2,'IC sans ND'!$A$4:$S$3886,19)),IF($I$1="Sans les ND et les TR",IF(VLOOKUP('Calculs cachés'!A82+$V$2,'IC sans ND et TR'!$A$4:$S$1943,19)>Présentation!$N$1,"",VLOOKUP('Calculs cachés'!A82+$V$2,'IC sans ND et TR'!$A$4:$S$1943,19)),IF(VLOOKUP('Calculs cachés'!A82+$V$2,'IC sans TR'!$A$4:$S$3485,19)>Présentation!$N$1,"",VLOOKUP('Calculs cachés'!A82+$V$2,'IC sans TR'!$A$4:$S$3485,19))))) -> 1.916666667 | C55: =IF($I$1="Tous les tempéraments",IF(B55<=Présentation!$N$1,VLOOKUP('Calculs cachés'!A82+$V$2,'Intercorr. circ.'!$A$4:$S$6968,2),""),IF($I$1="Sans les ND",IF(B55<=Présentation!$N$1,VLOOKUP('Calculs cachés'!A82+$V$2,'IC sans ND'!$A$4:$S$3886,2),""),IF($I$1="Sans les ND et les TR",IF(B55<=Présentation!$N$1,VLOOKUP('Calculs cachés'!A82+$V$2,'IC sans ND et TR'!$A$4:$S$1943,2),""),IF(B55<=Présentation!$N$1,VLOOKUP('Calculs cachés'!A82+$V$2,'IC sans TR'!$A$4:$S$3485,2),"")))) -> Calculus Musicus - Sol | D55: =IF($I$1="Tous les tempéraments",IF(C55="","",VLOOKUP('Calculs cachés'!A82+$V$2,'Intercorr. circ.'!$A$4:$S$6968,18)),IF($I$1="Sans les ND",IF(C55="","",VLOOKUP('Calculs cachés'!A82+$V$2,'IC sans ND'!$A$4:$S$3886,18)),IF($I$1="Sans Les ND et les TR",IF(C55="","",VLOOKUP('Calculs cachés'!A82+$V$2,'IC sans ND et TR'!$A$4:$S$1943,18)),IF(C55="","",VLOOKUP('Calculs cachés'!A82+$V$2,'IC sans TR'!$A$4:$S$3485,18))))) -> 2006
B56: =IF($I$1="Tous les tempéraments",IF(VLOOKUP('Calculs cachés'!A83+$V$2,'Intercorr. circ.'!$A$4:$S$6968,19)>Présentation!$N$1,"",VLOOKUP('Calculs cachés'!A83+$V$2,'Intercorr. circ.'!$A$4:$S$6968,19)),IF($I$1="Sans les ND",IF(VLOOKUP('Calculs cachés'!A83+$V$2,'IC sans ND'!$A$4:$S$3886,19)>Présentation!$N$1,"",VLOOKUP('Calculs cachés'!A83+$V$2,'IC sans ND'!$A$4:$S$3886,19)),IF($I$1="Sans les ND et les TR",IF(VLOOKUP('Calculs cachés'!A83+$V$2,'IC sans ND et TR'!$A$4:$S$1943,19)>Présentation!$N$1,"",VLOOKUP('Calculs cachés'!A83+$V$2,'IC sans ND et TR'!$A$4:$S$1943,19)),IF(VLOOKUP('Calculs cachés'!A83+$V$2,'IC sans TR'!$A$4:$S$3485,19)>Présentation!$N$1,"",VLOOKUP('Calculs cachés'!A83+$V$2,'IC sans TR'!$A$4:$S$3485,19))))) -> 2 | C56: =IF($I$1="Tous les tempéraments",IF(B56<=Présentation!$N$1,VLOOKUP('Calculs cachés'!A83+$V$2,'Intercorr. circ.'!$A$4:$S$6968,2),""),IF($I$1="Sans les ND",IF(B56<=Présentation!$N$1,VLOOKUP('Calculs cachés'!A83+$V$2,'IC sans ND'!$A$4:$S$3886,2),""),IF($I$1="Sans les ND et les TR",IF(B56<=Présentation!$N$1,VLOOKUP('Calculs cachés'!A83+$V$2,'IC sans ND et TR'!$A$4:$S$1943,2),""),IF(B56<=Présentation!$N$1,VLOOKUP('Calculs cachés'!A83+$V$2,'IC sans TR'!$A$4:$S$3485,2),"")))) -> Asselin - Fa | D56: =IF($I$1="Tous les tempéraments",IF(C56="","",VLOOKUP('Calculs cachés'!A83+$V$2,'Intercorr. circ.'!$A$4:$S$6968,18)),IF($I$1="Sans les ND",IF(C56="","",VLOOKUP('Calculs cachés'!A83+$V$2,'IC sans ND'!$A$4:$S$3886,18)),IF($I$1="Sans Les ND et les TR",IF(C56="","",VLOOKUP('Calculs cachés'!A83+$V$2,'IC sans ND et TR'!$A$4:$S$1943,18)),IF(C56="","",VLOOKUP('Calculs cachés'!A83+$V$2,'IC sans TR'!$A$4:$S$3485,18))))) -> 1984
B57: =IF($I$1="Tous les tempéraments",IF(VLOOKUP('Calculs cachés'!A84+$V$2,'Intercorr. circ.'!$A$4:$S$6968,19)>Présentation!$N$1,"",VLOOKUP('Calculs cachés'!A84+$V$2,'Intercorr. circ.'!$A$4:$S$6968,19)),IF($I$1="Sans les ND",IF(VLOOKUP('Calculs cachés'!A84+$V$2,'IC sans ND'!$A$4:$S$3886,19)>Présentation!$N$1,"",VLOOKUP('Calculs cachés'!A84+$V$2,'IC sans ND'!$A$4:$S$3886,19)),IF($I$1="Sans les ND et les TR",IF(VLOOKUP('Calculs cachés'!A84+$V$2,'IC sans ND et TR'!$A$4:$S$1943,19)>Présentation!$N$1,"",VLOOKUP('Calculs cachés'!A84+$V$2,'IC sans ND et TR'!$A$4:$S$1943,19)),IF(VLOOKUP('Calculs cachés'!A84+$V$2,'IC sans TR'!$A$4:$S$3485,19)>Présentation!$N$1,"",VLOOKUP('Calculs cachés'!A84+$V$2,'IC sans TR'!$A$4:$S$3485,19))))) -> 2 | C57: =IF($I$1="Tous les tempéraments",IF(B57<=Présentation!$N$1,VLOOKUP('Calculs cachés'!A84+$V$2,'Intercorr. circ.'!$A$4:$S$6968,2),""),IF($I$1="Sans les ND",IF(B57<=Présentation!$N$1,VLOOKUP('Calculs cachés'!A84+$V$2,'IC sans ND'!$A$4:$S$3886,2),""),IF($I$1="Sans les ND et les TR",IF(B57<=Présentation!$N$1,VLOOKUP('Calculs cachés'!A84+$V$2,'IC sans ND et TR'!$A$4:$S$1943,2),""),IF(B57<=Présentation!$N$1,VLOOKUP('Calculs cachés'!A84+$V$2,'IC sans TR'!$A$4:$S$3485,2),"")))) -> Paintoux-Bach - Sib | D57: =IF($I$1="Tous les tempéraments",IF(C57="","",VLOOKUP('Calculs cachés'!A84+$V$2,'Intercorr. circ.'!$A$4:$S$6968,18)),IF($I$1="Sans les ND",IF(C57="","",VLOOKUP('Calculs cachés'!A84+$V$2,'IC sans ND'!$A$4:$S$3886,18)),IF($I$1="Sans Les ND et les TR",IF(C57="","",VLOOKUP('Calculs cachés'!A84+$V$2,'IC sans ND et TR'!$A$4:$S$1943,18)),IF(C57="","",VLOOKUP('Calculs cachés'!A84+$V$2,'IC sans TR'!$A$4:$S$3485,18))))) -> 2013
B58: =IF($I$1="Tous les tempéraments",IF(VLOOKUP('Calculs cachés'!A85+$V$2,'Intercorr. circ.'!$A$4:$S$6968,19)>Présentation!$N$1,"",VLOOKUP('Calculs cachés'!A85+$V$2,'Intercorr. circ.'!$A$4:$S$6968,19)),IF($I$1="Sans les ND",IF(VLOOKUP('Calculs cachés'!A85+$V$2,'IC sans ND'!$A$4:$S$3886,19)>Présentation!$N$1,"",VLOOKUP('Calculs cachés'!A85+$V$2,'IC sans ND'!$A$4:$S$3886,19)),IF($I$1="Sans les ND et les TR",IF(VLOOKUP('Calculs cachés'!A85+$V$2,'IC sans ND et TR'!$A$4:$S$1943,19)>Présentation!$N$1,"",VLOOKUP('Calculs cachés'!A85+$V$2,'IC sans ND et TR'!$A$4:$S$1943,19)),IF(VLOOKUP('Calculs cachés'!A85+$V$2,'IC sans TR'!$A$4:$S$3485,19)>Présentation!$N$1,"",VLOOKUP('Calculs cachés'!A85+$V$2,'IC sans TR'!$A$4:$S$3485,19))))) -> 2 | C58: =IF($I$1="Tous les tempéraments",IF(B58<=Présentation!$N$1,VLOOKUP('Calculs cachés'!A85+$V$2,'Intercorr. circ.'!$A$4:$S$6968,2),""),IF($I$1="Sans les ND",IF(B58<=Présentation!$N$1,VLOOKUP('Calculs cachés'!A85+$V$2,'IC sans ND'!$A$4:$S$3886,2),""),IF($I$1="Sans les ND et les TR",IF(B58<=Présentation!$N$1,VLOOKUP('Calculs cachés'!A85+$V$2,'IC sans ND et TR'!$A$4:$S$1943,2),""),IF(B58<=Présentation!$N$1,VLOOKUP('Calculs cachés'!A85+$V$2,'IC sans TR'!$A$4:$S$3485,2),"")))) -> Neidhardt XIX - Do | D58: =IF($I$1="Tous les tempéraments",IF(C58="","",VLOOKUP('Calculs cachés'!A85+$V$2,'Intercorr. circ.'!$A$4:$S$6968,18)),IF($I$1="Sans les ND",IF(C58="","",VLOOKUP('Calculs cachés'!A85+$V$2,'IC sans ND'!$A$4:$S$3886,18)),IF($I$1="Sans Les ND et les TR",IF(C58="","",VLOOKUP('Calculs cachés'!A85+$V$2,'IC sans ND et TR'!$A$4:$S$1943,18)),IF(C58="","",VLOOKUP('Calculs cachés'!A85+$V$2,'IC sans TR'!$A$4:$S$3485,18))))) -> 1732
B59: =IF($I$1="Tous les tempéraments",IF(VLOOKUP('Calculs cachés'!A86+$V$2,'Intercorr. circ.'!$A$4:$S$6968,19)>Présentation!$N$1,"",VLOOKUP('Calculs cachés'!A86+$V$2,'Intercorr. circ.'!$A$4:$S$6968,19)),IF($I$1="Sans les ND",IF(VLOOKUP('Calculs cachés'!A86+$V$2,'IC sans ND'!$A$4:$S$3886,19)>Présentation!$N$1,"",VLOOKUP('Calculs cachés'!A86+$V$2,'IC sans ND'!$A$4:$S$3886,19)),IF($I$1="Sans les ND et les TR",IF(VLOOKUP('Calculs cachés'!A86+$V$2,'IC sans ND et TR'!$A$4:$S$1943,19)>Présentation!$N$1,"",VLOOKUP('Calculs cachés'!A86+$V$2,'IC sans ND et TR'!$A$4:$S$1943,19)),IF(VLOOKUP('Calculs cachés'!A86+$V$2,'IC sans TR'!$A$4:$S$3485,19)>Présentation!$N$1,"",VLOOKUP('Calculs cachés'!A86+$V$2,'IC sans TR'!$A$4:$S$3485,19))))) -> 2 | C59: =IF($I$1="Tous les tempéraments",IF(B59<=Présentation!$N$1,VLOOKUP('Calculs cachés'!A86+$V$2,'Intercorr. circ.'!$A$4:$S$6968,2),""),IF($I$1="Sans les ND",IF(B59<=Présentation!$N$1,VLOOKUP('Calculs cachés'!A86+$V$2,'IC sans ND'!$A$4:$S$3886,2),""),IF($I$1="Sans les ND et les TR",IF(B59<=Présentation!$N$1,VLOOKUP('Calculs cachés'!A86+$V$2,'IC sans ND et TR'!$A$4:$S$1943,2),""),IF(B59<=Présentation!$N$1,VLOOKUP('Calculs cachés'!A86+$V$2,'IC sans TR'!$A$4:$S$3485,2),"")))) -> Vallotti Francesco - Do | D59: =IF($I$1="Tous les tempéraments",IF(C59="","",VLOOKUP('Calculs cachés'!A86+$V$2,'Intercorr. circ.'!$A$4:$S$6968,18)),IF($I$1="Sans les ND",IF(C59="","",VLOOKUP('Calculs cachés'!A86+$V$2,'IC sans ND'!$A$4:$S$3886,18)),IF($I$1="Sans Les ND et les TR",IF(C59="","",VLOOKUP('Calculs cachés'!A86+$V$2,'IC sans ND et TR'!$A$4:$S$1943,18)),IF(C59="","",VLOOKUP('Calculs cachés'!A86+$V$2,'IC sans TR'!$A$4:$S$3485,18))))) -> 1754
B60: =IF($I$1="Tous les tempéraments",IF(VLOOKUP('Calculs cachés'!A87+$V$2,'Intercorr. circ.'!$A$4:$S$6968,19)>Présentation!$N$1,"",VLOOKUP('Calculs cachés'!A87+$V$2,'Intercorr. circ.'!$A$4:$S$6968,19)),IF($I$1="Sans les ND",IF(VLOOKUP('Calculs cachés'!A87+$V$2,'IC sans ND'!$A$4:$S$3886,19)>Présentation!$N$1,"",VLOOKUP('Calculs cachés'!A87+$V$2,'IC sans ND'!$A$4:$S$3886,19)),IF($I$1="Sans les ND et les TR",IF(VLOOKUP('Calculs cachés'!A87+$V$2,'IC sans ND et TR'!$A$4:$S$1943,19)>Présentation!$N$1,"",VLOOKUP('Calculs cachés'!A87+$V$2,'IC sans ND et TR'!$A$4:$S$1943,19)),IF(VLOOKUP('Calculs cachés'!A87+$V$2,'IC sans TR'!$A$4:$S$3485,19)>Présentation!$N$1,"",VLOOKUP('Calculs cachés'!A87+$V$2,'IC sans TR'!$A$4:$S$3485,19))))) -> 2 | C60: =IF($I$1="Tous les tempéraments",IF(B60<=Présentation!$N$1,VLOOKUP('Calculs cachés'!A87+$V$2,'Intercorr. circ.'!$A$4:$S$6968,2),""),IF($I$1="Sans les ND",IF(B60<=Présentation!$N$1,VLOOKUP('Calculs cachés'!A87+$V$2,'IC sans ND'!$A$4:$S$3886,2),""),IF($I$1="Sans les ND et les TR",IF(B60<=Présentation!$N$1,VLOOKUP('Calculs cachés'!A87+$V$2,'IC sans ND et TR'!$A$4:$S$1943,2),""),IF(B60<=Présentation!$N$1,VLOOKUP('Calculs cachés'!A87+$V$2,'IC sans TR'!$A$4:$S$3485,2),"")))) -> Young II - Sol | D60: =IF($I$1="Tous les tempéraments",IF(C60="","",VLOOKUP('Calculs cachés'!A87+$V$2,'Intercorr. circ.'!$A$4:$S$6968,18)),IF($I$1="Sans les ND",IF(C60="","",VLOOKUP('Calculs cachés'!A87+$V$2,'IC sans ND'!$A$4:$S$3886,18)),IF($I$1="Sans Les ND et les TR",IF(C60="","",VLOOKUP('Calculs cachés'!A87+$V$2,'IC sans ND et TR'!$A$4:$S$1943,18)),IF(C60="","",VLOOKUP('Calculs cachés'!A87+$V$2,'IC sans TR'!$A$4:$S$3485,18))))) -> 1800
B61: =IF($I$1="Tous les tempéraments",IF(VLOOKUP('Calculs cachés'!A88+$V$2,'Intercorr. circ.'!$A$4:$S$6968,19)>Présentation!$N$1,"",VLOOKUP('Calculs cachés'!A88+$V$2,'Intercorr. circ.'!$A$4:$S$6968,19)),IF($I$1="Sans les ND",IF(VLOOKUP('Calculs cachés'!A88+$V$2,'IC sans ND'!$A$4:$S$3886,19)>Présentation!$N$1,"",VLOOKUP('Calculs cachés'!A88+$V$2,'IC sans ND'!$A$4:$S$3886,19)),IF($I$1="Sans les ND et les TR",IF(VLOOKUP('Calculs cachés'!A88+$V$2,'IC sans ND et TR'!$A$4:$S$1943,19)>Présentation!$N$1,"",VLOOKUP('Calculs cachés'!A88+$V$2,'IC sans ND et TR'!$A$4:$S$1943,19)),IF(VLOOKUP('Calculs cachés'!A88+$V$2,'IC sans TR'!$A$4:$S$3485,19)>Présentation!$N$1,"",VLOOKUP('Calculs cachés'!A88+$V$2,'IC sans TR'!$A$4:$S$3485,19))))) -> 2 | C61: =IF($I$1="Tous les tempéraments",IF(B61<=Présentation!$N$1,VLOOKUP('Calculs cachés'!A88+$V$2,'Intercorr. circ.'!$A$4:$S$6968,2),""),IF($I$1="Sans les ND",IF(B61<=Présentation!$N$1,VLOOKUP('Calculs cachés'!A88+$V$2,'IC sans ND'!$A$4:$S$3886,2),""),IF($I$1="Sans les ND et les TR",IF(B61<=Présentation!$N$1,VLOOKUP('Calculs cachés'!A88+$V$2,'IC sans ND et TR'!$A$4:$S$1943,2),""),IF(B61<=Présentation!$N$1,VLOOKUP('Calculs cachés'!A88+$V$2,'IC sans TR'!$A$4:$S$3485,2),"")))) -> Lehman 2 - Do | D61: =IF($I$1="Tous les tempéraments",IF(C61="","",VLOOKUP('Calculs cachés'!A88+$V$2,'Intercorr. circ.'!$A$4:$S$6968,18)),IF($I$1="Sans les ND",IF(C61="","",VLOOKUP('Calculs cachés'!A88+$V$2,'IC sans ND'!$A$4:$S$3886,18)),IF($I$1="Sans Les ND et les TR",IF(C61="","",VLOOKUP('Calculs cachés'!A88+$V$2,'IC sans ND et TR'!$A$4:$S$1943,18)),IF(C61="","",VLOOKUP('Calculs cachés'!A88+$V$2,'IC sans TR'!$A$4:$S$3485,18))))) -> 2006
B62: =IF($I$1="Tous les tempéraments",IF(VLOOKUP('Calculs cachés'!A89+$V$2,'Intercorr. circ.'!$A$4:$S$6968,19)>Présentation!$N$1,"",VLOOKUP('Calculs cachés'!A89+$V$2,'Intercorr. circ.'!$A$4:$S$6968,19)),IF($I$1="Sans les ND",IF(VLOOKUP('Calculs cachés'!A89+$V$2,'IC sans ND'!$A$4:$S$3886,19)>Présentation!$N$1,"",VLOOKUP('Calculs cachés'!A89+$V$2,'IC sans ND'!$A$4:$S$3886,19)),IF($I$1="Sans les ND et les TR",IF(VLOOKUP('Calculs cachés'!A89+$V$2,'IC sans ND et TR'!$A$4:$S$1943,19)>Présentation!$N$1,"",VLOOKUP('Calculs cachés'!A89+$V$2,'IC sans ND et TR'!$A$4:$S$1943,19)),IF(VLOOKUP('Calculs cachés'!A89+$V$2,'IC sans TR'!$A$4:$S$3485,19)>Présentation!$N$1,"",VLOOKUP('Calculs cachés'!A89+$V$2,'IC sans TR'!$A$4:$S$3485,19))))) -> 2 | C62: =IF($I$1="Tous les tempéraments",IF(B62<=Présentation!$N$1,VLOOKUP('Calculs cachés'!A89+$V$2,'Intercorr. circ.'!$A$4:$S$6968,2),""),IF($I$1="Sans les ND",IF(B62<=Présentation!$N$1,VLOOKUP('Calculs cachés'!A89+$V$2,'IC sans ND'!$A$4:$S$3886,2),""),IF($I$1="Sans les ND et les TR",IF(B62<=Présentation!$N$1,VLOOKUP('Calculs cachés'!A89+$V$2,'IC sans ND et TR'!$A$4:$S$1943,2),""),IF(B62<=Présentation!$N$1,VLOOKUP('Calculs cachés'!A89+$V$2,'IC sans TR'!$A$4:$S$3485,2),"")))) -> Asselin - Sol | D62: =IF($I$1="Tous les tempéraments",IF(C62="","",VLOOKUP('Calculs cachés'!A89+$V$2,'Intercorr. circ.'!$A$4:$S$6968,18)),IF($I$1="Sans les ND",IF(C62="","",VLOOKUP('Calculs cachés'!A89+$V$2,'IC sans ND'!$A$4:$S$3886,18)),IF($I$1="Sans Les ND et les TR",IF(C62="","",VLOOKUP('Calculs cachés'!A89+$V$2,'IC sans ND et TR'!$A$4:$S$1943,18)),IF(C62="","",VLOOKUP('Calculs cachés'!A89+$V$2,'IC sans TR'!$A$4:$S$3485,18))))) -> 1984
B63: =IF($I$1="Tous les tempéraments",IF(VLOOKUP('Calculs cachés'!A90+$V$2,'Intercorr. circ.'!$A$4:$S$6968,19)>Présentation!$N$1,"",VLOOKUP('Calculs cachés'!A90+$V$2,'Intercorr. circ.'!$A$4:$S$6968,19)),IF($I$1="Sans les ND",IF(VLOOKUP('Calculs cachés'!A90+$V$2,'IC sans ND'!$A$4:$S$3886,19)>Présentation!$N$1,"",VLOOKUP('Calculs cachés'!A90+$V$2,'IC sans ND'!$A$4:$S$3886,19)),IF($I$1="Sans les ND et les TR",IF(VLOOKUP('Calculs cachés'!A90+$V$2,'IC sans ND et TR'!$A$4:$S$1943,19)>Présentation!$N$1,"",VLOOKUP('Calculs cachés'!A90+$V$2,'IC sans ND et TR'!$A$4:$S$1943,19)),IF(VLOOKUP('Calculs cachés'!A90+$V$2,'IC sans TR'!$A$4:$S$3485,19)>Présentation!$N$1,"",VLOOKUP('Calculs cachés'!A90+$V$2,'IC sans TR'!$A$4:$S$3485,19))))) ->  | C63: =IF($I$1="Tous les tempéraments",IF(B63<=Présentation!$N$1,VLOOKUP('Calculs cachés'!A90+$V$2,'Intercorr. circ.'!$A$4:$S$6968,2),""),IF($I$1="Sans les ND",IF(B63<=Présentation!$N$1,VLOOKUP('Calculs cachés'!A90+$V$2,'IC sans ND'!$A$4:$S$3886,2),""),IF($I$1="Sans les ND et les TR",IF(B63<=Présentation!$N$1,VLOOKUP('Calculs cachés'!A90+$V$2,'IC sans ND et TR'!$A$4:$S$1943,2),""),IF(B63<=Présentation!$N$1,VLOOKUP('Calculs cachés'!A90+$V$2,'IC sans TR'!$A$4:$S$3485,2),"")))) ->  | D63: =IF($I$1="Tous les tempéraments",IF(C63="","",VLOOKUP('Calculs cachés'!A90+$V$2,'Intercorr. circ.'!$A$4:$S$6968,18)),IF($I$1="Sans les ND",IF(C63="","",VLOOKUP('Calculs cachés'!A90+$V$2,'IC sans ND'!$A$4:$S$3886,18)),IF($I$1="Sans Les ND et les TR",IF(C63="","",VLOOKUP('Calculs cachés'!A90+$V$2,'IC sans ND et TR'!$A$4:$S$1943,18)),IF(C63="","",VLOOKUP('Calculs cachés'!A90+$V$2,'IC sans TR'!$A$4:$S$3485,18))))) -> 
B64: =IF($I$1="Tous les tempéraments",IF(VLOOKUP('Calculs cachés'!A91+$V$2,'Intercorr. circ.'!$A$4:$S$6968,19)>Présentation!$N$1,"",VLOOKUP('Calculs cachés'!A91+$V$2,'Intercorr. circ.'!$A$4:$S$6968,19)),IF($I$1="Sans les ND",IF(VLOOKUP('Calculs cachés'!A91+$V$2,'IC sans ND'!$A$4:$S$3886,19)>Présentation!$N$1,"",VLOOKUP('Calculs cachés'!A91+$V$2,'IC sans ND'!$A$4:$S$3886,19)),IF($I$1="Sans les ND et les TR",IF(VLOOKUP('Calculs cachés'!A91+$V$2,'IC sans ND et TR'!$A$4:$S$1943,19)>Présentation!$N$1,"",VLOOKUP('Calculs cachés'!A91+$V$2,'IC sans ND et TR'!$A$4:$S$1943,19)),IF(VLOOKUP('Calculs cachés'!A91+$V$2,'IC sans TR'!$A$4:$S$3485,19)>Présentation!$N$1,"",VLOOKUP('Calculs cachés'!A91+$V$2,'IC sans TR'!$A$4:$S$3485,19))))) ->  | C64: =IF($I$1="Tous les tempéraments",IF(B64<=Présentation!$N$1,VLOOKUP('Calculs cachés'!A91+$V$2,'Intercorr. circ.'!$A$4:$S$6968,2),""),IF($I$1="Sans les ND",IF(B64<=Présentation!$N$1,VLOOKUP('Calculs cachés'!A91+$V$2,'IC sans ND'!$A$4:$S$3886,2),""),IF($I$1="Sans les ND et les TR",IF(B64<=Présentation!$N$1,VLOOKUP('Calculs cachés'!A91+$V$2,'IC sans ND et TR'!$A$4:$S$1943,2),""),IF(B64<=Présentation!$N$1,VLOOKUP('Calculs cachés'!A91+$V$2,'IC sans TR'!$A$4:$S$3485,2),"")))) ->  | D64: =IF($I$1="Tous les tempéraments",IF(C64="","",VLOOKUP('Calculs cachés'!A91+$V$2,'Intercorr. circ.'!$A$4:$S$6968,18)),IF($I$1="Sans les ND",IF(C64="","",VLOOKUP('Calculs cachés'!A91+$V$2,'IC sans ND'!$A$4:$S$3886,18)),IF($I$1="Sans Les ND et les TR",IF(C64="","",VLOOKUP('Calculs cachés'!A91+$V$2,'IC sans ND et TR'!$A$4:$S$1943,18)),IF(C64="","",VLOOKUP('Calculs cachés'!A91+$V$2,'IC sans TR'!$A$4:$S$3485,18))))) -> 
B65: =IF($I$1="Tous les tempéraments",IF(VLOOKUP('Calculs cachés'!A92+$V$2,'Intercorr. circ.'!$A$4:$S$6968,19)>Présentation!$N$1,"",VLOOKUP('Calculs cachés'!A92+$V$2,'Intercorr. circ.'!$A$4:$S$6968,19)),IF($I$1="Sans les ND",IF(VLOOKUP('Calculs cachés'!A92+$V$2,'IC sans ND'!$A$4:$S$3886,19)>Présentation!$N$1,"",VLOOKUP('Calculs cachés'!A92+$V$2,'IC sans ND'!$A$4:$S$3886,19)),IF($I$1="Sans les ND et les TR",IF(VLOOKUP('Calculs cachés'!A92+$V$2,'IC sans ND et TR'!$A$4:$S$1943,19)>Présentation!$N$1,"",VLOOKUP('Calculs cachés'!A92+$V$2,'IC sans ND et TR'!$A$4:$S$1943,19)),IF(VLOOKUP('Calculs cachés'!A92+$V$2,'IC sans TR'!$A$4:$S$3485,19)>Présentation!$N$1,"",VLOOKUP('Calculs cachés'!A92+$V$2,'IC sans TR'!$A$4:$S$3485,19))))) ->  | C65: =IF($I$1="Tous les tempéraments",IF(B65<=Présentation!$N$1,VLOOKUP('Calculs cachés'!A92+$V$2,'Intercorr. circ.'!$A$4:$S$6968,2),""),IF($I$1="Sans les ND",IF(B65<=Présentation!$N$1,VLOOKUP('Calculs cachés'!A92+$V$2,'IC sans ND'!$A$4:$S$3886,2),""),IF($I$1="Sans les ND et les TR",IF(B65<=Présentation!$N$1,VLOOKUP('Calculs cachés'!A92+$V$2,'IC sans ND et TR'!$A$4:$S$1943,2),""),IF(B65<=Présentation!$N$1,VLOOKUP('Calculs cachés'!A92+$V$2,'IC sans TR'!$A$4:$S$3485,2),"")))) ->  | D65: =IF($I$1="Tous les tempéraments",IF(C65="","",VLOOKUP('Calculs cachés'!A92+$V$2,'Intercorr. circ.'!$A$4:$S$6968,18)),IF($I$1="Sans les ND",IF(C65="","",VLOOKUP('Calculs cachés'!A92+$V$2,'IC sans ND'!$A$4:$S$3886,18)),IF($I$1="Sans Les ND et les TR",IF(C65="","",VLOOKUP('Calculs cachés'!A92+$V$2,'IC sans ND et TR'!$A$4:$S$1943,18)),IF(C65="","",VLOOKUP('Calculs cachés'!A92+$V$2,'IC sans TR'!$A$4:$S$3485,18))))) -> 
B66: =IF($I$1="Tous les tempéraments",IF(VLOOKUP('Calculs cachés'!A93+$V$2,'Intercorr. circ.'!$A$4:$S$6968,19)>Présentation!$N$1,"",VLOOKUP('Calculs cachés'!A93+$V$2,'Intercorr. circ.'!$A$4:$S$6968,19)),IF($I$1="Sans les ND",IF(VLOOKUP('Calculs cachés'!A93+$V$2,'IC sans ND'!$A$4:$S$3886,19)>Présentation!$N$1,"",VLOOKUP('Calculs cachés'!A93+$V$2,'IC sans ND'!$A$4:$S$3886,19)),IF($I$1="Sans les ND et les TR",IF(VLOOKUP('Calculs cachés'!A93+$V$2,'IC sans ND et TR'!$A$4:$S$1943,19)>Présentation!$N$1,"",VLOOKUP('Calculs cachés'!A93+$V$2,'IC sans ND et TR'!$A$4:$S$1943,19)),IF(VLOOKUP('Calculs cachés'!A93+$V$2,'IC sans TR'!$A$4:$S$3485,19)>Présentation!$N$1,"",VLOOKUP('Calculs cachés'!A93+$V$2,'IC sans TR'!$A$4:$S$3485,19))))) ->  | C66: =IF($I$1="Tous les tempéraments",IF(B66<=Présentation!$N$1,VLOOKUP('Calculs cachés'!A93+$V$2,'Intercorr. circ.'!$A$4:$S$6968,2),""),IF($I$1="Sans les ND",IF(B66<=Présentation!$N$1,VLOOKUP('Calculs cachés'!A93+$V$2,'IC sans ND'!$A$4:$S$3886,2),""),IF($I$1="Sans les ND et les TR",IF(B66<=Présentation!$N$1,VLOOKUP('Calculs cachés'!A93+$V$2,'IC sans ND et TR'!$A$4:$S$1943,2),""),IF(B66<=Présentation!$N$1,VLOOKUP('Calculs cachés'!A93+$V$2,'IC sans TR'!$A$4:$S$3485,2),"")))) ->  | D66: =IF($I$1="Tous les tempéraments",IF(C66="","",VLOOKUP('Calculs cachés'!A93+$V$2,'Intercorr. circ.'!$A$4:$S$6968,18)),IF($I$1="Sans les ND",IF(C66="","",VLOOKUP('Calculs cachés'!A93+$V$2,'IC sans ND'!$A$4:$S$3886,18)),IF($I$1="Sans Les ND et les TR",IF(C66="","",VLOOKUP('Calculs cachés'!A93+$V$2,'IC sans ND et TR'!$A$4:$S$1943,18)),IF(C66="","",VLOOKUP('Calculs cachés'!A93+$V$2,'IC sans TR'!$A$4:$S$3485,18))))) -> 
B67: =IF($I$1="Tous les tempéraments",IF(VLOOKUP('Calculs cachés'!A94+$V$2,'Intercorr. circ.'!$A$4:$S$6968,19)>Présentation!$N$1,"",VLOOKUP('Calculs cachés'!A94+$V$2,'Intercorr. circ.'!$A$4:$S$6968,19)),IF($I$1="Sans les ND",IF(VLOOKUP('Calculs cachés'!A94+$V$2,'IC sans ND'!$A$4:$S$3886,19)>Présentation!$N$1,"",VLOOKUP('Calculs cachés'!A94+$V$2,'IC sans ND'!$A$4:$S$3886,19)),IF($I$1="Sans les ND et les TR",IF(VLOOKUP('Calculs cachés'!A94+$V$2,'IC sans ND et TR'!$A$4:$S$1943,19)>Présentation!$N$1,"",VLOOKUP('Calculs cachés'!A94+$V$2,'IC sans ND et TR'!$A$4:$S$1943,19)),IF(VLOOKUP('Calculs cachés'!A94+$V$2,'IC sans TR'!$A$4:$S$3485,19)>Présentation!$N$1,"",VLOOKUP('Calculs cachés'!A94+$V$2,'IC sans TR'!$A$4:$S$3485,19))))) ->  | C67: =IF($I$1="Tous les tempéraments",IF(B67<=Présentation!$N$1,VLOOKUP('Calculs cachés'!A94+$V$2,'Intercorr. circ.'!$A$4:$S$6968,2),""),IF($I$1="Sans les ND",IF(B67<=Présentation!$N$1,VLOOKUP('Calculs cachés'!A94+$V$2,'IC sans ND'!$A$4:$S$3886,2),""),IF($I$1="Sans les ND et les TR",IF(B67<=Présentation!$N$1,VLOOKUP('Calculs cachés'!A94+$V$2,'IC sans ND et TR'!$A$4:$S$1943,2),""),IF(B67<=Présentation!$N$1,VLOOKUP('Calculs cachés'!A94+$V$2,'IC sans TR'!$A$4:$S$3485,2),"")))) ->  | D67: =IF($I$1="Tous les tempéraments",IF(C67="","",VLOOKUP('Calculs cachés'!A94+$V$2,'Intercorr. circ.'!$A$4:$S$6968,18)),IF($I$1="Sans les ND",IF(C67="","",VLOOKUP('Calculs cachés'!A94+$V$2,'IC sans ND'!$A$4:$S$3886,18)),IF($I$1="Sans Les ND et les TR",IF(C67="","",VLOOKUP('Calculs cachés'!A94+$V$2,'IC sans ND et TR'!$A$4:$S$1943,18)),IF(C67="","",VLOOKUP('Calculs cachés'!A94+$V$2,'IC sans TR'!$A$4:$S$3485,18))))) -> 
B68: =IF($I$1="Tous les tempéraments",IF(VLOOKUP('Calculs cachés'!A95+$V$2,'Intercorr. circ.'!$A$4:$S$6968,19)>Présentation!$N$1,"",VLOOKUP('Calculs cachés'!A95+$V$2,'Intercorr. circ.'!$A$4:$S$6968,19)),IF($I$1="Sans les ND",IF(VLOOKUP('Calculs cachés'!A95+$V$2,'IC sans ND'!$A$4:$S$3886,19)>Présentation!$N$1,"",VLOOKUP('Calculs cachés'!A95+$V$2,'IC sans ND'!$A$4:$S$3886,19)),IF($I$1="Sans les ND et les TR",IF(VLOOKUP('Calculs cachés'!A95+$V$2,'IC sans ND et TR'!$A$4:$S$1943,19)>Présentation!$N$1,"",VLOOKUP('Calculs cachés'!A95+$V$2,'IC sans ND et TR'!$A$4:$S$1943,19)),IF(VLOOKUP('Calculs cachés'!A95+$V$2,'IC sans TR'!$A$4:$S$3485,19)>Présentation!$N$1,"",VLOOKUP('Calculs cachés'!A95+$V$2,'IC sans TR'!$A$4:$S$3485,19))))) ->  | C68: =IF($I$1="Tous les tempéraments",IF(B68<=Présentation!$N$1,VLOOKUP('Calculs cachés'!A95+$V$2,'Intercorr. circ.'!$A$4:$S$6968,2),""),IF($I$1="Sans les ND",IF(B68<=Présentation!$N$1,VLOOKUP('Calculs cachés'!A95+$V$2,'IC sans ND'!$A$4:$S$3886,2),""),IF($I$1="Sans les ND et les TR",IF(B68<=Présentation!$N$1,VLOOKUP('Calculs cachés'!A95+$V$2,'IC sans ND et TR'!$A$4:$S$1943,2),""),IF(B68<=Présentation!$N$1,VLOOKUP('Calculs cachés'!A95+$V$2,'IC sans TR'!$A$4:$S$3485,2),"")))) ->  | D68: =IF($I$1="Tous les tempéraments",IF(C68="","",VLOOKUP('Calculs cachés'!A95+$V$2,'Intercorr. circ.'!$A$4:$S$6968,18)),IF($I$1="Sans les ND",IF(C68="","",VLOOKUP('Calculs cachés'!A95+$V$2,'IC sans ND'!$A$4:$S$3886,18)),IF($I$1="Sans Les ND et les TR",IF(C68="","",VLOOKUP('Calculs cachés'!A95+$V$2,'IC sans ND et TR'!$A$4:$S$1943,18)),IF(C68="","",VLOOKUP('Calculs cachés'!A95+$V$2,'IC sans TR'!$A$4:$S$3485,18))))) -> 
B69: =IF($I$1="Tous les tempéraments",IF(VLOOKUP('Calculs cachés'!A96+$V$2,'Intercorr. circ.'!$A$4:$S$6968,19)>Présentation!$N$1,"",VLOOKUP('Calculs cachés'!A96+$V$2,'Intercorr. circ.'!$A$4:$S$6968,19)),IF($I$1="Sans les ND",IF(VLOOKUP('Calculs cachés'!A96+$V$2,'IC sans ND'!$A$4:$S$3886,19)>Présentation!$N$1,"",VLOOKUP('Calculs cachés'!A96+$V$2,'IC sans ND'!$A$4:$S$3886,19)),IF($I$1="Sans les ND et les TR",IF(VLOOKUP('Calculs cachés'!A96+$V$2,'IC sans ND et TR'!$A$4:$S$1943,19)>Présentation!$N$1,"",VLOOKUP('Calculs cachés'!A96+$V$2,'IC sans ND et TR'!$A$4:$S$1943,19)),IF(VLOOKUP('Calculs cachés'!A96+$V$2,'IC sans TR'!$A$4:$S$3485,19)>Présentation!$N$1,"",VLOOKUP('Calculs cachés'!A96+$V$2,'IC sans TR'!$A$4:$S$3485,19))))) ->  | C69: =IF($I$1="Tous les tempéraments",IF(B69<=Présentation!$N$1,VLOOKUP('Calculs cachés'!A96+$V$2,'Intercorr. circ.'!$A$4:$S$6968,2),""),IF($I$1="Sans les ND",IF(B69<=Présentation!$N$1,VLOOKUP('Calculs cachés'!A96+$V$2,'IC sans ND'!$A$4:$S$3886,2),""),IF($I$1="Sans les ND et les TR",IF(B69<=Présentation!$N$1,VLOOKUP('Calculs cachés'!A96+$V$2,'IC sans ND et TR'!$A$4:$S$1943,2),""),IF(B69<=Présentation!$N$1,VLOOKUP('Calculs cachés'!A96+$V$2,'IC sans TR'!$A$4:$S$3485,2),"")))) ->  | D69: =IF($I$1="Tous les tempéraments",IF(C69="","",VLOOKUP('Calculs cachés'!A96+$V$2,'Intercorr. circ.'!$A$4:$S$6968,18)),IF($I$1="Sans les ND",IF(C69="","",VLOOKUP('Calculs cachés'!A96+$V$2,'IC sans ND'!$A$4:$S$3886,18)),IF($I$1="Sans Les ND et les TR",IF(C69="","",VLOOKUP('Calculs cachés'!A96+$V$2,'IC sans ND et TR'!$A$4:$S$1943,18)),IF(C69="","",VLOOKUP('Calculs cachés'!A96+$V$2,'IC sans TR'!$A$4:$S$3485,18))))) -> 
B70: =IF($I$1="Tous les tempéraments",IF(VLOOKUP('Calculs cachés'!A97+$V$2,'Intercorr. circ.'!$A$4:$S$6968,19)>Présentation!$N$1,"",VLOOKUP('Calculs cachés'!A97+$V$2,'Intercorr. circ.'!$A$4:$S$6968,19)),IF($I$1="Sans les ND",IF(VLOOKUP('Calculs cachés'!A97+$V$2,'IC sans ND'!$A$4:$S$3886,19)>Présentation!$N$1,"",VLOOKUP('Calculs cachés'!A97+$V$2,'IC sans ND'!$A$4:$S$3886,19)),IF($I$1="Sans les ND et les TR",IF(VLOOKUP('Calculs cachés'!A97+$V$2,'IC sans ND et TR'!$A$4:$S$1943,19)>Présentation!$N$1,"",VLOOKUP('Calculs cachés'!A97+$V$2,'IC sans ND et TR'!$A$4:$S$1943,19)),IF(VLOOKUP('Calculs cachés'!A97+$V$2,'IC sans TR'!$A$4:$S$3485,19)>Présentation!$N$1,"",VLOOKUP('Calculs cachés'!A97+$V$2,'IC sans TR'!$A$4:$S$3485,19))))) ->  | C70: =IF($I$1="Tous les tempéraments",IF(B70<=Présentation!$N$1,VLOOKUP('Calculs cachés'!A97+$V$2,'Intercorr. circ.'!$A$4:$S$6968,2),""),IF($I$1="Sans les ND",IF(B70<=Présentation!$N$1,VLOOKUP('Calculs cachés'!A97+$V$2,'IC sans ND'!$A$4:$S$3886,2),""),IF($I$1="Sans les ND et les TR",IF(B70<=Présentation!$N$1,VLOOKUP('Calculs cachés'!A97+$V$2,'IC sans ND et TR'!$A$4:$S$1943,2),""),IF(B70<=Présentation!$N$1,VLOOKUP('Calculs cachés'!A97+$V$2,'IC sans TR'!$A$4:$S$3485,2),"")))) ->  | D70: =IF($I$1="Tous les tempéraments",IF(C70="","",VLOOKUP('Calculs cachés'!A97+$V$2,'Intercorr. circ.'!$A$4:$S$6968,18)),IF($I$1="Sans les ND",IF(C70="","",VLOOKUP('Calculs cachés'!A97+$V$2,'IC sans ND'!$A$4:$S$3886,18)),IF($I$1="Sans Les ND et les TR",IF(C70="","",VLOOKUP('Calculs cachés'!A97+$V$2,'IC sans ND et TR'!$A$4:$S$1943,18)),IF(C70="","",VLOOKUP('Calculs cachés'!A97+$V$2,'IC sans TR'!$A$4:$S$3485,18))))) -> 
B71: =IF($I$1="Tous les tempéraments",IF(VLOOKUP('Calculs cachés'!A98+$V$2,'Intercorr. circ.'!$A$4:$S$6968,19)>Présentation!$N$1,"",VLOOKUP('Calculs cachés'!A98+$V$2,'Intercorr. circ.'!$A$4:$S$6968,19)),IF($I$1="Sans les ND",IF(VLOOKUP('Calculs cachés'!A98+$V$2,'IC sans ND'!$A$4:$S$3886,19)>Présentation!$N$1,"",VLOOKUP('Calculs cachés'!A98+$V$2,'IC sans ND'!$A$4:$S$3886,19)),IF($I$1="Sans les ND et les TR",IF(VLOOKUP('Calculs cachés'!A98+$V$2,'IC sans ND et TR'!$A$4:$S$1943,19)>Présentation!$N$1,"",VLOOKUP('Calculs cachés'!A98+$V$2,'IC sans ND et TR'!$A$4:$S$1943,19)),IF(VLOOKUP('Calculs cachés'!A98+$V$2,'IC sans TR'!$A$4:$S$3485,19)>Présentation!$N$1,"",VLOOKUP('Calculs cachés'!A98+$V$2,'IC sans TR'!$A$4:$S$3485,19))))) ->  | C71: =IF($I$1="Tous les tempéraments",IF(B71<=Présentation!$N$1,VLOOKUP('Calculs cachés'!A98+$V$2,'Intercorr. circ.'!$A$4:$S$6968,2),""),IF($I$1="Sans les ND",IF(B71<=Présentation!$N$1,VLOOKUP('Calculs cachés'!A98+$V$2,'IC sans ND'!$A$4:$S$3886,2),""),IF($I$1="Sans les ND et les TR",IF(B71<=Présentation!$N$1,VLOOKUP('Calculs cachés'!A98+$V$2,'IC sans ND et TR'!$A$4:$S$1943,2),""),IF(B71<=Présentation!$N$1,VLOOKUP('Calculs cachés'!A98+$V$2,'IC sans TR'!$A$4:$S$3485,2),"")))) ->  | D71: =IF($I$1="Tous les tempéraments",IF(C71="","",VLOOKUP('Calculs cachés'!A98+$V$2,'Intercorr. circ.'!$A$4:$S$6968,18)),IF($I$1="Sans les ND",IF(C71="","",VLOOKUP('Calculs cachés'!A98+$V$2,'IC sans ND'!$A$4:$S$3886,18)),IF($I$1="Sans Les ND et les TR",IF(C71="","",VLOOKUP('Calculs cachés'!A98+$V$2,'IC sans ND et TR'!$A$4:$S$1943,18)),IF(C71="","",VLOOKUP('Calculs cachés'!A98+$V$2,'IC sans TR'!$A$4:$S$3485,18))))) -> 
B72: =IF($I$1="Tous les tempéraments",IF(VLOOKUP('Calculs cachés'!A99+$V$2,'Intercorr. circ.'!$A$4:$S$6968,19)>Présentation!$N$1,"",VLOOKUP('Calculs cachés'!A99+$V$2,'Intercorr. circ.'!$A$4:$S$6968,19)),IF($I$1="Sans les ND",IF(VLOOKUP('Calculs cachés'!A99+$V$2,'IC sans ND'!$A$4:$S$3886,19)>Présentation!$N$1,"",VLOOKUP('Calculs cachés'!A99+$V$2,'IC sans ND'!$A$4:$S$3886,19)),IF($I$1="Sans les ND et les TR",IF(VLOOKUP('Calculs cachés'!A99+$V$2,'IC sans ND et TR'!$A$4:$S$1943,19)>Présentation!$N$1,"",VLOOKUP('Calculs cachés'!A99+$V$2,'IC sans ND et TR'!$A$4:$S$1943,19)),IF(VLOOKUP('Calculs cachés'!A99+$V$2,'IC sans TR'!$A$4:$S$3485,19)>Présentation!$N$1,"",VLOOKUP('Calculs cachés'!A99+$V$2,'IC sans TR'!$A$4:$S$3485,19))))) ->  | C72: =IF($I$1="Tous les tempéraments",IF(B72<=Présentation!$N$1,VLOOKUP('Calculs cachés'!A99+$V$2,'Intercorr. circ.'!$A$4:$S$6968,2),""),IF($I$1="Sans les ND",IF(B72<=Présentation!$N$1,VLOOKUP('Calculs cachés'!A99+$V$2,'IC sans ND'!$A$4:$S$3886,2),""),IF($I$1="Sans les ND et les TR",IF(B72<=Présentation!$N$1,VLOOKUP('Calculs cachés'!A99+$V$2,'IC sans ND et TR'!$A$4:$S$1943,2),""),IF(B72<=Présentation!$N$1,VLOOKUP('Calculs cachés'!A99+$V$2,'IC sans TR'!$A$4:$S$3485,2),"")))) ->  | D72: =IF($I$1="Tous les tempéraments",IF(C72="","",VLOOKUP('Calculs cachés'!A99+$V$2,'Intercorr. circ.'!$A$4:$S$6968,18)),IF($I$1="Sans les ND",IF(C72="","",VLOOKUP('Calculs cachés'!A99+$V$2,'IC sans ND'!$A$4:$S$3886,18)),IF($I$1="Sans Les ND et les TR",IF(C72="","",VLOOKUP('Calculs cachés'!A99+$V$2,'IC sans ND et TR'!$A$4:$S$1943,18)),IF(C72="","",VLOOKUP('Calculs cachés'!A99+$V$2,'IC sans TR'!$A$4:$S$3485,18))))) -> 
B73: =IF($I$1="Tous les tempéraments",IF(VLOOKUP('Calculs cachés'!A100+$V$2,'Intercorr. circ.'!$A$4:$S$6968,19)>Présentation!$N$1,"",VLOOKUP('Calculs cachés'!A100+$V$2,'Intercorr. circ.'!$A$4:$S$6968,19)),IF($I$1="Sans les ND",IF(VLOOKUP('Calculs cachés'!A100+$V$2,'IC sans ND'!$A$4:$S$3886,19)>Présentation!$N$1,"",VLOOKUP('Calculs cachés'!A100+$V$2,'IC sans ND'!$A$4:$S$3886,19)),IF($I$1="Sans les ND et les TR",IF(VLOOKUP('Calculs cachés'!A100+$V$2,'IC sans ND et TR'!$A$4:$S$1943,19)>Présentation!$N$1,"",VLOOKUP('Calculs cachés'!A100+$V$2,'IC sans ND et TR'!$A$4:$S$1943,19)),IF(VLOOKUP('Calculs cachés'!A100+$V$2,'IC sans TR'!$A$4:$S$3485,19)>Présentation!$N$1,"",VLOOKUP('Calculs cachés'!A100+$V$2,'IC sans TR'!$A$4:$S$3485,19))))) ->  | C73: =IF($I$1="Tous les tempéraments",IF(B73<=Présentation!$N$1,VLOOKUP('Calculs cachés'!A100+$V$2,'Intercorr. circ.'!$A$4:$S$6968,2),""),IF($I$1="Sans les ND",IF(B73<=Présentation!$N$1,VLOOKUP('Calculs cachés'!A100+$V$2,'IC sans ND'!$A$4:$S$3886,2),""),IF($I$1="Sans les ND et les TR",IF(B73<=Présentation!$N$1,VLOOKUP('Calculs cachés'!A100+$V$2,'IC sans ND et TR'!$A$4:$S$1943,2),""),IF(B73<=Présentation!$N$1,VLOOKUP('Calculs cachés'!A100+$V$2,'IC sans TR'!$A$4:$S$3485,2),"")))) ->  | D73: =IF($I$1="Tous les tempéraments",IF(C73="","",VLOOKUP('Calculs cachés'!A100+$V$2,'Intercorr. circ.'!$A$4:$S$6968,18)),IF($I$1="Sans les ND",IF(C73="","",VLOOKUP('Calculs cachés'!A100+$V$2,'IC sans ND'!$A$4:$S$3886,18)),IF($I$1="Sans Les ND et les TR",IF(C73="","",VLOOKUP('Calculs cachés'!A100+$V$2,'IC sans ND et TR'!$A$4:$S$1943,18)),IF(C73="","",VLOOKUP('Calculs cachés'!A100+$V$2,'IC sans TR'!$A$4:$S$3485,18))))) -> 
B74: =IF($I$1="Tous les tempéraments",IF(VLOOKUP('Calculs cachés'!A101+$V$2,'Intercorr. circ.'!$A$4:$S$6968,19)>Présentation!$N$1,"",VLOOKUP('Calculs cachés'!A101+$V$2,'Intercorr. circ.'!$A$4:$S$6968,19)),IF($I$1="Sans les ND",IF(VLOOKUP('Calculs cachés'!A101+$V$2,'IC sans ND'!$A$4:$S$3886,19)>Présentation!$N$1,"",VLOOKUP('Calculs cachés'!A101+$V$2,'IC sans ND'!$A$4:$S$3886,19)),IF($I$1="Sans les ND et les TR",IF(VLOOKUP('Calculs cachés'!A101+$V$2,'IC sans ND et TR'!$A$4:$S$1943,19)>Présentation!$N$1,"",VLOOKUP('Calculs cachés'!A101+$V$2,'IC sans ND et TR'!$A$4:$S$1943,19)),IF(VLOOKUP('Calculs cachés'!A101+$V$2,'IC sans TR'!$A$4:$S$3485,19)>Présentation!$N$1,"",VLOOKUP('Calculs cachés'!A101+$V$2,'IC sans TR'!$A$4:$S$3485,19))))) ->  | C74: =IF($I$1="Tous les tempéraments",IF(B74<=Présentation!$N$1,VLOOKUP('Calculs cachés'!A101+$V$2,'Intercorr. circ.'!$A$4:$S$6968,2),""),IF($I$1="Sans les ND",IF(B74<=Présentation!$N$1,VLOOKUP('Calculs cachés'!A101+$V$2,'IC sans ND'!$A$4:$S$3886,2),""),IF($I$1="Sans les ND et les TR",IF(B74<=Présentation!$N$1,VLOOKUP('Calculs cachés'!A101+$V$2,'IC sans ND et TR'!$A$4:$S$1943,2),""),IF(B74<=Présentation!$N$1,VLOOKUP('Calculs cachés'!A101+$V$2,'IC sans TR'!$A$4:$S$3485,2),"")))) ->  | D74: =IF($I$1="Tous les tempéraments",IF(C74="","",VLOOKUP('Calculs cachés'!A101+$V$2,'Intercorr. circ.'!$A$4:$S$6968,18)),IF($I$1="Sans les ND",IF(C74="","",VLOOKUP('Calculs cachés'!A101+$V$2,'IC sans ND'!$A$4:$S$3886,18)),IF($I$1="Sans Les ND et les TR",IF(C74="","",VLOOKUP('Calculs cachés'!A101+$V$2,'IC sans ND et TR'!$A$4:$S$1943,18)),IF(C74="","",VLOOKUP('Calculs cachés'!A101+$V$2,'IC sans TR'!$A$4:$S$3485,18))))) -> 
B75: =IF($I$1="Tous les tempéraments",IF(VLOOKUP('Calculs cachés'!A102+$V$2,'Intercorr. circ.'!$A$4:$S$6968,19)>Présentation!$N$1,"",VLOOKUP('Calculs cachés'!A102+$V$2,'Intercorr. circ.'!$A$4:$S$6968,19)),IF($I$1="Sans les ND",IF(VLOOKUP('Calculs cachés'!A102+$V$2,'IC sans ND'!$A$4:$S$3886,19)>Présentation!$N$1,"",VLOOKUP('Calculs cachés'!A102+$V$2,'IC sans ND'!$A$4:$S$3886,19)),IF($I$1="Sans les ND et les TR",IF(VLOOKUP('Calculs cachés'!A102+$V$2,'IC sans ND et TR'!$A$4:$S$1943,19)>Présentation!$N$1,"",VLOOKUP('Calculs cachés'!A102+$V$2,'IC sans ND et TR'!$A$4:$S$1943,19)),IF(VLOOKUP('Calculs cachés'!A102+$V$2,'IC sans TR'!$A$4:$S$3485,19)>Présentation!$N$1,"",VLOOKUP('Calculs cachés'!A102+$V$2,'IC sans TR'!$A$4:$S$3485,19))))) ->  | C75: =IF($I$1="Tous les tempéraments",IF(B75<=Présentation!$N$1,VLOOKUP('Calculs cachés'!A102+$V$2,'Intercorr. circ.'!$A$4:$S$6968,2),""),IF($I$1="Sans les ND",IF(B75<=Présentation!$N$1,VLOOKUP('Calculs cachés'!A102+$V$2,'IC sans ND'!$A$4:$S$3886,2),""),IF($I$1="Sans les ND et les TR",IF(B75<=Présentation!$N$1,VLOOKUP('Calculs cachés'!A102+$V$2,'IC sans ND et TR'!$A$4:$S$1943,2),""),IF(B75<=Présentation!$N$1,VLOOKUP('Calculs cachés'!A102+$V$2,'IC sans TR'!$A$4:$S$3485,2),"")))) ->  | D75: =IF($I$1="Tous les tempéraments",IF(C75="","",VLOOKUP('Calculs cachés'!A102+$V$2,'Intercorr. circ.'!$A$4:$S$6968,18)),IF($I$1="Sans les ND",IF(C75="","",VLOOKUP('Calculs cachés'!A102+$V$2,'IC sans ND'!$A$4:$S$3886,18)),IF($I$1="Sans Les ND et les TR",IF(C75="","",VLOOKUP('Calculs cachés'!A102+$V$2,'IC sans ND et TR'!$A$4:$S$1943,18)),IF(C75="","",VLOOKUP('Calculs cachés'!A102+$V$2,'IC sans TR'!$A$4:$S$3485,18))))) -> 
B76: =IF($I$1="Tous les tempéraments",IF(VLOOKUP('Calculs cachés'!A103+$V$2,'Intercorr. circ.'!$A$4:$S$6968,19)>Présentation!$N$1,"",VLOOKUP('Calculs cachés'!A103+$V$2,'Intercorr. circ.'!$A$4:$S$6968,19)),IF($I$1="Sans les ND",IF(VLOOKUP('Calculs cachés'!A103+$V$2,'IC sans ND'!$A$4:$S$3886,19)>Présentation!$N$1,"",VLOOKUP('Calculs cachés'!A103+$V$2,'IC sans ND'!$A$4:$S$3886,19)),IF($I$1="Sans les ND et les TR",IF(VLOOKUP('Calculs cachés'!A103+$V$2,'IC sans ND et TR'!$A$4:$S$1943,19)>Présentation!$N$1,"",VLOOKUP('Calculs cachés'!A103+$V$2,'IC sans ND et TR'!$A$4:$S$1943,19)),IF(VLOOKUP('Calculs cachés'!A103+$V$2,'IC sans TR'!$A$4:$S$3485,19)>Présentation!$N$1,"",VLOOKUP('Calculs cachés'!A103+$V$2,'IC sans TR'!$A$4:$S$3485,19))))) ->  | C76: =IF($I$1="Tous les tempéraments",IF(B76<=Présentation!$N$1,VLOOKUP('Calculs cachés'!A103+$V$2,'Intercorr. circ.'!$A$4:$S$6968,2),""),IF($I$1="Sans les ND",IF(B76<=Présentation!$N$1,VLOOKUP('Calculs cachés'!A103+$V$2,'IC sans ND'!$A$4:$S$3886,2),""),IF($I$1="Sans les ND et les TR",IF(B76<=Présentation!$N$1,VLOOKUP('Calculs cachés'!A103+$V$2,'IC sans ND et TR'!$A$4:$S$1943,2),""),IF(B76<=Présentation!$N$1,VLOOKUP('Calculs cachés'!A103+$V$2,'IC sans TR'!$A$4:$S$3485,2),"")))) ->  | D76: =IF($I$1="Tous les tempéraments",IF(C76="","",VLOOKUP('Calculs cachés'!A103+$V$2,'Intercorr. circ.'!$A$4:$S$6968,18)),IF($I$1="Sans les ND",IF(C76="","",VLOOKUP('Calculs cachés'!A103+$V$2,'IC sans ND'!$A$4:$S$3886,18)),IF($I$1="Sans Les ND et les TR",IF(C76="","",VLOOKUP('Calculs cachés'!A103+$V$2,'IC sans ND et TR'!$A$4:$S$1943,18)),IF(C76="","",VLOOKUP('Calculs cachés'!A103+$V$2,'IC sans TR'!$A$4:$S$3485,18))))) -> 
B77: =IF($I$1="Tous les tempéraments",IF(VLOOKUP('Calculs cachés'!A104+$V$2,'Intercorr. circ.'!$A$4:$S$6968,19)>Présentation!$N$1,"",VLOOKUP('Calculs cachés'!A104+$V$2,'Intercorr. circ.'!$A$4:$S$6968,19)),IF($I$1="Sans les ND",IF(VLOOKUP('Calculs cachés'!A104+$V$2,'IC sans ND'!$A$4:$S$3886,19)>Présentation!$N$1,"",VLOOKUP('Calculs cachés'!A104+$V$2,'IC sans ND'!$A$4:$S$3886,19)),IF($I$1="Sans les ND et les TR",IF(VLOOKUP('Calculs cachés'!A104+$V$2,'IC sans ND et TR'!$A$4:$S$1943,19)>Présentation!$N$1,"",VLOOKUP('Calculs cachés'!A104+$V$2,'IC sans ND et TR'!$A$4:$S$1943,19)),IF(VLOOKUP('Calculs cachés'!A104+$V$2,'IC sans TR'!$A$4:$S$3485,19)>Présentation!$N$1,"",VLOOKUP('Calculs cachés'!A104+$V$2,'IC sans TR'!$A$4:$S$3485,19))))) ->  | C77: =IF($I$1="Tous les tempéraments",IF(B77<=Présentation!$N$1,VLOOKUP('Calculs cachés'!A104+$V$2,'Intercorr. circ.'!$A$4:$S$6968,2),""),IF($I$1="Sans les ND",IF(B77<=Présentation!$N$1,VLOOKUP('Calculs cachés'!A104+$V$2,'IC sans ND'!$A$4:$S$3886,2),""),IF($I$1="Sans les ND et les TR",IF(B77<=Présentation!$N$1,VLOOKUP('Calculs cachés'!A104+$V$2,'IC sans ND et TR'!$A$4:$S$1943,2),""),IF(B77<=Présentation!$N$1,VLOOKUP('Calculs cachés'!A104+$V$2,'IC sans TR'!$A$4:$S$3485,2),"")))) ->  | D77: =IF($I$1="Tous les tempéraments",IF(C77="","",VLOOKUP('Calculs cachés'!A104+$V$2,'Intercorr. circ.'!$A$4:$S$6968,18)),IF($I$1="Sans les ND",IF(C77="","",VLOOKUP('Calculs cachés'!A104+$V$2,'IC sans ND'!$A$4:$S$3886,18)),IF($I$1="Sans Les ND et les TR",IF(C77="","",VLOOKUP('Calculs cachés'!A104+$V$2,'IC sans ND et TR'!$A$4:$S$1943,18)),IF(C77="","",VLOOKUP('Calculs cachés'!A104+$V$2,'IC sans TR'!$A$4:$S$3485,18))))) -> 
B78: =IF($I$1="Tous les tempéraments",IF(VLOOKUP('Calculs cachés'!A105+$V$2,'Intercorr. circ.'!$A$4:$S$6968,19)>Présentation!$N$1,"",VLOOKUP('Calculs cachés'!A105+$V$2,'Intercorr. circ.'!$A$4:$S$6968,19)),IF($I$1="Sans les ND",IF(VLOOKUP('Calculs cachés'!A105+$V$2,'IC sans ND'!$A$4:$S$3886,19)>Présentation!$N$1,"",VLOOKUP('Calculs cachés'!A105+$V$2,'IC sans ND'!$A$4:$S$3886,19)),IF($I$1="Sans les ND et les TR",IF(VLOOKUP('Calculs cachés'!A105+$V$2,'IC sans ND et TR'!$A$4:$S$1943,19)>Présentation!$N$1,"",VLOOKUP('Calculs cachés'!A105+$V$2,'IC sans ND et TR'!$A$4:$S$1943,19)),IF(VLOOKUP('Calculs cachés'!A105+$V$2,'IC sans TR'!$A$4:$S$3485,19)>Présentation!$N$1,"",VLOOKUP('Calculs cachés'!A105+$V$2,'IC sans TR'!$A$4:$S$3485,19))))) ->  | C78: =IF($I$1="Tous les tempéraments",IF(B78<=Présentation!$N$1,VLOOKUP('Calculs cachés'!A105+$V$2,'Intercorr. circ.'!$A$4:$S$6968,2),""),IF($I$1="Sans les ND",IF(B78<=Présentation!$N$1,VLOOKUP('Calculs cachés'!A105+$V$2,'IC sans ND'!$A$4:$S$3886,2),""),IF($I$1="Sans les ND et les TR",IF(B78<=Présentation!$N$1,VLOOKUP('Calculs cachés'!A105+$V$2,'IC sans ND et TR'!$A$4:$S$1943,2),""),IF(B78<=Présentation!$N$1,VLOOKUP('Calculs cachés'!A105+$V$2,'IC sans TR'!$A$4:$S$3485,2),"")))) ->  | D78: =IF($I$1="Tous les tempéraments",IF(C78="","",VLOOKUP('Calculs cachés'!A105+$V$2,'Intercorr. circ.'!$A$4:$S$6968,18)),IF($I$1="Sans les ND",IF(C78="","",VLOOKUP('Calculs cachés'!A105+$V$2,'IC sans ND'!$A$4:$S$3886,18)),IF($I$1="Sans Les ND et les TR",IF(C78="","",VLOOKUP('Calculs cachés'!A105+$V$2,'IC sans ND et TR'!$A$4:$S$1943,18)),IF(C78="","",VLOOKUP('Calculs cachés'!A105+$V$2,'IC sans TR'!$A$4:$S$3485,18))))) -> 
B79: =IF($I$1="Tous les tempéraments",IF(VLOOKUP('Calculs cachés'!A106+$V$2,'Intercorr. circ.'!$A$4:$S$6968,19)>Présentation!$N$1,"",VLOOKUP('Calculs cachés'!A106+$V$2,'Intercorr. circ.'!$A$4:$S$6968,19)),IF($I$1="Sans les ND",IF(VLOOKUP('Calculs cachés'!A106+$V$2,'IC sans ND'!$A$4:$S$3886,19)>Présentation!$N$1,"",VLOOKUP('Calculs cachés'!A106+$V$2,'IC sans ND'!$A$4:$S$3886,19)),IF($I$1="Sans les ND et les TR",IF(VLOOKUP('Calculs cachés'!A106+$V$2,'IC sans ND et TR'!$A$4:$S$1943,19)>Présentation!$N$1,"",VLOOKUP('Calculs cachés'!A106+$V$2,'IC sans ND et TR'!$A$4:$S$1943,19)),IF(VLOOKUP('Calculs cachés'!A106+$V$2,'IC sans TR'!$A$4:$S$3485,19)>Présentation!$N$1,"",VLOOKUP('Calculs cachés'!A106+$V$2,'IC sans TR'!$A$4:$S$3485,19))))) ->  | C79: =IF($I$1="Tous les tempéraments",IF(B79<=Présentation!$N$1,VLOOKUP('Calculs cachés'!A106+$V$2,'Intercorr. circ.'!$A$4:$S$6968,2),""),IF($I$1="Sans les ND",IF(B79<=Présentation!$N$1,VLOOKUP('Calculs cachés'!A106+$V$2,'IC sans ND'!$A$4:$S$3886,2),""),IF($I$1="Sans les ND et les TR",IF(B79<=Présentation!$N$1,VLOOKUP('Calculs cachés'!A106+$V$2,'IC sans ND et TR'!$A$4:$S$1943,2),""),IF(B79<=Présentation!$N$1,VLOOKUP('Calculs cachés'!A106+$V$2,'IC sans TR'!$A$4:$S$3485,2),"")))) ->  | D79: =IF($I$1="Tous les tempéraments",IF(C79="","",VLOOKUP('Calculs cachés'!A106+$V$2,'Intercorr. circ.'!$A$4:$S$6968,18)),IF($I$1="Sans les ND",IF(C79="","",VLOOKUP('Calculs cachés'!A106+$V$2,'IC sans ND'!$A$4:$S$3886,18)),IF($I$1="Sans Les ND et les TR",IF(C79="","",VLOOKUP('Calculs cachés'!A106+$V$2,'IC sans ND et TR'!$A$4:$S$1943,18)),IF(C79="","",VLOOKUP('Calculs cachés'!A106+$V$2,'IC sans TR'!$A$4:$S$3485,18))))) -> 
B80: =IF($I$1="Tous les tempéraments",IF(VLOOKUP('Calculs cachés'!A107+$V$2,'Intercorr. circ.'!$A$4:$S$6968,19)>Présentation!$N$1,"",VLOOKUP('Calculs cachés'!A107+$V$2,'Intercorr. circ.'!$A$4:$S$6968,19)),IF($I$1="Sans les ND",IF(VLOOKUP('Calculs cachés'!A107+$V$2,'IC sans ND'!$A$4:$S$3886,19)>Présentation!$N$1,"",VLOOKUP('Calculs cachés'!A107+$V$2,'IC sans ND'!$A$4:$S$3886,19)),IF($I$1="Sans les ND et les TR",IF(VLOOKUP('Calculs cachés'!A107+$V$2,'IC sans ND et TR'!$A$4:$S$1943,19)>Présentation!$N$1,"",VLOOKUP('Calculs cachés'!A107+$V$2,'IC sans ND et TR'!$A$4:$S$1943,19)),IF(VLOOKUP('Calculs cachés'!A107+$V$2,'IC sans TR'!$A$4:$S$3485,19)>Présentation!$N$1,"",VLOOKUP('Calculs cachés'!A107+$V$2,'IC sans TR'!$A$4:$S$3485,19))))) ->  | C80: =IF($I$1="Tous les tempéraments",IF(B80<=Présentation!$N$1,VLOOKUP('Calculs cachés'!A107+$V$2,'Intercorr. circ.'!$A$4:$S$6968,2),""),IF($I$1="Sans les ND",IF(B80<=Présentation!$N$1,VLOOKUP('Calculs cachés'!A107+$V$2,'IC sans ND'!$A$4:$S$3886,2),""),IF($I$1="Sans les ND et les TR",IF(B80<=Présentation!$N$1,VLOOKUP('Calculs cachés'!A107+$V$2,'IC sans ND et TR'!$A$4:$S$1943,2),""),IF(B80<=Présentation!$N$1,VLOOKUP('Calculs cachés'!A107+$V$2,'IC sans TR'!$A$4:$S$3485,2),"")))) ->  | D80: =IF($I$1="Tous les tempéraments",IF(C80="","",VLOOKUP('Calculs cachés'!A107+$V$2,'Intercorr. circ.'!$A$4:$S$6968,18)),IF($I$1="Sans les ND",IF(C80="","",VLOOKUP('Calculs cachés'!A107+$V$2,'IC sans ND'!$A$4:$S$3886,18)),IF($I$1="Sans Les ND et les TR",IF(C80="","",VLOOKUP('Calculs cachés'!A107+$V$2,'IC sans ND et TR'!$A$4:$S$1943,18)),IF(C80="","",VLOOKUP('Calculs cachés'!A107+$V$2,'IC sans TR'!$A$4:$S$3485,18))))) -> 
B81: =IF($I$1="Tous les tempéraments",IF(VLOOKUP('Calculs cachés'!A108+$V$2,'Intercorr. circ.'!$A$4:$S$6968,19)>Présentation!$N$1,"",VLOOKUP('Calculs cachés'!A108+$V$2,'Intercorr. circ.'!$A$4:$S$6968,19)),IF($I$1="Sans les ND",IF(VLOOKUP('Calculs cachés'!A108+$V$2,'IC sans ND'!$A$4:$S$3886,19)>Présentation!$N$1,"",VLOOKUP('Calculs cachés'!A108+$V$2,'IC sans ND'!$A$4:$S$3886,19)),IF($I$1="Sans les ND et les TR",IF(VLOOKUP('Calculs cachés'!A108+$V$2,'IC sans ND et TR'!$A$4:$S$1943,19)>Présentation!$N$1,"",VLOOKUP('Calculs cachés'!A108+$V$2,'IC sans ND et TR'!$A$4:$S$1943,19)),IF(VLOOKUP('Calculs cachés'!A108+$V$2,'IC sans TR'!$A$4:$S$3485,19)>Présentation!$N$1,"",VLOOKUP('Calculs cachés'!A108+$V$2,'IC sans TR'!$A$4:$S$3485,19))))) ->  | C81: =IF($I$1="Tous les tempéraments",IF(B81<=Présentation!$N$1,VLOOKUP('Calculs cachés'!A108+$V$2,'Intercorr. circ.'!$A$4:$S$6968,2),""),IF($I$1="Sans les ND",IF(B81<=Présentation!$N$1,VLOOKUP('Calculs cachés'!A108+$V$2,'IC sans ND'!$A$4:$S$3886,2),""),IF($I$1="Sans les ND et les TR",IF(B81<=Présentation!$N$1,VLOOKUP('Calculs cachés'!A108+$V$2,'IC sans ND et TR'!$A$4:$S$1943,2),""),IF(B81<=Présentation!$N$1,VLOOKUP('Calculs cachés'!A108+$V$2,'IC sans TR'!$A$4:$S$3485,2),"")))) ->  | D81: =IF($I$1="Tous les tempéraments",IF(C81="","",VLOOKUP('Calculs cachés'!A108+$V$2,'Intercorr. circ.'!$A$4:$S$6968,18)),IF($I$1="Sans les ND",IF(C81="","",VLOOKUP('Calculs cachés'!A108+$V$2,'IC sans ND'!$A$4:$S$3886,18)),IF($I$1="Sans Les ND et les TR",IF(C81="","",VLOOKUP('Calculs cachés'!A108+$V$2,'IC sans ND et TR'!$A$4:$S$1943,18)),IF(C81="","",VLOOKUP('Calculs cachés'!A108+$V$2,'IC sans TR'!$A$4:$S$3485,18))))) -> 
B82: =IF($I$1="Tous les tempéraments",IF(VLOOKUP('Calculs cachés'!A109+$V$2,'Intercorr. circ.'!$A$4:$S$6968,19)>Présentation!$N$1,"",VLOOKUP('Calculs cachés'!A109+$V$2,'Intercorr. circ.'!$A$4:$S$6968,19)),IF($I$1="Sans les ND",IF(VLOOKUP('Calculs cachés'!A109+$V$2,'IC sans ND'!$A$4:$S$3886,19)>Présentation!$N$1,"",VLOOKUP('Calculs cachés'!A109+$V$2,'IC sans ND'!$A$4:$S$3886,19)),IF($I$1="Sans les ND et les TR",IF(VLOOKUP('Calculs cachés'!A109+$V$2,'IC sans ND et TR'!$A$4:$S$1943,19)>Présentation!$N$1,"",VLOOKUP('Calculs cachés'!A109+$V$2,'IC sans ND et TR'!$A$4:$S$1943,19)),IF(VLOOKUP('Calculs cachés'!A109+$V$2,'IC sans TR'!$A$4:$S$3485,19)>Présentation!$N$1,"",VLOOKUP('Calculs cachés'!A109+$V$2,'IC sans TR'!$A$4:$S$3485,19))))) ->  | C82: =IF($I$1="Tous les tempéraments",IF(B82<=Présentation!$N$1,VLOOKUP('Calculs cachés'!A109+$V$2,'Intercorr. circ.'!$A$4:$S$6968,2),""),IF($I$1="Sans les ND",IF(B82<=Présentation!$N$1,VLOOKUP('Calculs cachés'!A109+$V$2,'IC sans ND'!$A$4:$S$3886,2),""),IF($I$1="Sans les ND et les TR",IF(B82<=Présentation!$N$1,VLOOKUP('Calculs cachés'!A109+$V$2,'IC sans ND et TR'!$A$4:$S$1943,2),""),IF(B82<=Présentation!$N$1,VLOOKUP('Calculs cachés'!A109+$V$2,'IC sans TR'!$A$4:$S$3485,2),"")))) ->  | D82: =IF($I$1="Tous les tempéraments",IF(C82="","",VLOOKUP('Calculs cachés'!A109+$V$2,'Intercorr. circ.'!$A$4:$S$6968,18)),IF($I$1="Sans les ND",IF(C82="","",VLOOKUP('Calculs cachés'!A109+$V$2,'IC sans ND'!$A$4:$S$3886,18)),IF($I$1="Sans Les ND et les TR",IF(C82="","",VLOOKUP('Calculs cachés'!A109+$V$2,'IC sans ND et TR'!$A$4:$S$1943,18)),IF(C82="","",VLOOKUP('Calculs cachés'!A109+$V$2,'IC sans TR'!$A$4:$S$3485,18))))) -> 
B83: =IF($I$1="Tous les tempéraments",IF(VLOOKUP('Calculs cachés'!A110+$V$2,'Intercorr. circ.'!$A$4:$S$6968,19)>Présentation!$N$1,"",VLOOKUP('Calculs cachés'!A110+$V$2,'Intercorr. circ.'!$A$4:$S$6968,19)),IF($I$1="Sans les ND",IF(VLOOKUP('Calculs cachés'!A110+$V$2,'IC sans ND'!$A$4:$S$3886,19)>Présentation!$N$1,"",VLOOKUP('Calculs cachés'!A110+$V$2,'IC sans ND'!$A$4:$S$3886,19)),IF($I$1="Sans les ND et les TR",IF(VLOOKUP('Calculs cachés'!A110+$V$2,'IC sans ND et TR'!$A$4:$S$1943,19)>Présentation!$N$1,"",VLOOKUP('Calculs cachés'!A110+$V$2,'IC sans ND et TR'!$A$4:$S$1943,19)),IF(VLOOKUP('Calculs cachés'!A110+$V$2,'IC sans TR'!$A$4:$S$3485,19)>Présentation!$N$1,"",VLOOKUP('Calculs cachés'!A110+$V$2,'IC sans TR'!$A$4:$S$3485,19))))) ->  | C83: =IF($I$1="Tous les tempéraments",IF(B83<=Présentation!$N$1,VLOOKUP('Calculs cachés'!A110+$V$2,'Intercorr. circ.'!$A$4:$S$6968,2),""),IF($I$1="Sans les ND",IF(B83<=Présentation!$N$1,VLOOKUP('Calculs cachés'!A110+$V$2,'IC sans ND'!$A$4:$S$3886,2),""),IF($I$1="Sans les ND et les TR",IF(B83<=Présentation!$N$1,VLOOKUP('Calculs cachés'!A110+$V$2,'IC sans ND et TR'!$A$4:$S$1943,2),""),IF(B83<=Présentation!$N$1,VLOOKUP('Calculs cachés'!A110+$V$2,'IC sans TR'!$A$4:$S$3485,2),"")))) ->  | D83: =IF($I$1="Tous les tempéraments",IF(C83="","",VLOOKUP('Calculs cachés'!A110+$V$2,'Intercorr. circ.'!$A$4:$S$6968,18)),IF($I$1="Sans les ND",IF(C83="","",VLOOKUP('Calculs cachés'!A110+$V$2,'IC sans ND'!$A$4:$S$3886,18)),IF($I$1="Sans Les ND et les TR",IF(C83="","",VLOOKUP('Calculs cachés'!A110+$V$2,'IC sans ND et TR'!$A$4:$S$1943,18)),IF(C83="","",VLOOKUP('Calculs cachés'!A110+$V$2,'IC sans TR'!$A$4:$S$3485,18))))) -> 
B84: =IF($I$1="Tous les tempéraments",IF(VLOOKUP('Calculs cachés'!A111+$V$2,'Intercorr. circ.'!$A$4:$S$6968,19)>Présentation!$N$1,"",VLOOKUP('Calculs cachés'!A111+$V$2,'Intercorr. circ.'!$A$4:$S$6968,19)),IF($I$1="Sans les ND",IF(VLOOKUP('Calculs cachés'!A111+$V$2,'IC sans ND'!$A$4:$S$3886,19)>Présentation!$N$1,"",VLOOKUP('Calculs cachés'!A111+$V$2,'IC sans ND'!$A$4:$S$3886,19)),IF($I$1="Sans les ND et les TR",IF(VLOOKUP('Calculs cachés'!A111+$V$2,'IC sans ND et TR'!$A$4:$S$1943,19)>Présentation!$N$1,"",VLOOKUP('Calculs cachés'!A111+$V$2,'IC sans ND et TR'!$A$4:$S$1943,19)),IF(VLOOKUP('Calculs cachés'!A111+$V$2,'IC sans TR'!$A$4:$S$3485,19)>Présentation!$N$1,"",VLOOKUP('Calculs cachés'!A111+$V$2,'IC sans TR'!$A$4:$S$3485,19))))) ->  | C84: =IF($I$1="Tous les tempéraments",IF(B84<=Présentation!$N$1,VLOOKUP('Calculs cachés'!A111+$V$2,'Intercorr. circ.'!$A$4:$S$6968,2),""),IF($I$1="Sans les ND",IF(B84<=Présentation!$N$1,VLOOKUP('Calculs cachés'!A111+$V$2,'IC sans ND'!$A$4:$S$3886,2),""),IF($I$1="Sans les ND et les TR",IF(B84<=Présentation!$N$1,VLOOKUP('Calculs cachés'!A111+$V$2,'IC sans ND et TR'!$A$4:$S$1943,2),""),IF(B84<=Présentation!$N$1,VLOOKUP('Calculs cachés'!A111+$V$2,'IC sans TR'!$A$4:$S$3485,2),"")))) ->  | D84: =IF($I$1="Tous les tempéraments",IF(C84="","",VLOOKUP('Calculs cachés'!A111+$V$2,'Intercorr. circ.'!$A$4:$S$6968,18)),IF($I$1="Sans les ND",IF(C84="","",VLOOKUP('Calculs cachés'!A111+$V$2,'IC sans ND'!$A$4:$S$3886,18)),IF($I$1="Sans Les ND et les TR",IF(C84="","",VLOOKUP('Calculs cachés'!A111+$V$2,'IC sans ND et TR'!$A$4:$S$1943,18)),IF(C84="","",VLOOKUP('Calculs cachés'!A111+$V$2,'IC sans TR'!$A$4:$S$3485,18))))) -> 
B85: =IF($I$1="Tous les tempéraments",IF(VLOOKUP('Calculs cachés'!A112+$V$2,'Intercorr. circ.'!$A$4:$S$6968,19)>Présentation!$N$1,"",VLOOKUP('Calculs cachés'!A112+$V$2,'Intercorr. circ.'!$A$4:$S$6968,19)),IF($I$1="Sans les ND",IF(VLOOKUP('Calculs cachés'!A112+$V$2,'IC sans ND'!$A$4:$S$3886,19)>Présentation!$N$1,"",VLOOKUP('Calculs cachés'!A112+$V$2,'IC sans ND'!$A$4:$S$3886,19)),IF($I$1="Sans les ND et les TR",IF(VLOOKUP('Calculs cachés'!A112+$V$2,'IC sans ND et TR'!$A$4:$S$1943,19)>Présentation!$N$1,"",VLOOKUP('Calculs cachés'!A112+$V$2,'IC sans ND et TR'!$A$4:$S$1943,19)),IF(VLOOKUP('Calculs cachés'!A112+$V$2,'IC sans TR'!$A$4:$S$3485,19)>Présentation!$N$1,"",VLOOKUP('Calculs cachés'!A112+$V$2,'IC sans TR'!$A$4:$S$3485,19))))) ->  | C85: =IF($I$1="Tous les tempéraments",IF(B85<=Présentation!$N$1,VLOOKUP('Calculs cachés'!A112+$V$2,'Intercorr. circ.'!$A$4:$S$6968,2),""),IF($I$1="Sans les ND",IF(B85<=Présentation!$N$1,VLOOKUP('Calculs cachés'!A112+$V$2,'IC sans ND'!$A$4:$S$3886,2),""),IF($I$1="Sans les ND et les TR",IF(B85<=Présentation!$N$1,VLOOKUP('Calculs cachés'!A112+$V$2,'IC sans ND et TR'!$A$4:$S$1943,2),""),IF(B85<=Présentation!$N$1,VLOOKUP('Calculs cachés'!A112+$V$2,'IC sans TR'!$A$4:$S$3485,2),"")))) ->  | D85: =IF($I$1="Tous les tempéraments",IF(C85="","",VLOOKUP('Calculs cachés'!A112+$V$2,'Intercorr. circ.'!$A$4:$S$6968,18)),IF($I$1="Sans les ND",IF(C85="","",VLOOKUP('Calculs cachés'!A112+$V$2,'IC sans ND'!$A$4:$S$3886,18)),IF($I$1="Sans Les ND et les TR",IF(C85="","",VLOOKUP('Calculs cachés'!A112+$V$2,'IC sans ND et TR'!$A$4:$S$1943,18)),IF(C85="","",VLOOKUP('Calculs cachés'!A112+$V$2,'IC sans TR'!$A$4:$S$3485,18))))) -> 
B86: =IF($I$1="Tous les tempéraments",IF(VLOOKUP('Calculs cachés'!A113+$V$2,'Intercorr. circ.'!$A$4:$S$6968,19)>Présentation!$N$1,"",VLOOKUP('Calculs cachés'!A113+$V$2,'Intercorr. circ.'!$A$4:$S$6968,19)),IF($I$1="Sans les ND",IF(VLOOKUP('Calculs cachés'!A113+$V$2,'IC sans ND'!$A$4:$S$3886,19)>Présentation!$N$1,"",VLOOKUP('Calculs cachés'!A113+$V$2,'IC sans ND'!$A$4:$S$3886,19)),IF($I$1="Sans les ND et les TR",IF(VLOOKUP('Calculs cachés'!A113+$V$2,'IC sans ND et TR'!$A$4:$S$1943,19)>Présentation!$N$1,"",VLOOKUP('Calculs cachés'!A113+$V$2,'IC sans ND et TR'!$A$4:$S$1943,19)),IF(VLOOKUP('Calculs cachés'!A113+$V$2,'IC sans TR'!$A$4:$S$3485,19)>Présentation!$N$1,"",VLOOKUP('Calculs cachés'!A113+$V$2,'IC sans TR'!$A$4:$S$3485,19))))) ->  | C86: =IF($I$1="Tous les tempéraments",IF(B86<=Présentation!$N$1,VLOOKUP('Calculs cachés'!A113+$V$2,'Intercorr. circ.'!$A$4:$S$6968,2),""),IF($I$1="Sans les ND",IF(B86<=Présentation!$N$1,VLOOKUP('Calculs cachés'!A113+$V$2,'IC sans ND'!$A$4:$S$3886,2),""),IF($I$1="Sans les ND et les TR",IF(B86<=Présentation!$N$1,VLOOKUP('Calculs cachés'!A113+$V$2,'IC sans ND et TR'!$A$4:$S$1943,2),""),IF(B86<=Présentation!$N$1,VLOOKUP('Calculs cachés'!A113+$V$2,'IC sans TR'!$A$4:$S$3485,2),"")))) ->  | D86: =IF($I$1="Tous les tempéraments",IF(C86="","",VLOOKUP('Calculs cachés'!A113+$V$2,'Intercorr. circ.'!$A$4:$S$6968,18)),IF($I$1="Sans les ND",IF(C86="","",VLOOKUP('Calculs cachés'!A113+$V$2,'IC sans ND'!$A$4:$S$3886,18)),IF($I$1="Sans Les ND et les TR",IF(C86="","",VLOOKUP('Calculs cachés'!A113+$V$2,'IC sans ND et TR'!$A$4:$S$1943,18)),IF(C86="","",VLOOKUP('Calculs cachés'!A113+$V$2,'IC sans TR'!$A$4:$S$3485,18))))) -> 
B87: =IF($I$1="Tous les tempéraments",IF(VLOOKUP('Calculs cachés'!A114+$V$2,'Intercorr. circ.'!$A$4:$S$6968,19)>Présentation!$N$1,"",VLOOKUP('Calculs cachés'!A114+$V$2,'Intercorr. circ.'!$A$4:$S$6968,19)),IF($I$1="Sans les ND",IF(VLOOKUP('Calculs cachés'!A114+$V$2,'IC sans ND'!$A$4:$S$3886,19)>Présentation!$N$1,"",VLOOKUP('Calculs cachés'!A114+$V$2,'IC sans ND'!$A$4:$S$3886,19)),IF($I$1="Sans les ND et les TR",IF(VLOOKUP('Calculs cachés'!A114+$V$2,'IC sans ND et TR'!$A$4:$S$1943,19)>Présentation!$N$1,"",VLOOKUP('Calculs cachés'!A114+$V$2,'IC sans ND et TR'!$A$4:$S$1943,19)),IF(VLOOKUP('Calculs cachés'!A114+$V$2,'IC sans TR'!$A$4:$S$3485,19)>Présentation!$N$1,"",VLOOKUP('Calculs cachés'!A114+$V$2,'IC sans TR'!$A$4:$S$3485,19))))) ->  | C87: =IF($I$1="Tous les tempéraments",IF(B87<=Présentation!$N$1,VLOOKUP('Calculs cachés'!A114+$V$2,'Intercorr. circ.'!$A$4:$S$6968,2),""),IF($I$1="Sans les ND",IF(B87<=Présentation!$N$1,VLOOKUP('Calculs cachés'!A114+$V$2,'IC sans ND'!$A$4:$S$3886,2),""),IF($I$1="Sans les ND et les TR",IF(B87<=Présentation!$N$1,VLOOKUP('Calculs cachés'!A114+$V$2,'IC sans ND et TR'!$A$4:$S$1943,2),""),IF(B87<=Présentation!$N$1,VLOOKUP('Calculs cachés'!A114+$V$2,'IC sans TR'!$A$4:$S$3485,2),"")))) ->  | D87: =IF($I$1="Tous les tempéraments",IF(C87="","",VLOOKUP('Calculs cachés'!A114+$V$2,'Intercorr. circ.'!$A$4:$S$6968,18)),IF($I$1="Sans les ND",IF(C87="","",VLOOKUP('Calculs cachés'!A114+$V$2,'IC sans ND'!$A$4:$S$3886,18)),IF($I$1="Sans Les ND et les TR",IF(C87="","",VLOOKUP('Calculs cachés'!A114+$V$2,'IC sans ND et TR'!$A$4:$S$1943,18)),IF(C87="","",VLOOKUP('Calculs cachés'!A114+$V$2,'IC sans TR'!$A$4:$S$3485,18))))) -> 
B88: =IF($I$1="Tous les tempéraments",IF(VLOOKUP('Calculs cachés'!A115+$V$2,'Intercorr. circ.'!$A$4:$S$6968,19)>Présentation!$N$1,"",VLOOKUP('Calculs cachés'!A115+$V$2,'Intercorr. circ.'!$A$4:$S$6968,19)),IF($I$1="Sans les ND",IF(VLOOKUP('Calculs cachés'!A115+$V$2,'IC sans ND'!$A$4:$S$3886,19)>Présentation!$N$1,"",VLOOKUP('Calculs cachés'!A115+$V$2,'IC sans ND'!$A$4:$S$3886,19)),IF($I$1="Sans les ND et les TR",IF(VLOOKUP('Calculs cachés'!A115+$V$2,'IC sans ND et TR'!$A$4:$S$1943,19)>Présentation!$N$1,"",VLOOKUP('Calculs cachés'!A115+$V$2,'IC sans ND et TR'!$A$4:$S$1943,19)),IF(VLOOKUP('Calculs cachés'!A115+$V$2,'IC sans TR'!$A$4:$S$3485,19)>Présentation!$N$1,"",VLOOKUP('Calculs cachés'!A115+$V$2,'IC sans TR'!$A$4:$S$3485,19))))) ->  | C88: =IF($I$1="Tous les tempéraments",IF(B88<=Présentation!$N$1,VLOOKUP('Calculs cachés'!A115+$V$2,'Intercorr. circ.'!$A$4:$S$6968,2),""),IF($I$1="Sans les ND",IF(B88<=Présentation!$N$1,VLOOKUP('Calculs cachés'!A115+$V$2,'IC sans ND'!$A$4:$S$3886,2),""),IF($I$1="Sans les ND et les TR",IF(B88<=Présentation!$N$1,VLOOKUP('Calculs cachés'!A115+$V$2,'IC sans ND et TR'!$A$4:$S$1943,2),""),IF(B88<=Présentation!$N$1,VLOOKUP('Calculs cachés'!A115+$V$2,'IC sans TR'!$A$4:$S$3485,2),"")))) ->  | D88: =IF($I$1="Tous les tempéraments",IF(C88="","",VLOOKUP('Calculs cachés'!A115+$V$2,'Intercorr. circ.'!$A$4:$S$6968,18)),IF($I$1="Sans les ND",IF(C88="","",VLOOKUP('Calculs cachés'!A115+$V$2,'IC sans ND'!$A$4:$S$3886,18)),IF($I$1="Sans Les ND et les TR",IF(C88="","",VLOOKUP('Calculs cachés'!A115+$V$2,'IC sans ND et TR'!$A$4:$S$1943,18)),IF(C88="","",VLOOKUP('Calculs cachés'!A115+$V$2,'IC sans TR'!$A$4:$S$3485,18))))) -> 
B89: =IF($I$1="Tous les tempéraments",IF(VLOOKUP('Calculs cachés'!A116+$V$2,'Intercorr. circ.'!$A$4:$S$6968,19)>Présentation!$N$1,"",VLOOKUP('Calculs cachés'!A116+$V$2,'Intercorr. circ.'!$A$4:$S$6968,19)),IF($I$1="Sans les ND",IF(VLOOKUP('Calculs cachés'!A116+$V$2,'IC sans ND'!$A$4:$S$3886,19)>Présentation!$N$1,"",VLOOKUP('Calculs cachés'!A116+$V$2,'IC sans ND'!$A$4:$S$3886,19)),IF($I$1="Sans les ND et les TR",IF(VLOOKUP('Calculs cachés'!A116+$V$2,'IC sans ND et TR'!$A$4:$S$1943,19)>Présentation!$N$1,"",VLOOKUP('Calculs cachés'!A116+$V$2,'IC sans ND et TR'!$A$4:$S$1943,19)),IF(VLOOKUP('Calculs cachés'!A116+$V$2,'IC sans TR'!$A$4:$S$3485,19)>Présentation!$N$1,"",VLOOKUP('Calculs cachés'!A116+$V$2,'IC sans TR'!$A$4:$S$3485,19))))) ->  | C89: =IF($I$1="Tous les tempéraments",IF(B89<=Présentation!$N$1,VLOOKUP('Calculs cachés'!A116+$V$2,'Intercorr. circ.'!$A$4:$S$6968,2),""),IF($I$1="Sans les ND",IF(B89<=Présentation!$N$1,VLOOKUP('Calculs cachés'!A116+$V$2,'IC sans ND'!$A$4:$S$3886,2),""),IF($I$1="Sans les ND et les TR",IF(B89<=Présentation!$N$1,VLOOKUP('Calculs cachés'!A116+$V$2,'IC sans ND et TR'!$A$4:$S$1943,2),""),IF(B89<=Présentation!$N$1,VLOOKUP('Calculs cachés'!A116+$V$2,'IC sans TR'!$A$4:$S$3485,2),"")))) ->  | D89: =IF($I$1="Tous les tempéraments",IF(C89="","",VLOOKUP('Calculs cachés'!A116+$V$2,'Intercorr. circ.'!$A$4:$S$6968,18)),IF($I$1="Sans les ND",IF(C89="","",VLOOKUP('Calculs cachés'!A116+$V$2,'IC sans ND'!$A$4:$S$3886,18)),IF($I$1="Sans Les ND et les TR",IF(C89="","",VLOOKUP('Calculs cachés'!A116+$V$2,'IC sans ND et TR'!$A$4:$S$1943,18)),IF(C89="","",VLOOKUP('Calculs cachés'!A116+$V$2,'IC sans TR'!$A$4:$S$3485,18))))) -> 
B90: =IF($I$1="Tous les tempéraments",IF(VLOOKUP('Calculs cachés'!A117+$V$2,'Intercorr. circ.'!$A$4:$S$6968,19)>Présentation!$N$1,"",VLOOKUP('Calculs cachés'!A117+$V$2,'Intercorr. circ.'!$A$4:$S$6968,19)),IF($I$1="Sans les ND",IF(VLOOKUP('Calculs cachés'!A117+$V$2,'IC sans ND'!$A$4:$S$3886,19)>Présentation!$N$1,"",VLOOKUP('Calculs cachés'!A117+$V$2,'IC sans ND'!$A$4:$S$3886,19)),IF($I$1="Sans les ND et les TR",IF(VLOOKUP('Calculs cachés'!A117+$V$2,'IC sans ND et TR'!$A$4:$S$1943,19)>Présentation!$N$1,"",VLOOKUP('Calculs cachés'!A117+$V$2,'IC sans ND et TR'!$A$4:$S$1943,19)),IF(VLOOKUP('Calculs cachés'!A117+$V$2,'IC sans TR'!$A$4:$S$3485,19)>Présentation!$N$1,"",VLOOKUP('Calculs cachés'!A117+$V$2,'IC sans TR'!$A$4:$S$3485,19))))) ->  | C90: =IF($I$1="Tous les tempéraments",IF(B90<=Présentation!$N$1,VLOOKUP('Calculs cachés'!A117+$V$2,'Intercorr. circ.'!$A$4:$S$6968,2),""),IF($I$1="Sans les ND",IF(B90<=Présentation!$N$1,VLOOKUP('Calculs cachés'!A117+$V$2,'IC sans ND'!$A$4:$S$3886,2),""),IF($I$1="Sans les ND et les TR",IF(B90<=Présentation!$N$1,VLOOKUP('Calculs cachés'!A117+$V$2,'IC sans ND et TR'!$A$4:$S$1943,2),""),IF(B90<=Présentation!$N$1,VLOOKUP('Calculs cachés'!A117+$V$2,'IC sans TR'!$A$4:$S$3485,2),"")))) ->  | D90: =IF($I$1="Tous les tempéraments",IF(C90="","",VLOOKUP('Calculs cachés'!A117+$V$2,'Intercorr. circ.'!$A$4:$S$6968,18)),IF($I$1="Sans les ND",IF(C90="","",VLOOKUP('Calculs cachés'!A117+$V$2,'IC sans ND'!$A$4:$S$3886,18)),IF($I$1="Sans Les ND et les TR",IF(C90="","",VLOOKUP('Calculs cachés'!A117+$V$2,'IC sans ND et TR'!$A$4:$S$1943,18)),IF(C90="","",VLOOKUP('Calculs cachés'!A117+$V$2,'IC sans TR'!$A$4:$S$3485,18))))) -> 
B91: =IF($I$1="Tous les tempéraments",IF(VLOOKUP('Calculs cachés'!A118+$V$2,'Intercorr. circ.'!$A$4:$S$6968,19)>Présentation!$N$1,"",VLOOKUP('Calculs cachés'!A118+$V$2,'Intercorr. circ.'!$A$4:$S$6968,19)),IF($I$1="Sans les ND",IF(VLOOKUP('Calculs cachés'!A118+$V$2,'IC sans ND'!$A$4:$S$3886,19)>Présentation!$N$1,"",VLOOKUP('Calculs cachés'!A118+$V$2,'IC sans ND'!$A$4:$S$3886,19)),IF($I$1="Sans les ND et les TR",IF(VLOOKUP('Calculs cachés'!A118+$V$2,'IC sans ND et TR'!$A$4:$S$1943,19)>Présentation!$N$1,"",VLOOKUP('Calculs cachés'!A118+$V$2,'IC sans ND et TR'!$A$4:$S$1943,19)),IF(VLOOKUP('Calculs cachés'!A118+$V$2,'IC sans TR'!$A$4:$S$3485,19)>Présentation!$N$1,"",VLOOKUP('Calculs cachés'!A118+$V$2,'IC sans TR'!$A$4:$S$3485,19))))) ->  | C91: =IF($I$1="Tous les tempéraments",IF(B91<=Présentation!$N$1,VLOOKUP('Calculs cachés'!A118+$V$2,'Intercorr. circ.'!$A$4:$S$6968,2),""),IF($I$1="Sans les ND",IF(B91<=Présentation!$N$1,VLOOKUP('Calculs cachés'!A118+$V$2,'IC sans ND'!$A$4:$S$3886,2),""),IF($I$1="Sans les ND et les TR",IF(B91<=Présentation!$N$1,VLOOKUP('Calculs cachés'!A118+$V$2,'IC sans ND et TR'!$A$4:$S$1943,2),""),IF(B91<=Présentation!$N$1,VLOOKUP('Calculs cachés'!A118+$V$2,'IC sans TR'!$A$4:$S$3485,2),"")))) ->  | D91: =IF($I$1="Tous les tempéraments",IF(C91="","",VLOOKUP('Calculs cachés'!A118+$V$2,'Intercorr. circ.'!$A$4:$S$6968,18)),IF($I$1="Sans les ND",IF(C91="","",VLOOKUP('Calculs cachés'!A118+$V$2,'IC sans ND'!$A$4:$S$3886,18)),IF($I$1="Sans Les ND et les TR",IF(C91="","",VLOOKUP('Calculs cachés'!A118+$V$2,'IC sans ND et TR'!$A$4:$S$1943,18)),IF(C91="","",VLOOKUP('Calculs cachés'!A118+$V$2,'IC sans TR'!$A$4:$S$3485,18))))) -> 
B92: =IF($I$1="Tous les tempéraments",IF(VLOOKUP('Calculs cachés'!A119+$V$2,'Intercorr. circ.'!$A$4:$S$6968,19)>Présentation!$N$1,"",VLOOKUP('Calculs cachés'!A119+$V$2,'Intercorr. circ.'!$A$4:$S$6968,19)),IF($I$1="Sans les ND",IF(VLOOKUP('Calculs cachés'!A119+$V$2,'IC sans ND'!$A$4:$S$3886,19)>Présentation!$N$1,"",VLOOKUP('Calculs cachés'!A119+$V$2,'IC sans ND'!$A$4:$S$3886,19)),IF($I$1="Sans les ND et les TR",IF(VLOOKUP('Calculs cachés'!A119+$V$2,'IC sans ND et TR'!$A$4:$S$1943,19)>Présentation!$N$1,"",VLOOKUP('Calculs cachés'!A119+$V$2,'IC sans ND et TR'!$A$4:$S$1943,19)),IF(VLOOKUP('Calculs cachés'!A119+$V$2,'IC sans TR'!$A$4:$S$3485,19)>Présentation!$N$1,"",VLOOKUP('Calculs cachés'!A119+$V$2,'IC sans TR'!$A$4:$S$3485,19))))) ->  | C92: =IF($I$1="Tous les tempéraments",IF(B92<=Présentation!$N$1,VLOOKUP('Calculs cachés'!A119+$V$2,'Intercorr. circ.'!$A$4:$S$6968,2),""),IF($I$1="Sans les ND",IF(B92<=Présentation!$N$1,VLOOKUP('Calculs cachés'!A119+$V$2,'IC sans ND'!$A$4:$S$3886,2),""),IF($I$1="Sans les ND et les TR",IF(B92<=Présentation!$N$1,VLOOKUP('Calculs cachés'!A119+$V$2,'IC sans ND et TR'!$A$4:$S$1943,2),""),IF(B92<=Présentation!$N$1,VLOOKUP('Calculs cachés'!A119+$V$2,'IC sans TR'!$A$4:$S$3485,2),"")))) ->  | D92: =IF($I$1="Tous les tempéraments",IF(C92="","",VLOOKUP('Calculs cachés'!A119+$V$2,'Intercorr. circ.'!$A$4:$S$6968,18)),IF($I$1="Sans les ND",IF(C92="","",VLOOKUP('Calculs cachés'!A119+$V$2,'IC sans ND'!$A$4:$S$3886,18)),IF($I$1="Sans Les ND et les TR",IF(C92="","",VLOOKUP('Calculs cachés'!A119+$V$2,'IC sans ND et TR'!$A$4:$S$1943,18)),IF(C92="","",VLOOKUP('Calculs cachés'!A119+$V$2,'IC sans TR'!$A$4:$S$3485,18))))) -> 
B93: =IF($I$1="Tous les tempéraments",IF(VLOOKUP('Calculs cachés'!A120+$V$2,'Intercorr. circ.'!$A$4:$S$6968,19)>Présentation!$N$1,"",VLOOKUP('Calculs cachés'!A120+$V$2,'Intercorr. circ.'!$A$4:$S$6968,19)),IF($I$1="Sans les ND",IF(VLOOKUP('Calculs cachés'!A120+$V$2,'IC sans ND'!$A$4:$S$3886,19)>Présentation!$N$1,"",VLOOKUP('Calculs cachés'!A120+$V$2,'IC sans ND'!$A$4:$S$3886,19)),IF($I$1="Sans les ND et les TR",IF(VLOOKUP('Calculs cachés'!A120+$V$2,'IC sans ND et TR'!$A$4:$S$1943,19)>Présentation!$N$1,"",VLOOKUP('Calculs cachés'!A120+$V$2,'IC sans ND et TR'!$A$4:$S$1943,19)),IF(VLOOKUP('Calculs cachés'!A120+$V$2,'IC sans TR'!$A$4:$S$3485,19)>Présentation!$N$1,"",VLOOKUP('Calculs cachés'!A120+$V$2,'IC sans TR'!$A$4:$S$3485,19))))) ->  | C93: =IF($I$1="Tous les tempéraments",IF(B93<=Présentation!$N$1,VLOOKUP('Calculs cachés'!A120+$V$2,'Intercorr. circ.'!$A$4:$S$6968,2),""),IF($I$1="Sans les ND",IF(B93<=Présentation!$N$1,VLOOKUP('Calculs cachés'!A120+$V$2,'IC sans ND'!$A$4:$S$3886,2),""),IF($I$1="Sans les ND et les TR",IF(B93<=Présentation!$N$1,VLOOKUP('Calculs cachés'!A120+$V$2,'IC sans ND et TR'!$A$4:$S$1943,2),""),IF(B93<=Présentation!$N$1,VLOOKUP('Calculs cachés'!A120+$V$2,'IC sans TR'!$A$4:$S$3485,2),"")))) ->  | D93: =IF($I$1="Tous les tempéraments",IF(C93="","",VLOOKUP('Calculs cachés'!A120+$V$2,'Intercorr. circ.'!$A$4:$S$6968,18)),IF($I$1="Sans les ND",IF(C93="","",VLOOKUP('Calculs cachés'!A120+$V$2,'IC sans ND'!$A$4:$S$3886,18)),IF($I$1="Sans Les ND et les TR",IF(C93="","",VLOOKUP('Calculs cachés'!A120+$V$2,'IC sans ND et TR'!$A$4:$S$1943,18)),IF(C93="","",VLOOKUP('Calculs cachés'!A120+$V$2,'IC sans TR'!$A$4:$S$3485,18))))) -> 
B94: =IF($I$1="Tous les tempéraments",IF(VLOOKUP('Calculs cachés'!A121+$V$2,'Intercorr. circ.'!$A$4:$S$6968,19)>Présentation!$N$1,"",VLOOKUP('Calculs cachés'!A121+$V$2,'Intercorr. circ.'!$A$4:$S$6968,19)),IF($I$1="Sans les ND",IF(VLOOKUP('Calculs cachés'!A121+$V$2,'IC sans ND'!$A$4:$S$3886,19)>Présentation!$N$1,"",VLOOKUP('Calculs cachés'!A121+$V$2,'IC sans ND'!$A$4:$S$3886,19)),IF($I$1="Sans les ND et les TR",IF(VLOOKUP('Calculs cachés'!A121+$V$2,'IC sans ND et TR'!$A$4:$S$1943,19)>Présentation!$N$1,"",VLOOKUP('Calculs cachés'!A121+$V$2,'IC sans ND et TR'!$A$4:$S$1943,19)),IF(VLOOKUP('Calculs cachés'!A121+$V$2,'IC sans TR'!$A$4:$S$3485,19)>Présentation!$N$1,"",VLOOKUP('Calculs cachés'!A121+$V$2,'IC sans TR'!$A$4:$S$3485,19))))) ->  | C94: =IF($I$1="Tous les tempéraments",IF(B94<=Présentation!$N$1,VLOOKUP('Calculs cachés'!A121+$V$2,'Intercorr. circ.'!$A$4:$S$6968,2),""),IF($I$1="Sans les ND",IF(B94<=Présentation!$N$1,VLOOKUP('Calculs cachés'!A121+$V$2,'IC sans ND'!$A$4:$S$3886,2),""),IF($I$1="Sans les ND et les TR",IF(B94<=Présentation!$N$1,VLOOKUP('Calculs cachés'!A121+$V$2,'IC sans ND et TR'!$A$4:$S$1943,2),""),IF(B94<=Présentation!$N$1,VLOOKUP('Calculs cachés'!A121+$V$2,'IC sans TR'!$A$4:$S$3485,2),"")))) ->  | D94: =IF($I$1="Tous les tempéraments",IF(C94="","",VLOOKUP('Calculs cachés'!A121+$V$2,'Intercorr. circ.'!$A$4:$S$6968,18)),IF($I$1="Sans les ND",IF(C94="","",VLOOKUP('Calculs cachés'!A121+$V$2,'IC sans ND'!$A$4:$S$3886,18)),IF($I$1="Sans Les ND et les TR",IF(C94="","",VLOOKUP('Calculs cachés'!A121+$V$2,'IC sans ND et TR'!$A$4:$S$1943,18)),IF(C94="","",VLOOKUP('Calculs cachés'!A121+$V$2,'IC sans TR'!$A$4:$S$3485,18))))) -> 
B95: =IF($I$1="Tous les tempéraments",IF(VLOOKUP('Calculs cachés'!A122+$V$2,'Intercorr. circ.'!$A$4:$S$6968,19)>Présentation!$N$1,"",VLOOKUP('Calculs cachés'!A122+$V$2,'Intercorr. circ.'!$A$4:$S$6968,19)),IF($I$1="Sans les ND",IF(VLOOKUP('Calculs cachés'!A122+$V$2,'IC sans ND'!$A$4:$S$3886,19)>Présentation!$N$1,"",VLOOKUP('Calculs cachés'!A122+$V$2,'IC sans ND'!$A$4:$S$3886,19)),IF($I$1="Sans les ND et les TR",IF(VLOOKUP('Calculs cachés'!A122+$V$2,'IC sans ND et TR'!$A$4:$S$1943,19)>Présentation!$N$1,"",VLOOKUP('Calculs cachés'!A122+$V$2,'IC sans ND et TR'!$A$4:$S$1943,19)),IF(VLOOKUP('Calculs cachés'!A122+$V$2,'IC sans TR'!$A$4:$S$3485,19)>Présentation!$N$1,"",VLOOKUP('Calculs cachés'!A122+$V$2,'IC sans TR'!$A$4:$S$3485,19))))) ->  | C95: =IF($I$1="Tous les tempéraments",IF(B95<=Présentation!$N$1,VLOOKUP('Calculs cachés'!A122+$V$2,'Intercorr. circ.'!$A$4:$S$6968,2),""),IF($I$1="Sans les ND",IF(B95<=Présentation!$N$1,VLOOKUP('Calculs cachés'!A122+$V$2,'IC sans ND'!$A$4:$S$3886,2),""),IF($I$1="Sans les ND et les TR",IF(B95<=Présentation!$N$1,VLOOKUP('Calculs cachés'!A122+$V$2,'IC sans ND et TR'!$A$4:$S$1943,2),""),IF(B95<=Présentation!$N$1,VLOOKUP('Calculs cachés'!A122+$V$2,'IC sans TR'!$A$4:$S$3485,2),"")))) ->  | D95: =IF($I$1="Tous les tempéraments",IF(C95="","",VLOOKUP('Calculs cachés'!A122+$V$2,'Intercorr. circ.'!$A$4:$S$6968,18)),IF($I$1="Sans les ND",IF(C95="","",VLOOKUP('Calculs cachés'!A122+$V$2,'IC sans ND'!$A$4:$S$3886,18)),IF($I$1="Sans Les ND et les TR",IF(C95="","",VLOOKUP('Calculs cachés'!A122+$V$2,'IC sans ND et TR'!$A$4:$S$1943,18)),IF(C95="","",VLOOKUP('Calculs cachés'!A122+$V$2,'IC sans TR'!$A$4:$S$3485,18))))) -> 
B96: =IF($I$1="Tous les tempéraments",IF(VLOOKUP('Calculs cachés'!A123+$V$2,'Intercorr. circ.'!$A$4:$S$6968,19)>Présentation!$N$1,"",VLOOKUP('Calculs cachés'!A123+$V$2,'Intercorr. circ.'!$A$4:$S$6968,19)),IF($I$1="Sans les ND",IF(VLOOKUP('Calculs cachés'!A123+$V$2,'IC sans ND'!$A$4:$S$3886,19)>Présentation!$N$1,"",VLOOKUP('Calculs cachés'!A123+$V$2,'IC sans ND'!$A$4:$S$3886,19)),IF($I$1="Sans les ND et les TR",IF(VLOOKUP('Calculs cachés'!A123+$V$2,'IC sans ND et TR'!$A$4:$S$1943,19)>Présentation!$N$1,"",VLOOKUP('Calculs cachés'!A123+$V$2,'IC sans ND et TR'!$A$4:$S$1943,19)),IF(VLOOKUP('Calculs cachés'!A123+$V$2,'IC sans TR'!$A$4:$S$3485,19)>Présentation!$N$1,"",VLOOKUP('Calculs cachés'!A123+$V$2,'IC sans TR'!$A$4:$S$3485,19))))) ->  | C96: =IF($I$1="Tous les tempéraments",IF(B96<=Présentation!$N$1,VLOOKUP('Calculs cachés'!A123+$V$2,'Intercorr. circ.'!$A$4:$S$6968,2),""),IF($I$1="Sans les ND",IF(B96<=Présentation!$N$1,VLOOKUP('Calculs cachés'!A123+$V$2,'IC sans ND'!$A$4:$S$3886,2),""),IF($I$1="Sans les ND et les TR",IF(B96<=Présentation!$N$1,VLOOKUP('Calculs cachés'!A123+$V$2,'IC sans ND et TR'!$A$4:$S$1943,2),""),IF(B96<=Présentation!$N$1,VLOOKUP('Calculs cachés'!A123+$V$2,'IC sans TR'!$A$4:$S$3485,2),"")))) ->  | D96: =IF($I$1="Tous les tempéraments",IF(C96="","",VLOOKUP('Calculs cachés'!A123+$V$2,'Intercorr. circ.'!$A$4:$S$6968,18)),IF($I$1="Sans les ND",IF(C96="","",VLOOKUP('Calculs cachés'!A123+$V$2,'IC sans ND'!$A$4:$S$3886,18)),IF($I$1="Sans Les ND et les TR",IF(C96="","",VLOOKUP('Calculs cachés'!A123+$V$2,'IC sans ND et TR'!$A$4:$S$1943,18)),IF(C96="","",VLOOKUP('Calculs cachés'!A123+$V$2,'IC sans TR'!$A$4:$S$3485,18))))) -> 
B97: =IF($I$1="Tous les tempéraments",IF(VLOOKUP('Calculs cachés'!A124+$V$2,'Intercorr. circ.'!$A$4:$S$6968,19)>Présentation!$N$1,"",VLOOKUP('Calculs cachés'!A124+$V$2,'Intercorr. circ.'!$A$4:$S$6968,19)),IF($I$1="Sans les ND",IF(VLOOKUP('Calculs cachés'!A124+$V$2,'IC sans ND'!$A$4:$S$3886,19)>Présentation!$N$1,"",VLOOKUP('Calculs cachés'!A124+$V$2,'IC sans ND'!$A$4:$S$3886,19)),IF($I$1="Sans les ND et les TR",IF(VLOOKUP('Calculs cachés'!A124+$V$2,'IC sans ND et TR'!$A$4:$S$1943,19)>Présentation!$N$1,"",VLOOKUP('Calculs cachés'!A124+$V$2,'IC sans ND et TR'!$A$4:$S$1943,19)),IF(VLOOKUP('Calculs cachés'!A124+$V$2,'IC sans TR'!$A$4:$S$3485,19)>Présentation!$N$1,"",VLOOKUP('Calculs cachés'!A124+$V$2,'IC sans TR'!$A$4:$S$3485,19))))) ->  | C97: =IF($I$1="Tous les tempéraments",IF(B97<=Présentation!$N$1,VLOOKUP('Calculs cachés'!A124+$V$2,'Intercorr. circ.'!$A$4:$S$6968,2),""),IF($I$1="Sans les ND",IF(B97<=Présentation!$N$1,VLOOKUP('Calculs cachés'!A124+$V$2,'IC sans ND'!$A$4:$S$3886,2),""),IF($I$1="Sans les ND et les TR",IF(B97<=Présentation!$N$1,VLOOKUP('Calculs cachés'!A124+$V$2,'IC sans ND et TR'!$A$4:$S$1943,2),""),IF(B97<=Présentation!$N$1,VLOOKUP('Calculs cachés'!A124+$V$2,'IC sans TR'!$A$4:$S$3485,2),"")))) ->  | D97: =IF($I$1="Tous les tempéraments",IF(C97="","",VLOOKUP('Calculs cachés'!A124+$V$2,'Intercorr. circ.'!$A$4:$S$6968,18)),IF($I$1="Sans les ND",IF(C97="","",VLOOKUP('Calculs cachés'!A124+$V$2,'IC sans ND'!$A$4:$S$3886,18)),IF($I$1="Sans Les ND et les TR",IF(C97="","",VLOOKUP('Calculs cachés'!A124+$V$2,'IC sans ND et TR'!$A$4:$S$1943,18)),IF(C97="","",VLOOKUP('Calculs cachés'!A124+$V$2,'IC sans TR'!$A$4:$S$3485,18))))) -> 
B98: =IF($I$1="Tous les tempéraments",IF(VLOOKUP('Calculs cachés'!A125+$V$2,'Intercorr. circ.'!$A$4:$S$6968,19)>Présentation!$N$1,"",VLOOKUP('Calculs cachés'!A125+$V$2,'Intercorr. circ.'!$A$4:$S$6968,19)),IF($I$1="Sans les ND",IF(VLOOKUP('Calculs cachés'!A125+$V$2,'IC sans ND'!$A$4:$S$3886,19)>Présentation!$N$1,"",VLOOKUP('Calculs cachés'!A125+$V$2,'IC sans ND'!$A$4:$S$3886,19)),IF($I$1="Sans les ND et les TR",IF(VLOOKUP('Calculs cachés'!A125+$V$2,'IC sans ND et TR'!$A$4:$S$1943,19)>Présentation!$N$1,"",VLOOKUP('Calculs cachés'!A125+$V$2,'IC sans ND et TR'!$A$4:$S$1943,19)),IF(VLOOKUP('Calculs cachés'!A125+$V$2,'IC sans TR'!$A$4:$S$3485,19)>Présentation!$N$1,"",VLOOKUP('Calculs cachés'!A125+$V$2,'IC sans TR'!$A$4:$S$3485,19))))) ->  | C98: =IF($I$1="Tous les tempéraments",IF(B98<=Présentation!$N$1,VLOOKUP('Calculs cachés'!A125+$V$2,'Intercorr. circ.'!$A$4:$S$6968,2),""),IF($I$1="Sans les ND",IF(B98<=Présentation!$N$1,VLOOKUP('Calculs cachés'!A125+$V$2,'IC sans ND'!$A$4:$S$3886,2),""),IF($I$1="Sans les ND et les TR",IF(B98<=Présentation!$N$1,VLOOKUP('Calculs cachés'!A125+$V$2,'IC sans ND et TR'!$A$4:$S$1943,2),""),IF(B98<=Présentation!$N$1,VLOOKUP('Calculs cachés'!A125+$V$2,'IC sans TR'!$A$4:$S$3485,2),"")))) ->  | D98: =IF($I$1="Tous les tempéraments",IF(C98="","",VLOOKUP('Calculs cachés'!A125+$V$2,'Intercorr. circ.'!$A$4:$S$6968,18)),IF($I$1="Sans les ND",IF(C98="","",VLOOKUP('Calculs cachés'!A125+$V$2,'IC sans ND'!$A$4:$S$3886,18)),IF($I$1="Sans Les ND et les TR",IF(C98="","",VLOOKUP('Calculs cachés'!A125+$V$2,'IC sans ND et TR'!$A$4:$S$1943,18)),IF(C98="","",VLOOKUP('Calculs cachés'!A125+$V$2,'IC sans TR'!$A$4:$S$3485,18))))) -> 
B99: =IF($I$1="Tous les tempéraments",IF(VLOOKUP('Calculs cachés'!A126+$V$2,'Intercorr. circ.'!$A$4:$S$6968,19)>Présentation!$N$1,"",VLOOKUP('Calculs cachés'!A126+$V$2,'Intercorr. circ.'!$A$4:$S$6968,19)),IF($I$1="Sans les ND",IF(VLOOKUP('Calculs cachés'!A126+$V$2,'IC sans ND'!$A$4:$S$3886,19)>Présentation!$N$1,"",VLOOKUP('Calculs cachés'!A126+$V$2,'IC sans ND'!$A$4:$S$3886,19)),IF($I$1="Sans les ND et les TR",IF(VLOOKUP('Calculs cachés'!A126+$V$2,'IC sans ND et TR'!$A$4:$S$1943,19)>Présentation!$N$1,"",VLOOKUP('Calculs cachés'!A126+$V$2,'IC sans ND et TR'!$A$4:$S$1943,19)),IF(VLOOKUP('Calculs cachés'!A126+$V$2,'IC sans TR'!$A$4:$S$3485,19)>Présentation!$N$1,"",VLOOKUP('Calculs cachés'!A126+$V$2,'IC sans TR'!$A$4:$S$3485,19))))) ->  | C99: =IF($I$1="Tous les tempéraments",IF(B99<=Présentation!$N$1,VLOOKUP('Calculs cachés'!A126+$V$2,'Intercorr. circ.'!$A$4:$S$6968,2),""),IF($I$1="Sans les ND",IF(B99<=Présentation!$N$1,VLOOKUP('Calculs cachés'!A126+$V$2,'IC sans ND'!$A$4:$S$3886,2),""),IF($I$1="Sans les ND et les TR",IF(B99<=Présentation!$N$1,VLOOKUP('Calculs cachés'!A126+$V$2,'IC sans ND et TR'!$A$4:$S$1943,2),""),IF(B99<=Présentation!$N$1,VLOOKUP('Calculs cachés'!A126+$V$2,'IC sans TR'!$A$4:$S$3485,2),"")))) ->  | D99: =IF($I$1="Tous les tempéraments",IF(C99="","",VLOOKUP('Calculs cachés'!A126+$V$2,'Intercorr. circ.'!$A$4:$S$6968,18)),IF($I$1="Sans les ND",IF(C99="","",VLOOKUP('Calculs cachés'!A126+$V$2,'IC sans ND'!$A$4:$S$3886,18)),IF($I$1="Sans Les ND et les TR",IF(C99="","",VLOOKUP('Calculs cachés'!A126+$V$2,'IC sans ND et TR'!$A$4:$S$1943,18)),IF(C99="","",VLOOKUP('Calculs cachés'!A126+$V$2,'IC sans TR'!$A$4:$S$3485,18))))) -> 
B100: =IF($I$1="Tous les tempéraments",IF(VLOOKUP('Calculs cachés'!A127+$V$2,'Intercorr. circ.'!$A$4:$S$6968,19)>Présentation!$N$1,"",VLOOKUP('Calculs cachés'!A127+$V$2,'Intercorr. circ.'!$A$4:$S$6968,19)),IF($I$1="Sans les ND",IF(VLOOKUP('Calculs cachés'!A127+$V$2,'IC sans ND'!$A$4:$S$3886,19)>Présentation!$N$1,"",VLOOKUP('Calculs cachés'!A127+$V$2,'IC sans ND'!$A$4:$S$3886,19)),IF($I$1="Sans les ND et les TR",IF(VLOOKUP('Calculs cachés'!A127+$V$2,'IC sans ND et TR'!$A$4:$S$1943,19)>Présentation!$N$1,"",VLOOKUP('Calculs cachés'!A127+$V$2,'IC sans ND et TR'!$A$4:$S$1943,19)),IF(VLOOKUP('Calculs cachés'!A127+$V$2,'IC sans TR'!$A$4:$S$3485,19)>Présentation!$N$1,"",VLOOKUP('Calculs cachés'!A127+$V$2,'IC sans TR'!$A$4:$S$3485,19))))) ->  | C100: =IF($I$1="Tous les tempéraments",IF(B100<=Présentation!$N$1,VLOOKUP('Calculs cachés'!A127+$V$2,'Intercorr. circ.'!$A$4:$S$6968,2),""),IF($I$1="Sans les ND",IF(B100<=Présentation!$N$1,VLOOKUP('Calculs cachés'!A127+$V$2,'IC sans ND'!$A$4:$S$3886,2),""),IF($I$1="Sans les ND et les TR",IF(B100<=Présentation!$N$1,VLOOKUP('Calculs cachés'!A127+$V$2,'IC sans ND et TR'!$A$4:$S$1943,2),""),IF(B100<=Présentation!$N$1,VLOOKUP('Calculs cachés'!A127+$V$2,'IC sans TR'!$A$4:$S$3485,2),"")))) ->  | D100: =IF($I$1="Tous les tempéraments",IF(C100="","",VLOOKUP('Calculs cachés'!A127+$V$2,'Intercorr. circ.'!$A$4:$S$6968,18)),IF($I$1="Sans les ND",IF(C100="","",VLOOKUP('Calculs cachés'!A127+$V$2,'IC sans ND'!$A$4:$S$3886,18)),IF($I$1="Sans Les ND et les TR",IF(C100="","",VLOOKUP('Calculs cachés'!A127+$V$2,'IC sans ND et TR'!$A$4:$S$1943,18)),IF(C100="","",VLOOKUP('Calculs cachés'!A127+$V$2,'IC sans TR'!$A$4:$S$3485,18))))) -> 
B101: =IF($I$1="Tous les tempéraments",IF(VLOOKUP('Calculs cachés'!A128+$V$2,'Intercorr. circ.'!$A$4:$S$6968,19)>Présentation!$N$1,"",VLOOKUP('Calculs cachés'!A128+$V$2,'Intercorr. circ.'!$A$4:$S$6968,19)),IF($I$1="Sans les ND",IF(VLOOKUP('Calculs cachés'!A128+$V$2,'IC sans ND'!$A$4:$S$3886,19)>Présentation!$N$1,"",VLOOKUP('Calculs cachés'!A128+$V$2,'IC sans ND'!$A$4:$S$3886,19)),IF($I$1="Sans les ND et les TR",IF(VLOOKUP('Calculs cachés'!A128+$V$2,'IC sans ND et TR'!$A$4:$S$1943,19)>Présentation!$N$1,"",VLOOKUP('Calculs cachés'!A128+$V$2,'IC sans ND et TR'!$A$4:$S$1943,19)),IF(VLOOKUP('Calculs cachés'!A128+$V$2,'IC sans TR'!$A$4:$S$3485,19)>Présentation!$N$1,"",VLOOKUP('Calculs cachés'!A128+$V$2,'IC sans TR'!$A$4:$S$3485,19))))) ->  | C101: =IF($I$1="Tous les tempéraments",IF(B101<=Présentation!$N$1,VLOOKUP('Calculs cachés'!A128+$V$2,'Intercorr. circ.'!$A$4:$S$6968,2),""),IF($I$1="Sans les ND",IF(B101<=Présentation!$N$1,VLOOKUP('Calculs cachés'!A128+$V$2,'IC sans ND'!$A$4:$S$3886,2),""),IF($I$1="Sans les ND et les TR",IF(B101<=Présentation!$N$1,VLOOKUP('Calculs cachés'!A128+$V$2,'IC sans ND et TR'!$A$4:$S$1943,2),""),IF(B101<=Présentation!$N$1,VLOOKUP('Calculs cachés'!A128+$V$2,'IC sans TR'!$A$4:$S$3485,2),"")))) ->  | D101: =IF($I$1="Tous les tempéraments",IF(C101="","",VLOOKUP('Calculs cachés'!A128+$V$2,'Intercorr. circ.'!$A$4:$S$6968,18)),IF($I$1="Sans les ND",IF(C101="","",VLOOKUP('Calculs cachés'!A128+$V$2,'IC sans ND'!$A$4:$S$3886,18)),IF($I$1="Sans Les ND et les TR",IF(C101="","",VLOOKUP('Calculs cachés'!A128+$V$2,'IC sans ND et TR'!$A$4:$S$1943,18)),IF(C101="","",VLOOKUP('Calculs cachés'!A128+$V$2,'IC sans TR'!$A$4:$S$3485,18))))) -> 
B102: =IF($I$1="Tous les tempéraments",IF(VLOOKUP('Calculs cachés'!A129+$V$2,'Intercorr. circ.'!$A$4:$S$6968,19)>Présentation!$N$1,"",VLOOKUP('Calculs cachés'!A129+$V$2,'Intercorr. circ.'!$A$4:$S$6968,19)),IF($I$1="Sans les ND",IF(VLOOKUP('Calculs cachés'!A129+$V$2,'IC sans ND'!$A$4:$S$3886,19)>Présentation!$N$1,"",VLOOKUP('Calculs cachés'!A129+$V$2,'IC sans ND'!$A$4:$S$3886,19)),IF($I$1="Sans les ND et les TR",IF(VLOOKUP('Calculs cachés'!A129+$V$2,'IC sans ND et TR'!$A$4:$S$1943,19)>Présentation!$N$1,"",VLOOKUP('Calculs cachés'!A129+$V$2,'IC sans ND et TR'!$A$4:$S$1943,19)),IF(VLOOKUP('Calculs cachés'!A129+$V$2,'IC sans TR'!$A$4:$S$3485,19)>Présentation!$N$1,"",VLOOKUP('Calculs cachés'!A129+$V$2,'IC sans TR'!$A$4:$S$3485,19))))) ->  | C102: =IF($I$1="Tous les tempéraments",IF(B102<=Présentation!$N$1,VLOOKUP('Calculs cachés'!A129+$V$2,'Intercorr. circ.'!$A$4:$S$6968,2),""),IF($I$1="Sans les ND",IF(B102<=Présentation!$N$1,VLOOKUP('Calculs cachés'!A129+$V$2,'IC sans ND'!$A$4:$S$3886,2),""),IF($I$1="Sans les ND et les TR",IF(B102<=Présentation!$N$1,VLOOKUP('Calculs cachés'!A129+$V$2,'IC sans ND et TR'!$A$4:$S$1943,2),""),IF(B102<=Présentation!$N$1,VLOOKUP('Calculs cachés'!A129+$V$2,'IC sans TR'!$A$4:$S$3485,2),"")))) ->  | D102: =IF($I$1="Tous les tempéraments",IF(C102="","",VLOOKUP('Calculs cachés'!A129+$V$2,'Intercorr. circ.'!$A$4:$S$6968,18)),IF($I$1="Sans les ND",IF(C102="","",VLOOKUP('Calculs cachés'!A129+$V$2,'IC sans ND'!$A$4:$S$3886,18)),IF($I$1="Sans Les ND et les TR",IF(C102="","",VLOOKUP('Calculs cachés'!A129+$V$2,'IC sans ND et TR'!$A$4:$S$1943,18)),IF(C102="","",VLOOKUP('Calculs cachés'!A129+$V$2,'IC sans TR'!$A$4:$S$3485,18))))) -> 
B103: =IF($I$1="Tous les tempéraments",IF(VLOOKUP('Calculs cachés'!A130+$V$2,'Intercorr. circ.'!$A$4:$S$6968,19)>Présentation!$N$1,"",VLOOKUP('Calculs cachés'!A130+$V$2,'Intercorr. circ.'!$A$4:$S$6968,19)),IF($I$1="Sans les ND",IF(VLOOKUP('Calculs cachés'!A130+$V$2,'IC sans ND'!$A$4:$S$3886,19)>Présentation!$N$1,"",VLOOKUP('Calculs cachés'!A130+$V$2,'IC sans ND'!$A$4:$S$3886,19)),IF($I$1="Sans les ND et les TR",IF(VLOOKUP('Calculs cachés'!A130+$V$2,'IC sans ND et TR'!$A$4:$S$1943,19)>Présentation!$N$1,"",VLOOKUP('Calculs cachés'!A130+$V$2,'IC sans ND et TR'!$A$4:$S$1943,19)),IF(VLOOKUP('Calculs cachés'!A130+$V$2,'IC sans TR'!$A$4:$S$3485,19)>Présentation!$N$1,"",VLOOKUP('Calculs cachés'!A130+$V$2,'IC sans TR'!$A$4:$S$3485,19))))) ->  | C103: =IF($I$1="Tous les tempéraments",IF(B103<=Présentation!$N$1,VLOOKUP('Calculs cachés'!A130+$V$2,'Intercorr. circ.'!$A$4:$S$6968,2),""),IF($I$1="Sans les ND",IF(B103<=Présentation!$N$1,VLOOKUP('Calculs cachés'!A130+$V$2,'IC sans ND'!$A$4:$S$3886,2),""),IF($I$1="Sans les ND et les TR",IF(B103<=Présentation!$N$1,VLOOKUP('Calculs cachés'!A130+$V$2,'IC sans ND et TR'!$A$4:$S$1943,2),""),IF(B103<=Présentation!$N$1,VLOOKUP('Calculs cachés'!A130+$V$2,'IC sans TR'!$A$4:$S$3485,2),"")))) ->  | D103: =IF($I$1="Tous les tempéraments",IF(C103="","",VLOOKUP('Calculs cachés'!A130+$V$2,'Intercorr. circ.'!$A$4:$S$6968,18)),IF($I$1="Sans les ND",IF(C103="","",VLOOKUP('Calculs cachés'!A130+$V$2,'IC sans ND'!$A$4:$S$3886,18)),IF($I$1="Sans Les ND et les TR",IF(C103="","",VLOOKUP('Calculs cachés'!A130+$V$2,'IC sans ND et TR'!$A$4:$S$1943,18)),IF(C103="","",VLOOKUP('Calculs cachés'!A130+$V$2,'IC sans TR'!$A$4:$S$3485,18))))) -> 
B104: =IF($I$1="Tous les tempéraments",IF(VLOOKUP('Calculs cachés'!A131+$V$2,'Intercorr. circ.'!$A$4:$S$6968,19)>Présentation!$N$1,"",VLOOKUP('Calculs cachés'!A131+$V$2,'Intercorr. circ.'!$A$4:$S$6968,19)),IF($I$1="Sans les ND",IF(VLOOKUP('Calculs cachés'!A131+$V$2,'IC sans ND'!$A$4:$S$3886,19)>Présentation!$N$1,"",VLOOKUP('Calculs cachés'!A131+$V$2,'IC sans ND'!$A$4:$S$3886,19)),IF($I$1="Sans les ND et les TR",IF(VLOOKUP('Calculs cachés'!A131+$V$2,'IC sans ND et TR'!$A$4:$S$1943,19)>Présentation!$N$1,"",VLOOKUP('Calculs cachés'!A131+$V$2,'IC sans ND et TR'!$A$4:$S$1943,19)),IF(VLOOKUP('Calculs cachés'!A131+$V$2,'IC sans TR'!$A$4:$S$3485,19)>Présentation!$N$1,"",VLOOKUP('Calculs cachés'!A131+$V$2,'IC sans TR'!$A$4:$S$3485,19))))) ->  | C104: =IF($I$1="Tous les tempéraments",IF(B104<=Présentation!$N$1,VLOOKUP('Calculs cachés'!A131+$V$2,'Intercorr. circ.'!$A$4:$S$6968,2),""),IF($I$1="Sans les ND",IF(B104<=Présentation!$N$1,VLOOKUP('Calculs cachés'!A131+$V$2,'IC sans ND'!$A$4:$S$3886,2),""),IF($I$1="Sans les ND et les TR",IF(B104<=Présentation!$N$1,VLOOKUP('Calculs cachés'!A131+$V$2,'IC sans ND et TR'!$A$4:$S$1943,2),""),IF(B104<=Présentation!$N$1,VLOOKUP('Calculs cachés'!A131+$V$2,'IC sans TR'!$A$4:$S$3485,2),"")))) ->  | D104: =IF($I$1="Tous les tempéraments",IF(C104="","",VLOOKUP('Calculs cachés'!A131+$V$2,'Intercorr. circ.'!$A$4:$S$6968,18)),IF($I$1="Sans les ND",IF(C104="","",VLOOKUP('Calculs cachés'!A131+$V$2,'IC sans ND'!$A$4:$S$3886,18)),IF($I$1="Sans Les ND et les TR",IF(C104="","",VLOOKUP('Calculs cachés'!A131+$V$2,'IC sans ND et TR'!$A$4:$S$1943,18)),IF(C104="","",VLOOKUP('Calculs cachés'!A131+$V$2,'IC sans TR'!$A$4:$S$3485,18))))) -> 
B105: =IF($I$1="Tous les tempéraments",IF(VLOOKUP('Calculs cachés'!A132+$V$2,'Intercorr. circ.'!$A$4:$S$6968,19)>Présentation!$N$1,"",VLOOKUP('Calculs cachés'!A132+$V$2,'Intercorr. circ.'!$A$4:$S$6968,19)),IF($I$1="Sans les ND",IF(VLOOKUP('Calculs cachés'!A132+$V$2,'IC sans ND'!$A$4:$S$3886,19)>Présentation!$N$1,"",VLOOKUP('Calculs cachés'!A132+$V$2,'IC sans ND'!$A$4:$S$3886,19)),IF($I$1="Sans les ND et les TR",IF(VLOOKUP('Calculs cachés'!A132+$V$2,'IC sans ND et TR'!$A$4:$S$1943,19)>Présentation!$N$1,"",VLOOKUP('Calculs cachés'!A132+$V$2,'IC sans ND et TR'!$A$4:$S$1943,19)),IF(VLOOKUP('Calculs cachés'!A132+$V$2,'IC sans TR'!$A$4:$S$3485,19)>Présentation!$N$1,"",VLOOKUP('Calculs cachés'!A132+$V$2,'IC sans TR'!$A$4:$S$3485,19))))) ->  | C105: =IF($I$1="Tous les tempéraments",IF(B105<=Présentation!$N$1,VLOOKUP('Calculs cachés'!A132+$V$2,'Intercorr. circ.'!$A$4:$S$6968,2),""),IF($I$1="Sans les ND",IF(B105<=Présentation!$N$1,VLOOKUP('Calculs cachés'!A132+$V$2,'IC sans ND'!$A$4:$S$3886,2),""),IF($I$1="Sans les ND et les TR",IF(B105<=Présentation!$N$1,VLOOKUP('Calculs cachés'!A132+$V$2,'IC sans ND et TR'!$A$4:$S$1943,2),""),IF(B105<=Présentation!$N$1,VLOOKUP('Calculs cachés'!A132+$V$2,'IC sans TR'!$A$4:$S$3485,2),"")))) ->  | D105: =IF($I$1="Tous les tempéraments",IF(C105="","",VLOOKUP('Calculs cachés'!A132+$V$2,'Intercorr. circ.'!$A$4:$S$6968,18)),IF($I$1="Sans les ND",IF(C105="","",VLOOKUP('Calculs cachés'!A132+$V$2,'IC sans ND'!$A$4:$S$3886,18)),IF($I$1="Sans Les ND et les TR",IF(C105="","",VLOOKUP('Calculs cachés'!A132+$V$2,'IC sans ND et TR'!$A$4:$S$1943,18)),IF(C105="","",VLOOKUP('Calculs cachés'!A132+$V$2,'IC sans TR'!$A$4:$S$3485,18))))) -> 
B106: =IF($I$1="Tous les tempéraments",IF(VLOOKUP('Calculs cachés'!A133+$V$2,'Intercorr. circ.'!$A$4:$S$6968,19)>Présentation!$N$1,"",VLOOKUP('Calculs cachés'!A133+$V$2,'Intercorr. circ.'!$A$4:$S$6968,19)),IF($I$1="Sans les ND",IF(VLOOKUP('Calculs cachés'!A133+$V$2,'IC sans ND'!$A$4:$S$3886,19)>Présentation!$N$1,"",VLOOKUP('Calculs cachés'!A133+$V$2,'IC sans ND'!$A$4:$S$3886,19)),IF($I$1="Sans les ND et les TR",IF(VLOOKUP('Calculs cachés'!A133+$V$2,'IC sans ND et TR'!$A$4:$S$1943,19)>Présentation!$N$1,"",VLOOKUP('Calculs cachés'!A133+$V$2,'IC sans ND et TR'!$A$4:$S$1943,19)),IF(VLOOKUP('Calculs cachés'!A133+$V$2,'IC sans TR'!$A$4:$S$3485,19)>Présentation!$N$1,"",VLOOKUP('Calculs cachés'!A133+$V$2,'IC sans TR'!$A$4:$S$3485,19))))) ->  | C106: =IF($I$1="Tous les tempéraments",IF(B106<=Présentation!$N$1,VLOOKUP('Calculs cachés'!A133+$V$2,'Intercorr. circ.'!$A$4:$S$6968,2),""),IF($I$1="Sans les ND",IF(B106<=Présentation!$N$1,VLOOKUP('Calculs cachés'!A133+$V$2,'IC sans ND'!$A$4:$S$3886,2),""),IF($I$1="Sans les ND et les TR",IF(B106<=Présentation!$N$1,VLOOKUP('Calculs cachés'!A133+$V$2,'IC sans ND et TR'!$A$4:$S$1943,2),""),IF(B106<=Présentation!$N$1,VLOOKUP('Calculs cachés'!A133+$V$2,'IC sans TR'!$A$4:$S$3485,2),"")))) ->  | D106: =IF($I$1="Tous les tempéraments",IF(C106="","",VLOOKUP('Calculs cachés'!A133+$V$2,'Intercorr. circ.'!$A$4:$S$6968,18)),IF($I$1="Sans les ND",IF(C106="","",VLOOKUP('Calculs cachés'!A133+$V$2,'IC sans ND'!$A$4:$S$3886,18)),IF($I$1="Sans Les ND et les TR",IF(C106="","",VLOOKUP('Calculs cachés'!A133+$V$2,'IC sans ND et TR'!$A$4:$S$1943,18)),IF(C106="","",VLOOKUP('Calculs cachés'!A133+$V$2,'IC sans TR'!$A$4:$S$3485,18))))) -> 
B107: =IF($I$1="Tous les tempéraments",IF(VLOOKUP('Calculs cachés'!A134+$V$2,'Intercorr. circ.'!$A$4:$S$6968,19)>Présentation!$N$1,"",VLOOKUP('Calculs cachés'!A134+$V$2,'Intercorr. circ.'!$A$4:$S$6968,19)),IF($I$1="Sans les ND",IF(VLOOKUP('Calculs cachés'!A134+$V$2,'IC sans ND'!$A$4:$S$3886,19)>Présentation!$N$1,"",VLOOKUP('Calculs cachés'!A134+$V$2,'IC sans ND'!$A$4:$S$3886,19)),IF($I$1="Sans les ND et les TR",IF(VLOOKUP('Calculs cachés'!A134+$V$2,'IC sans ND et TR'!$A$4:$S$1943,19)>Présentation!$N$1,"",VLOOKUP('Calculs cachés'!A134+$V$2,'IC sans ND et TR'!$A$4:$S$1943,19)),IF(VLOOKUP('Calculs cachés'!A134+$V$2,'IC sans TR'!$A$4:$S$3485,19)>Présentation!$N$1,"",VLOOKUP('Calculs cachés'!A134+$V$2,'IC sans TR'!$A$4:$S$3485,19))))) ->  | C107: =IF($I$1="Tous les tempéraments",IF(B107<=Présentation!$N$1,VLOOKUP('Calculs cachés'!A134+$V$2,'Intercorr. circ.'!$A$4:$S$6968,2),""),IF($I$1="Sans les ND",IF(B107<=Présentation!$N$1,VLOOKUP('Calculs cachés'!A134+$V$2,'IC sans ND'!$A$4:$S$3886,2),""),IF($I$1="Sans les ND et les TR",IF(B107<=Présentation!$N$1,VLOOKUP('Calculs cachés'!A134+$V$2,'IC sans ND et TR'!$A$4:$S$1943,2),""),IF(B107<=Présentation!$N$1,VLOOKUP('Calculs cachés'!A134+$V$2,'IC sans TR'!$A$4:$S$3485,2),"")))) ->  | D107: =IF($I$1="Tous les tempéraments",IF(C107="","",VLOOKUP('Calculs cachés'!A134+$V$2,'Intercorr. circ.'!$A$4:$S$6968,18)),IF($I$1="Sans les ND",IF(C107="","",VLOOKUP('Calculs cachés'!A134+$V$2,'IC sans ND'!$A$4:$S$3886,18)),IF($I$1="Sans Les ND et les TR",IF(C107="","",VLOOKUP('Calculs cachés'!A134+$V$2,'IC sans ND et TR'!$A$4:$S$1943,18)),IF(C107="","",VLOOKUP('Calculs cachés'!A134+$V$2,'IC sans TR'!$A$4:$S$3485,18))))) -> 
B108: =IF($I$1="Tous les tempéraments",IF(VLOOKUP('Calculs cachés'!A135+$V$2,'Intercorr. circ.'!$A$4:$S$6968,19)>Présentation!$N$1,"",VLOOKUP('Calculs cachés'!A135+$V$2,'Intercorr. circ.'!$A$4:$S$6968,19)),IF($I$1="Sans les ND",IF(VLOOKUP('Calculs cachés'!A135+$V$2,'IC sans ND'!$A$4:$S$3886,19)>Présentation!$N$1,"",VLOOKUP('Calculs cachés'!A135+$V$2,'IC sans ND'!$A$4:$S$3886,19)),IF($I$1="Sans les ND et les TR",IF(VLOOKUP('Calculs cachés'!A135+$V$2,'IC sans ND et TR'!$A$4:$S$1943,19)>Présentation!$N$1,"",VLOOKUP('Calculs cachés'!A135+$V$2,'IC sans ND et TR'!$A$4:$S$1943,19)),IF(VLOOKUP('Calculs cachés'!A135+$V$2,'IC sans TR'!$A$4:$S$3485,19)>Présentation!$N$1,"",VLOOKUP('Calculs cachés'!A135+$V$2,'IC sans TR'!$A$4:$S$3485,19))))) ->  | C108: =IF($I$1="Tous les tempéraments",IF(B108<=Présentation!$N$1,VLOOKUP('Calculs cachés'!A135+$V$2,'Intercorr. circ.'!$A$4:$S$6968,2),""),IF($I$1="Sans les ND",IF(B108<=Présentation!$N$1,VLOOKUP('Calculs cachés'!A135+$V$2,'IC sans ND'!$A$4:$S$3886,2),""),IF($I$1="Sans les ND et les TR",IF(B108<=Présentation!$N$1,VLOOKUP('Calculs cachés'!A135+$V$2,'IC sans ND et TR'!$A$4:$S$1943,2),""),IF(B108<=Présentation!$N$1,VLOOKUP('Calculs cachés'!A135+$V$2,'IC sans TR'!$A$4:$S$3485,2),"")))) ->  | D108: =IF($I$1="Tous les tempéraments",IF(C108="","",VLOOKUP('Calculs cachés'!A135+$V$2,'Intercorr. circ.'!$A$4:$S$6968,18)),IF($I$1="Sans les ND",IF(C108="","",VLOOKUP('Calculs cachés'!A135+$V$2,'IC sans ND'!$A$4:$S$3886,18)),IF($I$1="Sans Les ND et les TR",IF(C108="","",VLOOKUP('Calculs cachés'!A135+$V$2,'IC sans ND et TR'!$A$4:$S$1943,18)),IF(C108="","",VLOOKUP('Calculs cachés'!A135+$V$2,'IC sans TR'!$A$4:$S$3485,18))))) -> 
B109: =IF($I$1="Tous les tempéraments",IF(VLOOKUP('Calculs cachés'!A136+$V$2,'Intercorr. circ.'!$A$4:$S$6968,19)>Présentation!$N$1,"",VLOOKUP('Calculs cachés'!A136+$V$2,'Intercorr. circ.'!$A$4:$S$6968,19)),IF($I$1="Sans les ND",IF(VLOOKUP('Calculs cachés'!A136+$V$2,'IC sans ND'!$A$4:$S$3886,19)>Présentation!$N$1,"",VLOOKUP('Calculs cachés'!A136+$V$2,'IC sans ND'!$A$4:$S$3886,19)),IF($I$1="Sans les ND et les TR",IF(VLOOKUP('Calculs cachés'!A136+$V$2,'IC sans ND et TR'!$A$4:$S$1943,19)>Présentation!$N$1,"",VLOOKUP('Calculs cachés'!A136+$V$2,'IC sans ND et TR'!$A$4:$S$1943,19)),IF(VLOOKUP('Calculs cachés'!A136+$V$2,'IC sans TR'!$A$4:$S$3485,19)>Présentation!$N$1,"",VLOOKUP('Calculs cachés'!A136+$V$2,'IC sans TR'!$A$4:$S$3485,19))))) ->  | C109: =IF($I$1="Tous les tempéraments",IF(B109<=Présentation!$N$1,VLOOKUP('Calculs cachés'!A136+$V$2,'Intercorr. circ.'!$A$4:$S$6968,2),""),IF($I$1="Sans les ND",IF(B109<=Présentation!$N$1,VLOOKUP('Calculs cachés'!A136+$V$2,'IC sans ND'!$A$4:$S$3886,2),""),IF($I$1="Sans les ND et les TR",IF(B109<=Présentation!$N$1,VLOOKUP('Calculs cachés'!A136+$V$2,'IC sans ND et TR'!$A$4:$S$1943,2),""),IF(B109<=Présentation!$N$1,VLOOKUP('Calculs cachés'!A136+$V$2,'IC sans TR'!$A$4:$S$3485,2),"")))) ->  | D109: =IF($I$1="Tous les tempéraments",IF(C109="","",VLOOKUP('Calculs cachés'!A136+$V$2,'Intercorr. circ.'!$A$4:$S$6968,18)),IF($I$1="Sans les ND",IF(C109="","",VLOOKUP('Calculs cachés'!A136+$V$2,'IC sans ND'!$A$4:$S$3886,18)),IF($I$1="Sans Les ND et les TR",IF(C109="","",VLOOKUP('Calculs cachés'!A136+$V$2,'IC sans ND et TR'!$A$4:$S$1943,18)),IF(C109="","",VLOOKUP('Calculs cachés'!A136+$V$2,'IC sans TR'!$A$4:$S$3485,18))))) -> 
B110: =IF($I$1="Tous les tempéraments",IF(VLOOKUP('Calculs cachés'!A137+$V$2,'Intercorr. circ.'!$A$4:$S$6968,19)>Présentation!$N$1,"",VLOOKUP('Calculs cachés'!A137+$V$2,'Intercorr. circ.'!$A$4:$S$6968,19)),IF($I$1="Sans les ND",IF(VLOOKUP('Calculs cachés'!A137+$V$2,'IC sans ND'!$A$4:$S$3886,19)>Présentation!$N$1,"",VLOOKUP('Calculs cachés'!A137+$V$2,'IC sans ND'!$A$4:$S$3886,19)),IF($I$1="Sans les ND et les TR",IF(VLOOKUP('Calculs cachés'!A137+$V$2,'IC sans ND et TR'!$A$4:$S$1943,19)>Présentation!$N$1,"",VLOOKUP('Calculs cachés'!A137+$V$2,'IC sans ND et TR'!$A$4:$S$1943,19)),IF(VLOOKUP('Calculs cachés'!A137+$V$2,'IC sans TR'!$A$4:$S$3485,19)>Présentation!$N$1,"",VLOOKUP('Calculs cachés'!A137+$V$2,'IC sans TR'!$A$4:$S$3485,19))))) ->  | C110: =IF($I$1="Tous les tempéraments",IF(B110<=Présentation!$N$1,VLOOKUP('Calculs cachés'!A137+$V$2,'Intercorr. circ.'!$A$4:$S$6968,2),""),IF($I$1="Sans les ND",IF(B110<=Présentation!$N$1,VLOOKUP('Calculs cachés'!A137+$V$2,'IC sans ND'!$A$4:$S$3886,2),""),IF($I$1="Sans les ND et les TR",IF(B110<=Présentation!$N$1,VLOOKUP('Calculs cachés'!A137+$V$2,'IC sans ND et TR'!$A$4:$S$1943,2),""),IF(B110<=Présentation!$N$1,VLOOKUP('Calculs cachés'!A137+$V$2,'IC sans TR'!$A$4:$S$3485,2),"")))) ->  | D110: =IF($I$1="Tous les tempéraments",IF(C110="","",VLOOKUP('Calculs cachés'!A137+$V$2,'Intercorr. circ.'!$A$4:$S$6968,18)),IF($I$1="Sans les ND",IF(C110="","",VLOOKUP('Calculs cachés'!A137+$V$2,'IC sans ND'!$A$4:$S$3886,18)),IF($I$1="Sans Les ND et les TR",IF(C110="","",VLOOKUP('Calculs cachés'!A137+$V$2,'IC sans ND et TR'!$A$4:$S$1943,18)),IF(C110="","",VLOOKUP('Calculs cachés'!A137+$V$2,'IC sans TR'!$A$4:$S$3485,18))))) -> 
B111: =IF($I$1="Tous les tempéraments",IF(VLOOKUP('Calculs cachés'!A138+$V$2,'Intercorr. circ.'!$A$4:$S$6968,19)>Présentation!$N$1,"",VLOOKUP('Calculs cachés'!A138+$V$2,'Intercorr. circ.'!$A$4:$S$6968,19)),IF($I$1="Sans les ND",IF(VLOOKUP('Calculs cachés'!A138+$V$2,'IC sans ND'!$A$4:$S$3886,19)>Présentation!$N$1,"",VLOOKUP('Calculs cachés'!A138+$V$2,'IC sans ND'!$A$4:$S$3886,19)),IF($I$1="Sans les ND et les TR",IF(VLOOKUP('Calculs cachés'!A138+$V$2,'IC sans ND et TR'!$A$4:$S$1943,19)>Présentation!$N$1,"",VLOOKUP('Calculs cachés'!A138+$V$2,'IC sans ND et TR'!$A$4:$S$1943,19)),IF(VLOOKUP('Calculs cachés'!A138+$V$2,'IC sans TR'!$A$4:$S$3485,19)>Présentation!$N$1,"",VLOOKUP('Calculs cachés'!A138+$V$2,'IC sans TR'!$A$4:$S$3485,19))))) ->  | C111: =IF($I$1="Tous les tempéraments",IF(B111<=Présentation!$N$1,VLOOKUP('Calculs cachés'!A138+$V$2,'Intercorr. circ.'!$A$4:$S$6968,2),""),IF($I$1="Sans les ND",IF(B111<=Présentation!$N$1,VLOOKUP('Calculs cachés'!A138+$V$2,'IC sans ND'!$A$4:$S$3886,2),""),IF($I$1="Sans les ND et les TR",IF(B111<=Présentation!$N$1,VLOOKUP('Calculs cachés'!A138+$V$2,'IC sans ND et TR'!$A$4:$S$1943,2),""),IF(B111<=Présentation!$N$1,VLOOKUP('Calculs cachés'!A138+$V$2,'IC sans TR'!$A$4:$S$3485,2),"")))) ->  | D111: =IF($I$1="Tous les tempéraments",IF(C111="","",VLOOKUP('Calculs cachés'!A138+$V$2,'Intercorr. circ.'!$A$4:$S$6968,18)),IF($I$1="Sans les ND",IF(C111="","",VLOOKUP('Calculs cachés'!A138+$V$2,'IC sans ND'!$A$4:$S$3886,18)),IF($I$1="Sans Les ND et les TR",IF(C111="","",VLOOKUP('Calculs cachés'!A138+$V$2,'IC sans ND et TR'!$A$4:$S$1943,18)),IF(C111="","",VLOOKUP('Calculs cachés'!A138+$V$2,'IC sans TR'!$A$4:$S$3485,18))))) -> 
B112: =IF($I$1="Tous les tempéraments",IF(VLOOKUP('Calculs cachés'!A139+$V$2,'Intercorr. circ.'!$A$4:$S$6968,19)>Présentation!$N$1,"",VLOOKUP('Calculs cachés'!A139+$V$2,'Intercorr. circ.'!$A$4:$S$6968,19)),IF($I$1="Sans les ND",IF(VLOOKUP('Calculs cachés'!A139+$V$2,'IC sans ND'!$A$4:$S$3886,19)>Présentation!$N$1,"",VLOOKUP('Calculs cachés'!A139+$V$2,'IC sans ND'!$A$4:$S$3886,19)),IF($I$1="Sans les ND et les TR",IF(VLOOKUP('Calculs cachés'!A139+$V$2,'IC sans ND et TR'!$A$4:$S$1943,19)>Présentation!$N$1,"",VLOOKUP('Calculs cachés'!A139+$V$2,'IC sans ND et TR'!$A$4:$S$1943,19)),IF(VLOOKUP('Calculs cachés'!A139+$V$2,'IC sans TR'!$A$4:$S$3485,19)>Présentation!$N$1,"",VLOOKUP('Calculs cachés'!A139+$V$2,'IC sans TR'!$A$4:$S$3485,19))))) ->  | C112: =IF($I$1="Tous les tempéraments",IF(B112<=Présentation!$N$1,VLOOKUP('Calculs cachés'!A139+$V$2,'Intercorr. circ.'!$A$4:$S$6968,2),""),IF($I$1="Sans les ND",IF(B112<=Présentation!$N$1,VLOOKUP('Calculs cachés'!A139+$V$2,'IC sans ND'!$A$4:$S$3886,2),""),IF($I$1="Sans les ND et les TR",IF(B112<=Présentation!$N$1,VLOOKUP('Calculs cachés'!A139+$V$2,'IC sans ND et TR'!$A$4:$S$1943,2),""),IF(B112<=Présentation!$N$1,VLOOKUP('Calculs cachés'!A139+$V$2,'IC sans TR'!$A$4:$S$3485,2),"")))) ->  | D112: =IF($I$1="Tous les tempéraments",IF(C112="","",VLOOKUP('Calculs cachés'!A139+$V$2,'Intercorr. circ.'!$A$4:$S$6968,18)),IF($I$1="Sans les ND",IF(C112="","",VLOOKUP('Calculs cachés'!A139+$V$2,'IC sans ND'!$A$4:$S$3886,18)),IF($I$1="Sans Les ND et les TR",IF(C112="","",VLOOKUP('Calculs cachés'!A139+$V$2,'IC sans ND et TR'!$A$4:$S$1943,18)),IF(C112="","",VLOOKUP('Calculs cachés'!A139+$V$2,'IC sans TR'!$A$4:$S$3485,18))))) -> 
B113: =IF($I$1="Tous les tempéraments",IF(VLOOKUP('Calculs cachés'!A140+$V$2,'Intercorr. circ.'!$A$4:$S$6968,19)>Présentation!$N$1,"",VLOOKUP('Calculs cachés'!A140+$V$2,'Intercorr. circ.'!$A$4:$S$6968,19)),IF($I$1="Sans les ND",IF(VLOOKUP('Calculs cachés'!A140+$V$2,'IC sans ND'!$A$4:$S$3886,19)>Présentation!$N$1,"",VLOOKUP('Calculs cachés'!A140+$V$2,'IC sans ND'!$A$4:$S$3886,19)),IF($I$1="Sans les ND et les TR",IF(VLOOKUP('Calculs cachés'!A140+$V$2,'IC sans ND et TR'!$A$4:$S$1943,19)>Présentation!$N$1,"",VLOOKUP('Calculs cachés'!A140+$V$2,'IC sans ND et TR'!$A$4:$S$1943,19)),IF(VLOOKUP('Calculs cachés'!A140+$V$2,'IC sans TR'!$A$4:$S$3485,19)>Présentation!$N$1,"",VLOOKUP('Calculs cachés'!A140+$V$2,'IC sans TR'!$A$4:$S$3485,19))))) ->  | C113: =IF($I$1="Tous les tempéraments",IF(B113<=Présentation!$N$1,VLOOKUP('Calculs cachés'!A140+$V$2,'Intercorr. circ.'!$A$4:$S$6968,2),""),IF($I$1="Sans les ND",IF(B113<=Présentation!$N$1,VLOOKUP('Calculs cachés'!A140+$V$2,'IC sans ND'!$A$4:$S$3886,2),""),IF($I$1="Sans les ND et les TR",IF(B113<=Présentation!$N$1,VLOOKUP('Calculs cachés'!A140+$V$2,'IC sans ND et TR'!$A$4:$S$1943,2),""),IF(B113<=Présentation!$N$1,VLOOKUP('Calculs cachés'!A140+$V$2,'IC sans TR'!$A$4:$S$3485,2),"")))) ->  | D113: =IF($I$1="Tous les tempéraments",IF(C113="","",VLOOKUP('Calculs cachés'!A140+$V$2,'Intercorr. circ.'!$A$4:$S$6968,18)),IF($I$1="Sans les ND",IF(C113="","",VLOOKUP('Calculs cachés'!A140+$V$2,'IC sans ND'!$A$4:$S$3886,18)),IF($I$1="Sans Les ND et les TR",IF(C113="","",VLOOKUP('Calculs cachés'!A140+$V$2,'IC sans ND et TR'!$A$4:$S$1943,18)),IF(C113="","",VLOOKUP('Calculs cachés'!A140+$V$2,'IC sans TR'!$A$4:$S$3485,18))))) -> 
B114: =IF($I$1="Tous les tempéraments",IF(VLOOKUP('Calculs cachés'!A141+$V$2,'Intercorr. circ.'!$A$4:$S$6968,19)>Présentation!$N$1,"",VLOOKUP('Calculs cachés'!A141+$V$2,'Intercorr. circ.'!$A$4:$S$6968,19)),IF($I$1="Sans les ND",IF(VLOOKUP('Calculs cachés'!A141+$V$2,'IC sans ND'!$A$4:$S$3886,19)>Présentation!$N$1,"",VLOOKUP('Calculs cachés'!A141+$V$2,'IC sans ND'!$A$4:$S$3886,19)),IF($I$1="Sans les ND et les TR",IF(VLOOKUP('Calculs cachés'!A141+$V$2,'IC sans ND et TR'!$A$4:$S$1943,19)>Présentation!$N$1,"",VLOOKUP('Calculs cachés'!A141+$V$2,'IC sans ND et TR'!$A$4:$S$1943,19)),IF(VLOOKUP('Calculs cachés'!A141+$V$2,'IC sans TR'!$A$4:$S$3485,19)>Présentation!$N$1,"",VLOOKUP('Calculs cachés'!A141+$V$2,'IC sans TR'!$A$4:$S$3485,19))))) ->  | C114: =IF($I$1="Tous les tempéraments",IF(B114<=Présentation!$N$1,VLOOKUP('Calculs cachés'!A141+$V$2,'Intercorr. circ.'!$A$4:$S$6968,2),""),IF($I$1="Sans les ND",IF(B114<=Présentation!$N$1,VLOOKUP('Calculs cachés'!A141+$V$2,'IC sans ND'!$A$4:$S$3886,2),""),IF($I$1="Sans les ND et les TR",IF(B114<=Présentation!$N$1,VLOOKUP('Calculs cachés'!A141+$V$2,'IC sans ND et TR'!$A$4:$S$1943,2),""),IF(B114<=Présentation!$N$1,VLOOKUP('Calculs cachés'!A141+$V$2,'IC sans TR'!$A$4:$S$3485,2),"")))) ->  | D114: =IF($I$1="Tous les tempéraments",IF(C114="","",VLOOKUP('Calculs cachés'!A141+$V$2,'Intercorr. circ.'!$A$4:$S$6968,18)),IF($I$1="Sans les ND",IF(C114="","",VLOOKUP('Calculs cachés'!A141+$V$2,'IC sans ND'!$A$4:$S$3886,18)),IF($I$1="Sans Les ND et les TR",IF(C114="","",VLOOKUP('Calculs cachés'!A141+$V$2,'IC sans ND et TR'!$A$4:$S$1943,18)),IF(C114="","",VLOOKUP('Calculs cachés'!A141+$V$2,'IC sans TR'!$A$4:$S$3485,18))))) -> 
B115: =IF($I$1="Tous les tempéraments",IF(VLOOKUP('Calculs cachés'!A142+$V$2,'Intercorr. circ.'!$A$4:$S$6968,19)>Présentation!$N$1,"",VLOOKUP('Calculs cachés'!A142+$V$2,'Intercorr. circ.'!$A$4:$S$6968,19)),IF($I$1="Sans les ND",IF(VLOOKUP('Calculs cachés'!A142+$V$2,'IC sans ND'!$A$4:$S$3886,19)>Présentation!$N$1,"",VLOOKUP('Calculs cachés'!A142+$V$2,'IC sans ND'!$A$4:$S$3886,19)),IF($I$1="Sans les ND et les TR",IF(VLOOKUP('Calculs cachés'!A142+$V$2,'IC sans ND et TR'!$A$4:$S$1943,19)>Présentation!$N$1,"",VLOOKUP('Calculs cachés'!A142+$V$2,'IC sans ND et TR'!$A$4:$S$1943,19)),IF(VLOOKUP('Calculs cachés'!A142+$V$2,'IC sans TR'!$A$4:$S$3485,19)>Présentation!$N$1,"",VLOOKUP('Calculs cachés'!A142+$V$2,'IC sans TR'!$A$4:$S$3485,19))))) ->  | C115: =IF($I$1="Tous les tempéraments",IF(B115<=Présentation!$N$1,VLOOKUP('Calculs cachés'!A142+$V$2,'Intercorr. circ.'!$A$4:$S$6968,2),""),IF($I$1="Sans les ND",IF(B115<=Présentation!$N$1,VLOOKUP('Calculs cachés'!A142+$V$2,'IC sans ND'!$A$4:$S$3886,2),""),IF($I$1="Sans les ND et les TR",IF(B115<=Présentation!$N$1,VLOOKUP('Calculs cachés'!A142+$V$2,'IC sans ND et TR'!$A$4:$S$1943,2),""),IF(B115<=Présentation!$N$1,VLOOKUP('Calculs cachés'!A142+$V$2,'IC sans TR'!$A$4:$S$3485,2),"")))) ->  | D115: =IF($I$1="Tous les tempéraments",IF(C115="","",VLOOKUP('Calculs cachés'!A142+$V$2,'Intercorr. circ.'!$A$4:$S$6968,18)),IF($I$1="Sans les ND",IF(C115="","",VLOOKUP('Calculs cachés'!A142+$V$2,'IC sans ND'!$A$4:$S$3886,18)),IF($I$1="Sans Les ND et les TR",IF(C115="","",VLOOKUP('Calculs cachés'!A142+$V$2,'IC sans ND et TR'!$A$4:$S$1943,18)),IF(C115="","",VLOOKUP('Calculs cachés'!A142+$V$2,'IC sans TR'!$A$4:$S$3485,18))))) -> 
B116: =IF($I$1="Tous les tempéraments",IF(VLOOKUP('Calculs cachés'!A143+$V$2,'Intercorr. circ.'!$A$4:$S$6968,19)>Présentation!$N$1,"",VLOOKUP('Calculs cachés'!A143+$V$2,'Intercorr. circ.'!$A$4:$S$6968,19)),IF($I$1="Sans les ND",IF(VLOOKUP('Calculs cachés'!A143+$V$2,'IC sans ND'!$A$4:$S$3886,19)>Présentation!$N$1,"",VLOOKUP('Calculs cachés'!A143+$V$2,'IC sans ND'!$A$4:$S$3886,19)),IF($I$1="Sans les ND et les TR",IF(VLOOKUP('Calculs cachés'!A143+$V$2,'IC sans ND et TR'!$A$4:$S$1943,19)>Présentation!$N$1,"",VLOOKUP('Calculs cachés'!A143+$V$2,'IC sans ND et TR'!$A$4:$S$1943,19)),IF(VLOOKUP('Calculs cachés'!A143+$V$2,'IC sans TR'!$A$4:$S$3485,19)>Présentation!$N$1,"",VLOOKUP('Calculs cachés'!A143+$V$2,'IC sans TR'!$A$4:$S$3485,19))))) ->  | C116: =IF($I$1="Tous les tempéraments",IF(B116<=Présentation!$N$1,VLOOKUP('Calculs cachés'!A143+$V$2,'Intercorr. circ.'!$A$4:$S$6968,2),""),IF($I$1="Sans les ND",IF(B116<=Présentation!$N$1,VLOOKUP('Calculs cachés'!A143+$V$2,'IC sans ND'!$A$4:$S$3886,2),""),IF($I$1="Sans les ND et les TR",IF(B116<=Présentation!$N$1,VLOOKUP('Calculs cachés'!A143+$V$2,'IC sans ND et TR'!$A$4:$S$1943,2),""),IF(B116<=Présentation!$N$1,VLOOKUP('Calculs cachés'!A143+$V$2,'IC sans TR'!$A$4:$S$3485,2),"")))) ->  | D116: =IF($I$1="Tous les tempéraments",IF(C116="","",VLOOKUP('Calculs cachés'!A143+$V$2,'Intercorr. circ.'!$A$4:$S$6968,18)),IF($I$1="Sans les ND",IF(C116="","",VLOOKUP('Calculs cachés'!A143+$V$2,'IC sans ND'!$A$4:$S$3886,18)),IF($I$1="Sans Les ND et les TR",IF(C116="","",VLOOKUP('Calculs cachés'!A143+$V$2,'IC sans ND et TR'!$A$4:$S$1943,18)),IF(C116="","",VLOOKUP('Calculs cachés'!A143+$V$2,'IC sans TR'!$A$4:$S$3485,18))))) -> 
B117: =IF($I$1="Tous les tempéraments",IF(VLOOKUP('Calculs cachés'!A144+$V$2,'Intercorr. circ.'!$A$4:$S$6968,19)>Présentation!$N$1,"",VLOOKUP('Calculs cachés'!A144+$V$2,'Intercorr. circ.'!$A$4:$S$6968,19)),IF($I$1="Sans les ND",IF(VLOOKUP('Calculs cachés'!A144+$V$2,'IC sans ND'!$A$4:$S$3886,19)>Présentation!$N$1,"",VLOOKUP('Calculs cachés'!A144+$V$2,'IC sans ND'!$A$4:$S$3886,19)),IF($I$1="Sans les ND et les TR",IF(VLOOKUP('Calculs cachés'!A144+$V$2,'IC sans ND et TR'!$A$4:$S$1943,19)>Présentation!$N$1,"",VLOOKUP('Calculs cachés'!A144+$V$2,'IC sans ND et TR'!$A$4:$S$1943,19)),IF(VLOOKUP('Calculs cachés'!A144+$V$2,'IC sans TR'!$A$4:$S$3485,19)>Présentation!$N$1,"",VLOOKUP('Calculs cachés'!A144+$V$2,'IC sans TR'!$A$4:$S$3485,19))))) ->  | C117: =IF($I$1="Tous les tempéraments",IF(B117<=Présentation!$N$1,VLOOKUP('Calculs cachés'!A144+$V$2,'Intercorr. circ.'!$A$4:$S$6968,2),""),IF($I$1="Sans les ND",IF(B117<=Présentation!$N$1,VLOOKUP('Calculs cachés'!A144+$V$2,'IC sans ND'!$A$4:$S$3886,2),""),IF($I$1="Sans les ND et les TR",IF(B117<=Présentation!$N$1,VLOOKUP('Calculs cachés'!A144+$V$2,'IC sans ND et TR'!$A$4:$S$1943,2),""),IF(B117<=Présentation!$N$1,VLOOKUP('Calculs cachés'!A144+$V$2,'IC sans TR'!$A$4:$S$3485,2),"")))) ->  | D117: =IF($I$1="Tous les tempéraments",IF(C117="","",VLOOKUP('Calculs cachés'!A144+$V$2,'Intercorr. circ.'!$A$4:$S$6968,18)),IF($I$1="Sans les ND",IF(C117="","",VLOOKUP('Calculs cachés'!A144+$V$2,'IC sans ND'!$A$4:$S$3886,18)),IF($I$1="Sans Les ND et les TR",IF(C117="","",VLOOKUP('Calculs cachés'!A144+$V$2,'IC sans ND et TR'!$A$4:$S$1943,18)),IF(C117="","",VLOOKUP('Calculs cachés'!A144+$V$2,'IC sans TR'!$A$4:$S$3485,18))))) -> 
B118: =IF($I$1="Tous les tempéraments",IF(VLOOKUP('Calculs cachés'!A145+$V$2,'Intercorr. circ.'!$A$4:$S$6968,19)>Présentation!$N$1,"",VLOOKUP('Calculs cachés'!A145+$V$2,'Intercorr. circ.'!$A$4:$S$6968,19)),IF($I$1="Sans les ND",IF(VLOOKUP('Calculs cachés'!A145+$V$2,'IC sans ND'!$A$4:$S$3886,19)>Présentation!$N$1,"",VLOOKUP('Calculs cachés'!A145+$V$2,'IC sans ND'!$A$4:$S$3886,19)),IF($I$1="Sans les ND et les TR",IF(VLOOKUP('Calculs cachés'!A145+$V$2,'IC sans ND et TR'!$A$4:$S$1943,19)>Présentation!$N$1,"",VLOOKUP('Calculs cachés'!A145+$V$2,'IC sans ND et TR'!$A$4:$S$1943,19)),IF(VLOOKUP('Calculs cachés'!A145+$V$2,'IC sans TR'!$A$4:$S$3485,19)>Présentation!$N$1,"",VLOOKUP('Calculs cachés'!A145+$V$2,'IC sans TR'!$A$4:$S$3485,19))))) ->  | C118: =IF($I$1="Tous les tempéraments",IF(B118<=Présentation!$N$1,VLOOKUP('Calculs cachés'!A145+$V$2,'Intercorr. circ.'!$A$4:$S$6968,2),""),IF($I$1="Sans les ND",IF(B118<=Présentation!$N$1,VLOOKUP('Calculs cachés'!A145+$V$2,'IC sans ND'!$A$4:$S$3886,2),""),IF($I$1="Sans les ND et les TR",IF(B118<=Présentation!$N$1,VLOOKUP('Calculs cachés'!A145+$V$2,'IC sans ND et TR'!$A$4:$S$1943,2),""),IF(B118<=Présentation!$N$1,VLOOKUP('Calculs cachés'!A145+$V$2,'IC sans TR'!$A$4:$S$3485,2),"")))) ->  | D118: =IF($I$1="Tous les tempéraments",IF(C118="","",VLOOKUP('Calculs cachés'!A145+$V$2,'Intercorr. circ.'!$A$4:$S$6968,18)),IF($I$1="Sans les ND",IF(C118="","",VLOOKUP('Calculs cachés'!A145+$V$2,'IC sans ND'!$A$4:$S$3886,18)),IF($I$1="Sans Les ND et les TR",IF(C118="","",VLOOKUP('Calculs cachés'!A145+$V$2,'IC sans ND et TR'!$A$4:$S$1943,18)),IF(C118="","",VLOOKUP('Calculs cachés'!A145+$V$2,'IC sans TR'!$A$4:$S$3485,18))))) -> 
B119: =IF($I$1="Tous les tempéraments",IF(VLOOKUP('Calculs cachés'!A146+$V$2,'Intercorr. circ.'!$A$4:$S$6968,19)>Présentation!$N$1,"",VLOOKUP('Calculs cachés'!A146+$V$2,'Intercorr. circ.'!$A$4:$S$6968,19)),IF($I$1="Sans les ND",IF(VLOOKUP('Calculs cachés'!A146+$V$2,'IC sans ND'!$A$4:$S$3886,19)>Présentation!$N$1,"",VLOOKUP('Calculs cachés'!A146+$V$2,'IC sans ND'!$A$4:$S$3886,19)),IF($I$1="Sans les ND et les TR",IF(VLOOKUP('Calculs cachés'!A146+$V$2,'IC sans ND et TR'!$A$4:$S$1943,19)>Présentation!$N$1,"",VLOOKUP('Calculs cachés'!A146+$V$2,'IC sans ND et TR'!$A$4:$S$1943,19)),IF(VLOOKUP('Calculs cachés'!A146+$V$2,'IC sans TR'!$A$4:$S$3485,19)>Présentation!$N$1,"",VLOOKUP('Calculs cachés'!A146+$V$2,'IC sans TR'!$A$4:$S$3485,19))))) ->  | C119: =IF($I$1="Tous les tempéraments",IF(B119<=Présentation!$N$1,VLOOKUP('Calculs cachés'!A146+$V$2,'Intercorr. circ.'!$A$4:$S$6968,2),""),IF($I$1="Sans les ND",IF(B119<=Présentation!$N$1,VLOOKUP('Calculs cachés'!A146+$V$2,'IC sans ND'!$A$4:$S$3886,2),""),IF($I$1="Sans les ND et les TR",IF(B119<=Présentation!$N$1,VLOOKUP('Calculs cachés'!A146+$V$2,'IC sans ND et TR'!$A$4:$S$1943,2),""),IF(B119<=Présentation!$N$1,VLOOKUP('Calculs cachés'!A146+$V$2,'IC sans TR'!$A$4:$S$3485,2),"")))) ->  | D119: =IF($I$1="Tous les tempéraments",IF(C119="","",VLOOKUP('Calculs cachés'!A146+$V$2,'Intercorr. circ.'!$A$4:$S$6968,18)),IF($I$1="Sans les ND",IF(C119="","",VLOOKUP('Calculs cachés'!A146+$V$2,'IC sans ND'!$A$4:$S$3886,18)),IF($I$1="Sans Les ND et les TR",IF(C119="","",VLOOKUP('Calculs cachés'!A146+$V$2,'IC sans ND et TR'!$A$4:$S$1943,18)),IF(C119="","",VLOOKUP('Calculs cachés'!A146+$V$2,'IC sans TR'!$A$4:$S$3485,18))))) -> 
B120: =IF($I$1="Tous les tempéraments",IF(VLOOKUP('Calculs cachés'!A147+$V$2,'Intercorr. circ.'!$A$4:$S$6968,19)>Présentation!$N$1,"",VLOOKUP('Calculs cachés'!A147+$V$2,'Intercorr. circ.'!$A$4:$S$6968,19)),IF($I$1="Sans les ND",IF(VLOOKUP('Calculs cachés'!A147+$V$2,'IC sans ND'!$A$4:$S$3886,19)>Présentation!$N$1,"",VLOOKUP('Calculs cachés'!A147+$V$2,'IC sans ND'!$A$4:$S$3886,19)),IF($I$1="Sans les ND et les TR",IF(VLOOKUP('Calculs cachés'!A147+$V$2,'IC sans ND et TR'!$A$4:$S$1943,19)>Présentation!$N$1,"",VLOOKUP('Calculs cachés'!A147+$V$2,'IC sans ND et TR'!$A$4:$S$1943,19)),IF(VLOOKUP('Calculs cachés'!A147+$V$2,'IC sans TR'!$A$4:$S$3485,19)>Présentation!$N$1,"",VLOOKUP('Calculs cachés'!A147+$V$2,'IC sans TR'!$A$4:$S$3485,19))))) ->  | C120: =IF($I$1="Tous les tempéraments",IF(B120<=Présentation!$N$1,VLOOKUP('Calculs cachés'!A147+$V$2,'Intercorr. circ.'!$A$4:$S$6968,2),""),IF($I$1="Sans les ND",IF(B120<=Présentation!$N$1,VLOOKUP('Calculs cachés'!A147+$V$2,'IC sans ND'!$A$4:$S$3886,2),""),IF($I$1="Sans les ND et les TR",IF(B120<=Présentation!$N$1,VLOOKUP('Calculs cachés'!A147+$V$2,'IC sans ND et TR'!$A$4:$S$1943,2),""),IF(B120<=Présentation!$N$1,VLOOKUP('Calculs cachés'!A147+$V$2,'IC sans TR'!$A$4:$S$3485,2),"")))) ->  | D120: =IF($I$1="Tous les tempéraments",IF(C120="","",VLOOKUP('Calculs cachés'!A147+$V$2,'Intercorr. circ.'!$A$4:$S$6968,18)),IF($I$1="Sans les ND",IF(C120="","",VLOOKUP('Calculs cachés'!A147+$V$2,'IC sans ND'!$A$4:$S$3886,18)),IF($I$1="Sans Les ND et les TR",IF(C120="","",VLOOKUP('Calculs cachés'!A147+$V$2,'IC sans ND et TR'!$A$4:$S$1943,18)),IF(C120="","",VLOOKUP('Calculs cachés'!A147+$V$2,'IC sans TR'!$A$4:$S$3485,18))))) -> 
B121: =IF($I$1="Tous les tempéraments",IF(VLOOKUP('Calculs cachés'!A148+$V$2,'Intercorr. circ.'!$A$4:$S$6968,19)>Présentation!$N$1,"",VLOOKUP('Calculs cachés'!A148+$V$2,'Intercorr. circ.'!$A$4:$S$6968,19)),IF($I$1="Sans les ND",IF(VLOOKUP('Calculs cachés'!A148+$V$2,'IC sans ND'!$A$4:$S$3886,19)>Présentation!$N$1,"",VLOOKUP('Calculs cachés'!A148+$V$2,'IC sans ND'!$A$4:$S$3886,19)),IF($I$1="Sans les ND et les TR",IF(VLOOKUP('Calculs cachés'!A148+$V$2,'IC sans ND et TR'!$A$4:$S$1943,19)>Présentation!$N$1,"",VLOOKUP('Calculs cachés'!A148+$V$2,'IC sans ND et TR'!$A$4:$S$1943,19)),IF(VLOOKUP('Calculs cachés'!A148+$V$2,'IC sans TR'!$A$4:$S$3485,19)>Présentation!$N$1,"",VLOOKUP('Calculs cachés'!A148+$V$2,'IC sans TR'!$A$4:$S$3485,19))))) ->  | C121: =IF($I$1="Tous les tempéraments",IF(B121<=Présentation!$N$1,VLOOKUP('Calculs cachés'!A148+$V$2,'Intercorr. circ.'!$A$4:$S$6968,2),""),IF($I$1="Sans les ND",IF(B121<=Présentation!$N$1,VLOOKUP('Calculs cachés'!A148+$V$2,'IC sans ND'!$A$4:$S$3886,2),""),IF($I$1="Sans les ND et les TR",IF(B121<=Présentation!$N$1,VLOOKUP('Calculs cachés'!A148+$V$2,'IC sans ND et TR'!$A$4:$S$1943,2),""),IF(B121<=Présentation!$N$1,VLOOKUP('Calculs cachés'!A148+$V$2,'IC sans TR'!$A$4:$S$3485,2),"")))) ->  | D121: =IF($I$1="Tous les tempéraments",IF(C121="","",VLOOKUP('Calculs cachés'!A148+$V$2,'Intercorr. circ.'!$A$4:$S$6968,18)),IF($I$1="Sans les ND",IF(C121="","",VLOOKUP('Calculs cachés'!A148+$V$2,'IC sans ND'!$A$4:$S$3886,18)),IF($I$1="Sans Les ND et les TR",IF(C121="","",VLOOKUP('Calculs cachés'!A148+$V$2,'IC sans ND et TR'!$A$4:$S$1943,18)),IF(C121="","",VLOOKUP('Calculs cachés'!A148+$V$2,'IC sans TR'!$A$4:$S$3485,18))))) -> 
B122: =IF($I$1="Tous les tempéraments",IF(VLOOKUP('Calculs cachés'!A149+$V$2,'Intercorr. circ.'!$A$4:$S$6968,19)>Présentation!$N$1,"",VLOOKUP('Calculs cachés'!A149+$V$2,'Intercorr. circ.'!$A$4:$S$6968,19)),IF($I$1="Sans les ND",IF(VLOOKUP('Calculs cachés'!A149+$V$2,'IC sans ND'!$A$4:$S$3886,19)>Présentation!$N$1,"",VLOOKUP('Calculs cachés'!A149+$V$2,'IC sans ND'!$A$4:$S$3886,19)),IF($I$1="Sans les ND et les TR",IF(VLOOKUP('Calculs cachés'!A149+$V$2,'IC sans ND et TR'!$A$4:$S$1943,19)>Présentation!$N$1,"",VLOOKUP('Calculs cachés'!A149+$V$2,'IC sans ND et TR'!$A$4:$S$1943,19)),IF(VLOOKUP('Calculs cachés'!A149+$V$2,'IC sans TR'!$A$4:$S$3485,19)>Présentation!$N$1,"",VLOOKUP('Calculs cachés'!A149+$V$2,'IC sans TR'!$A$4:$S$3485,19))))) ->  | C122: =IF($I$1="Tous les tempéraments",IF(B122<=Présentation!$N$1,VLOOKUP('Calculs cachés'!A149+$V$2,'Intercorr. circ.'!$A$4:$S$6968,2),""),IF($I$1="Sans les ND",IF(B122<=Présentation!$N$1,VLOOKUP('Calculs cachés'!A149+$V$2,'IC sans ND'!$A$4:$S$3886,2),""),IF($I$1="Sans les ND et les TR",IF(B122<=Présentation!$N$1,VLOOKUP('Calculs cachés'!A149+$V$2,'IC sans ND et TR'!$A$4:$S$1943,2),""),IF(B122<=Présentation!$N$1,VLOOKUP('Calculs cachés'!A149+$V$2,'IC sans TR'!$A$4:$S$3485,2),"")))) ->  | D122: =IF($I$1="Tous les tempéraments",IF(C122="","",VLOOKUP('Calculs cachés'!A149+$V$2,'Intercorr. circ.'!$A$4:$S$6968,18)),IF($I$1="Sans les ND",IF(C122="","",VLOOKUP('Calculs cachés'!A149+$V$2,'IC sans ND'!$A$4:$S$3886,18)),IF($I$1="Sans Les ND et les TR",IF(C122="","",VLOOKUP('Calculs cachés'!A149+$V$2,'IC sans ND et TR'!$A$4:$S$1943,18)),IF(C122="","",VLOOKUP('Calculs cachés'!A149+$V$2,'IC sans TR'!$A$4:$S$3485,18))))) -> 
B123: =IF($I$1="Tous les tempéraments",IF(VLOOKUP('Calculs cachés'!A150+$V$2,'Intercorr. circ.'!$A$4:$S$6968,19)>Présentation!$N$1,"",VLOOKUP('Calculs cachés'!A150+$V$2,'Intercorr. circ.'!$A$4:$S$6968,19)),IF($I$1="Sans les ND",IF(VLOOKUP('Calculs cachés'!A150+$V$2,'IC sans ND'!$A$4:$S$3886,19)>Présentation!$N$1,"",VLOOKUP('Calculs cachés'!A150+$V$2,'IC sans ND'!$A$4:$S$3886,19)),IF($I$1="Sans les ND et les TR",IF(VLOOKUP('Calculs cachés'!A150+$V$2,'IC sans ND et TR'!$A$4:$S$1943,19)>Présentation!$N$1,"",VLOOKUP('Calculs cachés'!A150+$V$2,'IC sans ND et TR'!$A$4:$S$1943,19)),IF(VLOOKUP('Calculs cachés'!A150+$V$2,'IC sans TR'!$A$4:$S$3485,19)>Présentation!$N$1,"",VLOOKUP('Calculs cachés'!A150+$V$2,'IC sans TR'!$A$4:$S$3485,19))))) ->  | C123: =IF($I$1="Tous les tempéraments",IF(B123<=Présentation!$N$1,VLOOKUP('Calculs cachés'!A150+$V$2,'Intercorr. circ.'!$A$4:$S$6968,2),""),IF($I$1="Sans les ND",IF(B123<=Présentation!$N$1,VLOOKUP('Calculs cachés'!A150+$V$2,'IC sans ND'!$A$4:$S$3886,2),""),IF($I$1="Sans les ND et les TR",IF(B123<=Présentation!$N$1,VLOOKUP('Calculs cachés'!A150+$V$2,'IC sans ND et TR'!$A$4:$S$1943,2),""),IF(B123<=Présentation!$N$1,VLOOKUP('Calculs cachés'!A150+$V$2,'IC sans TR'!$A$4:$S$3485,2),"")))) ->  | D123: =IF($I$1="Tous les tempéraments",IF(C123="","",VLOOKUP('Calculs cachés'!A150+$V$2,'Intercorr. circ.'!$A$4:$S$6968,18)),IF($I$1="Sans les ND",IF(C123="","",VLOOKUP('Calculs cachés'!A150+$V$2,'IC sans ND'!$A$4:$S$3886,18)),IF($I$1="Sans Les ND et les TR",IF(C123="","",VLOOKUP('Calculs cachés'!A150+$V$2,'IC sans ND et TR'!$A$4:$S$1943,18)),IF(C123="","",VLOOKUP('Calculs cachés'!A150+$V$2,'IC sans TR'!$A$4:$S$3485,18))))) -> 
B124: =IF($I$1="Tous les tempéraments",IF(VLOOKUP('Calculs cachés'!A151+$V$2,'Intercorr. circ.'!$A$4:$S$6968,19)>Présentation!$N$1,"",VLOOKUP('Calculs cachés'!A151+$V$2,'Intercorr. circ.'!$A$4:$S$6968,19)),IF($I$1="Sans les ND",IF(VLOOKUP('Calculs cachés'!A151+$V$2,'IC sans ND'!$A$4:$S$3886,19)>Présentation!$N$1,"",VLOOKUP('Calculs cachés'!A151+$V$2,'IC sans ND'!$A$4:$S$3886,19)),IF($I$1="Sans les ND et les TR",IF(VLOOKUP('Calculs cachés'!A151+$V$2,'IC sans ND et TR'!$A$4:$S$1943,19)>Présentation!$N$1,"",VLOOKUP('Calculs cachés'!A151+$V$2,'IC sans ND et TR'!$A$4:$S$1943,19)),IF(VLOOKUP('Calculs cachés'!A151+$V$2,'IC sans TR'!$A$4:$S$3485,19)>Présentation!$N$1,"",VLOOKUP('Calculs cachés'!A151+$V$2,'IC sans TR'!$A$4:$S$3485,19))))) ->  | C124: =IF($I$1="Tous les tempéraments",IF(B124<=Présentation!$N$1,VLOOKUP('Calculs cachés'!A151+$V$2,'Intercorr. circ.'!$A$4:$S$6968,2),""),IF($I$1="Sans les ND",IF(B124<=Présentation!$N$1,VLOOKUP('Calculs cachés'!A151+$V$2,'IC sans ND'!$A$4:$S$3886,2),""),IF($I$1="Sans les ND et les TR",IF(B124<=Présentation!$N$1,VLOOKUP('Calculs cachés'!A151+$V$2,'IC sans ND et TR'!$A$4:$S$1943,2),""),IF(B124<=Présentation!$N$1,VLOOKUP('Calculs cachés'!A151+$V$2,'IC sans TR'!$A$4:$S$3485,2),"")))) ->  | D124: =IF($I$1="Tous les tempéraments",IF(C124="","",VLOOKUP('Calculs cachés'!A151+$V$2,'Intercorr. circ.'!$A$4:$S$6968,18)),IF($I$1="Sans les ND",IF(C124="","",VLOOKUP('Calculs cachés'!A151+$V$2,'IC sans ND'!$A$4:$S$3886,18)),IF($I$1="Sans Les ND et les TR",IF(C124="","",VLOOKUP('Calculs cachés'!A151+$V$2,'IC sans ND et TR'!$A$4:$S$1943,18)),IF(C124="","",VLOOKUP('Calculs cachés'!A151+$V$2,'IC sans TR'!$A$4:$S$3485,18))))) -> 
